Workbook

Sheet Supplementary Table 1
A1: Supplementary Table 1. Alignment statistics for RNAseq
A2: (mean of 4 individual samples)
A3: Aligner | B3: RBCs | D3: EVs
B4: Uniquely aligned (reads) | C4: Uniquely aligned (%) | D4: Uniquely aligned (reads) | E4: Uniquely aligned (%)
A5: Star | B5: 39,806,345 | C5: 90.7 | D5: 21 737 632 | E5: 54.8
A6: Kallisto | B6: 41 792 122 | C6: 95.2 | D6: 22 741 112 | E6: 57.3

Sheet Supplementary Table 2
A1: Supplementary Table 2. Expressed genes in RBCs (n = 4, cut-off value 5 counts). Data was annotated using QIAGEN’s Ingenuity® Pathway Analysis (IPA®, QIAGEN, Dec 16th, 2016) or Ensembl genome browser (http://www.ensembl.org, release 88 - Mar 2017).
A2: Symbol | B2: Entrez Gene Name | C2: ENSEMBL ID | D2: Exp Intensity (TPM; RBC1) | E2: Exp Intensity (TPM; RBC2) | F2: Exp Intensity (TPM; RBC3) | G2: Exp Intensity (TPM; RBC4) | H2: Exp Intensity(mean) | I2: Location | J2: Type(s)
A3: AAAS | B3: aladin WD repeat nucleoporin | C3: ENSG00000094914 | D3: 50 | E3: 51 | F3: 132 | G3: 113 | H3: =AVERAGE(D3:G3) -> 87 | I3: Nucleus | J3: other
A4: AAGAB | B4: alpha- and gamma-adaptin binding protein | C4: ENSG00000103591 | D4: 14 | E4: 18 | F4: 69 | G4: 50 | H4: 38 | I4: Cytoplasm | J4: other
A5: ABALON | B5: apoptotic BCL2L1-antisense long non-coding RNA | C5: ENSG00000281376 | D5: 38 | E5: 13 | F5: 114 | G5: 88 | H5: 63 | I5: Other | J5: other
A6: ABCB10 | B6: ATP binding cassette subfamily B member 10 | C6: ENSG00000135776 | D6: 100 | E6: 102 | F6: 125 | G6: 265 | H6: 148 | I6: Cytoplasm | J6: transporter
A7: ABCC13 | B7: ATP binding cassette subfamily C member 13 (pseudogene) [Source:HGNC Symbol | C7: ENSG00000243064 | D7: 665 | E7: 162 | F7: 474 | G7: 484 | H7: 446
A8: ABCC4 | B8: ATP binding cassette subfamily C member 4 | C8: ENSG00000125257 | D8: 97 | E8: 60 | F8: 60 | G8: 132 | H8: 87 | I8: Plasma Membrane | J8: transporter
A9: ABCF1 | B9: ATP binding cassette subfamily F member 1 | C9: ENSG00000204574 | D9: 59 | E9: 84 | F9: 44 | G9: 57 | H9: 61 | I9: Cytoplasm | J9: transporter
A10: ABHD5 | B10: abhydrolase domain containing 5 | C10: ENSG00000011198 | D10: 15 | E10: 5 | F10: 28 | G10: 70 | H10: 30 | I10: Cytoplasm | J10: enzyme
A11: ABTB1 | B11: ankyrin repeat and BTB domain containing 1 | C11: ENSG00000114626 | D11: 603 | E11: 109 | F11: 3421 | G11: 1274 | H11: 1352 | I11: Cytoplasm | J11: translation regulator
A12: AC004453.8 | B12: OTTHUMG00000155305 (Vega gene) is an external reference matched to Gene ENSG00000146677 | C12: ENSG00000146677 | D12: 5 | E12: 6 | F12: 8 | G12: 18 | H12: 9
A13: AC006547.13 | B13: OTTHUMG00000150731 (Vega gene) is an external reference matched to Gene ENSG00000236540 | C13: ENSG00000236540 | D13: 21 | E13: 5 | F13: 9 | G13: 36 | H13: 18
A14: AC007256.5 | B14: OTTHUMG00000154748 (Vega gene) is an external reference matched to Gene ENSG00000213090 | C14: ENSG00000213090 | D14: 7 | E14: 68 | F14: 54 | G14: 136 | H14: 66
A15: AC009403.2 | B15: OTTHUMG00000151355 (Vega gene) is an external reference matched to Gene ENSG00000216895 | C15: ENSG00000216895 | D15: 13 | E15: 30 | F15: 19 | G15: 28 | H15: 23
A16: AC116366.5 | B16: OTTHUMG00000059494 (Vega gene) is an external reference matched to Gene ENSG00000238160 | C16: ENSG00000238160 | D16: 20 | E16: 27 | F16: 22 | G16: 22 | H16: 23
A17: ACADM | B17: acyl-CoA dehydrogenase, C-4 to C-12 straight chain | C17: ENSG00000117054 | D17: 20 | E17: 71 | F17: 27 | G17: 31 | H17: 37 | I17: Cytoplasm | J17: enzyme
A18: ACAP2 | B18: ArfGAP with coiled-coil, ankyrin repeat and PH domains 2 | C18: ENSG00000114331 | D18: 59 | E18: 200 | F18: 48 | G18: 130 | H18: 109 | I18: Nucleus | J18: other
A19: ACKR1 | B19: atypical chemokine receptor 1 (Duffy blood group) | C19: ENSG00000213088 | D19: 393 | E19: 397 | F19: 404 | G19: 549 | H19: 436 | I19: Plasma Membrane | J19: G-protein coupled receptor
A20: ACKR2 | B20: atypical chemokine receptor 2 | C20: ENSG00000144648 | D20: 6 | E20: 53 | F20: 17 | G20: 112 | H20: 47 | I20: Plasma Membrane | J20: G-protein coupled receptor
A21: ACP1 | B21: acid phosphatase 1, soluble | C21: ENSG00000143727 | D21: 319 | E21: 288 | F21: 367 | G21: 186 | H21: 290 | I21: Cytoplasm | J21: phosphatase
A22: ACSL6 | B22: acyl-CoA synthetase long-chain family member 6 | C22: ENSG00000164398 | D22: 46 | E22: 29 | F22: 21 | G22: 29 | H22: 31 | I22: Cytoplasm | J22: enzyme
A23: ACTB | B23: actin beta | C23: ENSG00000075624 | D23: 192 | E23: 179 | F23: 265 | G23: 95 | H23: 183 | I23: Cytoplasm | J23: other
A24: ACTR1A | B24: ARP1 actin-related protein 1 homolog A, centractin alpha | C24: ENSG00000138107 | D24: 114 | E24: 68 | F24: 160 | G24: 191 | H24: 133 | I24: Cytoplasm | J24: other
A25: ACTR3 | B25: ARP3 actin related protein 3 homolog | C25: ENSG00000115091 | D25: 43 | E25: 35 | F25: 43 | G25: 83 | H25: 51 | I25: Plasma Membrane | J25: other
A26: ADAL | B26: adenosine deaminase like | C26: ENSG00000168803 | D26: 10 | E26: 28 | F26: 21 | G26: 59 | H26: 30 | I26: Cytoplasm | J26: enzyme
A27: ADAR | B27: adenosine deaminase, RNA specific | C27: ENSG00000160710 | D27: 10 | E27: 73 | F27: 61 | G27: 29 | H27: 43 | I27: Nucleus | J27: enzyme
A28: ADD1 | B28: adducin 1 | C28: ENSG00000087274 | D28: 97 | E28: 86 | F28: 324 | G28: 258 | H28: 191 | I28: Cytoplasm | J28: other
A29: ADD2 | B29: adducin 2 | C29: ENSG00000075340 | D29: 52 | E29: 79 | F29: 13 | G29: 68 | H29: 53 | I29: Cytoplasm | J29: other
A30: ADIPOR1 | B30: adiponectin receptor 1 | C30: ENSG00000159346 | D30: 8827 | E30: 8714 | F30: 6044 | G30: 11168 | H30: 8688 | I30: Plasma Membrane | J30: transmembrane receptor
A31: AFF1 | B31: AF4/FMR2 family member 1 | C31: ENSG00000172493 | D31: 84 | E31: 197 | F31: 46 | G31: 165 | H31: 123 | I31: Nucleus | J31: transcription regulator
A32: AFTPH | B32: aftiphilin | C32: ENSG00000119844 | D32: 17 | E32: 37 | F32: 9 | G32: 42 | H32: 26 | I32: Cytoplasm | J32: other
A33: AGER | B33: advanced glycosylation end product-specific receptor | C33: ENSG00000204305 | D33: 20 | E33: 11 | F33: 32 | G33: 103 | H33: 42 | I33: Plasma Membrane | J33: transmembrane receptor
A34: AGGF1 | B34: angiogenic factor with G-patch and FHA domains 1 | C34: ENSG00000164252 | D34: 117 | E34: 229 | F34: 65 | G34: 190 | H34: 150 | I34: Cytoplasm | J34: other
A35: AGO2 | B35: argonaute 2, RISC catalytic component | C35: ENSG00000123908 | D35: 98 | E35: 83 | F35: 128 | G35: 93 | H35: 101 | I35: Cytoplasm | J35: translation regulator
A36: AGPAT3 | B36: 1-acylglycerol-3-phosphate O-acyltransferase 3 | C36: ENSG00000160216 | D36: 15 | E36: 19 | F36: 33 | G36: 23 | H36: 23 | I36: Cytoplasm | J36: enzyme
A37: AGTPBP1 | B37: ATP/GTP binding protein 1 | C37: ENSG00000135049 | D37: 153 | E37: 271 | F37: 17 | G37: 263 | H37: 176 | I37: Nucleus | J37: peptidase
A38: AHSP | B38: alpha hemoglobin stabilizing protein | C38: ENSG00000169877 | D38: 2912 | E38: 3609 | F38: 6491 | G38: 3575 | H38: 4147 | I38: Cytoplasm | J38: other
A39: AIDA | B39: axin interactor, dorsalization associated | C39: ENSG00000186063 | D39: 133 | E39: 198 | F39: 83 | G39: 205 | H39: 155 | I39: Cytoplasm | J39: other
A40: AK9 | B40: adenylate kinase 9 | C40: ENSG00000155085 | D40: 13 | E40: 58 | F40: 21 | G40: 45 | H40: 34 | I40: Nucleus | J40: kinase
A41: AKAP13 | B41: A-kinase anchoring protein 13 | C41: ENSG00000170776 | D41: 30 | E41: 28 | F41: 137 | G41: 125 | H41: 80 | I41: Cytoplasm | J41: other
A42: AKAP7 | B42: A-kinase anchoring protein 7 | C42: ENSG00000118507 | D42: 1225 | E42: 2725 | F42: 1379 | G42: 2438 | H42: 1942 | I42: Plasma Membrane | J42: other
A43: AKAP9 | B43: A-kinase anchoring protein 9 | C43: ENSG00000127914 | D43: 631 | E43: 1419 | F43: 480 | G43: 1590 | H43: 1030 | I43: Cytoplasm | J43: other
A44: AKT1S1 | B44: AKT1 substrate 1 | C44: ENSG00000204673 | D44: 27 | E44: 15 | F44: 37 | G44: 40 | H44: 30 | I44: Cytoplasm | J44: other
A45: AL353644.10 | B45: This identifier is not in the current EnsEMBL database but it has been mapped to 1 deprecated identifier, ENSG00000277048.1, non-coding RNA | C45: ENSG00000277048 | D45: 189 | E45: 197 | F45: 325 | G45: 616 | H45: 332
A46: AL592183.1 | B46: Novel protein coding, there is no ungapped mapping of this gene onto the GRCh37 assembly | C46: ENSG00000273748 | D46: 7 | E46: 14 | F46: 12 | G46: 29 | H46: 16
A47: ALAD | B47: aminolevulinate dehydratase | C47: ENSG00000148218 | D47: 79 | E47: 160 | F47: 310 | G47: 448 | H47: 249 | I47: Cytoplasm | J47: enzyme
A48: ALAS2 | B48: 5'-aminolevulinate synthase 2 | C48: ENSG00000158578 | D48: 185510 | E48: 155254 | F48: 64482 | G48: 66432 | H48: 117920 | I48: Cytoplasm | J48: enzyme
A49: ALDOA | B49: aldolase, fructose-bisphosphate A | C49: ENSG00000149925 | D49: 46 | E49: 22 | F49: 76 | G49: 46 | H49: 48 | I49: Cytoplasm | J49: enzyme
A50: ALG13 | B50: ALG13, UDP-N-acetylglucosaminyltransferase subunit | C50: ENSG00000101901 | D50: 14 | E50: 5 | F50: 22 | G50: 25 | H50: 17 | I50: Cytoplasm | J50: enzyme
A51: ALKBH5 | B51: alkB homolog 5, RNA demethylase | C51: ENSG00000091542 | D51: 12 | E51: 42 | F51: 18 | G51: 32 | H51: 26 | I51: Nucleus | J51: enzyme
A52: ALMS1 | B52: ALMS1, centrosome and basal body associated protein | C52: ENSG00000116127 | D52: 152 | E52: 300 | F52: 96 | G52: 309 | H52: 214 | I52: Cytoplasm | J52: other
A53: ALS2CR12 | B53: amyotrophic lateral sclerosis 2 chromosome region candidate 12 | C53: ENSG00000155749 | D53: 942 | E53: 2233 | F53: 1102 | G53: 2013 | H53: 1573 | I53: Cytoplasm | J53: other
A54: AMFR | B54: autocrine motility factor receptor | C54: ENSG00000159461 | D54: 19 | E54: 5 | F54: 25 | G54: 52 | H54: 25 | I54: Plasma Membrane | J54: transmembrane receptor
A55: AMMECR1 | B55: Alport syndrome, mental retardation, midface hypoplasia and elliptocytosis chromosomal region gene 1 | C55: ENSG00000101935 | D55: 7 | E55: 23 | F55: 19 | G55: 5 | H55: 14 | I55: Other | J55: other
A56: ANAPC16 | B56: anaphase promoting complex subunit 16 | C56: ENSG00000166295 | D56: 160 | E56: 228 | F56: 162 | G56: 262 | H56: 203 | I56: Nucleus | J56: other
A57: ANK1 | B57: ankyrin 1 | C57: ENSG00000029534 | D57: 777 | E57: 1355 | F57: 797 | G57: 1700 | H57: 1157 | I57: Plasma Membrane | J57: other
A58: ANKH | B58: ANKH inorganic pyrophosphate transport regulator | C58: ENSG00000154122 | D58: 63 | E58: 232 | F58: 130 | G58: 170 | H58: 149 | I58: Plasma Membrane | J58: transporter
A59: ANKIB1 | B59: ankyrin repeat and IBR domain containing 1 | C59: ENSG00000001629 | D59: 188 | E59: 211 | F59: 135 | G59: 433 | H59: 242 | I59: Nucleus | J59: transcription regulator
A60: ANKRD12 | B60: ankyrin repeat domain 12 | C60: ENSG00000101745 | D60: 319 | E60: 547 | F60: 368 | G60: 292 | H60: 382 | I60: Nucleus | J60: other
A61: ANKRD13A | B61: ankyrin repeat domain 13A | C61: ENSG00000076513 | D61: 19 | E61: 15 | F61: 45 | G61: 28 | H61: 27 | I61: Plasma Membrane | J61: other
A62: ANKRD17 | B62: ankyrin repeat domain 17 | C62: ENSG00000132466 | D62: 37 | E62: 98 | F62: 80 | G62: 134 | H62: 87 | I62: Nucleus | J62: other
A63: ANKRD26 | B63: ankyrin repeat domain 26 | C63: ENSG00000107890 | D63: 204 | E63: 284 | F63: 149 | G63: 345 | H63: 246 | I63: Nucleus | J63: transcription regulator
A64: ANKRD36 | B64: ankyrin repeat domain 36 | C64: ENSG00000135976 | D64: 59 | E64: 111 | F64: 58 | G64: 106 | H64: 84 | I64: Other | J64: other
A65: ANKRD36BP2 | B65: ankyrin repeat domain 36B pseudogene 2 [Source:HGNC Symbol | C65: ENSG00000230006 | D65: 963 | E65: 2037 | F65: 875 | G65: 2137 | H65: 1503
A66: ANKRD36C | B66: ankyrin repeat domain 36C | C66: ENSG00000174501 | D66: 183 | E66: 225 | F66: 44 | G66: 137 | H66: 147 | I66: Other | J66: other
A67: ANO10 | B67: anoctamin 10 | C67: ENSG00000160746 | D67: 32 | E67: 68 | F67: 27 | G67: 92 | H67: =AVERAGE(D67:G67) -> 55 | I67: Plasma Membrane | J67: ion channel
A68: ANO7L1 | B68: anoctamin 7 like 1 [Source:HGNC Symbol | C68: ENSG00000237276 | D68: 29 | E68: 139 | F68: 81 | G68: 138 | H68: 97
A69: ANP32B | B69: acidic nuclear phosphoprotein 32 family member B | C69: ENSG00000136938 | D69: 570 | E69: 1239 | F69: 609 | G69: 1758 | H69: 1044 | I69: Nucleus | J69: other
A70: ANP32E | B70: acidic nuclear phosphoprotein 32 family member E | C70: ENSG00000143401 | D70: 479 | E70: 851 | F70: 289 | G70: 509 | H70: 532 | I70: Nucleus | J70: other
A71: ANXA7 | B71: annexin A7 | C71: ENSG00000138279 | D71: 110 | E71: 216 | F71: 145 | G71: 123 | H71: 149 | I71: Plasma Membrane | J71: ion channel
A72: AP2A1 | B72: adaptor related protein complex 2 alpha 1 subunit | C72: ENSG00000196961 | D72: 43 | E72: 11 | F72: 38 | G72: 61 | H72: 38 | I72: Cytoplasm | J72: transporter
A73: AP2B1 | B73: adaptor related protein complex 2 beta 1 subunit | C73: ENSG00000006125 | D73: 890 | E73: 501 | F73: 855 | G73: 1295 | H73: 885 | I73: Plasma Membrane | J73: transporter
A74: AP2M1 | B74: adaptor related protein complex 2 mu 1 subunit | C74: ENSG00000161203 | D74: 5091 | E74: 8730 | F74: 12712 | G74: 9310 | H74: 8961 | I74: Cytoplasm | J74: transporter
A75: AP2S1 | B75: adaptor related protein complex 2 sigma 1 subunit | C75: ENSG00000042753 | D75: 215 | E75: 222 | F75: 519 | G75: 343 | H75: 325 | I75: Cytoplasm | J75: transporter
A76: APLF | B76: aprataxin and PNKP like factor [Source:HGNC Symbol | C76: ENSG00000169621 | D76: 52 | E76: 72 | F76: 44 | G76: 178 | H76: 87
A77: APOBEC2 | B77: apolipoprotein B mRNA editing enzyme catalytic subunit 2 | C77: ENSG00000124701 | D77: 9 | E77: 104 | F77: 28 | G77: 53 | H77: 49 | I77: Other | J77: enzyme
A78: APOBEC3C | B78: apolipoprotein B mRNA editing enzyme catalytic subunit 3C | C78: ENSG00000244509 | D78: 1118 | E78: 849 | F78: 1113 | G78: 1546 | H78: 1157 | I78: Other | J78: enzyme
A79: APOL3 | B79: apolipoprotein L3 | C79: ENSG00000128284 | D79: 6 | E79: 19 | F79: 11 | G79: 20 | H79: 14 | I79: Cytoplasm | J79: transporter
A80: APOM | B80: apolipoprotein M | C80: ENSG00000204444 | D80: 26 | E80: 7 | F80: 41 | G80: 15 | H80: 22 | I80: Plasma Membrane | J80: transporter
A81: APOOL | B81: apolipoprotein O like [Source:HGNC Symbol | C81: ENSG00000155008 | D81: 13 | E81: 57 | F81: 17 | G81: 45 | H81: 33
A82: APOPT1 | B82: apoptogenic 1, mitochondrial | C82: ENSG00000256053 | D82: 14 | E82: 18 | F82: 33 | G82: 8 | H82: 18 | I82: Cytoplasm | J82: other
A83: ARAF | B83: A-Raf proto-oncogene, serine/threonine kinase | C83: ENSG00000078061 | D83: 163 | E83: 132 | F83: 285 | G83: 234 | H83: 204 | I83: Cytoplasm | J83: kinase
A84: ARF1 | B84: ADP ribosylation factor 1 | C84: ENSG00000143761 | D84: 764 | E84: 204 | F84: 2010 | G84: 529 | H84: 877 | I84: Cytoplasm | J84: enzyme
A85: ARF4 | B85: ADP ribosylation factor 4 | C85: ENSG00000168374 | D85: 266 | E85: 277 | F85: 128 | G85: 239 | H85: 228 | I85: Cytoplasm | J85: enzyme
A86: ARF4-AS1 | B86: ARF4 antisense RNA 1 [Source:HGNC Symbol | C86: ENSG00000272146 | D86: 6 | E86: 5 | F86: 7 | G86: 24 | H86: 11
A87: ARG1 | B87: arginase 1 | C87: ENSG00000118520 | D87: 131 | E87: 231 | F87: 122 | G87: 227 | H87: 178 | I87: Cytoplasm | J87: enzyme
A88: ARHGAP42 | B88: Rho GTPase activating protein 42 | C88: ENSG00000165895 | D88: 19 | E88: 106 | F88: 16 | G88: 75 | H88: 54 | I88: Other | J88: other
A89: ARHGAP5 | B89: Rho GTPase activating protein 5 | C89: ENSG00000100852 | D89: 126 | E89: 305 | F89: 33 | G89: 258 | H89: 181 | I89: Cytoplasm | J89: enzyme
A90: ARHGEF12 | B90: Rho guanine nucleotide exchange factor 12 | C90: ENSG00000196914 | D90: 439 | E90: 1100 | F90: 715 | G90: 1460 | H90: 929 | I90: Cytoplasm | J90: other
A91: ARID1A | B91: AT-rich interaction domain 1A | C91: ENSG00000117713 | D91: 18 | E91: 65 | F91: 33 | G91: 57 | H91: 43 | I91: Nucleus | J91: transcription regulator
A92: ARID2 | B92: AT-rich interaction domain 2 | C92: ENSG00000189079 | D92: 6 | E92: 58 | F92: 11 | G92: 6 | H92: 20 | I92: Nucleus | J92: transcription regulator
A93: ARID4A | B93: AT-rich interaction domain 4A | C93: ENSG00000032219 | D93: 69 | E93: 127 | F93: 29 | G93: 59 | H93: 71 | I93: Nucleus | J93: transcription regulator
A94: ARID4B | B94: AT-rich interaction domain 4B | C94: ENSG00000054267 | D94: 301 | E94: 624 | F94: 272 | G94: 726 | H94: 481 | I94: Nucleus | J94: enzyme
A95: ARL4A | B95: ADP ribosylation factor like GTPase 4A | C95: ENSG00000122644 | D95: 1659 | E95: 1004 | F95: 1070 | G95: 1963 | H95: 1424 | I95: Nucleus | J95: enzyme
A96: ARL6IP1 | B96: ADP ribosylation factor like GTPase 6 interacting protein 1 | C96: ENSG00000170540 | D96: 195 | E96: 496 | F96: 139 | G96: 334 | H96: 291 | I96: Cytoplasm | J96: other
A97: ARL6IP5 | B97: ADP ribosylation factor like GTPase 6 interacting protein 5 | C97: ENSG00000144746 | D97: 27 | E97: 41 | F97: 9 | G97: 37 | H97: 29 | I97: Cytoplasm | J97: other
A98: ARMC1 | B98: armadillo repeat containing 1 | C98: ENSG00000104442 | D98: 16 | E98: 15 | F98: 42 | G98: 53 | H98: 32 | I98: Cytoplasm | J98: other
A99: ARMC6 | B99: armadillo repeat containing 6 | C99: ENSG00000105676 | D99: 19 | E99: 12 | F99: 17 | G99: 43 | H99: 23 | I99: Other | J99: other
A100: ARMC8 | B100: armadillo repeat containing 8 | C100: ENSG00000114098 | D100: 60 | E100: 87 | F100: 107 | G100: 60 | H100: 79 | I100: Nucleus | J100: other
A101: ARNT | B101: aryl hydrocarbon receptor nuclear translocator | C101: ENSG00000143437 | D101: 51 | E101: 58 | F101: 60 | G101: 74 | H101: 61 | I101: Nucleus | J101: transcription regulator
A102: ARPC3 | B102: actin related protein 2/3 complex subunit 3 | C102: ENSG00000111229 | D102: 134 | E102: 91 | F102: 100 | G102: 63 | H102: 97 | I102: Cytoplasm | J102: other
A103: ARPC4 | B103: actin related protein 2/3 complex subunit 4 | C103: ENSG00000241553 | D103: 55 | E103: 105 | F103: 102 | G103: 128 | H103: 98 | I103: Cytoplasm | J103: other
A104: ARRB2 | B104: arrestin beta 2 | C104: ENSG00000141480 | D104: 257 | E104: 421 | F104: 959 | G104: 581 | H104: 555 | I104: Cytoplasm | J104: other
A105: ASAP1 | B105: ArfGAP with SH3 domain, ankyrin repeat and PH domain 1 | C105: ENSG00000153317 | D105: 365 | E105: 662 | F105: 305 | G105: 738 | H105: 518 | I105: Plasma Membrane | J105: other
A106: ASB8 | B106: ankyrin repeat and SOCS box containing 8 | C106: ENSG00000177981 | D106: 44 | E106: 44 | F106: 70 | G106: 87 | H106: 61 | I106: Nucleus | J106: transcription regulator
A107: ASCC2 | B107: activating signal cointegrator 1 complex subunit 2 | C107: ENSG00000100325 | D107: 2299 | E107: 1641 | F107: 4024 | G107: 3036 | H107: 2750 | I107: Nucleus | J107: other
A108: ASH1L | B108: ASH1 like histone lysine methyltransferase | C108: ENSG00000116539 | D108: 103 | E108: 214 | F108: 92 | G108: 232 | H108: 160 | I108: Nucleus | J108: transcription regulator
A109: ASH2L | B109: ASH2 like histone lysine methyltransferase complex subunit | C109: ENSG00000129691 | D109: 91 | E109: 218 | F109: 89 | G109: 329 | H109: 182 | I109: Nucleus | J109: transcription regulator
A110: ASNA1 | B110: arsA arsenite transporter, ATP-binding, homolog 1 (bacterial) | C110: ENSG00000198356 | D110: 255 | E110: 456 | F110: 410 | G110: 668 | H110: 447 | I110: Nucleus | J110: transporter
A111: ASPH | B111: aspartate beta-hydroxylase | C111: ENSG00000198363 | D111: 8 | E111: 52 | F111: 16 | G111: 39 | H111: 29 | I111: Cytoplasm | J111: enzyme
A112: ASPM | B112: abnormal spindle microtubule assembly | C112: ENSG00000066279 | D112: 114 | E112: 205 | F112: 57 | G112: 130 | H112: 127 | I112: Nucleus | J112: other
A113: ASXL2 | B113: additional sex combs like 2, transcriptional regulator | C113: ENSG00000143970 | D113: 8 | E113: 70 | F113: 15 | G113: 58 | H113: 38 | I113: Extracellular Space | J113: other
A114: ATAD2 | B114: ATPase family, AAA domain containing 2 | C114: ENSG00000156802 | D114: 256 | E114: 670 | F114: 402 | G114: 434 | H114: 441 | I114: Nucleus | J114: enzyme
A115: ATAD2B | B115: ATPase family, AAA domain containing 2B | C115: ENSG00000119778 | D115: 312 | E115: 600 | F115: 195 | G115: 768 | H115: 469 | I115: Nucleus | J115: other
A116: ATAD5 | B116: ATPase family, AAA domain containing 5 | C116: ENSG00000176208 | D116: 192 | E116: 455 | F116: 98 | G116: 407 | H116: 288 | I116: Extracellular Space | J116: other
A117: ATF2 | B117: activating transcription factor 2 | C117: ENSG00000115966 | D117: 26 | E117: 39 | F117: 32 | G117: 29 | H117: 32 | I117: Nucleus | J117: transcription regulator
A118: ATF4 | B118: activating transcription factor 4 | C118: ENSG00000128272 | D118: 65 | E118: 37 | F118: 157 | G118: 92 | H118: 88 | I118: Nucleus | J118: transcription regulator
A119: ATF7IP | B119: activating transcription factor 7 interacting protein | C119: ENSG00000171681 | D119: 107 | E119: 259 | F119: 100 | G119: 347 | H119: 203 | I119: Nucleus | J119: transcription regulator
A120: ATG12 | B120: autophagy related 12 | C120: ENSG00000145782 | D120: 27 | E120: 35 | F120: 39 | G120: 51 | H120: 38 | I120: Cytoplasm | J120: other
A121: ATG13 | B121: autophagy related 13 | C121: ENSG00000175224 | D121: 31 | E121: 94 | F121: 107 | G121: 133 | H121: 91 | I121: Cytoplasm | J121: other
A122: ATG3 | B122: autophagy related 3 | C122: ENSG00000144848 | D122: 128 | E122: 287 | F122: 63 | G122: 176 | H122: 164 | I122: Cytoplasm | J122: enzyme
A123: ATG9A | B123: autophagy related 9A | C123: ENSG00000198925 | D123: 36 | E123: 11 | F123: 86 | G123: 43 | H123: 44 | I123: Cytoplasm | J123: other
A124: ATM | B124: ATM serine/threonine kinase | C124: ENSG00000149311 | D124: 22 | E124: 50 | F124: 12 | G124: 23 | H124: 27 | I124: Nucleus | J124: kinase
A125: ATP2B1 | B125: ATPase plasma membrane Ca2+ transporting 1 | C125: ENSG00000070961 | D125: 106 | E125: 81 | F125: 77 | G125: 86 | H125: 88 | I125: Plasma Membrane | J125: transporter
A126: ATP5B | B126: ATP synthase, H+ transporting, mitochondrial F1 complex, beta polypeptide | C126: ENSG00000110955 | D126: 774 | E126: 173 | F126: 2282 | G126: 292 | H126: 880 | I126: Cytoplasm | J126: transporter
A127: ATP5E | B127: ATP synthase, H+ transporting, mitochondrial F1 complex, epsilon subunit | C127: ENSG00000124172 | D127: 5752 | E127: 3567 | F127: 4870 | G127: 10151 | H127: 6085 | I127: Cytoplasm | J127: other
A128: ATP5F1 | B128: ATP synthase, H+ transporting, mitochondrial Fo complex subunit B1 | C128: ENSG00000116459 | D128: 6 | E128: 8 | F128: 9 | G128: 61 | H128: 21 | I128: Cytoplasm | J128: transporter
A129: ATP5H | B129: ATP synthase, H+ transporting, mitochondrial Fo complex subunit D | C129: ENSG00000167863 | D129: 20 | E129: 9 | F129: 18 | G129: 17 | H129: 16 | I129: Cytoplasm | J129: enzyme
A130: ATP5I | B130: ATP synthase, H+ transporting, mitochondrial Fo complex subunit E | C130: ENSG00000169020 | D130: 12 | E130: 10 | F130: 14 | G130: 32 | H130: 17 | I130: Cytoplasm | J130: transporter
A131: ATP5J | B131: ATP synthase, H+ transporting, mitochondrial Fo complex subunit F6 | C131: ENSG00000154723 | D131: 62 | E131: 61 | F131: 85 | G131: 70 | H131: =AVERAGE(D131:G131) -> 70 | I131: Cytoplasm | J131: transporter
A132: ATP5J2 | B132: ATP synthase, H+ transporting, mitochondrial Fo complex subunit F2 | C132: ENSG00000241468 | D132: 19 | E132: 27 | F132: 51 | G132: 46 | H132: 36 | I132: Cytoplasm | J132: transporter
A133: ATP5L | B133: ATP synthase, H+ transporting, mitochondrial Fo complex subunit G | C133: ENSG00000167283 | D133: 188 | E133: 136 | F133: 113 | G133: 197 | H133: 159 | I133: Cytoplasm | J133: enzyme
A134: ATP5O | B134: ATP synthase, H+ transporting, mitochondrial F1 complex, O subunit | C134: ENSG00000241837 | D134: 9 | E134: 12 | F134: 5 | G134: 14 | H134: 10 | I134: Cytoplasm | J134: transporter
A135: ATP5S | B135: ATP synthase, H+ transporting, mitochondrial Fo complex subunit s (factor B) | C135: ENSG00000125375 | D135: 217 | E135: 435 | F135: 454 | G135: 657 | H135: 441 | I135: Cytoplasm | J135: transporter
A136: ATP6V0D1 | B136: ATPase H+ transporting V0 subunit d1 | C136: ENSG00000159720 | D136: 20 | E136: 49 | F136: 127 | G136: 38 | H136: 59 | I136: Cytoplasm | J136: transporter
A137: ATP6V0E1 | B137: ATPase H+ transporting V0 subunit e1 | C137: ENSG00000113732 | D137: 25 | E137: 40 | F137: 30 | G137: 62 | H137: 39 | I137: Cytoplasm | J137: transporter
A138: ATP6V1D | B138: ATPase H+ transporting V1 subunit D | C138: ENSG00000100554 | D138: 63 | E138: 49 | F138: 44 | G138: 116 | H138: 68 | I138: Cytoplasm | J138: transporter
A139: ATP6V1E1 | B139: ATPase H+ transporting V1 subunit E1 | C139: ENSG00000131100 | D139: 27 | E139: 27 | F139: 18 | G139: 24 | H139: 24 | I139: Cytoplasm | J139: transporter
A140: ATP6V1F | B140: ATPase H+ transporting V1 subunit F | C140: ENSG00000128524 | D140: 201 | E140: 330 | F140: 373 | G140: 310 | H140: 304 | I140: Cytoplasm | J140: enzyme
A141: ATP6V1G1 | B141: ATPase H+ transporting V1 subunit G1 | C141: ENSG00000136888 | D141: 38 | E141: 6 | F141: 8 | G141: 12 | H141: 16 | I141: Cytoplasm | J141: transporter
A142: ATP9B | B142: ATPase phospholipid transporting 9B (putative) | C142: ENSG00000166377 | D142: 34 | E142: 30 | F142: 6 | G142: 77 | H142: 37 | I142: Cytoplasm | J142: transporter
A143: ATR | B143: ATR serine/threonine kinase | C143: ENSG00000175054 | D143: 6 | E143: 12 | F143: 20 | G143: 10 | H143: 12 | I143: Nucleus | J143: kinase
A144: ATRX | B144: ATRX, chromatin remodeler | C144: ENSG00000085224 | D144: 482 | E144: 1199 | F144: 361 | G144: 1261 | H144: 826 | I144: Nucleus | J144: transcription regulator
A145: ATXN2 | B145: ataxin 2 | C145: ENSG00000204842 | D145: 17 | E145: 73 | F145: 16 | G145: 78 | H145: 46 | I145: Nucleus | J145: other
A146: ATXN3 | B146: ataxin 3 | C146: ENSG00000066427 | D146: 22 | E146: 211 | F146: 55 | G146: 148 | H146: 109 | I146: Nucleus | J146: peptidase
A147: AURKA | B147: aurora kinase A | C147: ENSG00000087586 | D147: 83 | E147: 113 | F147: 28 | G147: 200 | H147: 106 | I147: Nucleus | J147: kinase
A148: AZIN1 | B148: antizyme inhibitor 1 | C148: ENSG00000155096 | D148: 151 | E148: 176 | F148: 48 | G148: 47 | H148: 106 | I148: Cytoplasm | J148: enzyme
A149: B2M | B149: beta-2-microglobulin | C149: ENSG00000166710 | D149: 130 | E149: 229 | F149: 90 | G149: 217 | H149: 167 | I149: Plasma Membrane | J149: transmembrane receptor
A150: B4GALT3 | B150: beta-1,4-galactosyltransferase 3 | C150: ENSG00000158850 | D150: 990 | E150: 1384 | F150: 2440 | G150: 2015 | H150: 1707 | I150: Cytoplasm | J150: enzyme
A151: BABAM1 | B151: BRISC and BRCA1 A complex member 1 | C151: ENSG00000105393 | D151: 206 | E151: 104 | F151: 761 | G151: 618 | H151: 422 | I151: Nucleus | J151: other
A152: BACH1 | B152: BTB domain and CNC homolog 1 [Source:HGNC Symbol | C152: ENSG00000156273 | D152: 9 | E152: 48 | F152: 22 | G152: 53 | H152: 33
A153: BAG1 | B153: BCL2 associated athanogene 1 | C153: ENSG00000107262 | D153: 1353 | E153: 2583 | F153: 1745 | G153: 2417 | H153: 2025 | I153: Cytoplasm | J153: other
A154: BAG6 | B154: BCL2 associated athanogene 6 | C154: ENSG00000204463 | D154: 275 | E154: 463 | F154: 562 | G154: 558 | H154: 465 | I154: Nucleus | J154: enzyme
A155: BARD1 | B155: BRCA1 associated RING domain 1 | C155: ENSG00000138376 | D155: 242 | E155: 370 | F155: 134 | G155: 313 | H155: 265 | I155: Nucleus | J155: transcription regulator
A156: BAZ1A | B156: bromodomain adjacent to zinc finger domain 1A | C156: ENSG00000198604 | D156: 88 | E156: 246 | F156: 51 | G156: 523 | H156: 227 | I156: Nucleus | J156: other
A157: BAZ1B | B157: bromodomain adjacent to zinc finger domain 1B | C157: ENSG00000009954 | D157: 55 | E157: 108 | F157: 53 | G157: 74 | H157: 73 | I157: Nucleus | J157: transcription regulator
A158: BAZ2B | B158: bromodomain adjacent to zinc finger domain 2B | C158: ENSG00000123636 | D158: 22 | E158: 135 | F158: 92 | G158: 179 | H158: 107 | I158: Extracellular Space | J158: other
A159: BBOF1 | B159: basal body orientation factor 1 | C159: ENSG00000119636 | D159: 1376 | E159: 2590 | F159: 1194 | G159: 2659 | H159: 1955 | I159: Cytoplasm | J159: other
A160: BCAP29 | B160: B-cell receptor-associated protein 29 | C160: ENSG00000075790 | D160: 17 | E160: 84 | F160: 19 | G160: 31 | H160: 38 | I160: Cytoplasm | J160: transporter
A161: BCL2L1 | B161: BCL2 like 1 | C161: ENSG00000171552 | D161: 1607 | E161: 2295 | F161: 4398 | G161: 3235 | H161: 2884 | I161: Cytoplasm | J161: other
A162: BCL2L13 | B162: BCL2 like 13 | C162: ENSG00000099968 | D162: 1061 | E162: 996 | F162: 1028 | G162: 2736 | H162: 1455 | I162: Cytoplasm | J162: other
A163: BCLAF1 | B163: BCL2 associated transcription factor 1 | C163: ENSG00000029363 | D163: 50 | E163: 178 | F163: 50 | G163: 106 | H163: 96 | I163: Nucleus | J163: transcription regulator
A164: BDP1 | B164: B double prime 1, subunit of RNA polymerase III transcription initiation factor IIIB | C164: ENSG00000145734 | D164: 277 | E164: 704 | F164: 238 | G164: 569 | H164: 447 | I164: Nucleus | J164: transcription regulator
A165: BECN1 | B165: beclin 1 | C165: ENSG00000126581 | D165: 309 | E165: 715 | F165: 566 | G165: 1067 | H165: 664 | I165: Cytoplasm | J165: other
A166: BEST3 | B166: bestrophin 3 | C166: ENSG00000127325 | D166: 18 | E166: 18 | F166: 16 | G166: 47 | H166: 25 | I166: Nucleus | J166: ion channel
A167: BIRC2 | B167: baculoviral IAP repeat containing 2 | C167: ENSG00000110330 | D167: 1245 | E167: 736 | F167: 487 | G167: 776 | H167: 811 | I167: Cytoplasm | J167: enzyme
A168: BIRC6 | B168: baculoviral IAP repeat containing 6 | C168: ENSG00000115760 | D168: 18 | E168: 82 | F168: 62 | G168: 61 | H168: 56 | I168: Cytoplasm | J168: enzyme
A169: BLOC1S1 | B169: biogenesis of lysosomal organelles complex 1 subunit 1 | C169: ENSG00000135441 | D169: 9 | E169: 7 | F169: 21 | G169: 9 | H169: 12 | I169: Cytoplasm | J169: other
A170: BLOC1S2 | B170: biogenesis of lysosomal organelles complex 1 subunit 2 | C170: ENSG00000196072 | D170: 50 | E170: 47 | F170: 66 | G170: 63 | H170: 57 | I170: Cytoplasm | J170: other
A171: BLOC1S6 | B171: biogenesis of lysosomal organelles complex 1 subunit 6 | C171: ENSG00000104164 | D171: 877 | E171: 1292 | F171: 835 | G171: 2394 | H171: 1350 | I171: Cytoplasm | J171: other
A172: BLVRB | B172: biliverdin reductase B | C172: ENSG00000090013 | D172: 7468 | E172: 1516 | F172: 21280 | G172: 9523 | H172: 9947 | I172: Cytoplasm | J172: enzyme
A173: BMP2K | B173: BMP2 inducible kinase | C173: ENSG00000138756 | D173: 15 | E173: 103 | F173: 48 | G173: 257 | H173: 106 | I173: Nucleus | J173: kinase
A174: BNIP3L | B174: BCL2 interacting protein 3 like | C174: ENSG00000104765 | D174: 57752 | E174: 75833 | F174: 41678 | G174: 117405 | H174: 73167 | I174: Cytoplasm | J174: other
A175: BOD1L1 | B175: biorientation of chromosomes in cell division 1 like 1 | C175: ENSG00000038219 | D175: 12 | E175: 57 | F175: 6 | G175: 21 | H175: 24 | I175: Nucleus | J175: other
A176: BOLA3 | B176: bolA family member 3 | C176: ENSG00000163170 | D176: 27 | E176: 14 | F176: 14 | G176: 22 | H176: 19 | I176: Other | J176: other
A177: BPGM | B177: bisphosphoglycerate mutase | C177: ENSG00000172331 | D177: 3332 | E177: 2471 | F177: 1895 | G177: 4197 | H177: 2974 | I177: Extracellular Space | J177: phosphatase
A178: BPTF | B178: bromodomain PHD finger transcription factor | C178: ENSG00000171634 | D178: 465 | E178: 1054 | F178: 487 | G178: 1230 | H178: 809 | I178: Nucleus | J178: transcription regulator
A179: BRAP | B179: BRCA1 associated protein | C179: ENSG00000089234 | D179: 29 | E179: 48 | F179: 80 | G179: 62 | H179: 55 | I179: Cytoplasm | J179: enzyme
A180: BRCA1 | B180: BRCA1, DNA repair associated | C180: ENSG00000012048 | D180: 37 | E180: 57 | F180: 63 | G180: 68 | H180: 56 | I180: Nucleus | J180: transcription regulator
A181: BRCA2 | B181: BRCA2, DNA repair associated | C181: ENSG00000139618 | D181: 86 | E181: 75 | F181: 24 | G181: 122 | H181: 77 | I181: Nucleus | J181: transcription regulator
A182: BRD4 | B182: bromodomain containing 4 | C182: ENSG00000141867 | D182: 317 | E182: 380 | F182: 361 | G182: 548 | H182: 402 | I182: Nucleus | J182: kinase
A183: BRIP1 | B183: BRCA1 interacting protein C-terminal helicase 1 | C183: ENSG00000136492 | D183: 18 | E183: 99 | F183: 12 | G183: 103 | H183: 58 | I183: Nucleus | J183: enzyme
A184: BRK1 | B184: BRICK1, SCAR/WAVE actin nucleating complex subunit | C184: ENSG00000254999 | D184: 470 | E184: 586 | F184: 344 | G184: 686 | H184: 522 | I184: Cytoplasm | J184: other
A185: BROX | B185: BRO1 domain and CAAX motif containing | C185: ENSG00000162819 | D185: 154 | E185: 382 | F185: 79 | G185: 151 | H185: 192 | I185: Cytoplasm | J185: other
A186: BRWD1 | B186: bromodomain and WD repeat domain containing 1 | C186: ENSG00000185658 | D186: 81 | E186: 276 | F186: 64 | G186: 218 | H186: 160 | I186: Nucleus | J186: transcription regulator
A187: BRWD3 | B187: bromodomain and WD repeat domain containing 3 | C187: ENSG00000165288 | D187: 56 | E187: 8 | F187: 12 | G187: 91 | H187: 42 | I187: Other | J187: other
A188: BSCL2 | B188: BSCL2, seipin lipid droplet biogenesis associated | C188: ENSG00000168000 | D188: 5 | E188: 7 | F188: 10 | G188: 5 | H188: 7 | I188: Cytoplasm | J188: other
A189: BSDC1 | B189: BSD domain containing 1 | C189: ENSG00000160058 | D189: 67 | E189: 141 | F189: 120 | G189: 251 | H189: 145 | I189: Other | J189: other
A190: BSG | B190: basigin (Ok blood group) | C190: ENSG00000172270 | D190: 4768 | E190: 1424 | F190: 27938 | G190: 6093 | H190: 10056 | I190: Plasma Membrane | J190: transporter
A191: BTF3 | B191: basic transcription factor 3 | C191: ENSG00000145741 | D191: 11853 | E191: 10788 | F191: 10013 | G191: 12543 | H191: 11299 | I191: Nucleus | J191: transcription regulator
A192: BTNL10 | B192: butyrophilin like 10 [Source:HGNC Symbol | C192: ENSG00000215811 | D192: 6 | E192: 35 | F192: 58 | G192: 7 | H192: 27
A193: BUD31 | B193: BUD31 homolog | C193: ENSG00000106245 | D193: 47 | E193: 97 | F193: 114 | G193: 81 | H193: 85 | I193: Nucleus | J193: transcription regulator
A194: C11orf21 | B194: chromosome 11 open reading frame 21 | C194: ENSG00000110665 | D194: 14 | E194: 74 | F194: 155 | G194: 131 | H194: 94 | I194: Cytoplasm | J194: other
A195: C11orf58 | B195: chromosome 11 open reading frame 58 | C195: ENSG00000110696 | D195: 425 | E195: 443 | F195: 299 | G195: 754 | H195: =AVERAGE(D195:G195) -> 480 | I195: Other | J195: other
A196: C12orf10 | B196: chromosome 12 open reading frame 10 | C196: ENSG00000139637 | D196: 121 | E196: 67 | F196: 359 | G196: 100 | H196: 162 | I196: Nucleus | J196: other
A197: C12orf29 | B197: chromosome 12 open reading frame 29 | C197: ENSG00000133641 | D197: 111 | E197: 241 | F197: 204 | G197: 291 | H197: 212 | I197: Other | J197: other
A198: C14orf119 | B198: chromosome 14 open reading frame 119 | C198: ENSG00000179933 | D198: 59 | E198: 73 | F198: 45 | G198: 41 | H198: 55 | I198: Other | J198: other
A199: C14orf2 | B199: chromosome 14 open reading frame 2 | C199: ENSG00000156411 | D199: 25 | E199: 30 | F199: 42 | G199: 12 | H199: 27 | I199: Cytoplasm | J199: other
A200: C17orf99 | B200: chromosome 17 open reading frame 99 [Source:HGNC Symbol | C200: ENSG00000187997 | D200: 50 | E200: 51 | F200: 118 | G200: 165 | H200: 96
... 1872 more rows

Sheet Supplementary Table 3
A1: Supplementary Table 3. Expressed genes in EVs (n = 4, cut-off value 5 counts). Data was annotated using QIAGEN’s Ingenuity® Pathway Analysis (IPA®, QIAGEN, Dec 16th, 2016) or Ensembl genome browser (http://www.ensembl.org, release 88 - Mar 2017). Genes uniquely expressed in EVs are higlighted in yellow.
A2: Symbol | B2: Entrez Gene Name | C2: Ensembl ID | D2: Exp Intensity (TPM; EV1) | E2: Exp Intensity (TPM; EV2) | F2: Exp Intensity (TPM; EV3) | G2: Exp Intensity (TPM; EV4) | H2: Exp Intensity(mean) | I2: Location | J2: Type(s)
A3: ABCC13 | B3: ATP binding cassette subfamily C member 13 (pseudogene) [Source:HGNC Symbol | C3: ENSG00000243064 | D3: 156 | E3: 296 | F3: 215 | G3: 2152 | H3: =AVERAGE(D3:G3) -> 705
A4: AC007256.5 | B4: OTTHUMG00000154748 (Vega gene) is an external reference matched to Gene ENSG00000213090 | C4: ENSG00000213090 | D4: 89 | E4: 893 | F4: 27 | G4: 91 | H4: 275
A5: ACKR1 | B5: atypical chemokine receptor 1 (Duffy blood group) | C5: ENSG00000213088 | D5: 127 | E5: 867 | F5: 204 | G5: 566 | H5: 441 | I5: Plasma Membrane | J5: G-protein coupled receptor
A6: ACTB | B6: actin beta | C6: ENSG00000075624 | D6: 29 | E6: 141 | F6: 579 | G6: 3168 | H6: 979 | I6: Cytoplasm | J6: other
A7: ADIPOR1 | B7: adiponectin receptor 1 | C7: ENSG00000159346 | D7: 7438 | E7: 12081 | F7: 8639 | G7: 19034 | H7: 11798 | I7: Plasma Membrane | J7: transmembrane receptor
A8: AGTPBP1 | B8: ATP/GTP binding protein 1 | C8: ENSG00000135049 | D8: 84 | E8: 10 | F8: 540 | G8: 42 | H8: 169 | I8: Nucleus | J8: peptidase
A9: AHSP | B9: alpha hemoglobin stabilizing protein | C9: ENSG00000169877 | D9: 2323 | E9: 886 | F9: 8561 | G9: 1813 | H9: 3396 | I9: Cytoplasm | J9: other
A10: AIF1 | B10: allograft inflammatory factor 1 | C10: ENSG00000204472 | D10: 109 | E10: 515 | F10: 865 | G10: 1126 | H10: 654 | I10: Nucleus | J10: other
A11: AKAP7 | B11: A-kinase anchoring protein 7 | C11: ENSG00000118507 | D11: 618 | E11: 1645 | F11: 1376 | G11: 3078 | H11: 1679 | I11: Plasma Membrane | J11: other
A12: AKAP9 | B12: A-kinase anchoring protein 9 | C12: ENSG00000127914 | D12: 1180 | E12: 713 | F12: 731 | G12: 1734 | H12: 1090 | I12: Cytoplasm | J12: other
A13: ALAS2 | B13: 5'-aminolevulinate synthase 2 | C13: ENSG00000158578 | D13: 83112 | E13: 43875 | F13: 37496 | G13: 20105 | H13: 46147 | I13: Cytoplasm | J13: enzyme
A14: ALDOA | B14: aldolase, fructose-bisphosphate A | C14: ENSG00000149925 | D14: 104 | E14: 668 | F14: 270 | G14: 4157 | H14: 1300 | I14: Cytoplasm | J14: enzyme
A15: ALS2CR12 | B15: amyotrophic lateral sclerosis 2 chromosome region candidate 12 | C15: ENSG00000155749 | D15: 286 | E15: 376 | F15: 331 | G15: 1072 | H15: 516 | I15: Cytoplasm | J15: other
A16: AMD1 | B16: adenosylmethionine decarboxylase 1 | C16: ENSG00000123505 | D16: 73 | E16: 131 | F16: 343 | G16: 67 | H16: 154 | I16: Cytoplasm | J16: enzyme
A17: ANAPC16 | B17: anaphase promoting complex subunit 16 | C17: ENSG00000166295 | D17: 300 | E17: 268 | F17: 247 | G17: 1105 | H17: 480 | I17: Nucleus | J17: other
A18: ANK1 | B18: ankyrin 1 | C18: ENSG00000029534 | D18: 623 | E18: 921 | F18: 256 | G18: 1516 | H18: 829 | I18: Plasma Membrane | J18: other
A19: ANP32E | B19: acidic nuclear phosphoprotein 32 family member E | C19: ENSG00000143401 | D19: 233 | E19: 1086 | F19: 855 | G19: 608 | H19: 696 | I19: Nucleus | J19: other
A20: AP2B1 | B20: adaptor related protein complex 2 beta 1 subunit | C20: ENSG00000006125 | D20: 552 | E20: 39 | F20: 156 | G20: 462 | H20: 302 | I20: Plasma Membrane | J20: transporter
A21: AP2M1 | B21: adaptor related protein complex 2 mu 1 subunit | C21: ENSG00000161203 | D21: 3438 | E21: 5120.00 | F21: 2869 | G21: 4110 | H21: 3884 | I21: Cytoplasm | J21: transporter
A22: AP2S1 | B22: adaptor related protein complex 2 sigma 1 subunit | C22: ENSG00000042753 | D22: 80 | E22: 340 | F22: 46 | G22: 60 | H22: 132 | I22: Cytoplasm | J22: transporter
A23: APOBEC3C | B23: apolipoprotein B mRNA editing enzyme catalytic subunit 3C | C23: ENSG00000244509 | D23: 430 | E23: 2179 | F23: 1989 | G23: 900 | H23: 1375 | I23: Other | J23: enzyme
A24: ARAF | B24: A-Raf proto-oncogene, serine/threonine kinase | C24: ENSG00000078061 | D24: 92 | E24: 515 | F24: 12 | G24: 733 | H24: 338 | I24: Cytoplasm | J24: kinase
A25: ARF1 | B25: ADP ribosylation factor 1 | C25: ENSG00000143761 | D25: 239 | E25: 825 | F25: 75 | G25: 2135 | H25: 819 | I25: Cytoplasm | J25: enzyme
A26: ARF4 | B26: ADP ribosylation factor 4 | C26: ENSG00000168374 | D26: 16 | E26: 3348 | F26: 356 | G26: 594 | H26: 1079 | I26: Cytoplasm | J26: enzyme
A27: ARHGDIB | B27: Rho GDP dissociation inhibitor beta | C27: ENSG00000111348 | D27: 2495 | E27: 5920 | F27: 3015 | G27: 8225 | H27: 4914 | I27: Cytoplasm | J27: enzyme
A28: ARHGEF12 | B28: Rho guanine nucleotide exchange factor 12 | C28: ENSG00000196914 | D28: 1250 | E28: 2299 | F28: 991 | G28: 259 | H28: 1200 | I28: Cytoplasm | J28: other
A29: ARID4B | B29: AT-rich interaction domain 4B | C29: ENSG00000054267 | D29: 585 | E29: 80 | F29: 624 | G29: 2178 | H29: 867 | I29: Nucleus | J29: enzyme
A30: ARL4A | B30: ADP ribosylation factor like GTPase 4A | C30: ENSG00000122644 | D30: 5410 | E30: 5690 | F30: 7544 | G30: 10849 | H30: 7373 | I30: Nucleus | J30: enzyme
A31: ARL6IP1 | B31: ADP ribosylation factor like GTPase 6 interacting protein 1 | C31: ENSG00000170540 | D31: 2526 | E31: 2338 | F31: 1658 | G31: 3906 | H31: 2607 | I31: Cytoplasm | J31: other
A32: ARPC3 | B32: actin related protein 2/3 complex subunit 3 | C32: ENSG00000111229 | D32: 879 | E32: 2047 | F32: 1902 | G32: 1864 | H32: 1673 | I32: Cytoplasm | J32: other
A33: ARPC5 | B33: actin related protein 2/3 complex subunit 5 | C33: ENSG00000162704 | D33: 557 | E33: 3372 | F33: 2132 | G33: 3687 | H33: 2437 | I33: Cytoplasm | J33: other
A34: ARRB2 | B34: arrestin beta 2 | C34: ENSG00000141480 | D34: 26 | E34: 402 | F34: 49 | G34: 398 | H34: 219 | I34: Cytoplasm | J34: other
A35: ASCC2 | B35: activating signal cointegrator 1 complex subunit 2 | C35: ENSG00000100325 | D35: 179 | E35: 648 | F35: 120 | G35: 1594 | H35: 635 | I35: Nucleus | J35: other
A36: ASPM | B36: abnormal spindle microtubule assembly | C36: ENSG00000066279 | D36: 280 | E36: 62 | F36: 99 | G36: 12 | H36: 113 | I36: Nucleus | J36: other
A37: ATAD2 | B37: ATPase family, AAA domain containing 2 | C37: ENSG00000156802 | D37: 219 | E37: 252 | F37: 538 | G37: 8 | H37: 254 | I37: Nucleus | J37: enzyme
A38: ATP5A1 | B38: ATP synthase, H+ transporting, mitochondrial F1 complex, alpha subunit 1, cardiac muscle | C38: ENSG00000152234 | D38: 366 | E38: 977 | F38: 44 | G38: 1519 | H38: 727 | I38: Cytoplasm | J38: transporter
A39: ATP5E | B39: ATP synthase, H+ transporting, mitochondrial F1 complex, epsilon subunit | C39: ENSG00000124172 | D39: 9130 | E39: 5369 | F39: 7153 | G39: 3768 | H39: 6355 | I39: Cytoplasm | J39: other
A40: ATP5EP2 | B40: ATP synthase, H+ transporting, mitochondrial F1 complex, epsilon subunit pseudogene 2 | C40: ENSG00000180389 | D40: 5 | E40: 11 | F40: 7 | G40: 11 | H40: 9 | I40: Cytoplasm | J40: other
A41: ATP5J2 | B41: ATP synthase, H+ transporting, mitochondrial Fo complex subunit F2 | C41: ENSG00000241468 | D41: 48 | E41: 98 | F41: 86 | G41: 61 | H41: 73 | I41: Cytoplasm | J41: transporter
A42: ATP5L | B42: ATP synthase, H+ transporting, mitochondrial Fo complex subunit G | C42: ENSG00000167283 | D42: 429 | E42: 548 | F42: 378 | G42: 809 | H42: 541 | I42: Cytoplasm | J42: enzyme
A43: ATP5S | B43: ATP synthase, H+ transporting, mitochondrial Fo complex subunit s (factor B) | C43: ENSG00000125375 | D43: 1000 | E43: 3506 | F43: 1555 | G43: 923 | H43: 1746 | I43: Cytoplasm | J43: transporter
A44: B2M | B44: beta-2-microglobulin | C44: ENSG00000166710 | D44: 12542 | E44: 48669 | F44: 19123 | G44: 65195 | H44: 36382 | I44: Plasma Membrane | J44: transmembrane receptor
A45: B4GALT3 | B45: beta-1,4-galactosyltransferase 3 | C45: ENSG00000158850 | D45: 717 | E45: 710 | F45: 717 | G45: 2077 | H45: 1055 | I45: Cytoplasm | J45: enzyme
A46: BABAM1 | B46: BRISC and BRCA1 A complex member 1 | C46: ENSG00000105393 | D46: 57 | E46: 128 | F46: 5 | G46: 111 | H46: 75 | I46: Nucleus | J46: other
A47: BAG1 | B47: BCL2 associated athanogene 1 | C47: ENSG00000107262 | D47: 1011 | E47: 1096 | F47: 2311 | G47: 29 | H47: 1112 | I47: Cytoplasm | J47: other
A48: BBOF1 | B48: basal body orientation factor 1 | C48: ENSG00000119636 | D48: 1392 | E48: 1162 | F48: 2001 | G48: 2201 | H48: 1689 | I48: Cytoplasm | J48: other
A49: BCL2A1 | B49: BCL2 related protein A1 | C49: ENSG00000140379 | D49: 454 | E49: 497 | F49: 1037 | G49: 6284 | H49: 2068 | I49: Cytoplasm | J49: other
A50: BCL2L1 | B50: BCL2 like 1 | C50: ENSG00000171552 | D50: 1007 | E50: 1770 | F50: 744 | G50: 2796 | H50: 1579 | I50: Cytoplasm | J50: other
A51: BCL2L13 | B51: BCL2 like 13 | C51: ENSG00000099968 | D51: 241 | E51: 1604 | F51: 1262 | G51: 5050 | H51: 2039 | I51: Cytoplasm | J51: other
A52: BECN1 | B52: beclin 1 | C52: ENSG00000126581 | D52: 1368 | E52: 2155 | F52: 126 | G52: 4866 | H52: 2129 | I52: Cytoplasm | J52: other
A53: BIN2 | B53: bridging integrator 2 | C53: ENSG00000110934 | D53: 211 | E53: 349 | F53: 990 | G53: 6021 | H53: 1893 | I53: Plasma Membrane | J53: other
A54: BIRC2 | B54: baculoviral IAP repeat containing 2 | C54: ENSG00000110330 | D54: 3373 | E54: 8692.00 | F54: 1862 | G54: 9389 | H54: 5829 | I54: Cytoplasm | J54: enzyme
A55: BLOC1S6 | B55: biogenesis of lysosomal organelles complex 1 subunit 6 | C55: ENSG00000104164 | D55: 2217 | E55: 5619 | F55: 4812 | G55: 15032 | H55: 6920 | I55: Cytoplasm | J55: other
A56: BLVRB | B56: biliverdin reductase B | C56: ENSG00000090013 | D56: 420 | E56: 2121 | F56: 69 | G56: 9629 | H56: 3060 | I56: Cytoplasm | J56: enzyme
A57: BNIP3L | B57: BCL2 interacting protein 3 like | C57: ENSG00000104765 | D57: 203090 | E57: 308438 | F57: 308602 | G57: 366257 | H57: 296597 | I57: Cytoplasm | J57: other
A58: BPGM | B58: bisphosphoglycerate mutase | C58: ENSG00000172331 | D58: 7504 | E58: 7078 | F58: 8505 | G58: 10391 | H58: 8370 | I58: Extracellular Space | J58: phosphatase
A59: BRD4 | B59: bromodomain containing 4 | C59: ENSG00000141867 | D59: 147 | E59: 16 | F59: 11 | G59: 12 | H59: 47 | I59: Nucleus | J59: kinase
A60: BROX | B60: BRO1 domain and CAAX motif containing | C60: ENSG00000162819 | D60: 350 | E60: 502 | F60: 43 | G60: 1273 | H60: 542 | I60: Cytoplasm | J60: other
A61: BSG | B61: basigin (Ok blood group) | C61: ENSG00000172270 | D61: 1523 | E61: 12084 | F61: 1296 | G61: 36097 | H61: 12750 | I61: Plasma Membrane | J61: transporter
A62: BTF3 | B62: basic transcription factor 3 | C62: ENSG00000145741 | D62: 13493 | E62: 16681 | F62: 13666 | G62: 17150 | H62: 15248 | I62: Nucleus | J62: transcription regulator
A63: BTG1 | B63: BTG anti-proliferation factor 1 | C63: ENSG00000133639 | D63: 177 | E63: 17 | F63: 259 | G63: 349 | H63: 201 | I63: Nucleus | J63: transcription regulator
A64: BUD31 | B64: BUD31 homolog | C64: ENSG00000106245 | D64: 65 | E64: 438 | F64: 41 | G64: 434 | H64: 245 | I64: Nucleus | J64: transcription regulator
A65: C11orf58 | B65: chromosome 11 open reading frame 58 | C65: ENSG00000110696 | D65: 1727 | E65: 3720 | F65: 1739 | G65: 4364 | H65: 2888 | I65: Other | J65: other
A66: C12orf29 | B66: chromosome 12 open reading frame 29 | C66: ENSG00000133641 | D66: 62 | E66: 853 | F66: 146 | G66: 195 | H66: 314 | I66: Other | J66: other
A67: C14orf2 | B67: chromosome 14 open reading frame 2 | C67: ENSG00000156411 | D67: 396 | E67: 356 | F67: 256 | G67: 172 | H67: =AVERAGE(D67:G67) -> 295 | I67: Cytoplasm | J67: other
A68: C19orf53 | B68: chromosome 19 open reading frame 53 | C68: ENSG00000104979 | D68: 31 | E68: 220 | F68: 148 | G68: 148 | H68: 137 | I68: Other | J68: other
A69: C1D | B69: C1D nuclear receptor corepressor | C69: ENSG00000197223 | D69: 336 | E69: 410 | F69: 353 | G69: 647 | H69: 437 | I69: Nucleus | J69: transcription regulator
A70: C1orf105 | B70: chromosome 1 open reading frame 105 | C70: ENSG00000180999 | D70: 194 | E70: 68 | F70: 359 | G70: 129 | H70: 188 | I70: Other | J70: other
A71: C6orf62 | B71: chromosome 6 open reading frame 62 | C71: ENSG00000112308 | D71: 688 | E71: 1045 | F71: 1683 | G71: 2884 | H71: 1575 | I71: Other | J71: other
A72: C7orf73 | B72: chromosome 7 open reading frame 73 | C72: ENSG00000243317 | D72: 11491 | E72: 8438 | F72: 5242 | G72: 8265 | H72: 8359 | I72: Other | J72: other
A73: C9orf78 | B73: chromosome 9 open reading frame 78 | C73: ENSG00000136819 | D73: 12697 | E73: 37845 | F73: 23094 | G73: 20127 | H73: 23441 | I73: Other | J73: other
A74: CA1 | B74: carbonic anhydrase 1 | C74: ENSG00000133742 | D74: 33965 | E74: 17913 | F74: 17360 | G74: 19648 | H74: 22222 | I74: Cytoplasm | J74: enzyme
A75: CA2 | B75: carbonic anhydrase 2 | C75: ENSG00000104267 | D75: 378 | E75: 1247 | F75: 387 | G75: 1838 | H75: 963 | I75: Cytoplasm | J75: enzyme
A76: CALM1 (includes others) | B76: calmodulin 1 | C76: ENSG00000143933 | D76: 750 | E76: 4184 | F76: 628 | G76: 359 | H76: 1480 | I76: Cytoplasm | J76: other
A77: CCAR1 | B77: cell division cycle and apoptosis regulator 1 | C77: ENSG00000060339 | D77: 619 | E77: 705 | F77: 262 | G77: 5368 | H77: 1739 | I77: Nucleus | J77: transcription regulator
A78: CCDC18 | B78: coiled-coil domain containing 18 | C78: ENSG00000122483 | D78: 663 | E78: 1132 | F78: 3176 | G78: 3259 | H78: 2058 | I78: Other | J78: other
A79: CCDC186 | B79: coiled-coil domain containing 186 | C79: ENSG00000165813 | D79: 255 | E79: 1815 | F79: 708 | G79: 2586 | H79: 1341 | I79: Other | J79: other
A80: CCL5 | B80: C-C motif chemokine ligand 5 | C80: ENSG00000271503 | D80: 66 | E80: 236 | F80: 197 | G80: 858 | H80: 339 | I80: Extracellular Space | J80: cytokine
A81: CCND3 | B81: cyclin D3 | C81: ENSG00000112576 | D81: 36 | E81: 653 | F81: 9 | G81: 57 | H81: 189 | I81: Nucleus | J81: other
A82: CCNI | B82: cyclin I | C82: ENSG00000118816 | D82: 6935 | E82: 14816 | F82: 12421 | G82: 8746 | H82: 10730 | I82: Other | J82: other
A83: CD44 | B83: CD44 molecule (Indian blood group) | C83: ENSG00000026508 | D83: 49 | E83: 821 | F83: 16 | G83: 238 | H83: 281 | I83: Plasma Membrane | J83: enzyme
A84: CD52 | B84: CD52 molecule | C84: ENSG00000169442 | D84: 607 | E84: 3383 | F84: 918 | G84: 2031 | H84: 1735 | I84: Plasma Membrane | J84: other
A85: CD59 | B85: CD59 molecule | C85: ENSG00000085063 | D85: 1154 | E85: 871 | F85: 1823 | G85: 1291 | H85: 1285 | I85: Plasma Membrane | J85: other
A86: CD63 | B86: CD63 molecule | C86: ENSG00000135404 | D86: 129 | E86: 618 | F86: 241 | G86: 456 | H86: 361 | I86: Plasma Membrane | J86: other
A87: CD74 | B87: CD74 molecule | C87: ENSG00000019582 | D87: 63 | E87: 434 | F87: 85 | G87: 677 | H87: 315 | I87: Plasma Membrane | J87: transmembrane receptor
A88: CDC27 | B88: cell division cycle 27 | C88: ENSG00000004897 | D88: 3895 | E88: 4099 | F88: 7515 | G88: 12601 | H88: 7028 | I88: Nucleus | J88: other
A89: CDC42 | B89: cell division cycle 42 | C89: ENSG00000070831 | D89: 1581 | E89: 3252 | F89: 1007 | G89: 2789 | H89: 2157 | I89: Cytoplasm | J89: enzyme
A90: CDC42BPA | B90: CDC42 binding protein kinase alpha | C90: ENSG00000143776 | D90: 40 | E90: 1855 | F90: 1230 | G90: 712 | H90: 959 | I90: Cytoplasm | J90: kinase
A91: CDC42P6 | B91: cell division cycle 42 pseudogene 6 [Source:HGNC Symbol | C91: ENSG00000237350 | D91: 11 | E91: 13 | F91: 9 | G91: 15 | H91: 12
A92: CDC42SE2 | B92: CDC42 small effector 2 | C92: ENSG00000158985 | D92: 52 | E92: 4686 | F92: 270 | G92: 398 | H92: 1352 | I92: Plasma Membrane | J92: other
A93: CEP57 | B93: centrosomal protein 57 | C93: ENSG00000166037 | D93: 440 | E93: 1006 | F93: 225 | G93: 3045 | H93: 1179 | I93: Cytoplasm | J93: other
A94: CETN2 | B94: centrin 2 | C94: ENSG00000147400 | D94: 106 | E94: 109 | F94: 105 | G94: 139 | H94: 115 | I94: Nucleus | J94: enzyme
A95: CFL1 | B95: cofilin 1 | C95: ENSG00000172757 | D95: 408 | E95: 1687 | F95: 126 | G95: 2147 | H95: 1092 | I95: Nucleus | J95: other
A96: CGGBP1 | B96: CGG triplet repeat binding protein 1 | C96: ENSG00000163320 | D96: 672 | E96: 2709 | F96: 361 | G96: 1209 | H96: 1238 | I96: Nucleus | J96: transcription regulator
A97: CHD2 | B97: chromodomain helicase DNA binding protein 2 | C97: ENSG00000173575 | D97: 363 | E97: 413 | F97: 299 | G97: 1221 | H97: 574 | I97: Nucleus | J97: enzyme
A98: CHMP2A | B98: charged multivesicular body protein 2A | C98: ENSG00000130724 | D98: 148 | E98: 1039 | F98: 144 | G98: 1615 | H98: 737 | I98: Cytoplasm | J98: other
A99: CHMP3 | B99: charged multivesicular body protein 3 | C99: ENSG00000115561 | D99: 306 | E99: 1478 | F99: 1002 | G99: 580 | H99: 842 | I99: Cytoplasm | J99: other
A100: CHPT1 | B100: choline phosphotransferase 1 | C100: ENSG00000111666 | D100: 474 | E100: 1182 | F100: 11 | G100: 961 | H100: 657 | I100: Cytoplasm | J100: enzyme
A101: CISD2 | B101: CDGSH iron sulfur domain 2 | C101: ENSG00000145354 | D101: 207 | E101: 1024 | F101: 7 | G101: 226 | H101: 366 | I101: Cytoplasm | J101: other
A102: CLIC1 | B102: chloride intracellular channel 1 | C102: ENSG00000213719 | D102: 530 | E102: 2283 | F102: 95 | G102: 477 | H102: 846 | I102: Nucleus | J102: ion channel
A103: CNBP | B103: CCHC-type zinc finger nucleic acid binding protein | C103: ENSG00000169714 | D103: 229 | E103: 1106 | F103: 937 | G103: 1083 | H103: 839 | I103: Nucleus | J103: transcription regulator
A104: CNN2 | B104: calponin 2 | C104: ENSG00000064666 | D104: 108 | E104: 990 | F104: 37 | G104: 2058 | H104: 798 | I104: Cytoplasm | J104: other
A105: CNPPD1 | B105: cyclin Pas1/PHO80 domain containing 1 | C105: ENSG00000115649 | D105: 115 | E105: 1152 | F105: 378 | G105: 536 | H105: 545 | I105: Other | J105: other
A106: COPS2 | B106: COP9 signalosome subunit 2 | C106: ENSG00000166200 | D106: 571 | E106: 4496 | F106: 243 | G106: 431 | H106: 1435 | I106: Cytoplasm | J106: other
A107: COPS3 | B107: COP9 signalosome subunit 3 | C107: ENSG00000141030 | D107: 525 | E107: 3164 | F107: 110 | G107: 1683 | H107: 1371 | I107: Cytoplasm | J107: other
A108: COX4I1 | B108: cytochrome c oxidase subunit 4I1 | C108: ENSG00000131143 | D108: 368 | E108: 799 | F108: 162 | G108: 1820 | H108: 787 | I108: Cytoplasm | J108: enzyme
A109: COX6A1 | B109: cytochrome c oxidase subunit 6A1 | C109: ENSG00000111775 | D109: 110 | E109: 80 | F109: 224 | G109: 91 | H109: 126 | I109: Cytoplasm | J109: enzyme
A110: COX6B1 | B110: cytochrome c oxidase subunit 6B1 | C110: ENSG00000126267 | D110: 1192 | E110: 831 | F110: 2516 | G110: 591 | H110: 1283 | I110: Cytoplasm | J110: enzyme
A111: COX7A2 | B111: cytochrome c oxidase subunit 7A2 | C111: ENSG00000112695 | D111: 144 | E111: 221 | F111: 330 | G111: 460 | H111: 289 | I111: Cytoplasm | J111: enzyme
A112: COX7B | B112: cytochrome c oxidase subunit 7B | C112: ENSG00000131174 | D112: 351 | E112: 316 | F112: 158 | G112: 12 | H112: 209 | I112: Cytoplasm | J112: enzyme
A113: COX7C | B113: cytochrome c oxidase subunit 7C | C113: ENSG00000127184 | D113: 71 | E113: 268 | F113: 732 | G113: 394 | H113: 366 | I113: Cytoplasm | J113: enzyme
A114: CPEB4 | B114: cytoplasmic polyadenylation element binding protein 4 | C114: ENSG00000113742 | D114: 470 | E114: 1984 | F114: 456 | G114: 383 | H114: 823 | I114: Plasma Membrane | J114: other
A115: CR1L | B115: complement component 3b/4b receptor 1-like | C115: ENSG00000197721 | D115: 686 | E115: 1541 | F115: 1297 | G115: 1891 | H115: 1354 | I115: Plasma Membrane | J115: other
A116: CREBRF | B116: CREB3 regulatory factor | C116: ENSG00000164463 | D116: 165 | E116: 127 | F116: 37 | G116: 885 | H116: 304 | I116: Nucleus | J116: other
A117: CSDE1 | B117: cold shock domain containing E1 | C117: ENSG00000009307 | D117: 1127 | E117: 5912 | F117: 3313 | G117: 5592 | H117: 3986 | I117: Cytoplasm | J117: enzyme
A118: CSNK2A1 | B118: casein kinase 2 alpha 1 | C118: ENSG00000101266 | D118: 25 | E118: 313 | F118: 28 | G118: 58 | H118: 106 | I118: Nucleus | J118: kinase
A119: CSNK2B | B119: casein kinase 2 beta | C119: ENSG00000204435 | D119: 17 | E119: 109 | F119: 36 | G119: 70 | H119: 58 | I119: Cytoplasm | J119: kinase
A120: CTA-363E6.6 | B120: OTTHUMG00000177225 (Vega gene) is an external reference matched to Gene ENSG00000260592 | C120: ENSG00000260592 | D120: 336 | E120: 744 | F120: 1164 | G120: 562 | H120: 702
A121: CTC-398G3.2 | B121: OTTHUMG00000157992 (Vega gene) is an external reference matched to Gene ENSG00000213303 | C121: ENSG00000213303 | D121: 8 | E121: 8 | F121: 6 | G121: 5 | H121: 7
A122: CTD-2561J22.5 | B122: OTTHUMG00000182846 (Vega gene) is an external reference matched to Gene ENSG00000268119 | C122: ENSG00000268119 | D122: 332 | E122: 1093 | F122: 137 | G122: 914 | H122: 619
A123: CTSB | B123: cathepsin B | C123: ENSG00000164733 | D123: 1275 | E123: 3185 | F123: 1956 | G123: 13544 | H123: 4990 | I123: Cytoplasm | J123: peptidase
A124: CTSE | B124: cathepsin E | C124: ENSG00000196188 | D124: 2242 | E124: 1755 | F124: 1403 | G124: 1071 | H124: 1618 | I124: Cytoplasm | J124: peptidase
A125: CYB5R1 | B125: cytochrome b5 reductase 1 | C125: ENSG00000159348 | D125: 415 | E125: 499 | F125: 338 | G125: 1062 | H125: 579 | I125: Cytoplasm | J125: enzyme
A126: CYBRD1 | B126: cytochrome b reductase 1 | C126: ENSG00000071967 | D126: 224 | E126: 2564 | F126: 57 | G126: 646 | H126: 873 | I126: Cytoplasm | J126: enzyme
A127: CYSTM1 | B127: cysteine rich transmembrane module containing 1 | C127: ENSG00000120306 | D127: 911 | E127: 1062 | F127: 1498 | G127: 1804 | H127: 1319 | I127: Cytoplasm | J127: other
A128: DAZAP2 | B128: DAZ associated protein 2 | C128: ENSG00000183283 | D128: 1872 | E128: 7677 | F128: 4482 | G128: 9565 | H128: 5899 | I128: Nucleus | J128: other
A129: DCAF12 | B129: DDB1 and CUL4 associated factor 12 | C129: ENSG00000198876 | D129: 4125 | E129: 4485 | F129: 5219 | G129: 8172 | H129: 5500 | I129: Cytoplasm | J129: other
A130: DCAF6 | B130: DDB1 and CUL4 associated factor 6 | C130: ENSG00000143164 | D130: 847 | E130: 2689 | F130: 785 | G130: 8 | H130: 1082 | I130: Nucleus | J130: transcription regulator
A131: DCP2 | B131: decapping mRNA 2 | C131: ENSG00000172795 | D131: 105 | E131: 2061 | F131: 104 | G131: 1226 | H131: =AVERAGE(D131:G131) -> 874 | I131: Nucleus | J131: enzyme
A132: DCUN1D1 | B132: defective in cullin neddylation 1 domain containing 1 | C132: ENSG00000043093 | D132: 5874 | E132: 10942 | F132: 6177 | G132: 8175 | H132: 7792 | I132: Nucleus | J132: other
A133: DDX5 | B133: DEAD-box helicase 5 | C133: ENSG00000108654 | D133: 585 | E133: 3346 | F133: 2449 | G133: 5548 | H133: 2982 | I133: Nucleus | J133: enzyme
A134: DDX6 | B134: DEAD-box helicase 6 | C134: ENSG00000110367 | D134: 1351 | E134: 3264 | F134: 4423 | G134: 3689 | H134: 3182 | I134: Nucleus | J134: enzyme
A135: DEK | B135: DEK proto-oncogene | C135: ENSG00000124795 | D135: 354 | E135: 2357 | F135: 1155 | G135: 1614 | H135: 1370 | I135: Nucleus | J135: transcription regulator
A136: DHX40 | B136: DEAH-box helicase 40 | C136: ENSG00000108406 | D136: 610 | E136: 278 | F136: 638 | G136: 283 | H136: 452 | I136: Other | J136: enzyme
A137: DLEU2 | B137: deleted in lymphocytic leukemia 2 (non-protein coding) | C137: ENSG00000231607 | D137: 172 | E137: 864 | F137: 187 | G137: 310 | H137: 383 | I137: Other | J137: other
A138: DMTN | B138: dematin actin binding protein | C138: ENSG00000158856 | D138: 93 | E138: 175 | F138: 211 | G138: 289 | H138: 192 | I138: Plasma Membrane | J138: other
A139: DNAJA1 | B139: DnaJ heat shock protein family (Hsp40) member A1 | C139: ENSG00000086061 | D139: 1097 | E139: 5766 | F139: 129 | G139: 1554 | H139: 2137 | I139: Nucleus | J139: other
A140: DNAJB4 | B140: DnaJ heat shock protein family (Hsp40) member B4 | C140: ENSG00000162616 | D140: 2425 | E140: 343 | F140: 3141 | G140: 368 | H140: 1569 | I140: Nucleus | J140: other
A141: DPM2 | B141: dolichyl-phosphate mannosyltransferase polypeptide 2, regulatory subunit | C141: ENSG00000136908 | D141: 3978 | E141: 4414 | F141: 7389 | G141: 2133 | H141: 4479 | I141: Cytoplasm | J141: enzyme
A142: DYNLL1 | B142: dynein light chain LC8-type 1 | C142: ENSG00000088986 | D142: 313 | E142: 525 | F142: 362 | G142: 229 | H142: 357 | I142: Cytoplasm | J142: other
A143: DYNLRB1 | B143: dynein light chain roadblock-type 1 | C143: ENSG00000125971 | D143: 195 | E143: 395 | F143: 467 | G143: 1063 | H143: 530 | I143: Cytoplasm | J143: other
A144: E2F2 | B144: E2F transcription factor 2 | C144: ENSG00000007968 | D144: 60 | E144: 392 | F144: 84 | G144: 90 | H144: 157 | I144: Nucleus | J144: transcription regulator
A145: EDF1 | B145: endothelial differentiation related factor 1 | C145: ENSG00000107223 | D145: 68 | E145: 62 | F145: 10 | G145: 175 | H145: 79 | I145: Nucleus | J145: transcription regulator
A146: EEF1A1 | B146: eukaryotic translation elongation factor 1 alpha 1 | C146: ENSG00000156508 | D146: 4706 | E146: 24884 | F146: 13225 | G146: 17229 | H146: 15011 | I146: Cytoplasm | J146: translation regulator
A147: EEF1A1P5 | B147: eukaryotic translation elongation factor 1 alpha 1 pseudogene 5 [Source:HGNC Symbol | C147: ENSG00000196205 | D147: 16 | E147: 81 | F147: 64 | G147: 69 | H147: 58
A148: EEF2 | B148: eukaryotic translation elongation factor 2 | C148: ENSG00000167658 | D148: 18 | E148: 9 | F148: 21 | G148: 94 | H148: 36 | I148: Cytoplasm | J148: translation regulator
A149: EID1 | B149: EP300 interacting inhibitor of differentiation 1 | C149: ENSG00000255302 | D149: 19 | E149: 584 | F149: 89 | G149: 402 | H149: 274 | I149: Nucleus | J149: transcription regulator
A150: EIF1 | B150: eukaryotic translation initiation factor 1 | C150: ENSG00000173812 | D150: 1840 | E150: 14273 | F150: 1023 | G150: 20720 | H150: 9464 | I150: Cytoplasm | J150: translation regulator
A151: EIF1B | B151: eukaryotic translation initiation factor 1B | C151: ENSG00000114784 | D151: 4460 | E151: 6595 | F151: 3565 | G151: 9646 | H151: 6067 | I151: Cytoplasm | J151: translation regulator
A152: EIF2AK1 | B152: eukaryotic translation initiation factor 2 alpha kinase 1 | C152: ENSG00000086232 | D152: 1215 | E152: 2263 | F152: 2524 | G152: 6 | H152: 1502 | I152: Cytoplasm | J152: kinase
A153: EIF3J | B153: eukaryotic translation initiation factor 3 subunit J | C153: ENSG00000104131 | D153: 387 | E153: 220 | F153: 389 | G153: 797 | H153: 448 | I153: Cytoplasm | J153: translation regulator
A154: EIF4G2 | B154: eukaryotic translation initiation factor 4 gamma 2 | C154: ENSG00000110321 | D154: 1437 | E154: 1698 | F154: 699 | G154: 2011 | H154: 1461 | I154: Cytoplasm | J154: translation regulator
A155: EIF5B | B155: eukaryotic translation initiation factor 5B | C155: ENSG00000158417 | D155: 840 | E155: 130 | F155: 112 | G155: 1827 | H155: 727 | I155: Cytoplasm | J155: translation regulator
A156: ELOF1 | B156: elongation factor 1 homolog | C156: ENSG00000130165 | D156: 584 | E156: 458 | F156: 728 | G156: 298 | H156: 517 | I156: Nucleus | J156: other
A157: EMC3 | B157: ER membrane protein complex subunit 3 | C157: ENSG00000125037 | D157: 6938 | E157: 9236 | F157: 17736 | G157: 10848 | H157: 11190 | I157: Nucleus | J157: other
A158: ENO1 | B158: enolase 1 | C158: ENSG00000074800 | D158: 1146 | E158: 2974 | F158: 2353 | G158: 5807 | H158: 3070 | I158: Cytoplasm | J158: enzyme
A159: EPB41 | B159: erythrocyte membrane protein band 4.1 | C159: ENSG00000159023 | D159: 16122 | E159: 48011 | F159: 29488 | G159: 53040 | H159: 36665 | I159: Plasma Membrane | J159: other
A160: EWSR1 | B160: EWS RNA binding protein 1 | C160: ENSG00000182944 | D160: 431 | E160: 794 | F160: 382 | G160: 984 | H160: 648 | I160: Nucleus | J160: other
A161: FAM117A | B161: family with sequence similarity 117 member A | C161: ENSG00000121104 | D161: 32 | E161: 207 | F161: 84 | G161: 327 | H161: 163 | I161: Other | J161: transporter
A162: FAM133B | B162: family with sequence similarity 133 member B | C162: ENSG00000234545 | D162: 156 | E162: 1180 | F162: 334 | G162: 308 | H162: 495 | I162: Other | J162: other
A163: FAM204A | B163: family with sequence similarity 204 member A | C163: ENSG00000165669 | D163: 182 | E163: 27 | F163: 1667 | G163: 749 | H163: 656 | I163: Other | J163: other
A164: FAM210B | B164: family with sequence similarity 210 member B | C164: ENSG00000124098 | D164: 8088 | E164: 14351 | F164: 17171 | G164: 13888 | H164: 13375 | I164: Extracellular Space | J164: other
A165: FAM46C | B165: family with sequence similarity 46 member C | C165: ENSG00000183508 | D165: 4138 | E165: 19270 | F165: 17752 | G165: 13132 | H165: 13573 | I165: Extracellular Space | J165: other
A166: FAU | B166: FAU, ubiquitin like and ribosomal protein S30 fusion | C166: ENSG00000149806 | D166: 91 | E166: 911 | F166: 416 | G166: 586 | H166: 501 | I166: Cytoplasm | J166: other
A167: FAXDC2 | B167: fatty acid hydroxylase domain containing 2 | C167: ENSG00000170271 | D167: 1360 | E167: 12209 | F167: 10665 | G167: 9292 | H167: 8382 | I167: Other | J167: other
A168: FBXL4 | B168: F-box and leucine rich repeat protein 4 | C168: ENSG00000112234 | D168: 91 | E168: 438 | F168: 188 | G168: 10 | H168: 182 | I168: Nucleus | J168: enzyme
A169: FBXO7 | B169: F-box protein 7 | C169: ENSG00000100225 | D169: 25066 | E169: 102972 | F169: 103786 | G169: 182152 | H169: 103494 | I169: Cytoplasm | J169: enzyme
A170: FCER1G | B170: Fc fragment of IgE receptor Ig | C170: ENSG00000158869 | D170: 326 | E170: 2193 | F170: 449 | G170: 1804 | H170: 1193 | I170: Plasma Membrane | J170: transmembrane receptor
A171: FCF1 | B171: FCF1 rRNA-processing protein | C171: ENSG00000119616 | D171: 6 | E171: 5 | F171: 68 | G171: 837 | H171: 229 | I171: Nucleus | J171: other
A172: FCGR3A | B172: Fc fragment of IgG receptor IIIa [Source:HGNC Symbol | C172: ENSG00000203747 | D172: 7 | E172: 76 | F172: 21 | G172: 568 | H172: 168
A173: FCGR3A/FCGR3B | B173: Fc fragment of IgG receptor IIIa | C173: ENSG00000162747 | D173: 201 | E173: 1655 | F173: 577 | G173: 7364 | H173: 2449 | I173: Plasma Membrane | J173: transmembrane receptor
A174: FECH | B174: ferrochelatase | C174: ENSG00000066926 | D174: 949 | E174: 29 | F174: 7 | G174: 253 | H174: 310 | I174: Cytoplasm | J174: enzyme
A175: FGFR1OP2 | B175: FGFR1 oncogene partner 2 | C175: ENSG00000111790 | D175: 2630 | E175: 1845 | F175: 5047 | G175: 5588 | H175: 3778 | I175: Cytoplasm | J175: kinase
A176: FIS1 | B176: fission, mitochondrial 1 | C176: ENSG00000214253 | D176: 2742 | E176: 1835 | F176: 4197 | G176: 2580 | H176: 2839 | I176: Cytoplasm | J176: other
A177: FKBP8 | B177: FK506 binding protein 8 | C177: ENSG00000105701 | D177: 118 | E177: 646 | F177: 61 | G177: 2842 | H177: 917 | I177: Cytoplasm | J177: other
A178: FOXO3 | B178: forkhead box O3 | C178: ENSG00000118689 | D178: 2846 | E178: 6685 | F178: 6090 | G178: 4599 | H178: 5055 | I178: Nucleus | J178: transcription regulator
A179: FOXP1 | B179: forkhead box P1 | C179: ENSG00000114861 | D179: 671 | E179: 3028 | F179: 496 | G179: 1506 | H179: 1425 | I179: Nucleus | J179: other
A180: FTL | B180: ferritin light chain | C180: ENSG00000087086 | D180: 100451 | E180: 149022 | F180: 167521 | G180: 162568 | H180: 144891 | I180: Cytoplasm | J180: enzyme
A181: FTLP2 | B181: ferritin light chain pseudogene 2 [Source:HGNC Symbol | C181: ENSG00000232368 | D181: 32 | E181: 48 | F181: 45 | G181: 72 | H181: 49
A182: FTLP3 | B182: ferritin light chain pseudogene 3 [Source:HGNC Symbol | C182: ENSG00000226608 | D182: 198 | E182: 228 | F182: 307 | G182: 299 | H182: 258
A183: FUNDC2 | B183: FUN14 domain containing 2 | C183: ENSG00000165775 | D183: 8 | E183: 1553 | F183: 213 | G183: 728 | H183: 626 | I183: Cytoplasm | J183: other
A184: FXYD5 | B184: FXYD domain containing ion transport regulator 5 | C184: ENSG00000089327 | D184: 136 | E184: 321 | F184: 37 | G184: 124 | H184: 155 | I184: Plasma Membrane | J184: ion channel
A185: GABARAPL2 | B185: GABA type A receptor associated protein like 2 | C185: ENSG00000034713 | D185: 1712 | E185: 5536 | F185: 1400 | G185: 3913 | H185: 3140 | I185: Cytoplasm | J185: other
A186: GAPDH | B186: glyceraldehyde-3-phosphate dehydrogenase | C186: ENSG00000111640 | D186: 1195 | E186: 5379 | F186: 1220 | G186: 4275 | H186: 3017 | I186: Cytoplasm | J186: enzyme
A187: GATA1 | B187: GATA binding protein 1 | C187: ENSG00000102145 | D187: 425 | E187: 721 | F187: 218 | G187: 523 | H187: 472 | I187: Nucleus | J187: transcription regulator
A188: GCC2 | B188: GRIP and coiled-coil domain containing 2 | C188: ENSG00000135968 | D188: 75 | E188: 123 | F188: 2267 | G188: 2548 | H188: 1253 | I188: Cytoplasm | J188: other
A189: GHITM | B189: growth hormone inducible transmembrane protein | C189: ENSG00000165678 | D189: 215 | E189: 1607 | F189: 554 | G189: 1676 | H189: 1013 | I189: Cytoplasm | J189: other
A190: GLUL | B190: glutamate-ammonia ligase | C190: ENSG00000135821 | D190: 7438 | E190: 16677 | F190: 16435 | G190: 9657 | H190: 12552 | I190: Cytoplasm | J190: enzyme
A191: GMFG | B191: glia maturation factor gamma | C191: ENSG00000130755 | D191: 280 | E191: 1142 | F191: 1278 | G191: 3927 | H191: 1657 | I191: Cytoplasm | J191: growth factor
A192: GNAS | B192: GNAS complex locus | C192: ENSG00000087460 | D192: 1102 | E192: 1816 | F192: 1359 | G192: 3202 | H192: 1870 | I192: Plasma Membrane | J192: enzyme
A193: GNL3L | B193: G protein nucleolar 3 like | C193: ENSG00000130119 | D193: 1057 | E193: 30 | F193: 473 | G193: 126 | H193: 422 | I193: Nucleus | J193: other
A194: GPSM3 | B194: G-protein signaling modulator 3 | C194: ENSG00000213654 | D194: 84 | E194: 229 | F194: 41 | G194: 328 | H194: 171 | I194: Cytoplasm | J194: other
A195: GPX1 | B195: glutathione peroxidase 1 | C195: ENSG00000233276 | D195: 70 | E195: 54 | F195: 59 | G195: 1861 | H195: =AVERAGE(D195:G195) -> 511 | I195: Cytoplasm | J195: enzyme
A196: GRINA | B196: glutamate ionotropic receptor NMDA type subunit associated protein 1 | C196: ENSG00000178719 | D196: 79 | E196: 172 | F196: 50 | G196: 62 | H196: 91 | I196: Other | J196: ion channel
A197: GSPT1 | B197: G1 to S phase transition 1 | C197: ENSG00000103342 | D197: 2823 | E197: 5613 | F197: 3369 | G197: 29 | H197: 2959 | I197: Cytoplasm | J197: translation regulator
A198: GSTK1 | B198: glutathione S-transferase kappa 1 | C198: ENSG00000197448 | D198: 583 | E198: 2854 | F198: 1605 | G198: 1439 | H198: 1620 | I198: Cytoplasm | J198: enzyme
A199: GTDC1 | B199: glycosyltransferase like domain containing 1 | C199: ENSG00000121964 | D199: 8 | E199: 38 | F199: 504 | G199: 25 | H199: 144 | I199: Other | J199: other
A200: GUK1 | B200: guanylate kinase 1 | C200: ENSG00000143774 | D200: 158 | E200: 331 | F200: 88 | G200: 2356 | H200: 733 | I200: Cytoplasm | J200: kinase
... 488 more rows

Sheet Supplementary Table 4
A1: Supplementary Table 4. Estimates for transcript abundances in RBCs (n = 4), reported as transcripts per million (TPM), were produced by Kallisto algorithm.
A2: RBC1 | F2: RBC2 | K2: RBC3 | P2: RBC4
A3: target_id | B3: length | C3: eff_length | D3: est_counts | E3: tpm | F3: target_id | G3: length | H3: eff_length | I3: est_counts | J3: tpm | K3: target_id | L3: length | M3: eff_length | N3: est_counts | O3: tpm | P3: target_id | Q3: length | R3: eff_length | S3: est_counts | T3: tpm
A4: ENST00000456328 | B4: 1657 | C4: 1457.39 | D4: 0 | E4: 0 | F4: ENST00000456328 | G4: 1657 | H4: 1479.53 | I4: 0 | J4: 0 | K4: ENST00000456328 | L4: 1657 | M4: 1471.97 | N4: 0 | O4: 0 | P4: ENST00000456328 | Q4: 1657 | R4: 1499.45 | S4: 0 | T4: 0
A5: ENST00000450305 | B5: 632 | C5: 436.429 | D5: 0 | E5: 0 | F5: ENST00000450305 | G5: 632 | H5: 457.009 | I5: 0 | J5: 0 | K5: ENST00000450305 | L5: 632 | M5: 450.033 | N5: 0 | O5: 0 | P5: ENST00000450305 | Q5: 632 | R5: 475.816 | S5: 0 | T5: 0
A6: ENST00000488147 | B6: 1351 | C6: 1151.39 | D6: 1.81227 | E6: 0.0209877 | F6: ENST00000488147 | G6: 1351 | H6: 1173.53 | I6: 0 | J6: 0 | K6: ENST00000488147 | L6: 1351 | M6: 1165.97 | N6: 0 | O6: 0 | P6: ENST00000488147 | Q6: 1351 | R6: 1193.45 | S6: 0 | T6: 0
A7: ENST00000619216 | B7: 68 | C7: 26.0919 | D7: 0 | E7: 0 | F7: ENST00000619216 | G7: 68 | H7: 26.8191 | I7: 0 | J7: 0 | K7: ENST00000619216 | L7: 68 | M7: 22.8382 | N7: 0 | O7: 0 | P7: ENST00000619216 | Q7: 68 | R7: 20.7786 | S7: 0 | T7: 0
A8: ENST00000473358 | B8: 712 | C8: 514.297 | D8: 0 | E8: 0 | F8: ENST00000473358 | G8: 712 | H8: 536.041 | I8: 0 | J8: 0 | K8: ENST00000473358 | L8: 712 | M8: 528.381 | N8: 0 | O8: 0 | P8: ENST00000473358 | Q8: 712 | R8: 555.21 | S8: 0 | T8: 0
A9: ENST00000469289 | B9: 535 | C9: 344.593 | D9: 0 | E9: 0 | F9: ENST00000469289 | G9: 535 | H9: 363.555 | I9: 0 | J9: 0 | K9: ENST00000469289 | L9: 535 | M9: 357.21 | N9: 0 | O9: 0 | P9: ENST00000469289 | Q9: 535 | R9: 380.835 | S9: 0 | T9: 0
A10: ENST00000607096 | B10: 138 | C10: 62.7786 | D10: 0 | E10: 0 | F10: ENST00000607096 | G10: 138 | H10: 66.4765 | I10: 0 | J10: 0 | K10: ENST00000607096 | L10: 138 | M10: 60.4442 | N10: 0 | O10: 0 | P10: ENST00000607096 | Q10: 138 | R10: 56.5407 | S10: 0 | T10: 0
A11: ENST00000417324 | B11: 1187 | C11: 987.389 | D11: 0.123456 | E11: 0.0016672 | F11: ENST00000417324 | G11: 1187 | H11: 1009.53 | I11: 0 | J11: 0 | K11: ENST00000417324 | L11: 1187 | M11: 1001.97 | N11: 0 | O11: 0 | P11: ENST00000417324 | Q11: 1187 | R11: 1029.45 | S11: 0 | T11: 0
A12: ENST00000461467 | B12: 590 | C12: 395.73 | D12: 0 | E12: 0 | F12: ENST00000461467 | G12: 590 | H12: 416.448 | I12: 0 | J12: 0 | K12: ENST00000461467 | L12: 590 | M12: 409.022 | N12: 0 | O12: 0 | P12: ENST00000461467 | Q12: 590 | R12: 434.271 | S12: 0 | T12: 0
A13: ENST00000606857 | B13: 840 | C13: 641.384 | D13: 0 | E13: 0 | F13: ENST00000606857 | G13: 840 | H13: 663.024 | I13: 0 | J13: 0 | K13: ENST00000606857 | L13: 840 | M13: 655.246 | N13: 0 | O13: 0 | P13: ENST00000606857 | Q13: 840 | R13: 682.832 | S13: 0 | T13: 0
A14: ENST00000492842 | B14: 940 | C14: 740.85 | D14: 0 | E14: 0 | F14: ENST00000492842 | G14: 940 | H14: 762.527 | I14: 0 | J14: 0 | K14: ENST00000492842 | L14: 940 | M14: 754.97 | N14: 0 | O14: 0 | P14: ENST00000492842 | Q14: 940 | R14: 782.616 | S14: 0 | T14: 0
A15: ENST00000335137 | B15: 918 | C15: 718.85 | D15: 0 | E15: 0 | F15: ENST00000335137 | G15: 918 | H15: 740.602 | I15: 0 | J15: 0 | K15: ENST00000335137 | L15: 918 | M15: 732.97 | N15: 0 | O15: 0 | P15: ENST00000335137 | Q15: 918 | R15: 760.616 | S15: 0 | T15: 0
A16: ENST00000466430 | B16: 2748 | C16: 2548.39 | D16: 0 | E16: 0 | F16: ENST00000466430 | G16: 2748 | H16: 2570.53 | I16: 0 | J16: 0 | K16: ENST00000466430 | L16: 2748 | M16: 2562.97 | N16: 0 | O16: 0 | P16: ENST00000466430 | Q16: 2748 | R16: 2590.45 | S16: 0 | T16: 0
A17: ENST00000477740 | B17: 491 | C17: 305.025 | D17: 0 | E17: 0 | F17: ENST00000477740 | G17: 491 | H17: 322.432 | I17: 0 | J17: 0 | K17: ENST00000477740 | L17: 491 | M17: 317.983 | N17: 0 | O17: 0 | P17: ENST00000477740 | Q17: 491 | R17: 338.572 | S17: 0 | T17: 0
A18: ENST00000471248 | B18: 629 | C18: 433.517 | D18: 0 | E18: 0 | F18: ENST00000471248 | G18: 629 | H18: 454.146 | I18: 0 | J18: 0 | K18: ENST00000471248 | L18: 629 | M18: 447.169 | N18: 0 | O18: 0 | P18: ENST00000471248 | Q18: 629 | R18: 472.864 | S18: 0 | T18: 0
A19: ENST00000610542 | B19: 723 | C19: 525.297 | D19: 0 | E19: 0 | F19: ENST00000610542 | G19: 723 | H19: 546.66 | I19: 0 | J19: 0 | K19: ENST00000610542 | L19: 723 | M19: 539.114 | N19: 0 | O19: 0 | P19: ENST00000610542 | Q19: 723 | R19: 566.21 | S19: 0 | T19: 0
A20: ENST00000453576 | B20: 336 | C20: 179.68 | D20: 0 | E20: 0 | F20: ENST00000453576 | G20: 336 | H20: 191.719 | I20: 0 | J20: 0 | K20: ENST00000453576 | L20: 336 | M20: 192.884 | N20: 0 | O20: 0 | P20: ENST00000453576 | Q20: 336 | R20: 198.736 | S20: 0 | T20: 0
A21: ENST00000495576 | B21: 1319 | C21: 1119.39 | D21: 0 | E21: 0 | F21: ENST00000495576 | G21: 1319 | H21: 1141.53 | I21: 0 | J21: 0 | K21: ENST00000495576 | L21: 1319 | M21: 1133.97 | N21: 0 | O21: 0 | P21: ENST00000495576 | Q21: 1319 | R21: 1161.45 | S21: 0 | T21: 0
A22: ENST00000442987 | B22: 3812 | C22: 3612.39 | D22: 0 | E22: 0 | F22: ENST00000442987 | G22: 3812 | H22: 3634.53 | I22: 0 | J22: 0 | K22: ENST00000442987 | L22: 3812 | M22: 3626.97 | N22: 2.46225 | O22: 0.0070064 | P22: ENST00000442987 | Q22: 3812 | R22: 3654.45 | S22: 1.09282 | T22: 0.00309061
A23: ENST00000494149 | B23: 755 | C23: 556.921 | D23: 0 | E23: 0 | F23: ENST00000494149 | G23: 755 | H23: 578.21 | I23: 0 | J23: 0 | K23: ENST00000494149 | L23: 755 | M23: 570.784 | N23: 0 | O23: 0 | P23: ENST00000494149 | Q23: 755 | R23: 598.151 | S23: 0 | T23: 0
A24: ENST00000595919 | B24: 284 | C24: 145.004 | D24: 0 | E24: 0 | F24: ENST00000595919 | G24: 284 | H24: 155.551 | I24: 0 | J24: 0 | K24: ENST00000595919 | L24: 284 | M24: 154.859 | N24: 0 | O24: 0 | P24: ENST00000595919 | Q24: 284 | R24: 156.344 | S24: 0 | T24: 0
A25: ENST00000493797 | B25: 323 | C25: 170.834 | D25: 0 | E25: 0 | F25: ENST00000493797 | G25: 323 | H25: 182.297 | I25: 0 | J25: 0 | K25: ENST00000493797 | L25: 323 | M25: 183.007 | N25: 0 | O25: 0 | P25: ENST00000493797 | Q25: 323 | R25: 187.756 | S25: 0 | T25: 0
A26: ENST00000484859 | B26: 4860 | C26: 4660.39 | D26: 0 | E26: 0 | F26: ENST00000484859 | G26: 4860 | H26: 4682.53 | I26: 0 | J26: 0 | K26: ENST00000484859 | L26: 4860 | M26: 4674.97 | N26: 0 | O26: 0 | P26: ENST00000484859 | Q26: 4860 | R26: 4702.45 | S26: 0 | T26: 0
A27: ENST00000490997 | B27: 518 | C27: 328.935 | D27: 0 | E27: 0 | F27: ENST00000490997 | G27: 518 | H27: 347.525 | I27: 0 | J27: 0 | K27: ENST00000490997 | L27: 518 | M27: 341.922 | N27: 0 | O27: 0 | P27: ENST00000490997 | Q27: 518 | R27: 364.364 | S27: 0 | T27: 0
A28: ENST00000466557 | B28: 1301 | C28: 1101.39 | D28: 0 | E28: 0 | F28: ENST00000466557 | G28: 1301 | H28: 1123.53 | I28: 0 | J28: 0 | K28: ENST00000466557 | L28: 1301 | M28: 1115.97 | N28: 0 | O28: 0 | P28: ENST00000466557 | Q28: 1301 | R28: 1143.45 | S28: 0 | T28: 0
A29: ENST00000491962 | B29: 278 | C29: 141.523 | D29: 0 | E29: 0 | F29: ENST00000491962 | G29: 278 | H29: 151.652 | I29: 0 | J29: 0 | K29: ENST00000491962 | L29: 278 | M29: 150.62 | N29: 0 | O29: 0 | P29: ENST00000491962 | Q29: 278 | R29: 151.392 | S29: 0 | T29: 0
A30: ENST00000410691 | B30: 104 | C30: 40.0028 | D30: 0 | E30: 0 | F30: ENST00000410691 | G30: 104 | H30: 41.2571 | I30: 0 | J30: 0 | K30: ENST00000410691 | L30: 104 | M30: 35.2508 | N30: 0 | O30: 0 | P30: ENST00000410691 | Q30: 104 | R30: 33.5509 | S30: 0 | T30: 0
A31: ENST00000496488 | B31: 457 | C31: 275.057 | D31: 0 | E31: 0 | F31: ENST00000496488 | G31: 457 | H31: 292.15 | I31: 0 | J31: 0 | K31: ENST00000496488 | L31: 457 | M31: 288.488 | N31: 0 | O31: 0 | P31: ENST00000496488 | Q31: 457 | R31: 306.527 | S31: 0 | T31: 0
A32: ENST00000624431 | B32: 718 | C32: 520.297 | D32: 0 | E32: 0 | F32: ENST00000624431 | G32: 718 | H32: 541.987 | I32: 0 | J32: 0 | K32: ENST00000624431 | L32: 718 | M32: 534.275 | N32: 0 | O32: 0 | P32: ENST00000624431 | Q32: 718 | R32: 561.21 | S32: 0 | T32: 0
A33: ENST00000623834 | B33: 1374 | C33: 1174.39 | D33: 0 | E33: 0 | F33: ENST00000623834 | G33: 1374 | H33: 1196.53 | I33: 0 | J33: 0 | K33: ENST00000623834 | L33: 1374 | M33: 1188.97 | N33: 0 | O33: 0 | P33: ENST00000623834 | Q33: 1374 | R33: 1216.45 | S33: 0 | T33: 0
A34: ENST00000623083 | B34: 1687 | C34: 1487.39 | D34: 9.18773 | E34: 0.0823661 | F34: ENST00000623083 | G34: 1687 | H34: 1509.53 | I34: 0 | J34: 0 | K34: ENST00000623083 | L34: 1687 | M34: 1501.97 | N34: 0 | O34: 0 | P34: ENST00000623083 | Q34: 1687 | R34: 1529.45 | S34: 0 | T34: 0
A35: ENST00000624735 | B35: 1604 | C35: 1404.39 | D35: 0 | E35: 0 | F35: ENST00000624735 | G35: 1604 | H35: 1426.53 | I35: 0 | J35: 0 | K35: ENST00000624735 | L35: 1604 | M35: 1418.97 | N35: 2 | O35: 0.0145467 | P35: ENST00000624735 | Q35: 1604 | R35: 1446.45 | S35: 0 | T35: 0
A36: ENST00000612080 | B36: 68 | C36: 26.0919 | D36: 0 | E36: 0 | F36: ENST00000612080 | G36: 68 | H36: 26.8191 | I36: 0 | J36: 0 | K36: ENST00000612080 | L36: 68 | M36: 22.8382 | N36: 0 | O36: 0 | P36: ENST00000612080 | Q36: 68 | R36: 20.7786 | S36: 0 | T36: 0
A37: ENST00000611868 | B37: 138 | C37: 62.7786 | D37: 0 | E37: 0 | F37: ENST00000611868 | G37: 138 | H37: 66.4765 | I37: 0 | J37: 0 | K37: ENST00000611868 | L37: 138 | M37: 60.4442 | N37: 0 | O37: 0 | P37: ENST00000611868 | Q37: 138 | R37: 56.5407 | S37: 0 | T37: 0
A38: ENST00000442116 | B38: 1292 | C38: 1092.39 | D38: 0 | E38: 0 | F38: ENST00000442116 | G38: 1292 | H38: 1114.53 | I38: 0 | J38: 0 | K38: ENST00000442116 | L38: 1292 | M38: 1106.97 | N38: 0 | O38: 0 | P38: ENST00000442116 | Q38: 1292 | R38: 1134.45 | S38: 0 | T38: 0
A39: ENST00000448958 | B39: 1925 | C39: 1725.39 | D39: 0 | E39: 0 | F39: ENST00000448958 | G39: 1925 | H39: 1747.53 | I39: 0 | J39: 0 | K39: ENST00000448958 | L39: 1925 | M39: 1739.97 | N39: 0 | O39: 0 | P39: ENST00000448958 | Q39: 1925 | R39: 1767.45 | S39: 0 | T39: 0
A40: ENST00000634344 | B40: 1219 | C40: 1019.39 | D40: 0 | E40: 0 | F40: ENST00000634344 | G40: 1219 | H40: 1041.53 | I40: 0 | J40: 0 | K40: ENST00000634344 | L40: 1219 | M40: 1033.97 | N40: 0 | O40: 0 | P40: ENST00000634344 | Q40: 1219 | R40: 1061.45 | S40: 0 | T40: 0
A41: ENST00000424587 | B41: 2257 | C41: 2057.39 | D41: 0 | E41: 0 | F41: ENST00000424587 | G41: 2257 | H41: 2079.53 | I41: 0 | J41: 0 | K41: ENST00000424587 | L41: 2257 | M41: 2071.97 | N41: 0 | O41: 0 | P41: ENST00000424587 | Q41: 2257 | R41: 2099.45 | S41: 0 | T41: 0
A42: ENST00000335577 | B42: 510 | C42: 321.936 | D42: 0 | E42: 0 | F42: ENST00000335577 | G42: 510 | H42: 340.188 | I42: 0 | J42: 0 | K42: ENST00000335577 | L42: 510 | M42: 334.578 | N42: 0 | O42: 0 | P42: ENST00000335577 | Q42: 510 | R42: 356.69 | S42: 0 | T42: 0
A43: ENST00000450734 | B43: 457 | C43: 275.057 | D43: 0 | E43: 0 | F43: ENST00000450734 | G43: 457 | H43: 292.15 | I43: 0 | J43: 0 | K43: ENST00000450734 | L43: 457 | M43: 288.488 | N43: 0 | O43: 0 | P43: ENST00000450734 | Q43: 457 | R43: 306.527 | S43: 0 | T43: 0
A44: ENST00000458203 | B44: 385 | C44: 217.064 | D44: 1001528 | E44: 0.151375 | F44: ENST00000458203 | G44: 385 | H44: 229.976 | I44: 0 | J44: 0 | K44: ENST00000458203 | L44: 385 | M44: 231.679 | N44: 0 | O44: 0 | P44: ENST00000458203 | Q44: 385 | R44: 241.164 | S44: 0 | T44: 0
A45: ENST00000441866 | B45: 676 | C45: 479.244 | D45: 0 | E45: 0 | F45: ENST00000441866 | G45: 676 | H45: 500.247 | I45: 0 | J45: 0 | K45: ENST00000441866 | L45: 676 | M45: 492.996 | N45: 0 | O45: 0 | P45: ENST00000441866 | Q45: 676 | R45: 519.319 | S45: 0 | T45: 0
A46: ENST00000450983 | B46: 607 | C46: 412.241 | D46: 0 | E46: 0 | F46: ENST00000450983 | G46: 607 | H46: 432.685 | I46: 0 | J46: 0 | K46: ENST00000450983 | L46: 607 | M46: 425.518 | N46: 0 | O46: 0 | P46: ENST00000450983 | Q46: 607 | R46: 451.14 | S46: 0 | T46: 0
A47: ENST00000412666 | B47: 426 | C47: 249.389 | D47: 0 | E47: 0 | F47: ENST00000412666 | G47: 426 | H47: 264.803 | I47: 0 | J47: 0 | K47: ENST00000412666 | L47: 426 | M47: 263.531 | N47: 0 | O47: 0 | P47: ENST00000412666 | Q47: 426 | R47: 278.176 | S47: 0 | T47: 0
A48: ENST00000635159 | B48: 994 | C48: 794.389 | D48: 0 | E48: 0 | F48: ENST00000635159 | G48: 994 | H48: 816.527 | I48: 0 | J48: 0 | K48: ENST00000635159 | L48: 994 | M48: 808.97 | N48: 0 | O48: 0 | P48: ENST00000635159 | Q48: 994 | R48: 836.452 | S48: 0 | T48: 0
A49: ENST00000431321 | B49: 406 | C49: 233.245 | D49: 0 | E49: 0 | F49: ENST00000431321 | G49: 406 | H49: 247.566 | I49: 0 | J49: 0 | K49: ENST00000431321 | L49: 406 | M49: 247.696 | N49: 0 | O49: 0 | P49: ENST00000431321 | Q49: 406 | R49: 259.836 | S49: 0 | T49: 0
A50: ENST00000453935 | B50: 498 | C50: 311.008 | D50: 0 | E50: 0 | F50: ENST00000453935 | G50: 498 | H50: 328.934 | I50: 0 | J50: 0 | K50: ENST00000453935 | L50: 498 | M50: 323.894 | N50: 0 | O50: 0 | P50: ENST00000453935 | Q50: 498 | R50: 345.434 | S50: 0 | T50: 0
A51: ENST00000440163 | B51: 462 | C51: 279.36 | D51: 0 | E51: 0 | F51: ENST00000440163 | G51: 462 | H51: 296.392 | I51: 0 | J51: 0 | K51: ENST00000440163 | L51: 462 | M51: 292.941 | N51: 0 | O51: 0 | P51: ENST00000440163 | Q51: 462 | R51: 311.182 | S51: 0 | T51: 0
A52: ENST00000455207 | B52: 413 | C52: 239.143 | D52: 0 | E52: 0 | F52: ENST00000455207 | G52: 413 | H52: 253.35 | I52: 0 | J52: 0 | K52: ENST00000455207 | L52: 413 | M52: 253.53 | N52: 0 | O52: 0 | P52: ENST00000455207 | Q52: 413 | R52: 266.24 | S52: 0 | T52: 0
A53: ENST00000455464 | B53: 735 | C53: 537.032 | D53: 0 | E53: 0 | F53: ENST00000455464 | G53: 735 | H53: 558.549 | I53: 0 | J53: 0 | K53: ENST00000455464 | L53: 735 | M53: 550.841 | N53: 0 | O53: 0 | P53: ENST00000455464 | Q53: 735 | R53: 578.21 | S53: 0 | T53: 0
A54: ENST00000613471 | B54: 723 | C54: 525.297 | D54: 0 | E54: 0 | F54: ENST00000613471 | G54: 723 | H54: 546.66 | I54: 0 | J54: 0 | K54: ENST00000613471 | L54: 723 | M54: 539.114 | N54: 0 | O54: 0 | P54: ENST00000613471 | Q54: 723 | R54: 566.21 | S54: 0 | T54: 0
A55: ENST00000601814 | B55: 635 | C55: 439.253 | D55: 0 | E55: 0 | F55: ENST00000601814 | G55: 635 | H55: 459.963 | I55: 0 | J55: 0 | K55: ENST00000601814 | L55: 635 | M55: 453.033 | N55: 0 | O55: 0 | P55: ENST00000601814 | Q55: 635 | R55: 478.721 | S55: 0 | T55: 0
A56: ENST00000431812 | B56: 336 | C56: 179.68 | D56: 0 | E56: 0 | F56: ENST00000431812 | G56: 336 | H56: 191.719 | I56: 0 | J56: 0 | K56: ENST00000431812 | L56: 336 | M56: 192.884 | N56: 0 | O56: 0 | P56: ENST00000431812 | Q56: 336 | R56: 198.736 | S56: 0 | T56: 0
A57: ENST00000419160 | B57: 607 | C57: 412.241 | D57: 0 | E57: 0 | F57: ENST00000419160 | G57: 607 | H57: 432.685 | I57: 0 | J57: 0 | K57: ENST00000419160 | L57: 607 | M57: 425.518 | N57: 0 | O57: 0 | P57: ENST00000419160 | Q57: 607 | R57: 451.14 | S57: 0 | T57: 0
A58: ENST00000440038 | B58: 746 | C58: 548.032 | D58: 0 | E58: 0 | F58: ENST00000440038 | G58: 746 | H58: 569.21 | I58: 0 | J58: 0 | K58: ENST00000440038 | L58: 746 | M58: 561.841 | N58: 0 | O58: 0 | P58: ENST00000440038 | Q58: 746 | R58: 589.151 | S58: 0 | T58: 0
A59: ENST00000423728 | B59: 573 | C59: 379.828 | D59: 0 | E59: 0 | F59: ENST00000423728 | G59: 573 | H59: 400.022 | I59: 0 | J59: 0 | K59: ENST00000423728 | L59: 573 | M59: 392.749 | N59: 0 | O59: 0 | P59: ENST00000423728 | Q59: 573 | R59: 417.484 | S59: 0 | T59: 0
A60: ENST00000599771 | B60: 457 | C60: 275.057 | D60: 0 | E60: 0 | F60: ENST00000599771 | G60: 457 | H60: 292.15 | I60: 0 | J60: 0 | K60: ENST00000599771 | L60: 457 | M60: 288.488 | N60: 0 | O60: 0 | P60: ENST00000599771 | Q60: 457 | R60: 306.527 | S60: 0 | T60: 0
A61: ENST00000601486 | B61: 696 | C61: 498.756 | D61: 0 | E61: 0 | F61: ENST00000601486 | G61: 696 | H61: 520.094 | I61: 0 | J61: 0 | K61: ENST00000601486 | L61: 696 | M61: 512.696 | N61: 0 | O61: 0 | P61: ENST00000601486 | Q61: 696 | R61: 539.319 | S61: 0 | T61: 0
A62: ENST00000616947 | B62: 603 | C62: 408.406 | D62: 0 | E62: 0 | F62: ENST00000616947 | G62: 603 | H62: 428.772 | I62: 0 | J62: 0 | K62: ENST00000616947 | L62: 603 | M62: 421.688 | N62: 0 | O62: 0 | P62: ENST00000616947 | Q62: 603 | R62: 447.14 | S62: 0 | T62: 0
A63: ENST00000616311 | B63: 372 | C63: 207.026 | D63: 0 | E63: 0 | F63: ENST00000616311 | G63: 372 | H63: 219.401 | I63: 0 | J63: 0 | K63: ENST00000616311 | L63: 372 | M63: 221.231 | N63: 0 | O63: 0 | P63: ENST00000616311 | Q63: 372 | R63: 230.085 | S63: 0 | T63: 0
A64: ENST00000432964 | B64: 575 | C64: 381.635 | D64: 0 | E64: 0 | F64: ENST00000432964 | G64: 575 | H64: 401.942 | I64: 0 | J64: 0 | K64: ENST00000432964 | L64: 575 | M64: 394.709 | N64: 0 | O64: 0 | P64: ENST00000432964 | Q64: 575 | R64: 419.484 | S64: 0 | T64: 0
A65: ENST00000608420 | B65: 438 | C65: 259.281 | D65: 0 | E65: 0 | F65: ENST00000608420 | G65: 438 | H65: 275.317 | I65: 0 | J65: 0 | K65: ENST00000608420 | L65: 438 | M65: 273.022 | N65: 0 | O65: 0 | P65: ENST00000608420 | Q65: 438 | R65: 288.926 | S65: 0 | T65: 0
A66: ENST00000437905 | B66: 363 | C66: 200.01 | D66: 0 | E66: 0 | F66: ENST00000437905 | G66: 363 | H66: 212.373 | I66: 0 | J66: 0 | K66: ENST00000437905 | L66: 363 | M66: 213.965 | N66: 0 | O66: 0 | P66: ENST00000437905 | Q66: 363 | R66: 221.917 | S66: 0 | T66: 0
A67: ENST00000426406 | B67: 939 | C67: 739.85 | D67: 0 | E67: 0 | F67: ENST00000426406 | G67: 939 | H67: 761.527 | I67: 0 | J67: 0 | K67: ENST00000426406 | L67: 939 | M67: 753.97 | N67: 0 | O67: 0 | P67: ENST00000426406 | Q67: 939 | R67: 781.616 | S67: 0 | T67: 0
A68: ENST00000445840 | B68: 183 | C68: 89.1854 | D68: 0 | E68: 0 | F68: ENST00000445840 | G68: 183 | H68: 95.854 | I68: 0 | J68: 0 | K68: ENST00000445840 | L68: 183 | M68: 89.2807 | N68: 0 | O68: 0 | P68: ENST00000445840 | Q68: 183 | R68: 83.9901 | S68: 0 | T68: 0
A69: ENST00000432723 | B69: 2477 | C69: 2277.39 | D69: 0 | E69: 0 | F69: ENST00000432723 | G69: 2477 | H69: 2299.53 | I69: 0 | J69: 0 | K69: ENST00000432723 | L69: 2477 | M69: 2291.97 | N69: 0 | O69: 0 | P69: ENST00000432723 | Q69: 2477 | R69: 2319.45 | S69: 0 | T69: 0
A70: ENST00000514436 | B70: 1239 | C70: 1039.39 | D70: 0 | E70: 0 | F70: ENST00000514436 | G70: 1239 | H70: 1061.53 | I70: 0 | J70: 0 | K70: ENST00000514436 | L70: 1239 | M70: 1053.97 | N70: 0 | O70: 0 | P70: ENST00000514436 | Q70: 1239 | R70: 1081.45 | S70: 0 | T70: 0
A71: ENST00000614007 | B71: 104 | C71: 40.0028 | D71: 0 | E71: 0 | F71: ENST00000614007 | G71: 104 | H71: 41.2571 | I71: 0 | J71: 0 | K71: ENST00000614007 | L71: 104 | M71: 35.2508 | N71: 0 | O71: 0 | P71: ENST00000614007 | Q71: 104 | R71: 33.5509 | S71: 0 | T71: 0
A72: ENST00000417636 | B72: 842 | C72: 643.384 | D72: 0 | E72: 0 | F72: ENST00000417636 | G72: 842 | H72: 665.024 | I72: 0 | J72: 0 | K72: ENST00000417636 | L72: 842 | M72: 657.246 | N72: 0 | O72: 0 | P72: ENST00000417636 | Q72: 842 | R72: 684.832 | S72: 0 | T72: 0
A73: ENST00000634833 | B73: 1004 | C73: 804.389 | D73: 0 | E73: 0 | F73: ENST00000634833 | G73: 1004 | H73: 826.527 | I73: 0 | J73: 0 | K73: ENST00000634833 | L73: 1004 | M73: 818.97 | N73: 0 | O73: 0 | P73: ENST00000634833 | Q73: 1004 | R73: 846.452 | S73: 0 | T73: 0
A74: ENST00000635509 | B74: 940 | C74: 740.85 | D74: 0 | E74: 0 | F74: ENST00000635509 | G74: 940 | H74: 762.527 | I74: 0 | J74: 0 | K74: ENST00000635509 | L74: 940 | M74: 754.97 | N74: 0 | O74: 0 | P74: ENST00000635509 | Q74: 940 | R74: 782.616 | S74: 0 | T74: 0
A75: ENST00000634337 | B75: 890 | C75: 690.92 | D75: 0 | E75: 0 | F75: ENST00000634337 | G75: 890 | H75: 712.749 | I75: 0 | J75: 0 | K75: ENST00000634337 | L75: 890 | M75: 705.04 | N75: 0 | O75: 0 | P75: ENST00000634337 | Q75: 890 | R75: 732.692 | S75: 0 | T75: 0
A76: ENST00000440196 | B76: 439 | C76: 259.978 | D76: 0 | E76: 0 | F76: ENST00000440196 | G76: 439 | H76: 276.117 | I76: 0 | J76: 0 | K76: ENST00000440196 | L76: 439 | M76: 273.848 | N76: 0 | O76: 0 | P76: ENST00000440196 | Q76: 439 | R76: 289.837 | S76: 0 | T76: 0
A77: ENST00000357876 | B77: 498 | C77: 311.008 | D77: 0 | E77: 0 | F77: ENST00000357876 | G77: 498 | H77: 328.934 | I77: 0 | J77: 0 | K77: ENST00000357876 | L77: 498 | M77: 323.894 | N77: 0 | O77: 0 | P77: ENST00000357876 | Q77: 498 | R77: 345.434 | S77: 0 | T77: 0
A78: ENST00000440200 | B78: 413 | C78: 239.143 | D78: 0 | E78: 0 | F78: ENST00000440200 | G78: 413 | H78: 253.35 | I78: 0 | J78: 0 | K78: ENST00000440200 | L78: 413 | M78: 253.53 | N78: 0 | O78: 0 | P78: ENST00000440200 | Q78: 413 | R78: 266.24 | S78: 0 | T78: 0
A79: ENST00000452176 | B79: 802 | C79: 603.634 | D79: 0 | E79: 0 | F79: ENST00000452176 | G79: 802 | H79: 625.15 | I79: 0 | J79: 0 | K79: ENST00000452176 | L79: 802 | M79: 617.372 | N79: 0 | O79: 0 | P79: ENST00000452176 | Q79: 802 | R79: 645.03 | S79: 0 | T79: 0
A80: ENST00000441245 | B80: 629 | C80: 433.517 | D80: 0 | E80: 0 | F80: ENST00000441245 | G80: 629 | H80: 454.146 | I80: 0 | J80: 0 | K80: ENST00000441245 | L80: 629 | M80: 447.169 | N80: 0 | O80: 0 | P80: ENST00000441245 | Q80: 629 | R80: 472.864 | S80: 0 | T80: 0
A81: ENST00000419394 | B81: 480 | C81: 295.298 | D81: 0 | E81: 0 | F81: ENST00000419394 | G81: 480 | H81: 312.112 | I81: 0 | J81: 0 | K81: ENST00000419394 | L81: 480 | M81: 308.663 | N81: 0 | O81: 0 | P81: ENST00000419394 | Q81: 480 | R81: 328.112 | S81: 0 | T81: 0
A82: ENST00000414688 | B82: 750 | C82: 551.921 | D82: 0 | E82: 0 | F82: ENST00000414688 | G82: 750 | H82: 573.21 | I82: 0 | J82: 0 | K82: ENST00000414688 | L82: 750 | M82: 565.841 | N82: 0 | O82: 0 | P82: ENST00000414688 | Q82: 750 | R82: 593.151 | S82: 0 | T82: 0
A83: ENST00000616585 | B83: 723 | C83: 525.297 | D83: 0 | E83: 0 | F83: ENST00000616585 | G83: 723 | H83: 546.66 | I83: 0 | J83: 0 | K83: ENST00000616585 | L83: 723 | M83: 539.114 | N83: 0 | O83: 0 | P83: ENST00000616585 | Q83: 723 | R83: 566.21 | S83: 0 | T83: 0
A84: ENST00000447954 | B84: 336 | C84: 179.68 | D84: 0 | E84: 0 | F84: ENST00000447954 | G84: 336 | H84: 191.719 | I84: 0 | J84: 0 | K84: ENST00000447954 | L84: 336 | M84: 192.884 | N84: 0 | O84: 0 | P84: ENST00000447954 | Q84: 336 | R84: 198.736 | S84: 0 | T84: 0
A85: ENST00000423796 | B85: 607 | C85: 412.241 | D85: 0 | E85: 0 | F85: ENST00000423796 | G85: 607 | H85: 432.685 | I85: 0 | J85: 0 | K85: ENST00000423796 | L85: 607 | M85: 425.518 | N85: 0 | O85: 0 | P85: ENST00000423796 | Q85: 607 | R85: 451.14 | S85: 0 | T85: 0
A86: ENST00000450696 | B86: 402 | C86: 230.179 | D86: 0 | E86: 0 | F86: ENST00000450696 | G86: 402 | H86: 244.373 | I86: 0 | J86: 0 | K86: ENST00000450696 | L86: 402 | M86: 244.283 | N86: 0 | O86: 0 | P86: ENST00000450696 | Q86: 402 | R86: 256.129 | S86: 0 | T86: 0
A87: ENST00000416931 | B87: 372 | C87: 207.026 | D87: 0 | E87: 0 | F87: ENST00000416931 | G87: 372 | H87: 219.401 | I87: 1 | J87: 0.0475047 | K87: ENST00000416931 | L87: 372 | M87: 221.231 | N87: 0 | O87: 0 | P87: ENST00000416931 | Q87: 372 | R87: 230.085 | S87: 0 | T87: 0
A88: ENST00000457540 | B88: 1044 | C88: 844.389 | D88: 0 | E88: 0 | F88: ENST00000457540 | G88: 1044 | H88: 866.527 | I88: 0 | J88: 0 | K88: ENST00000457540 | L88: 1044 | M88: 858.97 | N88: 0 | O88: 0 | P88: ENST00000457540 | Q88: 1044 | R88: 886.452 | S88: 0 | T88: 0
A89: ENST00000617238 | B89: 63 | C89: 23.8282 | D89: 0 | E89: 0 | F89: ENST00000617238 | G89: 63 | H89: 24.6406 | I89: 0 | J89: 0 | K89: ENST00000617238 | L89: 63 | M89: 20.7526 | N89: 0 | O89: 0 | P89: ENST00000617238 | Q89: 63 | R89: 19.0757 | S89: 1 | T89: 0.541795
A90: ENST00000414273 | B90: 1543 | C90: 1343.39 | D90: 0 | E90: 0 | F90: ENST00000414273 | G90: 1543 | H90: 1365.53 | I90: 0 | J90: 0 | K90: ENST00000414273 | L90: 1543 | M90: 1357.97 | N90: 0 | O90: 0 | P90: ENST00000414273 | Q90: 1543 | R90: 1385.45 | S90: 1.18887 | T90: 0.00886871
A91: ENST00000621981 | B91: 89 | C91: 31.1958 | D91: 0 | E91: 0 | F91: ENST00000621981 | G91: 89 | H91: 32.9915 | I91: 0 | J91: 0 | K91: ENST00000621981 | L91: 89 | M91: 27.5193 | N91: 0 | O91: 0 | P91: ENST00000621981 | Q91: 89 | R91: 26.1291 | S91: 0 | T91: 0
A92: ENST00000427426 | B92: 682 | C92: 485.051 | D92: 0 | E92: 0 | F92: ENST00000427426 | G92: 682 | H92: 506.197 | I92: 0 | J92: 0 | K92: ENST00000427426 | L92: 682 | M92: 498.747 | N92: 0 | O92: 0 | P92: ENST00000427426 | Q92: 682 | R92: 525.319 | S92: 0 | T92: 0
A93: ENST00000467115 | B93: 207 | C93: 102.363 | D93: 0 | E93: 0 | F93: ENST00000467115 | G93: 207 | H93: 110.562 | I93: 0 | J93: 0 | K93: ENST00000467115 | L93: 207 | M93: 104.218 | N93: 0 | O93: 0 | P93: ENST00000467115 | Q93: 207 | R93: 99.359 | S93: 0 | T93: 0
A94: ENST00000514057 | B94: 681 | C94: 484.051 | D94: 0 | E94: 0 | F94: ENST00000514057 | G94: 681 | H94: 505.197 | I94: 4.47059 | J94: 0.0922314 | K94: ENST00000514057 | L94: 681 | M94: 497.847 | N94: 1 | O94: 0.0207305 | P94: ENST00000514057 | Q94: 681 | R94: 524.319 | S94: 19.25 | T94: 0.379448
A95: ENST00000416718 | B95: 547 | C95: 355.698 | D95: 0 | E95: 0 | F95: ENST00000416718 | G95: 547 | H95: 374.921 | I95: 0 | J95: 0 | K95: ENST00000416718 | L95: 547 | M95: 368.289 | N95: 0 | O95: 0 | P95: ENST00000416718 | Q95: 547 | R95: 392.175 | S95: 0 | T95: 0
A96: ENST00000438434 | B96: 424 | C96: 247.814 | D96: 0 | E96: 0 | F96: ENST00000438434 | G96: 424 | H96: 262.997 | I96: 0 | J96: 0 | K96: ENST00000438434 | L96: 424 | M96: 261.868 | N96: 0 | O96: 0 | P96: ENST00000438434 | Q96: 424 | R96: 276.261 | S96: 0 | T96: 0
A97: ENST00000332831 | B97: 939 | C97: 739.85 | D97: 0 | E97: 0 | F97: ENST00000332831 | G97: 939 | H97: 761.527 | I97: 0 | J97: 0 | K97: ENST00000332831 | L97: 939 | M97: 753.97 | N97: 0 | O97: 0 | P97: ENST00000332831 | Q97: 939 | R97: 781.616 | S97: 0 | T97: 0
A98: ENST00000440782 | B98: 2455 | C98: 2255.39 | D98: 0 | E98: 0 | F98: ENST00000440782 | G98: 2455 | H98: 2277.53 | I98: 0 | J98: 0 | K98: ENST00000440782 | L98: 2455 | M98: 2269.97 | N98: 0 | O98: 0 | P98: ENST00000440782 | Q98: 2455 | R98: 2297.45 | S98: 0 | T98: 0
A99: ENST00000506640 | B99: 6432 | C99: 6232.39 | D99: 0 | E99: 0 | F99: ENST00000506640 | G99: 6432 | H99: 6254.53 | I99: 0 | J99: 0 | K99: ENST00000506640 | L99: 6432 | M99: 6246.97 | N99: 0 | O99: 0 | P99: ENST00000506640 | Q99: 6432 | R99: 6274.45 | S99: 0 | T99: 0
A100: ENST00000428504 | B100: 417 | C100: 242.182 | D100: 0 | E100: 0 | F100: ENST00000428504 | G100: 417 | H100: 256.679 | I100: 0 | J100: 0 | K100: ENST00000428504 | L100: 417 | M100: 256.76 | N100: 0 | O100: 0 | P100: ENST00000428504 | Q100: 417 | R100: 269.992 | S100: 0 | T100: 0
A101: ENST00000411249 | B101: 104 | C101: 40.0028 | D101: 0 | E101: 0 | F101: ENST00000411249 | G101: 104 | H101: 41.2571 | I101: 0 | J101: 0 | K101: ENST00000411249 | L101: 104 | M101: 35.2508 | N101: 0 | O101: 0 | P101: ENST00000411249 | Q101: 104 | R101: 33.5509 | S101: 0 | T101: 0
A102: ENST00000422528 | B102: 456 | C102: 274.201 | D102: 0 | E102: 0 | F102: ENST00000422528 | G102: 456 | H102: 291.27 | I102: 0 | J102: 0 | K102: ENST00000422528 | L102: 456 | M102: 287.668 | N102: 0 | O102: 0 | P102: ENST00000422528 | Q102: 456 | R102: 305.683 | S102: 0 | T102: 0
A103: ENST00000434264 | B103: 844 | C103: 645.384 | D103: 0 | E103: 0 | F103: ENST00000434264 | G103: 844 | H103: 667.024 | I103: 0 | J103: 0 | K103: ENST00000434264 | L103: 844 | M103: 659.246 | N103: 0 | O103: 0 | P103: ENST00000434264 | Q103: 844 | R103: 686.832 | S103: 0 | T103: 0
A104: ENST00000457084 | B104: 566 | C104: 373.4 | D104: 0 | E104: 0 | F104: ENST00000457084 | G104: 566 | H104: 393.222 | I104: 0 | J104: 0 | K104: ENST00000457084 | L104: 566 | M104: 386.143 | N104: 0 | O104: 0 | P104: ENST00000457084 | Q104: 566 | R104: 410.733 | S104: 0 | T104: 0
A105: ENST00000589899 | B105: 809 | C105: 610.573 | D105: 0 | E105: 0 | F105: ENST00000589899 | G105: 809 | H105: 632.024 | I105: 0 | J105: 0 | K105: ENST00000589899 | L105: 809 | M105: 624.309 | N105: 0 | O105: 0 | P105: ENST00000589899 | Q105: 809 | R105: 651.965 | S105: 0 | T105: 0
A106: ENST00000609830 | B106: 669 | C106: 472.436 | D106: 0 | E106: 0 | F106: ENST00000609830 | G106: 669 | H106: 493.247 | I106: 0 | J106: 0 | K106: ENST00000609830 | L106: 669 | M106: 486.144 | N106: 0 | O106: 0 | P106: ENST00000609830 | Q106: 669 | R106: 512.371 | S106: 0 | T106: 0
A107: ENST00000429505 | B107: 441 | C107: 261.592 | D107: 0 | E107: 0 | F107: ENST00000429505 | G107: 441 | H107: 277.886 | I107: 0 | J107: 0 | K107: ENST00000429505 | L107: 441 | M107: 275.297 | N107: 0 | O107: 0 | P107: ENST00000429505 | Q107: 441 | R107: 291.689 | S107: 0 | T107: 0
A108: ENST00000585826 | B108: 390 | C108: 220.974 | D108: 0 | E108: 0 | F108: ENST00000585826 | G108: 390 | H108: 234.057 | I108: 0 | J108: 0 | K108: ENST00000585826 | L108: 390 | M108: 235.568 | N108: 0 | O108: 0 | P108: ENST00000585826 | Q108: 390 | R108: 245.557 | S108: 0 | T108: 0
A109: ENST00000592547 | B109: 608 | C109: 413.157 | D109: 0 | E109: 0 | F109: ENST00000592547 | G109: 608 | H109: 433.642 | I109: 0 | J109: 0 | K109: ENST00000592547 | L109: 608 | M109: 426.518 | N109: 0 | O109: 0 | P109: ENST00000592547 | Q109: 608 | R109: 452.094 | S109: 0 | T109: 0
A110: ENST00000586928 | B110: 598 | C110: 403.447 | D110: 0 | E110: 0 | F110: ENST00000586928 | G110: 598 | H110: 423.858 | I110: 0 | J110: 0 | K110: ENST00000586928 | L110: 598 | M110: 416.857 | N110: 0 | O110: 0 | P110: ENST00000586928 | Q110: 598 | R110: 442.14 | S110: 0 | T110: 0
A111: ENST00000585745 | B111: 168 | C111: 79.7326 | D111: 0 | E111: 0 | F111: ENST00000585745 | G111: 168 | H111: 86.2522 | I111: 0 | J111: 0 | K111: ENST00000585745 | L111: 168 | M111: 79.7882 | N111: 0 | O111: 0 | P111: ENST00000585745 | Q111: 168 | R111: 74.5849 | S111: 0 | T111: 0
A112: ENST00000585768 | B112: 394 | C112: 223.896 | D112: 0 | E112: 0 | F112: ENST00000585768 | G112: 394 | H112: 237.579 | I112: 0 | J112: 0 | K112: ENST00000585768 | L112: 394 | M112: 238.55 | N112: 0 | O112: 0 | P112: ENST00000585768 | Q112: 394 | R112: 248.993 | S112: 0 | T112: 0
A113: ENST00000590848 | B113: 726 | C113: 528.245 | D113: 0 | E113: 0 | F113: ENST00000590848 | G113: 726 | H113: 549.66 | I113: 0 | J113: 0 | K113: ENST00000590848 | L113: 726 | M113: 542.006 | N113: 0 | O113: 0 | P113: ENST00000590848 | Q113: 726 | R113: 569.21 | S113: 0 | T113: 0
A114: ENST00000591440 | B114: 780 | C114: 581.692 | D114: 0 | E114: 0 | F114: ENST00000591440 | G114: 780 | H114: 603.15 | I114: 0 | J114: 0 | K114: ENST00000591440 | L114: 780 | M114: 595.432 | N114: 0 | O114: 0 | P114: ENST00000591440 | Q114: 780 | R114: 623.03 | S114: 0 | T114: 0
A115: ENST00000587530 | B115: 1024 | C115: 824.389 | D115: 0 | E115: 0 | F115: ENST00000587530 | G115: 1024 | H115: 846.527 | I115: 0 | J115: 0 | K115: ENST00000587530 | L115: 1024 | M115: 838.97 | N115: 0 | O115: 0 | P115: ENST00000587530 | Q115: 1024 | R115: 866.452 | S115: 0 | T115: 0
A116: ENST00000593022 | B116: 693 | C116: 495.806 | D116: 0 | E116: 0 | F116: ENST00000593022 | G116: 693 | H116: 517.094 | I116: 0 | J116: 0 | K116: ENST00000593022 | L116: 693 | M116: 509.696 | N116: 0 | O116: 0 | P116: ENST00000593022 | Q116: 693 | R116: 536.319 | S116: 0 | T116: 0
A117: ENST00000589531 | B117: 714 | C117: 516.297 | D117: 0 | E117: 0 | F117: ENST00000589531 | G117: 714 | H117: 537.987 | I117: 0 | J117: 0 | K117: ENST00000589531 | L117: 714 | M117: 530.328 | N117: 0 | O117: 0 | P117: ENST00000589531 | Q117: 714 | R117: 557.21 | S117: 0 | T117: 0
A118: ENST00000588951 | B118: 607 | C118: 412.241 | D118: 0 | E118: 0 | F118: ENST00000588951 | G118: 607 | H118: 432.685 | I118: 0 | J118: 0 | K118: ENST00000588951 | L118: 607 | M118: 425.518 | N118: 0 | O118: 0 | P118: ENST00000588951 | Q118: 607 | R118: 451.14 | S118: 0 | T118: 0
A119: ENST00000586288 | B119: 1040 | C119: 840.389 | D119: 0 | E119: 0 | F119: ENST00000586288 | G119: 1040 | H119: 862.527 | I119: 0 | J119: 0 | K119: ENST00000586288 | L119: 1040 | M119: 854.97 | N119: 0 | O119: 0 | P119: ENST00000586288 | Q119: 1040 | R119: 882.452 | S119: 0 | T119: 0
A120: ENST00000591702 | B120: 1873 | C120: 1673.39 | D120: 0 | E120: 0 | F120: ENST00000591702 | G120: 1873 | H120: 1695.53 | I120: 1.99736 | J120: 0.012278 | K120: ENST00000591702 | L120: 1873 | M120: 1687.97 | N120: 0 | O120: 0 | P120: ENST00000591702 | Q120: 1873 | R120: 1715.45 | S120: 0 | T120: 0
A121: ENST00000443772 | B121: 417 | C121: 242.182 | D121: 0 | E121: 0 | F121: ENST00000443772 | G121: 417 | H121: 256.679 | I121: 0 | J121: 0 | K121: ENST00000443772 | L121: 417 | M121: 256.76 | N121: 0 | O121: 0 | P121: ENST00000443772 | Q121: 417 | R121: 269.992 | S121: 0 | T121: 0
A122: ENST00000412115 | B122: 581 | C122: 387.324 | D122: 0 | E122: 0 | F122: ENST00000412115 | G122: 581 | H122: 407.779 | I122: 0 | J122: 0 | K122: ENST00000412115 | L122: 581 | M122: 400.349 | N122: 0 | O122: 0 | P122: ENST00000412115 | Q122: 581 | R122: 425.357 | S122: 0 | T122: 0
A123: ENST00000447500 | B123: 872 | C123: 673.056 | D123: 77.6926 | E123: 1.53919 | F123: ENST00000447500 | G123: 872 | H123: 694.888 | I123: 61.2904 | J123: 0.919288 | K123: ENST00000447500 | L123: 872 | M123: 687.11 | N123: 76.9005 | O123: 1.15507 | P123: ENST00000447500 | Q123: 872 | R123: 714.692 | S123: 110.662 | T123: 1.60029
A124: ENST00000590817 | B124: 238 | C124: 118.62 | D124: 45.9907 | E124: 5.16983 | F124: ENST00000590817 | G124: 238 | H124: 128.006 | I124: 74.4774 | J124: 6.06412 | K124: ENST00000590817 | L124: 238 | M124: 124.201 | N124: 30.9359 | O124: 2.57065 | P124: ENST00000590817 | Q124: 238 | R124: 120.527 | S124: 101.028 | T124: 8.66317
A125: ENST00000326734 | B125: 1947 | C125: 1747.39 | D125: 2 | E125: 0.0152618 | F125: ENST00000326734 | G125: 1947 | H125: 1769.53 | I125: 0 | J125: 0 | K125: ENST00000326734 | L125: 1947 | M125: 1761.97 | N125: 0 | O125: 0 | P125: ENST00000326734 | Q125: 1947 | R125: 1789.45 | S125: 0 | T125: 0
A126: ENST00000624927 | B126: 677 | C126: 480.196 | D126: 0 | E126: 0 | F126: ENST00000624927 | G126: 677 | H126: 501.247 | I126: 0 | J126: 0 | K126: ENST00000624927 | L126: 677 | M126: 493.996 | N126: 0 | O126: 0 | P126: ENST00000624927 | Q126: 677 | R126: 520.319 | S126: 0 | T126: 0
A127: ENST00000623808 | B127: 493 | C127: 306.678 | D127: 0 | E127: 0 | F127: ENST00000623808 | G127: 493 | H127: 324.201 | I127: 0 | J127: 0 | K127: ENST00000623808 | L127: 493 | M127: 319.72 | N127: 0 | O127: 0 | P127: ENST00000623808 | Q127: 493 | R127: 340.572 | S127: 0 | T127: 0
A128: ENST00000445118 | B128: 6606 | C128: 6406.39 | D128: 165.369 | E128: 0.344196 | F128: ENST00000445118 | G128: 6606 | H128: 6428.53 | I128: 335.387 | J128: 0.543763 | K128: ENST00000445118 | L128: 6606 | M128: 6420.97 | N128: 151.707 | O128: 0.243843 | P128: ENST00000445118 | Q128: 6606 | R128: 6448.45 | S128: 361.045 | T128: 0.578658
A129: ENST00000448975 | B129: 633 | C129: 437.429 | D129: 0 | E129: 0 | F129: ENST00000448975 | G129: 633 | H129: 458.009 | I129: 4.14745 | J129: 0.0943804 | K129: ENST00000448975 | L129: 633 | M129: 451.033 | N129: 0 | O129: 0 | P129: ENST00000448975 | Q129: 633 | R129: 476.816 | S129: 0 | T129: 0
A130: ENST00000610067 | B130: 550 | C130: 358.662 | D130: 1.17693 | E130: 0.0437551 | F130: ENST00000610067 | G130: 550 | H130: 377.921 | I130: 0 | J130: 0 | K130: ENST00000610067 | L130: 550 | M130: 370.953 | N130: 3.73725 | O130: 0.103978 | P130: ENST00000610067 | Q130: 550 | R130: 395.096 | S130: 7.96803 | T130: 0.208433
A131: ENST00000608189 | B131: 824 | C131: 625.573 | D131: 0 | E131: 0 | F131: ENST00000608189 | G131: 824 | H131: 647.024 | I131: 0 | J131: 0 | K131: ENST00000608189 | L131: 824 | M131: 639.246 | N131: 0 | O131: 0 | P131: ENST00000608189 | Q131: 824 | R131: 666.899 | S131: 8.01162 | T131: 0.124159
A132: ENST00000441765 | B132: 750 | C132: 551.921 | D132: 0 | E132: 0 | F132: ENST00000441765 | G132: 750 | H132: 573.21 | I132: 0 | J132: 0 | K132: ENST00000441765 | L132: 750 | M132: 565.841 | N132: 0 | O132: 0 | P132: ENST00000441765 | Q132: 750 | R132: 593.151 | S132: 3.1081 | T132: 0.0541559
A133: ENST00000609139 | B133: 455 | C133: 273.23 | D133: 0 | E133: 0 | F133: ENST00000609139 | G133: 455 | H133: 290.33 | I133: 0 | J133: 0 | K133: ENST00000609139 | L133: 455 | M133: 286.758 | N133: 0 | O133: 0 | P133: ENST00000609139 | Q133: 455 | R133: 304.714 | S133: 2.06733 | T133: 0.0701187
A134: ENST00000449005 | B134: 874 | C134: 675.056 | D134: 82.2352 | E134: 1.62436 | F134: ENST00000449005 | G134: 874 | H134: 696.888 | I134: 176.776 | J134: 2.64383 | K134: ENST00000449005 | L134: 874 | M134: 689.11 | N134: 65.0977 | O134: 0.974954 | P134: ENST00000449005 | Q134: 874 | R134: 716.692 | S134: 129.05 | T134: 1.86099
A135: ENST00000416570 | B135: 612 | C135: 416.99 | D135: 0 | E135: 0 | F135: ENST00000416570 | G135: 612 | H135: 437.642 | I135: 0 | J135: 0 | K135: ENST00000416570 | L135: 612 | M135: 430.431 | N135: 0 | O135: 0 | P135: ENST00000416570 | Q135: 612 | R135: 456.004 | S135: 0 | T135: 0
A136: ENST00000623070 | B136: 494 | C136: 307.551 | D136: 105313 | E136: 0.226266 | F136: ENST00000623070 | G136: 494 | H136: 325.168 | I136: 1.88904 | J136: 0.0605492 | K136: ENST00000623070 | L136: 494 | M136: 320.523 | N136: 980587 | O136: 0.336753 | P136: ENST00000623070 | Q136: 494 | R136: 341.503 | S136: 2046394 | T136: 0.355603
A137: ENST00000609009 | B137: 767 | C137: 568.865 | D137: 0 | E137: 0 | F137: ENST00000609009 | G137: 767 | H137: 590.21 | I137: 4.80094 | J137: 0.0847802 | K137: ENST00000609009 | L137: 767 | M137: 582.668 | N137: 0 | O137: 0 | P137: ENST00000609009 | Q137: 767 | R137: 610.091 | S137: 0 | T137: 0
A138: ENST00000622921 | B138: 724 | C138: 526.245 | D138: 0 | E138: 0 | F138: ENST00000622921 | G138: 724 | H138: 547.66 | I138: 0 | J138: 0 | K138: ENST00000622921 | L138: 724 | M138: 540.114 | N138: 0 | O138: 0 | P138: ENST00000622921 | Q138: 724 | R138: 567.21 | S138: 0 | T138: 0
A139: ENST00000415295 | B139: 894 | C139: 694.92 | D139: 0 | E139: 0 | F139: ENST00000415295 | G139: 894 | H139: 716.749 | I139: 0 | J139: 0 | K139: ENST00000415295 | L139: 894 | M139: 708.97 | N139: 0 | O139: 0 | P139: ENST00000415295 | Q139: 894 | R139: 736.692 | S139: 0 | T139: 0
A140: ENST00000425657 | B140: 845 | C140: 646.384 | D140: 0 | E140: 0 | F140: ENST00000425657 | G140: 845 | H140: 668.024 | I140: 0 | J140: 0 | K140: ENST00000425657 | L140: 845 | M140: 660.246 | N140: 0 | O140: 0 | P140: ENST00000425657 | Q140: 845 | R140: 687.832 | S140: 0 | T140: 0
A141: ENST00000473798 | B141: 1317 | C141: 1117.39 | D141: 0 | E141: 0 | F141: ENST00000473798 | G141: 1317 | H141: 1139.53 | I141: 0 | J141: 0 | K141: ENST00000473798 | L141: 1317 | M141: 1131.97 | N141: 0 | O141: 0 | P141: ENST00000473798 | Q141: 1317 | R141: 1159.45 | S141: 0 | T141: 0
A142: ENST00000446136 | B142: 1807 | C142: 1607.39 | D142: 0 | E142: 0 | F142: ENST00000446136 | G142: 1807 | H142: 1629.53 | I142: 0 | J142: 0 | K142: ENST00000446136 | L142: 1807 | M142: 1621.97 | N142: 0 | O142: 0 | P142: ENST00000446136 | Q142: 1807 | R142: 1649.45 | S142: 0 | T142: 0
A143: ENST00000432963 | B143: 504 | C143: 316.46 | D143: 0 | E143: 0 | F143: ENST00000432963 | G143: 504 | H143: 334.495 | I143: 0 | J143: 0 | K143: ENST00000432963 | L143: 504 | M143: 329.189 | N143: 0 | O143: 0 | P143: ENST00000432963 | Q143: 504 | R143: 351.118 | S143: 0 | T143: 0
A144: ENST00000427857 | B144: 446 | C144: 265.674 | D144: 0 | E144: 0 | F144: ENST00000427857 | G144: 446 | H144: 282.218 | I144: 0 | J144: 0 | K144: ENST00000427857 | L144: 446 | M144: 279.449 | N144: 0 | O144: 0 | P144: ENST00000427857 | Q144: 446 | R144: 296.298 | S144: 0 | T144: 0
A145: ENST00000415481 | B145: 1058 | C145: 858.389 | D145: 0 | E145: 0 | F145: ENST00000415481 | G145: 1058 | H145: 880.527 | I145: 0 | J145: 0 | K145: ENST00000415481 | L145: 1058 | M145: 872.97 | N145: 0 | O145: 0 | P145: ENST00000415481 | Q145: 1058 | R145: 900.452 | S145: 0 | T145: 0
A146: ENST00000635557 | B146: 837 | C146: 638.384 | D146: 0 | E146: 0 | F146: ENST00000635557 | G146: 837 | H146: 660.024 | I146: 0 | J146: 0 | K146: ENST00000635557 | L146: 837 | M146: 652.246 | N146: 0 | O146: 0 | P146: ENST00000635557 | Q146: 837 | R146: 679.832 | S146: 0 | T146: 0
A147: ENST00000607769 | B147: 351 | C147: 191.095 | D147: 0 | E147: 0 | F147: ENST00000607769 | G147: 351 | H147: 202.831 | I147: 0 | J147: 0 | K147: ENST00000607769 | L147: 351 | M147: 204.533 | N147: 0 | O147: 0 | P147: ENST00000607769 | Q147: 351 | R147: 211.411 | S147: 0 | T147: 0
A148: ENST00000448179 | B148: 3043 | C148: 2843.39 | D148: 0 | E148: 0 | F148: ENST00000448179 | G148: 3043 | H148: 2865.53 | I148: 0 | J148: 0 | K148: ENST00000448179 | L148: 3043 | M148: 2857.97 | N148: 0 | O148: 0 | P148: ENST00000448179 | Q148: 3043 | R148: 2885.45 | S148: 0 | T148: 0
A149: ENST00000398216 | B149: 443 | C149: 263.176 | D149: 0 | E149: 0 | F149: ENST00000398216 | G149: 443 | H149: 279.597 | I149: 0 | J149: 0 | K149: ENST00000398216 | L149: 443 | M149: 276.977 | N149: 0 | O149: 0 | P149: ENST00000398216 | Q149: 443 | R149: 293.569 | S149: 0 | T149: 0
A150: ENST00000609207 | B150: 4152 | C150: 3952.39 | D150: 0 | E150: 0 | F150: ENST00000609207 | G150: 4152 | H150: 3974.53 | I150: 0 | J150: 0 | K150: ENST00000609207 | L150: 4152 | M150: 3966.97 | N150: 0 | O150: 0 | P150: ENST00000609207 | Q150: 4152 | R150: 3994.45 | S150: 0 | T150: 0
A151: ENST00000417705 | B151: 1389 | C151: 1189.39 | D151: 0 | E151: 0 | F151: ENST00000417705 | G151: 1389 | H151: 1211.53 | I151: 0 | J151: 0 | K151: ENST00000417705 | L151: 1389 | M151: 1203.97 | N151: 0 | O151: 0 | P151: ENST00000417705 | Q151: 1389 | R151: 1231.45 | S151: 0 | T151: 0
A152: ENST00000432961 | B152: 630 | C152: 434.517 | D152: 0 | E152: 0 | F152: ENST00000432961 | G152: 630 | H152: 455.1 | I152: 0 | J152: 0 | K152: ENST00000432961 | L152: 630 | M152: 448.169 | N152: 0 | O152: 0 | P152: ENST00000432961 | Q152: 630 | R152: 473.864 | S152: 0 | T152: 0
A153: ENST00000420190 | B153: 626 | C153: 430.647 | D153: 0 | E153: 0 | F153: ENST00000420190 | G153: 626 | H153: 451.373 | I153: 0 | J153: 0 | K153: ENST00000420190 | L153: 626 | M153: 444.169 | N153: 0 | O153: 0 | P153: ENST00000420190 | Q153: 626 | R153: 469.911 | S153: 0 | T153: 0
A154: ENST00000437963 | B154: 387 | C154: 218.63 | D154: 0 | E154: 0 | F154: ENST00000437963 | G154: 387 | H154: 231.654 | I154: 0 | J154: 0 | K154: ENST00000437963 | L154: 387 | M154: 233.293 | N154: 0 | O154: 0 | P154: ENST00000437963 | Q154: 387 | R154: 242.938 | S154: 0 | T154: 0
A155: ENST00000342066 | B155: 2551 | C155: 2351.39 | D155: 0 | E155: 0 | F155: ENST00000342066 | G155: 2551 | H155: 2373.53 | I155: 0 | J155: 0 | K155: ENST00000342066 | L155: 2551 | M155: 2365.97 | N155: 0 | O155: 0 | P155: ENST00000342066 | Q155: 2551 | R155: 2393.45 | S155: 0 | T155: 0
A156: ENST00000618181 | B156: 2179 | C156: 1979.39 | D156: 0 | E156: 0 | F156: ENST00000618181 | G156: 2179 | H156: 2001.53 | I156: 0 | J156: 0 | K156: ENST00000618181 | L156: 2179 | M156: 1993.97 | N156: 0 | O156: 0 | P156: ENST00000618181 | Q156: 2179 | R156: 2021.45 | S156: 0 | T156: 0
A157: ENST00000622503 | B157: 2557 | C157: 2357.39 | D157: 0 | E157: 0 | F157: ENST00000622503 | G157: 2557 | H157: 2379.53 | I157: 0 | J157: 0 | K157: ENST00000622503 | L157: 2557 | M157: 2371.97 | N157: 0 | O157: 0 | P157: ENST00000622503 | Q157: 2557 | R157: 2399.45 | S157: 0 | T157: 0
A158: ENST00000618323 | B158: 2159 | C158: 1959.39 | D158: 0 | E158: 0 | F158: ENST00000618323 | G158: 2159 | H158: 1981.53 | I158: 0 | J158: 0 | K158: ENST00000618323 | L158: 2159 | M158: 1973.97 | N158: 0 | O158: 0 | P158: ENST00000618323 | Q158: 2159 | R158: 2001.45 | S158: 0 | T158: 0
A159: ENST00000616016 | B159: 2391 | C159: 2191.39 | D159: 0 | E159: 0 | F159: ENST00000616016 | G159: 2391 | H159: 2213.53 | I159: 0 | J159: 0 | K159: ENST00000616016 | L159: 2391 | M159: 2205.97 | N159: 0 | O159: 0 | P159: ENST00000616016 | Q159: 2391 | R159: 2233.45 | S159: 0 | T159: 0
A160: ENST00000618779 | B160: 2368 | C160: 2168.39 | D160: 0 | E160: 0 | F160: ENST00000618779 | G160: 2368 | H160: 2190.53 | I160: 0 | J160: 0 | K160: ENST00000618779 | L160: 2368 | M160: 2182.97 | N160: 0 | O160: 0 | P160: ENST00000618779 | Q160: 2368 | R160: 2210.45 | S160: 0 | T160: 0
A161: ENST00000616125 | B161: 2230 | C161: 2030.39 | D161: 0 | E161: 0 | F161: ENST00000616125 | G161: 2230 | H161: 2052.53 | I161: 0 | J161: 0 | K161: ENST00000616125 | L161: 2230 | M161: 2044.97 | N161: 0 | O161: 0 | P161: ENST00000616125 | Q161: 2230 | R161: 2072.45 | S161: 0 | T161: 0
A162: ENST00000620200 | B162: 1874 | C162: 1674.39 | D162: 0 | E162: 0 | F162: ENST00000620200 | G162: 1874 | H162: 1696.53 | I162: 0 | J162: 0 | K162: ENST00000620200 | L162: 1874 | M162: 1688.97 | N162: 0 | O162: 0 | P162: ENST00000620200 | Q162: 1874 | R162: 1716.45 | S162: 0 | T162: 0
A163: ENST00000617307 | B163: 2314 | C163: 2114.39 | D163: 0 | E163: 0 | F163: ENST00000617307 | G163: 2314 | H163: 2136.53 | I163: 0 | J163: 0 | K163: ENST00000617307 | L163: 2314 | M163: 2128.97 | N163: 0 | O163: 0 | P163: ENST00000617307 | Q163: 2314 | R163: 2156.45 | S163: 0 | T163: 0
A164: ENST00000341065 | B164: 2191 | C164: 1991.39 | D164: 0 | E164: 0 | F164: ENST00000341065 | G164: 2191 | H164: 2013.53 | I164: 0 | J164: 0 | K164: ENST00000341065 | L164: 2191 | M164: 2005.97 | N164: 0 | O164: 0 | P164: ENST00000341065 | Q164: 2191 | R164: 2033.45 | S164: 0 | T164: 0
A165: ENST00000455979 | B165: 1731 | C165: 1531.39 | D165: 0 | E165: 0 | F165: ENST00000455979 | G165: 1731 | H165: 1553.53 | I165: 0 | J165: 0 | K165: ENST00000455979 | L165: 1731 | M165: 1545.97 | N165: 0 | O165: 0 | P165: ENST00000455979 | Q165: 1731 | R165: 1573.45 | S165: 0 | T165: 0
A166: ENST00000478729 | B166: 318 | C166: 167.248 | D166: 0 | E166: 0 | F166: ENST00000478729 | G166: 318 | H166: 178.737 | I166: 0 | J166: 0 | K166: ENST00000478729 | L166: 318 | M166: 179.515 | N166: 0 | O166: 0 | P166: ENST00000478729 | Q166: 318 | R166: 183.645 | S166: 0 | T166: 0
A167: ENST00000474461 | B167: 862 | C167: 663.123 | D167: 0 | E167: 0 | F167: ENST00000474461 | G167: 862 | H167: 684.957 | I167: 0 | J167: 0 | K167: ENST00000474461 | L167: 862 | M167: 677.178 | N167: 0 | O167: 0 | P167: ENST00000474461 | Q167: 862 | R167: 704.763 | S167: 0 | T167: 0
A168: ENST00000466827 | B168: 542 | C168: 351.239 | D168: 0 | E168: 0 | F168: ENST00000466827 | G168: 542 | H168: 370.147 | I168: 0 | J168: 0 | K168: ENST00000466827 | L168: 542 | M168: 363.735 | N168: 0 | O168: 0 | P168: ENST00000466827 | Q168: 542 | R168: 387.527 | S168: 0 | T168: 0
A169: ENST00000464948 | B169: 657 | C169: 460.577 | D169: 0 | E169: 0 | F169: ENST00000464948 | G169: 657 | H169: 481.394 | I169: 0 | J169: 0 | K169: ENST00000464948 | L169: 657 | M169: 474.336 | N169: 0 | O169: 0 | P169: ENST00000464948 | Q169: 657 | R169: 500.574 | S169: 0 | T169: 0
A170: ENST00000483767 | B170: 1611 | C170: 1411.39 | D170: 0 | E170: 0 | F170: ENST00000483767 | G170: 1611 | H170: 1433.53 | I170: 0 | J170: 0 | K170: ENST00000483767 | L170: 1611 | M170: 1425.97 | N170: 0 | O170: 0 | P170: ENST00000483767 | Q170: 1611 | R170: 1453.45 | S170: 0 | T170: 0
A171: ENST00000327044 | B171: 2790 | C171: 2590.39 | D171: 0 | E171: 0 | F171: ENST00000327044 | G171: 2790 | H171: 2612.53 | I171: 1.35746 | J171: 0.00541553 | K171: ENST00000327044 | L171: 2790 | M171: 2604.97 | N171: 0 | O171: 0 | P171: ENST00000327044 | Q171: 2790 | R171: 2632.45 | S171: 0.125281 | T171: 0.000491859
A172: ENST00000477976 | B172: 4201 | C172: 4001.39 | D172: 0 | E172: 0 | F172: ENST00000477976 | G172: 4201 | H172: 4023.53 | I172: 0 | J172: 0 | K172: ENST00000477976 | L172: 4201 | M172: 4015.97 | N172: 0 | O172: 0 | P172: ENST00000477976 | Q172: 4201 | R172: 4043.45 | S172: 2623904 | T172: 0.00487792
A173: ENST00000496938 | B173: 149 | C173: 69.104 | D173: 0 | E173: 0 | F173: ENST00000496938 | G173: 149 | H173: 73.8464 | I173: 0 | J173: 0 | K173: ENST00000496938 | L173: 149 | M173: 67.4047 | N173: 0 | O173: 0 | P173: ENST00000496938 | Q173: 149 | R173: 62.9084 | S173: 0 | T173: 0
A174: ENST00000487214 | B174: 865 | C174: 666.123 | D174: 0 | E174: 0 | F174: ENST00000487214 | G174: 865 | H174: 687.957 | I174: 0.64254 | J174: 0.00973449 | K174: ENST00000487214 | L174: 865 | M174: 680.178 | N174: 0 | O174: 0 | P174: ENST00000487214 | Q174: 865 | R174: 707.763 | S174: 0.966317 | T174: 0.0141107
A175: ENST00000469563 | B175: 878 | C175: 679.056 | D175: 0 | E175: 0 | F175: ENST00000469563 | G175: 878 | H175: 700.749 | I175: 0 | J175: 0 | K175: ENST00000469563 | L175: 878 | M175: 693.04 | N175: 0 | O175: 0 | P175: ENST00000469563 | Q175: 878 | R175: 720.692 | S175: 0 | T175: 0
A176: ENST00000338591 | B176: 2560 | C176: 2360.39 | D176: 0 | E176: 0 | F176: ENST00000338591 | G176: 2560 | H176: 2382.53 | I176: 0 | J176: 0 | K176: ENST00000338591 | L176: 2560 | M176: 2374.97 | N176: 0 | O176: 0 | P176: ENST00000338591 | Q176: 2560 | R176: 2402.45 | S176: 0 | T176: 0
A177: ENST00000622660 | B177: 1950 | C177: 1750.39 | D177: 0 | E177: 0 | F177: ENST00000622660 | G177: 1950 | H177: 1772.53 | I177: 0 | J177: 0 | K177: ENST00000622660 | L177: 1950 | M177: 1764.97 | N177: 0 | O177: 0 | P177: ENST00000622660 | Q177: 1950 | R177: 1792.45 | S177: 0 | T177: 0
A178: ENST00000463212 | B178: 955 | C178: 755.775 | D178: 0 | E178: 0 | F178: ENST00000463212 | G178: 955 | H178: 777.527 | I178: 0 | J178: 0 | K178: ENST00000463212 | L178: 955 | M178: 769.97 | N178: 0 | O178: 0 | P178: ENST00000463212 | Q178: 955 | R178: 797.616 | S178: 0 | T178: 0
A179: ENST00000466300 | B179: 913 | C179: 713.85 | D179: 0 | E179: 0 | F179: ENST00000466300 | G179: 913 | H179: 735.676 | I179: 0 | J179: 0 | K179: ENST00000466300 | L179: 913 | M179: 727.97 | N179: 0 | O179: 0 | P179: ENST00000466300 | Q179: 913 | R179: 755.692 | S179: 0 | T179: 0
A180: ENST00000481067 | B180: 515 | C180: 326.237 | D180: 0 | E180: 0 | F180: ENST00000481067 | G180: 515 | H180: 344.701 | I180: 0 | J180: 0 | K180: ENST00000481067 | L180: 515 | M180: 339.2 | N180: 0 | O180: 0 | P180: ENST00000481067 | Q180: 515 | R180: 361.437 | S180: 0 | T180: 0
A181: ENST00000617073 | B181: 57 | C181: 22.1585 | D181: 0 | E181: 0 | F181: ENST00000617073 | G181: 57 | H181: 22.7333 | I181: 0 | J181: 0 | K181: ENST00000617073 | L181: 57 | M181: 18.5628 | N181: 0 | O181: 0 | P181: ENST00000617073 | Q181: 57 | R181: 17.5582 | S181: 0 | T181: 0
A182: ENST00000379410 | B182: 2404 | C182: 2204.39 | D182: 0 | E182: 0 | F182: ENST00000379410 | G182: 2404 | H182: 2226.53 | I182: 0 | J182: 0 | K182: ENST00000379410 | L182: 2404 | M182: 2218.97 | N182: 0 | O182: 0 | P182: ENST00000379410 | Q182: 2404 | R182: 2246.45 | S182: 0 | T182: 0
A183: ENST00000379409 | B183: 2455 | C183: 2255.39 | D183: 0 | E183: 0 | F183: ENST00000379409 | G183: 2455 | H183: 2277.53 | I183: 0 | J183: 0 | K183: ENST00000379409 | L183: 2455 | M183: 2269.97 | N183: 0 | O183: 0 | P183: ENST00000379409 | Q183: 2455 | R183: 2297.45 | S183: 0 | T183: 0
A184: ENST00000379407 | B184: 2194 | C184: 1994.39 | D184: 0 | E184: 0 | F184: ENST00000379407 | G184: 2194 | H184: 2016.53 | I184: 0 | J184: 0 | K184: ENST00000379407 | L184: 2194 | M184: 2008.97 | N184: 0 | O184: 0 | P184: ENST00000379407 | Q184: 2194 | R184: 2036.45 | S184: 0 | T184: 0
A185: ENST00000480267 | B185: 464 | C185: 281.126 | D185: 0 | E185: 0 | F185: ENST00000480267 | G185: 464 | H185: 298.178 | I185: 0 | J185: 0 | K185: ENST00000480267 | L185: 464 | M185: 294.513 | N185: 0 | O185: 0 | P185: ENST00000480267 | Q185: 464 | R185: 313.087 | S185: 0 | T185: 0
A186: ENST00000491024 | B186: 698 | C186: 500.706 | D186: 0 | E186: 0 | F186: ENST00000491024 | G186: 698 | H186: 522.094 | I186: 0 | J186: 0 | K186: ENST00000491024 | L186: 698 | M186: 514.696 | N186: 0 | O186: 0 | P186: ENST00000491024 | Q186: 698 | R186: 541.265 | S186: 0 | T186: 0
A187: ENST00000341290 | B187: 3035 | C187: 2835.39 | D187: 0 | E187: 0 | F187: ENST00000341290 | G187: 3035 | H187: 2857.53 | I187: 0 | J187: 0 | K187: ENST00000341290 | L187: 3035 | M187: 2849.97 | N187: 0 | O187: 0 | P187: ENST00000341290 | Q187: 3035 | R187: 2877.45 | S187: 0 | T187: 0
A188: ENST00000479361 | B188: 1208 | C188: 1008.39 | D188: 0 | E188: 0 | F188: ENST00000479361 | G188: 1208 | H188: 1030.53 | I188: 0 | J188: 0 | K188: ENST00000479361 | L188: 1208 | M188: 1022.97 | N188: 0 | O188: 0 | P188: ENST00000479361 | Q188: 1208 | R188: 1050.45 | S188: 0 | T188: 0
A189: ENST00000433179 | B189: 3340 | C189: 3140.39 | D189: 0 | E189: 0 | F189: ENST00000433179 | G189: 3340 | H189: 3162.53 | I189: 0 | J189: 0 | K189: ENST00000433179 | L189: 3340 | M189: 3154.97 | N189: 0 | O189: 0 | P189: ENST00000433179 | Q189: 3340 | R189: 3182.45 | S189: 0 | T189: 0
A190: ENST00000606034 | B190: 2086 | C190: 1886.39 | D190: 0 | E190: 0 | F190: ENST00000606034 | G190: 2086 | H190: 1908.53 | I190: 0 | J190: 0 | K190: ENST00000606034 | L190: 2086 | M190: 1900.97 | N190: 0 | O190: 0 | P190: ENST00000606034 | Q190: 2086 | R190: 1928.45 | S190: 0 | T190: 0
A191: ENST00000428771 | B191: 1040 | C191: 840.389 | D191: 0 | E191: 0 | F191: ENST00000428771 | G191: 1040 | H191: 862.527 | I191: 0 | J191: 0 | K191: ENST00000428771 | L191: 1040 | M191: 854.97 | N191: 0 | O191: 0 | P191: ENST00000428771 | Q191: 1040 | R191: 882.452 | S191: 0 | T191: 0
A192: ENST00000304952 | B192: 899 | C192: 699.85 | D192: 0 | E192: 0 | F192: ENST00000304952 | G192: 899 | H192: 721.749 | I192: 0 | J192: 0 | K192: ENST00000304952 | L192: 899 | M192: 713.97 | N192: 0 | O192: 0 | P192: ENST00000304952 | Q192: 899 | R192: 741.692 | S192: 0 | T192: 0
A193: ENST00000481869 | B193: 1038 | C193: 838.389 | D193: 0 | E193: 0 | F193: ENST00000481869 | G193: 1038 | H193: 860.527 | I193: 0 | J193: 0 | K193: ENST00000481869 | L193: 1038 | M193: 852.97 | N193: 0 | O193: 0 | P193: ENST00000481869 | Q193: 1038 | R193: 880.452 | S193: 0 | T193: 0
A194: ENST00000484667 | B194: 667 | C194: 470.483 | D194: 0 | E194: 0 | F194: ENST00000484667 | G194: 667 | H194: 491.247 | I194: 0 | J194: 0 | K194: ENST00000484667 | L194: 667 | M194: 484.144 | N194: 0 | O194: 0 | P194: ENST00000484667 | Q194: 667 | R194: 510.371 | S194: 0 | T194: 0
A195: ENST00000624697 | B195: 788 | C195: 589.634 | D195: 0 | E195: 0 | F195: ENST00000624697 | G195: 788 | H195: 611.15 | I195: 0 | J195: 0 | K195: ENST00000624697 | L195: 788 | M195: 603.372 | N195: 0 | O195: 0 | P195: ENST00000624697 | Q195: 788 | R195: 631.03 | S195: 0 | T195: 0
A196: ENST00000624652 | B196: 657 | C196: 460.577 | D196: 0 | E196: 0 | F196: ENST00000624652 | G196: 657 | H196: 481.394 | I196: 0 | J196: 0 | K196: ENST00000624652 | L196: 657 | M196: 474.336 | N196: 0 | O196: 0 | P196: ENST00000624652 | Q196: 657 | R196: 500.574 | S196: 0 | T196: 0
A197: ENST00000379389 | B197: 711 | C197: 513.349 | D197: 19 | E197: 0.493521 | F197: ENST00000379389 | G197: 711 | H197: 535.041 | I197: 1 | J197: 0.0194799 | K197: ENST00000379389 | L197: 711 | M197: 527.381 | N197: 32 | O197: 0.626227 | P197: ENST00000379389 | Q197: 711 | R197: 554.265 | S197: 11 | T197: 0.205112
A198: ENST00000423619 | B198: 154 | C198: 71.7089 | D198: 0 | E198: 0 | F198: ENST00000423619 | G198: 154 | H198: 76.9443 | I198: 0 | J198: 0 | K198: ENST00000423619 | L198: 154 | M198: 70.8149 | N198: 0 | O198: 0 | P198: ENST00000423619 | Q198: 154 | R198: 66.2035 | S198: 0 | T198: 0
A199: ENST00000458555 | B199: 471 | C199: 287.117 | D199: 0 | E199: 0 | F199: ENST00000458555 | G199: 471 | H199: 304.217 | I199: 0 | J199: 0 | K199: ENST00000458555 | L199: 471 | M199: 300.708 | N199: 0 | O199: 0 | P199: ENST00000458555 | Q199: 471 | R199: 319.735 | S199: 0 | T199: 0
A200: ENST00000379370 | B200: 7323 | C200: 7123.39 | D200: 0 | E200: 0 | F200: ENST00000379370 | G200: 7323 | H200: 7145.53 | I200: 0 | J200: 0 | K200: ENST00000379370 | L200: 7323 | M200: 7137.97 | N200: 0 | O200: 0 | P200: ENST00000379370 | Q200: 7323 | R200: 7165.45 | S200: 0 | T200: 0
... 4300 more rows

Sheet Supplementary Table 5
A1: Supplementary Table 5. Estimates for transcript abundances in EVs (n = 4), reported as transcripts per million (TPM), were produced by Kallisto algorithm.
A2: EV1 | F2: EV2 | K2: EV3 | P2: EV4
A3: target_id | B3: length | C3: eff_length | D3: est_counts | E3: tpm | F3: target_id | G3: length | H3: eff_length | I3: est_counts | J3: tpm | K3: target_id | L3: length | M3: eff_length | N3: est_counts | O3: tpm | P3: target_id | Q3: length | R3: eff_length | S3: est_counts | T3: tpm
A4: ENST00000456328 | B4: 1657 | C4: 1476.87 | D4: 0 | E4: 0 | F4: ENST00000456328 | G4: 1657 | H4: 1448.7 | I4: 0 | J4: 0 | K4: ENST00000456328 | L4: 1657 | M4: 1457 | N4: 0 | O4: 0 | P4: ENST00000456328 | Q4: 1657 | R4: 1486.6 | S4: 0 | T4: 0
A5: ENST00000450305 | B5: 632 | C5: 453.229 | D5: 0 | E5: 0 | F5: ENST00000450305 | G5: 632 | H5: 425.407 | I5: 0 | J5: 0 | K5: ENST00000450305 | L5: 632 | M5: 432.663 | N5: 0 | O5: 0 | P5: ENST00000450305 | Q5: 632 | R5: 462.78 | S5: 0 | T5: 0
A6: ENST00000488147 | B6: 1351 | C6: 1170.87 | D6: 0 | E6: 0 | F6: ENST00000488147 | G6: 1351 | H6: 1142.7 | I6: 0 | J6: 0 | K6: ENST00000488147 | L6: 1351 | M6: 1151 | N6: 0 | O6: 0 | P6: ENST00000488147 | Q6: 1351 | R6: 1180.6 | S6: 0 | T6: 0
A7: ENST00000619216 | B7: 68 | C7: 19.1008 | D7: 0 | E7: 0 | F7: ENST00000619216 | G7: 68 | H7: 18.8097 | I7: 0 | J7: 0 | K7: ENST00000619216 | L7: 68 | M7: 18.9424 | N7: 0 | O7: 0 | P7: ENST00000619216 | Q7: 68 | R7: 18.2677 | S7: 0 | T7: 0
A8: ENST00000473358 | B8: 712 | C8: 532.299 | D8: 0 | E8: 0 | F8: ENST00000473358 | G8: 712 | H8: 504.484 | I8: 0 | J8: 0 | K8: ENST00000473358 | L8: 712 | M8: 512.293 | N8: 0 | O8: 0 | P8: ENST00000473358 | Q8: 712 | R8: 542.627 | S8: 0 | T8: 0
A9: ENST00000469289 | B9: 535 | C9: 358.877 | D9: 0 | E9: 0 | F9: ENST00000469289 | G9: 535 | H9: 331.023 | I9: 0 | J9: 0 | K9: ENST00000469289 | L9: 535 | M9: 338.307 | N9: 0 | O9: 0 | P9: ENST00000469289 | Q9: 535 | R9: 366.625 | S9: 0 | T9: 0
A10: ENST00000607096 | B10: 138 | C10: 59.5617 | D10: 0 | E10: 0 | F10: ENST00000607096 | G10: 138 | H10: 59.997 | I10: 0 | J10: 0 | K10: ENST00000607096 | L10: 138 | M10: 58.9212 | N10: 0 | O10: 0 | P10: ENST00000607096 | Q10: 138 | R10: 58.9374 | S10: 0 | T10: 0
A11: ENST00000417324 | B11: 1187 | C11: 1006.87 | D11: 0 | E11: 0 | F11: ENST00000417324 | G11: 1187 | H11: 978.701 | I11: 0 | J11: 0 | K11: ENST00000417324 | L11: 1187 | M11: 986.997 | N11: 0 | O11: 0 | P11: ENST00000417324 | Q11: 1187 | R11: 1016.6 | S11: 0 | T11: 0
A12: ENST00000461467 | B12: 590 | C12: 412.186 | D12: 0 | E12: 0 | F12: ENST00000461467 | G12: 590 | H12: 384.181 | I12: 0 | J12: 0 | K12: ENST00000461467 | L12: 590 | M12: 391.287 | N12: 0 | O12: 0 | P12: ENST00000461467 | Q12: 590 | R12: 421.044 | S12: 0 | T12: 0
A13: ENST00000606857 | B13: 840 | C13: 660.005 | D13: 0 | E13: 0 | F13: ENST00000606857 | G13: 840 | H13: 631.838 | I13: 0 | J13: 0 | K13: ENST00000606857 | L13: 840 | M13: 640.074 | N13: 0 | O13: 0 | P13: ENST00000606857 | Q13: 840 | R13: 669.965 | S13: 0 | T13: 0
A14: ENST00000492842 | B14: 940 | C14: 759.865 | D14: 0 | E14: 0 | F14: ENST00000492842 | G14: 940 | H14: 731.701 | I14: 0 | J14: 0 | K14: ENST00000492842 | L14: 940 | M14: 740.074 | N14: 0 | O14: 0 | P14: ENST00000492842 | Q14: 940 | R14: 769.682 | S14: 0 | T14: 0
A15: ENST00000335137 | B15: 918 | C15: 737.865 | D15: 0 | E15: 0 | F15: ENST00000335137 | G15: 918 | H15: 709.701 | I15: 0 | J15: 0 | K15: ENST00000335137 | L15: 918 | M15: 718.074 | N15: 0 | O15: 0 | P15: ENST00000335137 | Q15: 918 | R15: 747.682 | S15: 0 | T15: 0
A16: ENST00000466430 | B16: 2748 | C16: 2567.86 | D16: 0 | E16: 0 | F16: ENST00000466430 | G16: 2748 | H16: 2539.7 | I16: 0 | J16: 0 | K16: ENST00000466430 | L16: 2748 | M16: 2548 | N16: 0 | O16: 0 | P16: ENST00000466430 | Q16: 2748 | R16: 2577.6 | S16: 0 | T16: 0
A17: ENST00000477740 | B17: 491 | C17: 317.028 | D17: 0 | E17: 0 | F17: ENST00000477740 | G17: 491 | H17: 289.635 | I17: 0 | J17: 0 | K17: ENST00000477740 | L17: 491 | M17: 296.676 | N17: 0 | O17: 0 | P17: ENST00000477740 | Q17: 491 | R17: 323.798 | S17: 0 | T17: 0
A18: ENST00000471248 | B18: 629 | C18: 450.274 | D18: 4.23761e-06 | E18: 2.52538e-07 | F18: ENST00000471248 | G18: 629 | H18: 422.492 | I18: 0 | J18: 0 | K18: ENST00000471248 | L18: 629 | M18: 429.706 | N18: 0 | O18: 0 | P18: ENST00000471248 | Q18: 629 | R18: 459.78 | S18: 0 | T18: 0
A19: ENST00000610542 | B19: 723 | C19: 543.299 | D19: 0 | E19: 0 | F19: ENST00000610542 | G19: 723 | H19: 515.331 | I19: 0 | J19: 0 | K19: ENST00000610542 | L19: 723 | M19: 523.241 | N19: 0 | O19: 0 | P19: ENST00000610542 | Q19: 723 | R19: 553.462 | S19: 0 | T19: 0
A20: ENST00000453576 | B20: 336 | C20: 182.796 | D20: 0 | E20: 0 | F20: ENST00000453576 | G20: 336 | H20: 163.348 | I20: 0 | J20: 0 | K20: ENST00000453576 | L20: 336 | M20: 164.94 | N20: 0 | O20: 0 | P20: ENST00000453576 | Q20: 336 | R20: 183.607 | S20: 0 | T20: 0
A21: ENST00000495576 | B21: 1319 | C21: 1138.87 | D21: 0 | E21: 0 | F21: ENST00000495576 | G21: 1319 | H21: 1110.7 | I21: 0 | J21: 0 | K21: ENST00000495576 | L21: 1319 | M21: 1119 | N21: 0 | O21: 0 | P21: ENST00000495576 | Q21: 1319 | R21: 1148.6 | S21: 0 | T21: 0
A22: ENST00000442987 | B22: 3812 | C22: 3631.86 | D22: 0 | E22: 0 | F22: ENST00000442987 | G22: 3812 | H22: 3603.7 | I22: 0 | J22: 0 | K22: ENST00000442987 | L22: 3812 | M22: 3612 | N22: 0 | O22: 0 | P22: ENST00000442987 | Q22: 3812 | R22: 3641.6 | S22: 1.04382 | T22: 0.0083008
A23: ENST00000494149 | B23: 755 | C23: 575.13 | D23: 0 | E23: 0 | F23: ENST00000494149 | G23: 755 | H23: 547.12 | I23: 0 | J23: 0 | K23: ENST00000494149 | L23: 755 | M23: 555.186 | N23: 0 | O23: 0 | P23: ENST00000494149 | Q23: 755 | R23: 585.347 | S23: 0 | T23: 0
A24: ENST00000595919 | B24: 284 | C24: 145.235 | D24: 0 | E24: 0 | F24: ENST00000595919 | G24: 284 | H24: 132.321 | I24: 0 | J24: 0 | K24: ENST00000595919 | L24: 284 | M24: 131.719 | N24: 0 | O24: 0 | P24: ENST00000595919 | Q24: 284 | R24: 145.895 | S24: 0 | T24: 0
A25: ENST00000493797 | B25: 323 | C25: 172.935 | D25: 0 | E25: 0 | F25: ENST00000493797 | G25: 323 | H25: 154.575 | I25: 0 | J25: 0 | K25: ENST00000493797 | L25: 323 | M25: 156.311 | N25: 0 | O25: 0 | P25: ENST00000493797 | Q25: 323 | R25: 173.424 | S25: 0 | T25: 0
A26: ENST00000484859 | B26: 4860 | C26: 4679.86 | D26: 0 | E26: 0 | F26: ENST00000484859 | G26: 4860 | H26: 4651.7 | I26: 0 | J26: 0 | K26: ENST00000484859 | L26: 4860 | M26: 4660 | N26: 0 | O26: 0 | P26: ENST00000484859 | Q26: 4860 | R26: 4689.6 | S26: 0 | T26: 0
A27: ENST00000490997 | B27: 518 | C27: 342.37 | D27: 0 | E27: 0 | F27: ENST00000490997 | G27: 518 | H27: 314.773 | I27: 0 | J27: 0 | K27: ENST00000490997 | L27: 518 | M27: 321.974 | N27: 0 | O27: 0 | P27: ENST00000490997 | Q27: 518 | R27: 350.056 | S27: 0 | T27: 0
A28: ENST00000466557 | B28: 1301 | C28: 1120.87 | D28: 0 | E28: 0 | F28: ENST00000466557 | G28: 1301 | H28: 1092.7 | I28: 0 | J28: 0 | K28: ENST00000466557 | L28: 1301 | M28: 1101 | N28: 0 | O28: 0 | P28: ENST00000466557 | Q28: 1301 | R28: 1130.6 | S28: 0 | T28: 0
A29: ENST00000491962 | B29: 278 | C29: 141.195 | D29: 0 | E29: 0 | F29: ENST00000491962 | G29: 278 | H29: 129.067 | I29: 0 | J29: 0 | K29: ENST00000491962 | L29: 278 | M29: 128.393 | N29: 0.86363 | O29: 0.100683 | P29: ENST00000491962 | Q29: 278 | R29: 142.401 | S29: 0 | T29: 0
A30: ENST00000410691 | B30: 104 | C30: 38.9727 | D30: 0 | E30: 0 | F30: ENST00000410691 | G30: 104 | H30: 38.8682 | I30: 0 | J30: 0 | K30: ENST00000410691 | L30: 104 | M30: 37.046 | N30: 0 | O30: 0 | P30: ENST00000410691 | Q30: 104 | R30: 38.5365 | S30: 0 | T30: 0
A31: ENST00000496488 | B31: 457 | C31: 285.54 | D31: 0 | E31: 0 | F31: ENST00000496488 | G31: 457 | H31: 258.604 | I31: 0 | J31: 0 | K31: ENST00000496488 | L31: 457 | M31: 265.492 | N31: 0 | O31: 0 | P31: ENST00000496488 | Q31: 457 | R31: 290.935 | S31: 0 | T31: 0
A32: ENST00000624431 | B32: 718 | C32: 538.299 | D32: 0 | E32: 0 | F32: ENST00000624431 | G32: 718 | H32: 510.383 | I32: 0 | J32: 0 | K32: ENST00000624431 | L32: 718 | M32: 518.293 | N32: 0 | O32: 0 | P32: ENST00000624431 | Q32: 718 | R32: 548.627 | S32: 0 | T32: 0
A33: ENST00000623834 | B33: 1374 | C33: 1193.87 | D33: 0 | E33: 0 | F33: ENST00000623834 | G33: 1374 | H33: 1165.7 | I33: 0 | J33: 0 | K33: ENST00000623834 | L33: 1374 | M33: 1174 | N33: 0 | O33: 0 | P33: ENST00000623834 | Q33: 1374 | R33: 1203.6 | S33: 0 | T33: 0
A34: ENST00000623083 | B34: 1687 | C34: 1506.87 | D34: 0 | E34: 0 | F34: ENST00000623083 | G34: 1687 | H34: 1478.7 | I34: 6.51821 | J34: 0.0933185 | K34: ENST00000623083 | L34: 1687 | M34: 1487 | N34: 0 | O34: 0 | P34: ENST00000623083 | Q34: 1687 | R34: 1516.6 | S34: 0 | T34: 0
A35: ENST00000624735 | B35: 1604 | C35: 1423.87 | D35: 0 | E35: 0 | F35: ENST00000624735 | G35: 1604 | H35: 1395.7 | I35: 0 | J35: 0 | K35: ENST00000624735 | L35: 1604 | M35: 1404 | N35: 0 | O35: 0 | P35: ENST00000624735 | Q35: 1604 | R35: 1433.6 | S35: 0 | T35: 0
A36: ENST00000612080 | B36: 68 | C36: 19.1008 | D36: 0 | E36: 0 | F36: ENST00000612080 | G36: 68 | H36: 18.8097 | I36: 0 | J36: 0 | K36: ENST00000612080 | L36: 68 | M36: 18.9424 | N36: 0 | O36: 0 | P36: ENST00000612080 | Q36: 68 | R36: 18.2677 | S36: 0 | T36: 0
A37: ENST00000611868 | B37: 138 | C37: 59.5617 | D37: 0 | E37: 0 | F37: ENST00000611868 | G37: 138 | H37: 59.997 | I37: 0 | J37: 0 | K37: ENST00000611868 | L37: 138 | M37: 58.9212 | N37: 0 | O37: 0 | P37: ENST00000611868 | Q37: 138 | R37: 58.9374 | S37: 0 | T37: 0
A38: ENST00000442116 | B38: 1292 | C38: 1111.87 | D38: 0 | E38: 0 | F38: ENST00000442116 | G38: 1292 | H38: 1083.7 | I38: 0 | J38: 0 | K38: ENST00000442116 | L38: 1292 | M38: 1092 | N38: 0 | O38: 0 | P38: ENST00000442116 | Q38: 1292 | R38: 1121.6 | S38: 0 | T38: 0
A39: ENST00000448958 | B39: 1925 | C39: 1744.87 | D39: 0 | E39: 0 | F39: ENST00000448958 | G39: 1925 | H39: 1716.7 | I39: 0 | J39: 0 | K39: ENST00000448958 | L39: 1925 | M39: 1725 | N39: 0 | O39: 0 | P39: ENST00000448958 | Q39: 1925 | R39: 1754.6 | S39: 0 | T39: 0
A40: ENST00000634344 | B40: 1219 | C40: 1038.87 | D40: 0 | E40: 0 | F40: ENST00000634344 | G40: 1219 | H40: 1010.7 | I40: 0 | J40: 0 | K40: ENST00000634344 | L40: 1219 | M40: 1019 | N40: 0 | O40: 0 | P40: ENST00000634344 | Q40: 1219 | R40: 1048.6 | S40: 0 | T40: 0
A41: ENST00000424587 | B41: 2257 | C41: 2076.86 | D41: 0 | E41: 0 | F41: ENST00000424587 | G41: 2257 | H41: 2048.7 | I41: 0 | J41: 0 | K41: ENST00000424587 | L41: 2257 | M41: 2057 | N41: 0 | O41: 0 | P41: ENST00000424587 | Q41: 2257 | R41: 2086.6 | S41: 0 | T41: 0
A42: ENST00000335577 | B42: 510 | C42: 334.713 | D42: 0 | E42: 0 | F42: ENST00000335577 | G42: 510 | H42: 307.307 | I42: 0 | J42: 0 | K42: ENST00000335577 | L42: 510 | M42: 314.263 | N42: 0 | O42: 0 | P42: ENST00000335577 | Q42: 510 | R42: 342.264 | S42: 0 | T42: 0
A43: ENST00000450734 | B43: 457 | C43: 285.54 | D43: 0 | E43: 0 | F43: ENST00000450734 | G43: 457 | H43: 258.604 | I43: 0 | J43: 0 | K43: ENST00000450734 | L43: 457 | M43: 265.492 | N43: 0 | O43: 0 | P43: ENST00000450734 | Q43: 457 | R43: 290.935 | S43: 0 | T43: 0
A44: ENST00000458203 | B44: 385 | C44: 222.278 | D44: 0 | E44: 0 | F44: ENST00000458203 | G44: 385 | H44: 198.93 | I44: 0 | J44: 0 | K44: ENST00000458203 | L44: 385 | M44: 203.262 | N44: 0 | O44: 0 | P44: ENST00000458203 | Q44: 385 | R44: 224.5 | S44: 0 | T44: 0
A45: ENST00000441866 | B45: 676 | C45: 496.611 | D45: 0 | E45: 0 | F45: ENST00000441866 | G45: 676 | H45: 468.875 | I45: 0 | J45: 0 | K45: ENST00000441866 | L45: 676 | M45: 476.438 | N45: 0 | O45: 0 | P45: ENST00000441866 | Q45: 676 | R45: 506.732 | S45: 0 | T45: 0
A46: ENST00000450983 | B46: 607 | C46: 428.891 | D46: 0 | E46: 0 | F46: ENST00000450983 | G46: 607 | H46: 400.905 | I46: 0 | J46: 0 | K46: ENST00000450983 | L46: 607 | M46: 408.088 | N46: 0 | O46: 0 | P46: ENST00000450983 | Q46: 607 | R46: 437.96 | S46: 0 | T46: 0
A47: ENST00000412666 | B47: 426 | C47: 257.366 | D47: 0 | E47: 0 | F47: ENST00000412666 | G47: 426 | H47: 232.233 | I47: 0 | J47: 0 | K47: ENST00000412666 | L47: 426 | M47: 237.762 | N47: 0 | O47: 0 | P47: ENST00000412666 | Q47: 426 | R47: 261.83 | S47: 0 | T47: 0
A48: ENST00000635159 | B48: 994 | C48: 813.865 | D48: 0 | E48: 0 | F48: ENST00000635159 | G48: 994 | H48: 785.701 | I48: 0 | J48: 0 | K48: ENST00000635159 | L48: 994 | M48: 793.997 | N48: 0 | O48: 0 | P48: ENST00000635159 | Q48: 994 | R48: 823.605 | S48: 0 | T48: 0
A49: ENST00000431321 | B49: 406 | C49: 239.867 | D49: 0 | E49: 0 | F49: ENST00000431321 | G49: 406 | H49: 215.759 | I49: 0 | J49: 0 | K49: ENST00000431321 | L49: 406 | M49: 220.077 | N49: 0 | O49: 0 | P49: ENST00000431321 | Q49: 406 | R49: 243.344 | S49: 0 | T49: 0
A50: ENST00000453935 | B50: 498 | C50: 323.607 | D50: 0 | E50: 0 | F50: ENST00000453935 | G50: 498 | H50: 296.071 | I50: 0 | J50: 0 | K50: ENST00000453935 | L50: 498 | M50: 302.917 | N50: 0 | O50: 0 | P50: ENST00000453935 | Q50: 498 | R50: 330.502 | S50: 0 | T50: 0
A51: ENST00000440163 | B51: 462 | C51: 290.217 | D51: 0 | E51: 0 | F51: ENST00000440163 | G51: 462 | H51: 263.014 | I51: 0 | J51: 0 | K51: ENST00000440163 | L51: 462 | M51: 269.971 | N51: 0 | O51: 0 | P51: ENST00000440163 | Q51: 462 | R51: 295.698 | S51: 0 | T51: 0
A52: ENST00000455207 | B52: 413 | C52: 245.931 | D52: 0 | E52: 0 | F52: ENST00000455207 | G52: 413 | H52: 221.53 | I52: 0 | J52: 0 | K52: ENST00000455207 | L52: 413 | M52: 226.236 | N52: 0 | O52: 0 | P52: ENST00000455207 | Q52: 413 | R52: 249.841 | S52: 0 | T52: 0
A53: ENST00000455464 | B53: 735 | C53: 555.244 | D53: 0 | E53: 0 | F53: ENST00000455464 | G53: 735 | H53: 527.227 | I53: 0 | J53: 0 | K53: ENST00000455464 | L53: 735 | M53: 535.241 | N53: 0 | O53: 0 | P53: ENST00000455464 | Q53: 735 | R53: 565.462 | S53: 0 | T53: 0
A54: ENST00000613471 | B54: 723 | C54: 543.299 | D54: 0 | E54: 0 | F54: ENST00000613471 | G54: 723 | H54: 515.331 | I54: 0 | J54: 0 | K54: ENST00000613471 | L54: 723 | M54: 523.241 | N54: 0 | O54: 0 | P54: ENST00000613471 | Q54: 723 | R54: 553.462 | S54: 0 | T54: 0
A55: ENST00000601814 | B55: 635 | C55: 456.183 | D55: 0 | E55: 0 | F55: ENST00000601814 | G55: 635 | H55: 428.321 | I55: 0 | J55: 0 | K55: ENST00000601814 | L55: 635 | M55: 435.663 | N55: 0 | O55: 0 | P55: ENST00000601814 | Q55: 635 | R55: 465.78 | S55: 0 | T55: 0
A56: ENST00000431812 | B56: 336 | C56: 182.796 | D56: 0 | E56: 0 | F56: ENST00000431812 | G56: 336 | H56: 163.348 | I56: 0 | J56: 0 | K56: ENST00000431812 | L56: 336 | M56: 164.94 | N56: 0 | O56: 0 | P56: ENST00000431812 | Q56: 336 | R56: 183.607 | S56: 0 | T56: 0
A57: ENST00000419160 | B57: 607 | C57: 428.891 | D57: 0 | E57: 0 | F57: ENST00000419160 | G57: 607 | H57: 400.905 | I57: 0 | J57: 0 | K57: ENST00000419160 | L57: 607 | M57: 408.088 | N57: 0 | O57: 0 | P57: ENST00000419160 | Q57: 607 | R57: 437.96 | S57: 0 | T57: 0
A58: ENST00000440038 | B58: 746 | C58: 566.244 | D58: 0 | E58: 0 | F58: ENST00000440038 | G58: 746 | H58: 538.12 | I58: 0 | J58: 0 | K58: ENST00000440038 | L58: 746 | M58: 546.241 | N58: 0 | O58: 0 | P58: ENST00000440038 | Q58: 746 | R58: 576.347 | S58: 0 | T58: 0
A59: ENST00000423728 | B59: 573 | C59: 395.588 | D59: 0 | E59: 0 | F59: ENST00000423728 | G59: 573 | H59: 367.671 | I59: 0 | J59: 0 | K59: ENST00000423728 | L59: 573 | M59: 374.823 | N59: 0 | O59: 0 | P59: ENST00000423728 | Q59: 573 | R59: 404.168 | S59: 0 | T59: 0
A60: ENST00000599771 | B60: 457 | C60: 285.54 | D60: 0 | E60: 0 | F60: ENST00000599771 | G60: 457 | H60: 258.604 | I60: 0 | J60: 0 | K60: ENST00000599771 | L60: 457 | M60: 265.492 | N60: 0 | O60: 0 | P60: ENST00000599771 | Q60: 457 | R60: 290.935 | S60: 0 | T60: 0
A61: ENST00000601486 | B61: 696 | C61: 516.508 | D61: 0 | E61: 0 | F61: ENST00000601486 | G61: 696 | H61: 488.733 | I61: 0 | J61: 0 | K61: ENST00000601486 | L61: 696 | M61: 496.293 | N61: 0 | O61: 0 | P61: ENST00000601486 | Q61: 696 | R61: 526.627 | S61: 0 | T61: 0
A62: ENST00000616947 | B62: 603 | C62: 424.934 | D62: 0 | E62: 0 | F62: ENST00000616947 | G62: 603 | H62: 396.985 | I62: 0 | J62: 0 | K62: ENST00000616947 | L62: 603 | M62: 404.088 | N62: 0 | O62: 0 | P62: ENST00000616947 | Q62: 603 | R62: 433.96 | S62: 0 | T62: 0
A63: ENST00000616311 | B63: 372 | C63: 211.259 | D63: 0 | E63: 0 | F63: ENST00000616311 | G63: 372 | H63: 189.522 | I63: 0 | J63: 0 | K63: ENST00000616311 | L63: 372 | M63: 192.86 | N63: 0 | O63: 0 | P63: ENST00000616311 | Q63: 372 | R63: 213.085 | S63: 0 | T63: 0
A64: ENST00000432964 | B64: 575 | C64: 397.429 | D64: 0 | E64: 0 | F64: ENST00000432964 | G64: 575 | H64: 369.597 | I64: 0 | J64: 0 | K64: ENST00000432964 | L64: 575 | M64: 376.786 | N64: 0 | O64: 0 | P64: ENST00000432964 | Q64: 575 | R64: 406.168 | S64: 0 | T64: 0
A65: ENST00000608420 | B65: 438 | C65: 267.902 | D65: 0 | E65: 0 | F65: ENST00000608420 | G65: 438 | H65: 242.4 | I65: 0 | J65: 0 | K65: ENST00000608420 | L65: 438 | M65: 248.603 | N65: 0 | O65: 0 | P65: ENST00000608420 | Q65: 438 | R65: 272.906 | S65: 0 | T65: 0
A66: ENST00000437905 | B66: 363 | C66: 203.818 | D66: 0 | E66: 0 | F66: ENST00000437905 | G66: 363 | H66: 182.45 | I66: 0 | J66: 0 | K66: ENST00000437905 | L66: 363 | M66: 185.629 | N66: 0 | O66: 0 | P66: ENST00000437905 | Q66: 363 | R66: 205.636 | S66: 0 | T66: 0
A67: ENST00000426406 | B67: 939 | C67: 758.865 | D67: 0 | E67: 0 | F67: ENST00000426406 | G67: 939 | H67: 730.701 | I67: 0 | J67: 0 | K67: ENST00000426406 | L67: 939 | M67: 739.074 | N67: 0 | O67: 0 | P67: ENST00000426406 | Q67: 939 | R67: 768.682 | S67: 0 | T67: 0
A68: ENST00000445840 | B68: 183 | C68: 87.0912 | D68: 0 | E68: 0 | F68: ENST00000445840 | G68: 183 | H68: 85.4204 | I68: 0 | J68: 0 | K68: ENST00000445840 | L68: 183 | M68: 83.8919 | N68: 0 | O68: 0 | P68: ENST00000445840 | Q68: 183 | R68: 86.3376 | S68: 0 | T68: 0
A69: ENST00000432723 | B69: 2477 | C69: 2296.86 | D69: 0 | E69: 0 | F69: ENST00000432723 | G69: 2477 | H69: 2268.7 | I69: 0 | J69: 0 | K69: ENST00000432723 | L69: 2477 | M69: 2277 | N69: 0 | O69: 0 | P69: ENST00000432723 | Q69: 2477 | R69: 2306.6 | S69: 0 | T69: 0
A70: ENST00000514436 | B70: 1239 | C70: 1058.87 | D70: 0 | E70: 0 | F70: ENST00000514436 | G70: 1239 | H70: 1030.7 | I70: 0 | J70: 0 | K70: ENST00000514436 | L70: 1239 | M70: 1039 | N70: 0 | O70: 0 | P70: ENST00000514436 | Q70: 1239 | R70: 1068.6 | S70: 0 | T70: 0
A71: ENST00000614007 | B71: 104 | C71: 38.9727 | D71: 0 | E71: 0 | F71: ENST00000614007 | G71: 104 | H71: 38.8682 | I71: 0 | J71: 0 | K71: ENST00000614007 | L71: 104 | M71: 37.046 | N71: 0 | O71: 0 | P71: ENST00000614007 | Q71: 104 | R71: 38.5365 | S71: 0 | T71: 0
A72: ENST00000417636 | B72: 842 | C72: 662.005 | D72: 0 | E72: 0 | F72: ENST00000417636 | G72: 842 | H72: 633.838 | I72: 0 | J72: 0 | K72: ENST00000417636 | L72: 842 | M72: 642.074 | N72: 0 | O72: 0 | P72: ENST00000417636 | Q72: 842 | R72: 671.965 | S72: 0 | T72: 0
A73: ENST00000634833 | B73: 1004 | C73: 823.865 | D73: 0 | E73: 0 | F73: ENST00000634833 | G73: 1004 | H73: 795.701 | I73: 0 | J73: 0 | K73: ENST00000634833 | L73: 1004 | M73: 803.997 | N73: 0 | O73: 0 | P73: ENST00000634833 | Q73: 1004 | R73: 833.605 | S73: 0 | T73: 0
A74: ENST00000635509 | B74: 940 | C74: 759.865 | D74: 0 | E74: 0 | F74: ENST00000635509 | G74: 940 | H74: 731.701 | I74: 0 | J74: 0 | K74: ENST00000635509 | L74: 940 | M74: 740.074 | N74: 0 | O74: 0 | P74: ENST00000635509 | Q74: 940 | R74: 769.682 | S74: 0 | T74: 0
A75: ENST00000634337 | B75: 890 | C75: 709.938 | D75: 0 | E75: 0 | F75: ENST00000634337 | G75: 890 | H75: 681.771 | I75: 0 | J75: 0 | K75: ENST00000634337 | L75: 890 | M75: 690.074 | N75: 0 | O75: 0 | P75: ENST00000634337 | Q75: 890 | R75: 719.829 | S75: 0 | T75: 0
A76: ENST00000440196 | B76: 439 | C76: 268.847 | D76: 0 | E76: 0 | F76: ENST00000440196 | G76: 439 | H76: 243.35 | I76: 0 | J76: 0 | K76: ENST00000440196 | L76: 439 | M76: 249.5 | N76: 0 | O76: 0 | P76: ENST00000440196 | Q76: 439 | R76: 273.906 | S76: 0 | T76: 0
A77: ENST00000357876 | B77: 498 | C77: 323.607 | D77: 0 | E77: 0 | F77: ENST00000357876 | G77: 498 | H77: 296.071 | I77: 0 | J77: 0 | K77: ENST00000357876 | L77: 498 | M77: 302.917 | N77: 0 | O77: 0 | P77: ENST00000357876 | Q77: 498 | R77: 330.502 | S77: 0 | T77: 0
A78: ENST00000440200 | B78: 413 | C78: 245.931 | D78: 0 | E78: 0 | F78: ENST00000440200 | G78: 413 | H78: 221.53 | I78: 0 | J78: 0 | K78: ENST00000440200 | L78: 413 | M78: 226.236 | N78: 0 | O78: 0 | P78: ENST00000440200 | Q78: 413 | R78: 249.841 | S78: 0 | T78: 0
A79: ENST00000452176 | B79: 802 | C79: 622.07 | D79: 0 | E79: 0 | F79: ENST00000452176 | G79: 802 | H79: 593.898 | I79: 0 | J79: 0 | K79: ENST00000452176 | L79: 802 | M79: 602.074 | N79: 0 | O79: 0 | P79: ENST00000452176 | Q79: 802 | R79: 632.227 | S79: 0 | T79: 0
A80: ENST00000441245 | B80: 629 | C80: 450.274 | D80: 4.23761e-06 | E80: 2.52538e-07 | F80: ENST00000441245 | G80: 629 | H80: 422.492 | I80: 0 | J80: 0 | K80: ENST00000441245 | L80: 629 | M80: 429.706 | N80: 0 | O80: 0 | P80: ENST00000441245 | Q80: 629 | R80: 459.78 | S80: 0 | T80: 0
A81: ENST00000419394 | B81: 480 | C81: 306.822 | D81: 0 | E81: 0 | F81: ENST00000419394 | G81: 480 | H81: 279.708 | I81: 0 | J81: 0 | K81: ENST00000419394 | L81: 480 | M81: 286.475 | N81: 0 | O81: 0 | P81: ENST00000419394 | Q81: 480 | R81: 313.055 | S81: 0 | T81: 0
A82: ENST00000414688 | B82: 750 | C82: 570.13 | D82: 0 | E82: 0 | F82: ENST00000414688 | G82: 750 | H82: 542.12 | I82: 0 | J82: 0 | K82: ENST00000414688 | L82: 750 | M82: 550.186 | N82: 0 | O82: 0 | P82: ENST00000414688 | Q82: 750 | R82: 580.347 | S82: 0 | T82: 0
A83: ENST00000616585 | B83: 723 | C83: 543.299 | D83: 0 | E83: 0 | F83: ENST00000616585 | G83: 723 | H83: 515.331 | I83: 0 | J83: 0 | K83: ENST00000616585 | L83: 723 | M83: 523.241 | N83: 0 | O83: 0 | P83: ENST00000616585 | Q83: 723 | R83: 553.462 | S83: 0 | T83: 0
A84: ENST00000447954 | B84: 336 | C84: 182.796 | D84: 0 | E84: 0 | F84: ENST00000447954 | G84: 336 | H84: 163.348 | I84: 0 | J84: 0 | K84: ENST00000447954 | L84: 336 | M84: 164.94 | N84: 0 | O84: 0 | P84: ENST00000447954 | Q84: 336 | R84: 183.607 | S84: 0 | T84: 0
A85: ENST00000423796 | B85: 607 | C85: 428.891 | D85: 0 | E85: 0 | F85: ENST00000423796 | G85: 607 | H85: 400.905 | I85: 0 | J85: 0 | K85: ENST00000423796 | L85: 607 | M85: 408.088 | N85: 0 | O85: 0 | P85: ENST00000423796 | Q85: 607 | R85: 437.96 | S85: 0 | T85: 0
A86: ENST00000450696 | B86: 402 | C86: 236.489 | D86: 0 | E86: 0 | F86: ENST00000450696 | G86: 402 | H86: 212.604 | I86: 0 | J86: 0 | K86: ENST00000450696 | L86: 402 | M86: 216.834 | N86: 0 | O86: 0 | P86: ENST00000450696 | Q86: 402 | R86: 239.641 | S86: 0 | T86: 0
A87: ENST00000416931 | B87: 372 | C87: 211.259 | D87: 0 | E87: 0 | F87: ENST00000416931 | G87: 372 | H87: 189.522 | I87: 0 | J87: 0 | K87: ENST00000416931 | L87: 372 | M87: 192.86 | N87: 2.31187 | O87: 0.179427 | P87: ENST00000416931 | Q87: 372 | R87: 213.085 | S87: 7.25028 | T87: 0.985352
A88: ENST00000457540 | B88: 1044 | C88: 863.865 | D88: 3.22418 | E88: 0.100151 | F88: ENST00000457540 | G88: 1044 | H88: 835.701 | I88: 23.7965 | J88: 0.602812 | K88: ENST00000457540 | L88: 1044 | M88: 843.997 | N88: 20.81 | O88: 0.369063 | P88: ENST00000457540 | Q88: 1044 | R88: 873.605 | S88: 47.5154 | T88: 5751-01-01
A89: ENST00000617238 | B89: 63 | C89: 16.5787 | D89: 0 | E89: 0 | F89: ENST00000617238 | G89: 63 | H89: 16.6906 | I89: 0 | J89: 0 | K89: ENST00000617238 | L89: 63 | M89: 16.4263 | N89: 2 | O89: 1.82246 | P89: ENST00000617238 | Q89: 63 | R89: 16.0144 | S89: 0 | T89: 0
A90: ENST00000414273 | B90: 1543 | C90: 1362.87 | D90: 5.63777 | E90: 0.111004 | F90: ENST00000414273 | G90: 1543 | H90: 1334.7 | I90: 16.021 | J90: 0.254111 | K90: ENST00000414273 | L90: 1543 | M90: 1343 | N90: 15.8291 | O90: 0.176421 | P90: ENST00000414273 | Q90: 1543 | R90: 1372.6 | S90: 55.1606 | T90: 1.16378
A91: ENST00000621981 | B91: 89 | C91: 30.085 | D91: 0 | E91: 0 | F91: ENST00000621981 | G91: 89 | H91: 29.9023 | I91: 0 | J91: 0 | K91: ENST00000621981 | L91: 89 | M91: 28.6294 | N91: 0 | O91: 0 | P91: ENST00000621981 | Q91: 89 | R91: 29.7832 | S91: 0 | T91: 0
A92: ENST00000427426 | B92: 682 | C92: 502.611 | D92: 0 | E92: 0 | F92: ENST00000427426 | G92: 682 | H92: 474.733 | I92: 0 | J92: 0 | K92: ENST00000427426 | L92: 682 | M92: 482.39 | N92: 0 | O92: 0 | P92: ENST00000427426 | Q92: 682 | R92: 512.732 | S92: 0 | T92: 0
A93: ENST00000467115 | B93: 207 | C93: 101.061 | D93: 0 | E93: 0 | F93: ENST00000467115 | G93: 207 | H93: 97.4425 | I93: 0 | J93: 0 | K93: ENST00000467115 | L93: 207 | M93: 94.5999 | N93: 0 | O93: 0 | P93: ENST00000467115 | Q93: 207 | R93: 100.309 | S93: 0 | T93: 0
A94: ENST00000514057 | B94: 681 | C94: 501.611 | D94: 121.537 | E94: 6.50167 | F94: ENST00000514057 | G94: 681 | H94: 473.78 | I94: 262.769 | J94: 7413-11-01 | K94: ENST00000514057 | L94: 681 | M94: 481.39 | N94: 319.573 | O94: 9367-09-01 | P94: ENST00000514057 | Q94: 681 | R94: 511.732 | S94: 969.985 | T94: 54.8923
A95: ENST00000416718 | B95: 547 | C95: 370.511 | D95: 0 | E95: 0 | F95: ENST00000416718 | G95: 547 | H95: 342.309 | I95: 0 | J95: 0 | K95: ENST00000416718 | L95: 547 | M95: 349.581 | N95: 5.20272 | O95: 0.222767 | P95: ENST00000416718 | Q95: 547 | R95: 378.439 | S95: 5691-10-01 | T95: 0.808782
A96: ENST00000438434 | B96: 424 | C96: 255.604 | D96: 0 | E96: 0 | F96: ENST00000438434 | G96: 424 | H96: 230.549 | I96: 0 | J96: 0 | K96: ENST00000438434 | L96: 424 | M96: 236.032 | N96: 0 | O96: 0 | P96: ENST00000438434 | Q96: 424 | R96: 259.962 | S96: 0 | T96: 0
A97: ENST00000332831 | B97: 939 | C97: 758.865 | D97: 0 | E97: 0 | F97: ENST00000332831 | G97: 939 | H97: 730.701 | I97: 0 | J97: 0 | K97: ENST00000332831 | L97: 939 | M97: 739.074 | N97: 0 | O97: 0 | P97: ENST00000332831 | Q97: 939 | R97: 768.682 | S97: 0 | T97: 0
A98: ENST00000440782 | B98: 2455 | C98: 2274.86 | D98: 0 | E98: 0 | F98: ENST00000440782 | G98: 2455 | H98: 2246.7 | I98: 0 | J98: 0 | K98: ENST00000440782 | L98: 2455 | M98: 2255 | N98: 0 | O98: 0 | P98: ENST00000440782 | Q98: 2455 | R98: 2284.6 | S98: 0 | T98: 0
A99: ENST00000506640 | B99: 6432 | C99: 6251.86 | D99: 0 | E99: 0 | F99: ENST00000506640 | G99: 6432 | H99: 6223.7 | I99: 0 | J99: 0 | K99: ENST00000506640 | L99: 6432 | M99: 6232 | N99: 0 | O99: 0 | P99: ENST00000506640 | Q99: 6432 | R99: 6261.6 | S99: 0 | T99: 0
A100: ENST00000428504 | B100: 417 | C100: 249.364 | D100: 0 | E100: 0 | F100: ENST00000428504 | G100: 417 | H100: 224.87 | I100: 0 | J100: 0 | K100: ENST00000428504 | L100: 417 | M100: 229.736 | N100: 0 | O100: 0 | P100: ENST00000428504 | Q100: 417 | R100: 253.354 | S100: 0 | T100: 0
A101: ENST00000411249 | B101: 104 | C101: 38.9727 | D101: 0 | E101: 0 | F101: ENST00000411249 | G101: 104 | H101: 38.8682 | I101: 0 | J101: 0 | K101: ENST00000411249 | L101: 104 | M101: 37.046 | N101: 0 | O101: 0 | P101: ENST00000411249 | Q101: 104 | R101: 38.5365 | S101: 0 | T101: 0
A102: ENST00000422528 | B102: 456 | C102: 284.54 | D102: 0 | E102: 0 | F102: ENST00000422528 | G102: 456 | H102: 257.763 | I102: 0 | J102: 0 | K102: ENST00000422528 | L102: 456 | M102: 264.492 | N102: 0 | O102: 0 | P102: ENST00000422528 | Q102: 456 | R102: 289.994 | S102: 0 | T102: 0
A103: ENST00000434264 | B103: 844 | C103: 664.005 | D103: 0 | E103: 0 | F103: ENST00000434264 | G103: 844 | H103: 635.838 | I103: 0 | J103: 0 | K103: ENST00000434264 | L103: 844 | M103: 644.074 | N103: 0 | O103: 0 | P103: ENST00000434264 | Q103: 844 | R103: 673.965 | S103: 0 | T103: 0
A104: ENST00000457084 | B104: 566 | C104: 388.707 | D104: 0 | E104: 0 | F104: ENST00000457084 | G104: 566 | H104: 360.745 | I104: 0 | J104: 0 | K104: ENST00000457084 | L104: 566 | M104: 367.973 | N104: 0 | O104: 0 | P104: ENST00000457084 | Q104: 566 | R104: 397.248 | S104: 0 | T104: 0
A105: ENST00000589899 | B105: 809 | C105: 629.07 | D105: 0 | E105: 0 | F105: ENST00000589899 | G105: 809 | H105: 600.898 | I105: 0 | J105: 0 | K105: ENST00000589899 | L105: 809 | M105: 609.074 | N105: 0 | O105: 0 | P105: ENST00000589899 | Q105: 809 | R105: 639.163 | S105: 0 | T105: 0
A106: ENST00000609830 | B106: 669 | C106: 489.611 | D106: 0 | E106: 0 | F106: ENST00000609830 | G106: 669 | H106: 461.921 | I106: 0 | J106: 0 | K106: ENST00000609830 | L106: 669 | M106: 469.438 | N106: 0 | O106: 0 | P106: ENST00000609830 | Q106: 669 | R106: 499.732 | S106: 0 | T106: 0
A107: ENST00000429505 | B107: 441 | C107: 270.681 | D107: 0 | E107: 0 | F107: ENST00000429505 | G107: 441 | H107: 245.071 | I107: 0 | J107: 0 | K107: ENST00000429505 | L107: 441 | M107: 251.371 | N107: 0 | O107: 0 | P107: ENST00000429505 | Q107: 441 | R107: 275.794 | S107: 0 | T107: 0
A108: ENST00000585826 | B108: 390 | C108: 226.235 | D108: 0 | E108: 0 | F108: ENST00000585826 | G108: 390 | H108: 202.972 | I108: 0 | J108: 0 | K108: ENST00000585826 | L108: 390 | M108: 207.211 | N108: 0 | O108: 0 | P108: ENST00000585826 | Q108: 390 | R108: 228.915 | S108: 0 | T108: 0
A109: ENST00000592547 | B109: 608 | C109: 429.891 | D109: 0 | E109: 0 | F109: ENST00000592547 | G109: 608 | H109: 401.905 | I109: 0 | J109: 0 | K109: ENST00000592547 | L109: 608 | M109: 409.088 | N109: 0 | O109: 0 | P109: ENST00000592547 | Q109: 608 | R109: 438.96 | S109: 0 | T109: 0
A110: ENST00000586928 | B110: 598 | C110: 419.977 | D110: 0 | E110: 0 | F110: ENST00000586928 | G110: 598 | H110: 392.064 | I110: 0 | J110: 0 | K110: ENST00000586928 | L110: 598 | M110: 399.169 | N110: 0 | O110: 0 | P110: ENST00000586928 | Q110: 598 | R110: 428.96 | S110: 0 | T110: 0
A111: ENST00000585745 | B111: 168 | C111: 78.2571 | D111: 0 | E111: 0 | F111: ENST00000585745 | G111: 168 | H111: 78.0577 | I111: 0 | J111: 0 | K111: ENST00000585745 | L111: 168 | M111: 75.9148 | N111: 0 | O111: 0 | P111: ENST00000585745 | Q111: 168 | R111: 77.2927 | S111: 0 | T111: 0
A112: ENST00000585768 | B112: 394 | C112: 229.66 | D112: 0 | E112: 0 | F112: ENST00000585768 | G112: 394 | H112: 206.2 | I112: 0 | J112: 0 | K112: ENST00000585768 | L112: 394 | M112: 210.524 | N112: 0 | O112: 0 | P112: ENST00000585768 | Q112: 394 | R112: 232.393 | S112: 0 | T112: 0
A113: ENST00000590848 | B113: 726 | C113: 546.299 | D113: 0 | E113: 0 | F113: ENST00000590848 | G113: 726 | H113: 518.331 | I113: 0 | J113: 0 | K113: ENST00000590848 | L113: 726 | M113: 526.241 | N113: 0 | O113: 0 | P113: ENST00000590848 | Q113: 726 | R113: 556.462 | S113: 0 | T113: 0
A114: ENST00000591440 | B114: 780 | C114: 600.13 | D114: 0 | E114: 0 | F114: ENST00000591440 | G114: 780 | H114: 571.898 | I114: 0 | J114: 0 | K114: ENST00000591440 | L114: 780 | M114: 580.074 | N114: 0 | O114: 0 | P114: ENST00000591440 | Q114: 780 | R114: 610.227 | S114: 0 | T114: 0
A115: ENST00000587530 | B115: 1024 | C115: 843.865 | D115: 0 | E115: 0 | F115: ENST00000587530 | G115: 1024 | H115: 815.701 | I115: 0 | J115: 0 | K115: ENST00000587530 | L115: 1024 | M115: 823.997 | N115: 0 | O115: 0 | P115: ENST00000587530 | Q115: 1024 | R115: 853.605 | S115: 0 | T115: 0
A116: ENST00000593022 | B116: 693 | C116: 513.508 | D116: 0 | E116: 0 | F116: ENST00000593022 | G116: 693 | H116: 485.733 | I116: 0 | J116: 0 | K116: ENST00000593022 | L116: 693 | M116: 493.293 | N116: 0 | O116: 0 | P116: ENST00000593022 | Q116: 693 | R116: 523.68 | S116: 0 | T116: 0
A117: ENST00000589531 | B117: 714 | C117: 534.299 | D117: 0 | E117: 0 | F117: ENST00000589531 | G117: 714 | H117: 506.383 | I117: 0 | J117: 0 | K117: ENST00000589531 | L117: 714 | M117: 514.293 | N117: 0 | O117: 0 | P117: ENST00000589531 | Q117: 714 | R117: 544.627 | S117: 0 | T117: 0
A118: ENST00000588951 | B118: 607 | C118: 428.891 | D118: 0 | E118: 0 | F118: ENST00000588951 | G118: 607 | H118: 400.905 | I118: 0 | J118: 0 | K118: ENST00000588951 | L118: 607 | M118: 408.088 | N118: 0 | O118: 0 | P118: ENST00000588951 | Q118: 607 | R118: 437.96 | S118: 0 | T118: 0
A119: ENST00000586288 | B119: 1040 | C119: 859.865 | D119: 0 | E119: 0 | F119: ENST00000586288 | G119: 1040 | H119: 831.701 | I119: 0 | J119: 0 | K119: ENST00000586288 | L119: 1040 | M119: 839.997 | N119: 0 | O119: 0 | P119: ENST00000586288 | Q119: 1040 | R119: 869.605 | S119: 0 | T119: 0
A120: ENST00000591702 | B120: 1873 | C120: 1692.87 | D120: 0 | E120: 0 | F120: ENST00000591702 | G120: 1873 | H120: 1664.7 | I120: 0 | J120: 0 | K120: ENST00000591702 | L120: 1873 | M120: 1673 | N120: 0 | O120: 0 | P120: ENST00000591702 | Q120: 1873 | R120: 1702.6 | S120: 0 | T120: 0
A121: ENST00000443772 | B121: 417 | C121: 249.364 | D121: 0 | E121: 0 | F121: ENST00000443772 | G121: 417 | H121: 224.87 | I121: 0 | J121: 0 | K121: ENST00000443772 | L121: 417 | M121: 229.736 | N121: 0 | O121: 0 | P121: ENST00000443772 | Q121: 417 | R121: 253.354 | S121: 0 | T121: 0
A122: ENST00000412115 | B122: 581 | C122: 403.308 | D122: 0 | E122: 0 | F122: ENST00000412115 | G122: 581 | H122: 375.372 | I122: 0 | J122: 0 | K122: ENST00000412115 | L122: 581 | M122: 382.481 | N122: 0 | O122: 0 | P122: ENST00000412115 | Q122: 581 | R122: 412.086 | S122: 0 | T122: 0
A123: ENST00000447500 | B123: 872 | C123: 691.938 | D123: 0 | E123: 0 | F123: ENST00000447500 | G123: 872 | H123: 663.838 | I123: 140.292 | J123: 4.47394 | K123: ENST00000447500 | L123: 872 | M123: 672.074 | N123: 107.237 | O123: 2.38834 | P123: ENST00000447500 | Q123: 872 | R123: 701.829 | S123: 0 | T123: 0
A124: ENST00000590817 | B124: 238 | C124: 117.384 | D124: 0 | E124: 0 | F124: ENST00000590817 | G124: 238 | H124: 110.214 | I124: 110.708 | J124: 21.2648 | K124: ENST00000590817 | L124: 238 | M124: 108.029 | N124: 87.7628 | O124: 12.1602 | P124: ENST00000590817 | Q124: 238 | R124: 118.033 | S124: 0 | T124: 0
A125: ENST00000326734 | B125: 1947 | C125: 1766.87 | D125: 0 | E125: 0 | F125: ENST00000326734 | G125: 1947 | H125: 1738.7 | I125: 0 | J125: 0 | K125: ENST00000326734 | L125: 1947 | M125: 1747 | N125: 0 | O125: 0 | P125: ENST00000326734 | Q125: 1947 | R125: 1776.6 | S125: 0 | T125: 0
A126: ENST00000624927 | B126: 677 | C126: 497.611 | D126: 0 | E126: 0 | F126: ENST00000624927 | G126: 677 | H126: 469.828 | I126: 0 | J126: 0 | K126: ENST00000624927 | L126: 677 | M126: 477.39 | N126: 0 | O126: 0 | P126: ENST00000624927 | Q126: 677 | R126: 507.732 | S126: 0 | T126: 0
A127: ENST00000623808 | B127: 493 | C127: 318.899 | D127: 0 | E127: 0 | F127: ENST00000623808 | G127: 493 | H127: 291.34 | I127: 0 | J127: 0 | K127: ENST00000623808 | L127: 493 | M127: 298.465 | N127: 0 | O127: 0 | P127: ENST00000623808 | Q127: 493 | R127: 325.733 | S127: 0 | T127: 0
A128: ENST00000445118 | B128: 6606 | C128: 6425.86 | D128: 129.441 | E128: 0.540533 | F128: ENST00000445118 | G128: 6606 | H128: 6397.7 | I128: 410.814 | J128: 1.35938 | K128: ENST00000445118 | L128: 6606 | M128: 6406 | N128: 155.346 | O128: 0.36298 | P128: ENST00000445118 | Q128: 6606 | R128: 6435.6 | S128: 278.563 | T128: 2535-01-01
A129: ENST00000448975 | B129: 633 | C129: 454.183 | D129: 1.90028 | E129: 0.112271 | F129: ENST00000448975 | G129: 633 | H129: 426.407 | I129: 0 | J129: 0 | K129: ENST00000448975 | L129: 633 | M129: 433.663 | N129: 0 | O129: 0 | P129: ENST00000448975 | Q129: 633 | R129: 463.78 | S129: 0 | T129: 0
A130: ENST00000610067 | B130: 550 | C130: 373.474 | D130: 0 | E130: 0 | F130: ENST00000610067 | G130: 550 | H130: 345.205 | I130: 57.9123 | J130: 3.55151 | K130: ENST00000610067 | L130: 550 | M130: 352.334 | N130: 0 | O130: 0 | P130: ENST00000610067 | Q130: 550 | R130: 381.363 | S130: 0 | T130: 0
A131: ENST00000608189 | B131: 824 | C131: 644.07 | D131: 0 | E131: 0 | F131: ENST00000608189 | G131: 824 | H131: 615.838 | I131: 5.87437e-08 | J131: 2.01936e-09 | K131: ENST00000608189 | L131: 824 | M131: 624.074 | N131: 0 | O131: 0 | P131: ENST00000608189 | Q131: 824 | R131: 654.098 | S131: 0 | T131: 0
A132: ENST00000441765 | B132: 750 | C132: 570.13 | D132: 0 | E132: 0 | F132: ENST00000441765 | G132: 750 | H132: 542.12 | I132: 0 | J132: 0 | K132: ENST00000441765 | L132: 750 | M132: 550.186 | N132: 0 | O132: 0 | P132: ENST00000441765 | Q132: 750 | R132: 580.347 | S132: 0 | T132: 0
A133: ENST00000609139 | B133: 455 | C133: 283.627 | D133: 0 | E133: 0 | F133: ENST00000609139 | G133: 455 | H133: 256.922 | I133: 0 | J133: 0 | K133: ENST00000609139 | L133: 455 | M133: 263.655 | N133: 0 | O133: 0 | P133: ENST00000609139 | Q133: 455 | R133: 289.081 | S133: 0 | T133: 0
A134: ENST00000449005 | B134: 874 | C134: 693.938 | D134: 120.106 | E134: 4.64436 | F134: ENST00000449005 | G134: 874 | H134: 665.838 | I134: 346.953 | J134: 11.0312 | K134: ENST00000449005 | L134: 874 | M134: 674.074 | N134: 2716-10-01 | O134: 0.228086 | P134: ENST00000449005 | Q134: 874 | R134: 703.829 | S134: 126.163 | T134: 5.19103
A135: ENST00000416570 | B135: 612 | C135: 433.848 | D135: 0 | E135: 0 | F135: ENST00000416570 | G135: 612 | H135: 405.824 | I135: 0 | J135: 0 | K135: ENST00000416570 | L135: 612 | M135: 413.088 | N135: 0 | O135: 0 | P135: ENST00000416570 | Q135: 612 | R135: 442.96 | S135: 0 | T135: 0
A136: ENST00000623070 | B136: 494 | C136: 319.737 | D136: 2.55319 | E136: 0.214276 | F136: ENST00000623070 | G136: 494 | H136: 292.28 | I136: 65.314 | J136: 4.73071 | K136: ENST00000623070 | L136: 494 | M136: 299.343 | N136: 7.38199 | O136: 0.369124 | P136: ENST00000623070 | Q136: 494 | R136: 326.7 | S136: 31.274 | T136: 2.77219
A137: ENST00000609009 | B137: 767 | C137: 587.13 | D137: 0 | E137: 0 | F137: ENST00000609009 | G137: 767 | H137: 559.01 | I137: 3.00621 | J137: 0.113847 | K137: ENST00000609009 | L137: 767 | M137: 567.074 | N137: 0 | O137: 0 | P137: ENST00000609009 | Q137: 767 | R137: 597.347 | S137: 0 | T137: 0
A138: ENST00000622921 | B138: 724 | C138: 544.299 | D138: 0 | E138: 0 | F138: ENST00000622921 | G138: 724 | H138: 516.331 | I138: 0 | J138: 0 | K138: ENST00000622921 | L138: 724 | M138: 524.241 | N138: 0 | O138: 0 | P138: ENST00000622921 | Q138: 724 | R138: 554.462 | S138: 0 | T138: 0
A139: ENST00000415295 | B139: 894 | C139: 713.938 | D139: 0 | E139: 0 | F139: ENST00000415295 | G139: 894 | H139: 685.771 | I139: 0 | J139: 0 | K139: ENST00000415295 | L139: 894 | M139: 694.074 | N139: 0 | O139: 0 | P139: ENST00000415295 | Q139: 894 | R139: 723.829 | S139: 0 | T139: 0
A140: ENST00000425657 | B140: 845 | C140: 665.005 | D140: 0 | E140: 0 | F140: ENST00000425657 | G140: 845 | H140: 636.838 | I140: 0 | J140: 0 | K140: ENST00000425657 | L140: 845 | M140: 645.074 | N140: 0 | O140: 0 | P140: ENST00000425657 | Q140: 845 | R140: 674.965 | S140: 0 | T140: 0
A141: ENST00000473798 | B141: 1317 | C141: 1136.87 | D141: 0 | E141: 0 | F141: ENST00000473798 | G141: 1317 | H141: 1108.7 | I141: 0 | J141: 0 | K141: ENST00000473798 | L141: 1317 | M141: 1117 | N141: 0 | O141: 0 | P141: ENST00000473798 | Q141: 1317 | R141: 1146.6 | S141: 0 | T141: 0
A142: ENST00000446136 | B142: 1807 | C142: 1626.87 | D142: 0 | E142: 0 | F142: ENST00000446136 | G142: 1807 | H142: 1598.7 | I142: 0 | J142: 0 | K142: ENST00000446136 | L142: 1807 | M142: 1607 | N142: 3 | O142: 0.0279431 | P142: ENST00000446136 | Q142: 1807 | R142: 1636.6 | S142: 0 | T142: 0
A143: ENST00000432963 | B143: 504 | C143: 328.981 | D143: 0 | E143: 0 | F143: ENST00000432963 | G143: 504 | H143: 301.616 | I143: 0 | J143: 0 | K143: ENST00000432963 | L143: 504 | M143: 308.546 | N143: 0 | O143: 0 | P143: ENST00000432963 | Q143: 504 | R143: 336.367 | S143: 0 | T143: 0
A144: ENST00000427857 | B144: 446 | C144: 275.289 | D144: 0 | E144: 0 | F144: ENST00000427857 | G144: 446 | H144: 249.046 | I144: 0 | J144: 0 | K144: ENST00000427857 | L144: 446 | M144: 255.587 | N144: 0 | O144: 0 | P144: ENST00000427857 | Q144: 446 | R144: 280.513 | S144: 0 | T144: 0
A145: ENST00000415481 | B145: 1058 | C145: 877.865 | D145: 0 | E145: 0 | F145: ENST00000415481 | G145: 1058 | H145: 849.701 | I145: 0 | J145: 0 | K145: ENST00000415481 | L145: 1058 | M145: 857.997 | N145: 0 | O145: 0 | P145: ENST00000415481 | Q145: 1058 | R145: 887.605 | S145: 0 | T145: 0
A146: ENST00000635557 | B146: 837 | C146: 657.005 | D146: 0 | E146: 0 | F146: ENST00000635557 | G146: 837 | H146: 628.838 | I146: 0 | J146: 0 | K146: ENST00000635557 | L146: 837 | M146: 637.074 | N146: 0 | O146: 0 | P146: ENST00000635557 | Q146: 837 | R146: 667.032 | S146: 0 | T146: 0
A147: ENST00000607769 | B147: 351 | C147: 194.361 | D147: 0 | E147: 0 | F147: ENST00000607769 | G147: 351 | H147: 173.682 | I147: 0 | J147: 0 | K147: ENST00000607769 | L147: 351 | M147: 176.291 | N147: 0 | O147: 0 | P147: ENST00000607769 | Q147: 351 | R147: 195.765 | S147: 0 | T147: 0
A148: ENST00000448179 | B148: 3043 | C148: 2862.86 | D148: 0 | E148: 0 | F148: ENST00000448179 | G148: 3043 | H148: 2834.7 | I148: 0 | J148: 0 | K148: ENST00000448179 | L148: 3043 | M148: 2843 | N148: 0 | O148: 0 | P148: ENST00000448179 | Q148: 3043 | R148: 2872.6 | S148: 0 | T148: 0
A149: ENST00000398216 | B149: 443 | C149: 272.597 | D149: 0 | E149: 0 | F149: ENST00000398216 | G149: 443 | H149: 246.611 | I149: 0 | J149: 0 | K149: ENST00000398216 | L149: 443 | M149: 253.059 | N149: 0 | O149: 0 | P149: ENST00000398216 | Q149: 443 | R149: 277.654 | S149: 0 | T149: 0
A150: ENST00000609207 | B150: 4152 | C150: 3971.86 | D150: 0 | E150: 0 | F150: ENST00000609207 | G150: 4152 | H150: 3943.7 | I150: 0 | J150: 0 | K150: ENST00000609207 | L150: 4152 | M150: 3952 | N150: 0 | O150: 0 | P150: ENST00000609207 | Q150: 4152 | R150: 3981.6 | S150: 0 | T150: 0
A151: ENST00000417705 | B151: 1389 | C151: 1208.87 | D151: 0 | E151: 0 | F151: ENST00000417705 | G151: 1389 | H151: 1180.7 | I151: 0 | J151: 0 | K151: ENST00000417705 | L151: 1389 | M151: 1189 | N151: 0 | O151: 0 | P151: ENST00000417705 | Q151: 1389 | R151: 1218.6 | S151: 0 | T151: 0
A152: ENST00000432961 | B152: 630 | C152: 451.274 | D152: 0 | E152: 0 | F152: ENST00000432961 | G152: 630 | H152: 423.45 | I152: 0 | J152: 0 | K152: ENST00000432961 | L152: 630 | M152: 430.706 | N152: 0 | O152: 0 | P152: ENST00000432961 | Q152: 630 | R152: 460.78 | S152: 0 | T152: 0
A153: ENST00000420190 | B153: 626 | C153: 447.319 | D153: 0 | E153: 0 | F153: ENST00000420190 | G153: 626 | H153: 419.492 | I153: 0 | J153: 0 | K153: ENST00000420190 | L153: 626 | M153: 426.92 | N153: 0 | O153: 0 | P153: ENST00000420190 | Q153: 626 | R153: 456.78 | S153: 0 | T153: 0
A154: ENST00000437963 | B154: 387 | C154: 223.9 | D154: 0 | E154: 0 | F154: ENST00000437963 | G154: 387 | H154: 200.475 | I154: 0 | J154: 0 | K154: ENST00000437963 | L154: 387 | M154: 204.957 | N154: 0 | O154: 0 | P154: ENST00000437963 | Q154: 387 | R154: 226.337 | S154: 0 | T154: 0
A155: ENST00000342066 | B155: 2551 | C155: 2370.86 | D155: 0 | E155: 0 | F155: ENST00000342066 | G155: 2551 | H155: 2342.7 | I155: 0 | J155: 0 | K155: ENST00000342066 | L155: 2551 | M155: 2351 | N155: 0 | O155: 0 | P155: ENST00000342066 | Q155: 2551 | R155: 2380.6 | S155: 0 | T155: 0
A156: ENST00000618181 | B156: 2179 | C156: 1998.87 | D156: 0 | E156: 0 | F156: ENST00000618181 | G156: 2179 | H156: 1970.7 | I156: 0 | J156: 0 | K156: ENST00000618181 | L156: 2179 | M156: 1979 | N156: 0 | O156: 0 | P156: ENST00000618181 | Q156: 2179 | R156: 2008.6 | S156: 0 | T156: 0
A157: ENST00000622503 | B157: 2557 | C157: 2376.86 | D157: 0 | E157: 0 | F157: ENST00000622503 | G157: 2557 | H157: 2348.7 | I157: 0 | J157: 0 | K157: ENST00000622503 | L157: 2557 | M157: 2357 | N157: 0 | O157: 0 | P157: ENST00000622503 | Q157: 2557 | R157: 2386.6 | S157: 0 | T157: 0
A158: ENST00000618323 | B158: 2159 | C158: 1978.87 | D158: 0 | E158: 0 | F158: ENST00000618323 | G158: 2159 | H158: 1950.7 | I158: 0 | J158: 0 | K158: ENST00000618323 | L158: 2159 | M158: 1959 | N158: 0 | O158: 0 | P158: ENST00000618323 | Q158: 2159 | R158: 1988.6 | S158: 0 | T158: 0
A159: ENST00000616016 | B159: 2391 | C159: 2210.86 | D159: 0 | E159: 0 | F159: ENST00000616016 | G159: 2391 | H159: 2182.7 | I159: 0 | J159: 0 | K159: ENST00000616016 | L159: 2391 | M159: 2191 | N159: 0 | O159: 0 | P159: ENST00000616016 | Q159: 2391 | R159: 2220.6 | S159: 0 | T159: 0
A160: ENST00000618779 | B160: 2368 | C160: 2187.86 | D160: 0 | E160: 0 | F160: ENST00000618779 | G160: 2368 | H160: 2159.7 | I160: 0 | J160: 0 | K160: ENST00000618779 | L160: 2368 | M160: 2168 | N160: 0 | O160: 0 | P160: ENST00000618779 | Q160: 2368 | R160: 2197.6 | S160: 0 | T160: 0
A161: ENST00000616125 | B161: 2230 | C161: 2049.86 | D161: 0 | E161: 0 | F161: ENST00000616125 | G161: 2230 | H161: 2021.7 | I161: 0 | J161: 0 | K161: ENST00000616125 | L161: 2230 | M161: 2030 | N161: 0 | O161: 0 | P161: ENST00000616125 | Q161: 2230 | R161: 2059.6 | S161: 0 | T161: 0
A162: ENST00000620200 | B162: 1874 | C162: 1693.87 | D162: 0 | E162: 0 | F162: ENST00000620200 | G162: 1874 | H162: 1665.7 | I162: 0 | J162: 0 | K162: ENST00000620200 | L162: 1874 | M162: 1674 | N162: 0 | O162: 0 | P162: ENST00000620200 | Q162: 1874 | R162: 1703.6 | S162: 0 | T162: 0
A163: ENST00000617307 | B163: 2314 | C163: 2133.86 | D163: 0 | E163: 0 | F163: ENST00000617307 | G163: 2314 | H163: 2105.7 | I163: 0 | J163: 0 | K163: ENST00000617307 | L163: 2314 | M163: 2114 | N163: 0 | O163: 0 | P163: ENST00000617307 | Q163: 2314 | R163: 2143.6 | S163: 0 | T163: 0
A164: ENST00000341065 | B164: 2191 | C164: 2010.87 | D164: 0 | E164: 0 | F164: ENST00000341065 | G164: 2191 | H164: 1982.7 | I164: 0 | J164: 0 | K164: ENST00000341065 | L164: 2191 | M164: 1991 | N164: 0 | O164: 0 | P164: ENST00000341065 | Q164: 2191 | R164: 2020.6 | S164: 0 | T164: 0
A165: ENST00000455979 | B165: 1731 | C165: 1550.87 | D165: 0 | E165: 0 | F165: ENST00000455979 | G165: 1731 | H165: 1522.7 | I165: 0 | J165: 0 | K165: ENST00000455979 | L165: 1731 | M165: 1531 | N165: 0 | O165: 0 | P165: ENST00000455979 | Q165: 1731 | R165: 1560.6 | S165: 0 | T165: 0
A166: ENST00000478729 | B166: 318 | C166: 169.43 | D166: 0 | E166: 0 | F166: ENST00000478729 | G166: 318 | H166: 151.049 | I166: 0 | J166: 0 | K166: ENST00000478729 | L166: 318 | M166: 152.829 | N166: 0 | O166: 0 | P166: ENST00000478729 | Q166: 318 | R166: 169.456 | S166: 0 | T166: 0
A167: ENST00000474461 | B167: 862 | C167: 681.938 | D167: 0 | E167: 0 | F167: ENST00000474461 | G167: 862 | H167: 653.838 | I167: 0 | J167: 0 | K167: ENST00000474461 | L167: 862 | M167: 662.074 | N167: 0 | O167: 0 | P167: ENST00000474461 | Q167: 862 | R167: 691.829 | S167: 0 | T167: 0
A168: ENST00000466827 | B168: 542 | C168: 365.659 | D168: 0 | E168: 0 | F168: ENST00000466827 | G168: 542 | H168: 337.618 | I168: 0 | J168: 0 | K168: ENST00000466827 | L168: 542 | M168: 344.896 | N168: 0 | O168: 0 | P168: ENST00000466827 | Q168: 542 | R168: 373.477 | S168: 0 | T168: 0
A169: ENST00000464948 | B169: 657 | C169: 477.901 | D169: 0 | E169: 0 | F169: ENST00000464948 | G169: 657 | H169: 450.059 | I169: 0 | J169: 0 | K169: ENST00000464948 | L169: 657 | M169: 457.484 | N169: 0 | O169: 0 | P169: ENST00000464948 | Q169: 657 | R169: 487.732 | S169: 0 | T169: 0
A170: ENST00000483767 | B170: 1611 | C170: 1430.87 | D170: 0 | E170: 0 | F170: ENST00000483767 | G170: 1611 | H170: 1402.7 | I170: 0 | J170: 0 | K170: ENST00000483767 | L170: 1611 | M170: 1411 | N170: 0 | O170: 0 | P170: ENST00000483767 | Q170: 1611 | R170: 1440.6 | S170: 0 | T170: 0
A171: ENST00000327044 | B171: 2790 | C171: 2609.86 | D171: 0 | E171: 0 | F171: ENST00000327044 | G171: 2790 | H171: 2581.7 | I171: 0 | J171: 0 | K171: ENST00000327044 | L171: 2790 | M171: 2590 | N171: 0 | O171: 0 | P171: ENST00000327044 | Q171: 2790 | R171: 2619.6 | S171: 0 | T171: 0
A172: ENST00000477976 | B172: 4201 | C172: 4020.86 | D172: 0 | E172: 0 | F172: ENST00000477976 | G172: 4201 | H172: 3992.7 | I172: 0 | J172: 0 | K172: ENST00000477976 | L172: 4201 | M172: 4001 | N172: 0 | O172: 0 | P172: ENST00000477976 | Q172: 4201 | R172: 4030.6 | S172: 0 | T172: 0
A173: ENST00000496938 | B173: 149 | C173: 66.6655 | D173: 0 | E173: 0 | F173: ENST00000496938 | G173: 149 | H173: 66.5239 | I173: 0 | J173: 0 | K173: ENST00000496938 | L173: 149 | M173: 65.4115 | N173: 0 | O173: 0 | P173: ENST00000496938 | Q173: 149 | R173: 65.5211 | S173: 0 | T173: 0
A174: ENST00000487214 | B174: 865 | C174: 684.938 | D174: 0 | E174: 0 | F174: ENST00000487214 | G174: 865 | H174: 656.838 | I174: 0 | J174: 0 | K174: ENST00000487214 | L174: 865 | M174: 665.074 | N174: 0 | O174: 0 | P174: ENST00000487214 | Q174: 865 | R174: 694.829 | S174: 0 | T174: 0
A175: ENST00000469563 | B175: 878 | C175: 697.938 | D175: 0 | E175: 0 | F175: ENST00000469563 | G175: 878 | H175: 669.771 | I175: 0 | J175: 0 | K175: ENST00000469563 | L175: 878 | M175: 678.074 | N175: 0 | O175: 0 | P175: ENST00000469563 | Q175: 878 | R175: 707.829 | S175: 0 | T175: 0
A176: ENST00000338591 | B176: 2560 | C176: 2379.86 | D176: 0 | E176: 0 | F176: ENST00000338591 | G176: 2560 | H176: 2351.7 | I176: 0 | J176: 0 | K176: ENST00000338591 | L176: 2560 | M176: 2360 | N176: 0 | O176: 0 | P176: ENST00000338591 | Q176: 2560 | R176: 2389.6 | S176: 0 | T176: 0
A177: ENST00000622660 | B177: 1950 | C177: 1769.87 | D177: 0 | E177: 0 | F177: ENST00000622660 | G177: 1950 | H177: 1741.7 | I177: 0 | J177: 0 | K177: ENST00000622660 | L177: 1950 | M177: 1750 | N177: 0 | O177: 0 | P177: ENST00000622660 | Q177: 1950 | R177: 1779.6 | S177: 0 | T177: 0
A178: ENST00000463212 | B178: 955 | C178: 774.865 | D178: 0 | E178: 0 | F178: ENST00000463212 | G178: 955 | H178: 746.701 | I178: 0 | J178: 0 | K178: ENST00000463212 | L178: 955 | M178: 755.074 | N178: 0 | O178: 0 | P178: ENST00000463212 | Q178: 955 | R178: 784.605 | S178: 0 | T178: 0
A179: ENST00000466300 | B179: 913 | C179: 732.865 | D179: 0 | E179: 0 | F179: ENST00000466300 | G179: 913 | H179: 704.701 | I179: 0 | J179: 0 | K179: ENST00000466300 | L179: 913 | M179: 713.074 | N179: 0 | O179: 0 | P179: ENST00000466300 | Q179: 913 | R179: 742.682 | S179: 0 | T179: 0
A180: ENST00000481067 | B180: 515 | C180: 339.577 | D180: 0 | E180: 0 | F180: ENST00000481067 | G180: 515 | H180: 311.963 | I180: 0 | J180: 0 | K180: ENST00000481067 | L180: 515 | M180: 319.039 | N180: 0 | O180: 0 | P180: ENST00000481067 | Q180: 515 | R180: 347.126 | S180: 0 | T180: 0
A181: ENST00000617073 | B181: 57 | C181: 13.2812 | D181: 0 | E181: 0 | F181: ENST00000617073 | G181: 57 | H181: 13.301 | I181: 0 | J181: 0 | K181: ENST00000617073 | L181: 57 | M181: 13.4747 | N181: 0 | O181: 0 | P181: ENST00000617073 | Q181: 57 | R181: 7071-12-01 | S181: 0 | T181: 0
A182: ENST00000379410 | B182: 2404 | C182: 2223.86 | D182: 0 | E182: 0 | F182: ENST00000379410 | G182: 2404 | H182: 2195.7 | I182: 0 | J182: 0 | K182: ENST00000379410 | L182: 2404 | M182: 2204 | N182: 0 | O182: 0 | P182: ENST00000379410 | Q182: 2404 | R182: 2233.6 | S182: 0 | T182: 0
A183: ENST00000379409 | B183: 2455 | C183: 2274.86 | D183: 0 | E183: 0 | F183: ENST00000379409 | G183: 2455 | H183: 2246.7 | I183: 0 | J183: 0 | K183: ENST00000379409 | L183: 2455 | M183: 2255 | N183: 0 | O183: 0 | P183: ENST00000379409 | Q183: 2455 | R183: 2284.6 | S183: 0 | T183: 0
A184: ENST00000379407 | B184: 2194 | C184: 2013.87 | D184: 0 | E184: 0 | F184: ENST00000379407 | G184: 2194 | H184: 1985.7 | I184: 0 | J184: 0 | K184: ENST00000379407 | L184: 2194 | M184: 1994 | N184: 0 | O184: 0 | P184: ENST00000379407 | Q184: 2194 | R184: 2023.6 | S184: 0 | T184: 0
A185: ENST00000480267 | B185: 464 | C185: 291.919 | D185: 0 | E185: 0 | F185: ENST00000480267 | G185: 464 | H185: 264.905 | I185: 0 | J185: 0 | K185: ENST00000480267 | L185: 464 | M185: 271.749 | N185: 0 | O185: 0 | P185: ENST00000480267 | Q185: 464 | R185: 297.579 | S185: 0 | T185: 0
A186: ENST00000491024 | B186: 698 | C186: 518.456 | D186: 0 | E186: 0 | F186: ENST00000491024 | G186: 698 | H186: 490.684 | I186: 0 | J186: 0 | K186: ENST00000491024 | L186: 698 | M186: 498.293 | N186: 0 | O186: 0 | P186: ENST00000491024 | Q186: 698 | R186: 528.627 | S186: 0 | T186: 0
A187: ENST00000341290 | B187: 3035 | C187: 2854.86 | D187: 0 | E187: 0 | F187: ENST00000341290 | G187: 3035 | H187: 2826.7 | I187: 0 | J187: 0 | K187: ENST00000341290 | L187: 3035 | M187: 2835 | N187: 0 | O187: 0 | P187: ENST00000341290 | Q187: 3035 | R187: 2864.6 | S187: 0 | T187: 0
A188: ENST00000479361 | B188: 1208 | C188: 1027.87 | D188: 0 | E188: 0 | F188: ENST00000479361 | G188: 1208 | H188: 999.701 | I188: 0 | J188: 0 | K188: ENST00000479361 | L188: 1208 | M188: 1008 | N188: 0 | O188: 0 | P188: ENST00000479361 | Q188: 1208 | R188: 1037.6 | S188: 0 | T188: 0
A189: ENST00000433179 | B189: 3340 | C189: 3159.86 | D189: 0 | E189: 0 | F189: ENST00000433179 | G189: 3340 | H189: 3131.7 | I189: 0 | J189: 0 | K189: ENST00000433179 | L189: 3340 | M189: 3140 | N189: 0 | O189: 0 | P189: ENST00000433179 | Q189: 3340 | R189: 3169.6 | S189: 0 | T189: 0
A190: ENST00000606034 | B190: 2086 | C190: 1905.87 | D190: 0 | E190: 0 | F190: ENST00000606034 | G190: 2086 | H190: 1877.7 | I190: 0 | J190: 0 | K190: ENST00000606034 | L190: 2086 | M190: 1886 | N190: 0 | O190: 0 | P190: ENST00000606034 | Q190: 2086 | R190: 1915.6 | S190: 0 | T190: 0
A191: ENST00000428771 | B191: 1040 | C191: 859.865 | D191: 0 | E191: 0 | F191: ENST00000428771 | G191: 1040 | H191: 831.701 | I191: 0 | J191: 0 | K191: ENST00000428771 | L191: 1040 | M191: 839.997 | N191: 0 | O191: 0 | P191: ENST00000428771 | Q191: 1040 | R191: 869.605 | S191: 0 | T191: 0
A192: ENST00000304952 | B192: 899 | C192: 718.938 | D192: 0 | E192: 0 | F192: ENST00000304952 | G192: 899 | H192: 690.771 | I192: 0 | J192: 0 | K192: ENST00000304952 | L192: 899 | M192: 699.074 | N192: 0 | O192: 0 | P192: ENST00000304952 | Q192: 899 | R192: 728.829 | S192: 0 | T192: 0
A193: ENST00000481869 | B193: 1038 | C193: 857.865 | D193: 0 | E193: 0 | F193: ENST00000481869 | G193: 1038 | H193: 829.701 | I193: 0 | J193: 0 | K193: ENST00000481869 | L193: 1038 | M193: 837.997 | N193: 0 | O193: 0 | P193: ENST00000481869 | Q193: 1038 | R193: 867.605 | S193: 0 | T193: 0
A194: ENST00000484667 | B194: 667 | C194: 487.659 | D194: 0 | E194: 0 | F194: ENST00000484667 | G194: 667 | H194: 460.013 | I194: 0 | J194: 0 | K194: ENST00000484667 | L194: 667 | M194: 467.438 | N194: 0 | O194: 0 | P194: ENST00000484667 | Q194: 667 | R194: 497.732 | S194: 0 | T194: 0
A195: ENST00000624697 | B195: 788 | C195: 608.07 | D195: 0 | E195: 0 | F195: ENST00000624697 | G195: 788 | H195: 579.898 | I195: 0 | J195: 0 | K195: ENST00000624697 | L195: 788 | M195: 588.074 | N195: 0 | O195: 0 | P195: ENST00000624697 | Q195: 788 | R195: 618.227 | S195: 0 | T195: 0
A196: ENST00000624652 | B196: 657 | C196: 477.901 | D196: 0 | E196: 0 | F196: ENST00000624652 | G196: 657 | H196: 450.059 | I196: 0 | J196: 0 | K196: ENST00000624652 | L196: 657 | M196: 457.484 | N196: 0 | O196: 0 | P196: ENST00000624652 | Q196: 657 | R196: 487.732 | S196: 0 | T196: 0
A197: ENST00000379389 | B197: 711 | C197: 531.299 | D197: 0 | E197: 0 | F197: ENST00000379389 | G197: 711 | H197: 503.484 | I197: 0 | J197: 0 | K197: ENST00000379389 | L197: 711 | M197: 511.293 | N197: 4 | O197: 0.117101 | P197: ENST00000379389 | Q197: 711 | R197: 541.627 | S197: 4 | T197: 0.213869
A198: ENST00000423619 | B198: 154 | C198: 69.945 | D198: 0 | E198: 0 | F198: ENST00000423619 | G198: 154 | H198: 69.4927 | I198: 0 | J198: 0 | K198: ENST00000423619 | L198: 154 | M198: 68.2497 | N198: 0 | O198: 0 | P198: ENST00000423619 | Q198: 154 | R198: 68.7625 | S198: 0 | T198: 0
A199: ENST00000458555 | B199: 471 | C199: 298.437 | D199: 0 | E199: 0 | F199: ENST00000458555 | G199: 471 | H199: 271.384 | I199: 0 | J199: 0 | K199: ENST00000458555 | L199: 471 | M199: 278.049 | N199: 2 | O199: 0.107666 | P199: ENST00000458555 | Q199: 471 | R199: 304.366 | S199: 0 | T199: 0
A200: ENST00000379370 | B200: 7323 | C200: 7142.86 | D200: 0 | E200: 0 | F200: ENST00000379370 | G200: 7323 | H200: 7114.7 | I200: 0 | J200: 0 | K200: ENST00000379370 | L200: 7323 | M200: 7123 | N200: 0 | O200: 0 | P200: ENST00000379370 | Q200: 7323 | R200: 7152.6 | S200: 0 | T200: 0
... 4300 more rows

Sheet Supplementary Table 6
A1: Supplementary Table 6. Pathway enrichment of expressed genes in RBCs using QIAGEN’s Ingenuity® Pathway Analysis (IPA®, QIAGEN Redwood City, www.qiagen.com/ingenuity).” The IPA release used was Summer, 2018. The significance values are calculated by Fisher's exact test right-tailed. Cut off -log(p-value) 1.3 corresponds to p value < 0.05. The ratio is calculated as follows: # of genes in a given pathway that meet the cutoff criteria, divided by the total # of genes that make up that pathway.
A2: Ingenuity Canonical Pathways | B2: -log(p-value) | C2: p-value | D2: Ratio | E2: Overlaps with dataset | F2: No overlap with dataset | G2: Molecules
A3: EIF2 Signaling | B3: 5.36E+01 | C3: =POWER(10,-B3) -> 2.51E-54 | D3: 4.80E-01 | E3: 109/227 (48%) | F3: 118/227 (52%) | G3: SOS2,RPS24,RPS5,RAP1A,RPL26,RPS13,RPS19,RPL8,EIF3E,ACTB,RPS11,RPL29,AGO2,RPL14,RPL19,RAP2A,RPL30,RPS18,RPLP2,PABPC1,RPS12,RPS9,EIF2A,EIF3H,PAIP1,EIF3K,RPS27A,RPL15,GAB1,EIF3B,RPS20,RPL6,RPL5,EIF2AK1,RPL38,PTPN11,RPS3A,RPL4,RPL41,EIF3J,EIF4G1,RPS25,EIF1AX,RPL7L1,RPS2,RPS14,RPL18,RPL24,RPS17,RPL34,RPS28,RPS4X,RPL10,RPL7A,EIF5B,RPL13A,RPL32,RPL37A,RPL23,RPLP1,FAU,PIK3C3,RPL27A,RPS29,RPS6,RPL39,RPL11,EIF3A,RPL35,RPS7,INSR,RPL22,EIF3L,EIF1,EIF4G2,EIF5,RPS16,RPL7,RPLP0,RPL36,PPP1CB,RPL27,RPS15,UBA52,RPS27,RPL35A,PIK3R1,RPL12,RPL9,RPL28,EIF2S2,RPS15A,RPL37,RPL3,RPL31,RPS8,RPL18A,ATM,RPL21,RPL13,RPSA,RPL23A,RPS3,EIF3D,ATF4,RPL36AL,EIF4G3,RPS23,MAPK1
A4: Regulation of eIF4 and p70S6K Signaling | B4: 2.38E+01 | C4: 1.58E-24 | D4: 3.80E-01 | E4: 62/163 (38%) | F4: 101/163 (62%) | G4: EIF4EBP2,SOS2,RPS24,RPS5,RAP1A,RPS13,RPS19,EIF3E,FAU,RPS11,AGO2,PAIP2,PIK3C3,RPS6KB1,RAP2A,RPS29,RPS6,EIF3A,RPS18,PABPC1,RPS7,EIF3L,EIF1,EIF4G2,RPS12,RPS16,RPS9,EIF2A,EIF3H,PAIP1,EIF3K,ITGA4,RPS27A,RPS15,RPS27,GAB1,PIK3R1,EIF3B,RPS20,EIF2S2,PTPN11,RPS15A,RPS8,RPS3A,EIF3J,EIF4G1,RPS25,PPP2R5B,EIF1AX,ATM,RPS2,RPS14,RPSA,RPS3,EIF3D,RPS17,MKNK1,EIF4G3,RPS23,MAPK1,RPS28,RPS4X
A5: Mitochondrial Dysfunction | B5: 1.80E+01 | C5: 1.00E-18 | D5: 3.27E-01 | E5: 56/171 (33%) | F5: 115/171 (67%) | G5: ATP5S,COX7B,UQCR10,ATP5PB,TRAK1,NDUFA1,NDUFA5,FIS1,SDHB,SNCA,UQCRH,CAT,TXN2,ATP5F1B,ATP5F1E,MT-CO1,COX4I1,PARK7,COX7A2L,HTRA2,NDUFA2,NDUFS4,CYB5R3,SOD2,UQCRC2,NDUFA4,PRDX5,COX6A1,UQCRB,NDUFB2,MT-CYB,NDUFV3,ATP5PF,MT-CO3,COX7A2,GPX4,ATP5PO,COX6B1,NDUFA6,UQCR11,TXNRD2,UCP2,PINK1,SURF1,ATP5ME,COX6C,NDUFS2,CYB5A,ATP5MG,NDUFA3,ATP5PD,ATP5MF,NDUFB1,NDUFB4,FURIN,COX7C
A6: Protein Ubiquitination Pathway | B6: 1.66E+01 | C6: =POWER(10,-B6) -> 2.51E-17 | D6: 2.64E-01 | E6: 70/265 (26%) | F6: 195/265 (74%) | G6: BIRC2,HSPA13,UBE3B,USP7,DNAJB2,USP1,DNAJC21,FBXW7,PSMB7,UCHL5,USP32,USP48,ELOB,DNAJC6,USP14,UBE2H,UBE2G2,HSP90B1,AMFR,UBE2V1,PSME1,HSPB1,USP15,USP9X,BIRC6,UBB,SUGT1,PSMD1,RPS27A,RBX1,NEDD4L,PSMB6,DNAJA1,UBA52,UBR2,UBE4B,DNAJB12,DNAJC2,UBE2D2,PSMD11,PSMD4,USP8,PSMD9,CDC34,SKP1,DNAJB6,USP20,PSMD2,HSP90AA1,USP4,UBC,BRCA1,UBE2F,UBE2O,USP37,PSMC3,UBR1,BAG1,B2M,UBE2D3,UBE2B,HLA-A,USP34,UBE2L6,USP12,DNAJB4,UBE2K,HSP90AB1,UBE2Q2,USP33
A7: Oxidative Phosphorylation | B7: 1.58E+01 | C7: =POWER(10,-B7) -> 1.58E-16 | D7: 3.76E-01 | E7: 41/109 (38%) | F7: 68/109 (62%) | G7: ATP5S,MT-CYB,COX7B,UQCR10,ATP5PB,NDUFV3,NDUFA1,ATP5PF,MT-CO3,NDUFA5,COX7A2,SDHB,ATP5PO,COX6B1,UQCRH,NDUFA6,UQCR11,ATP5F1B,ATP5F1E,MT-CO1,COX4I1,COX7A2L,SURF1,NDUFA2,ATP5ME,COX6C,NDUFS4,UQCRC2,NDUFA4,NDUFS2,CYB5A,ATP5MG,NDUFA3,COX6A1,ATP5PD,ATP5MF,NDUFB1,NDUFB4,UQCRB,NDUFB2,COX7C
A8: mTOR Signaling | B8: 1.51E+01 | C8: =POWER(10,-B8) -> 7.94E-16 | D8: 2.80E-01 | E8: 58/207 (28%) | F8: 149/207 (72%) | G8: RPS24,RPS5,RAP1A,RPS13,RPS19,EIF3E,FAU,RPS11,RHOT1,MLST8,PIK3C3,RPS6KB1,RAP2A,RPS29,RPS6,AKT1S1,EIF3A,RPS18,RPS7,INSR,EIF3L,EIF4G2,RPS12,RPS16,RPS9,EIF3H,EIF3K,RPS27A,RPS15,RPS27,RICTOR,GAB1,PIK3R1,EIF3B,ATG13,RPS20,PTPN11,RPS15A,RPS8,RPS3A,TSC1,PRR5,EIF3J,EIF4G1,RPS25,PPP2R5B,ATM,RPS2,RPS14,RPSA,RPS3,EIF3D,RPS17,EIF4G3,RPS23,MAPK1,RPS28,RPS4X
A9: Phagosome Maturation | B9: 9.50E+00 | C9: 3.16E-10 | D9: 2.64E-01 | E9: 39/148 (26%) | F9: 109/148 (74%) | G9: ATP6V1D,RILP,ATP6V0D1,NAPA,TUBB1,GOSR1,PRDX1,PRDX6,RAB5C,ATP6V1F,VTI1A,EEA1,CANX,PRDX2,ATP6V0E1,CTSE,ATP6V1E1,GOSR2,PIK3C3,DYNLRB1,TSG101,DYNC1I2,TUBB,DYNC1LI1,RAB5A,B2M,TUBB4B,ATP6V1G1,CALR,HLA-A,RAB5B,PRDX5,DCTN4,CTSB,NAPG,VTI1B,TUBA4A,VPS28,DYNLL1
A10: Hypoxia Signaling in the Cardiovascular System | B10: 8.59E+00 | C10: 2.57E-09 | D10: 3.33E-01 | E10: 25/75 (33%) | F10: 50/75 (67%) | G10: ATF2,PTEN,CREB1,UBE2D2,HIF1AN,CDC34,CREBBP,ARNT,HSP90AA1,UBE2F,UBE2O,UBE2H,UBE2G2,HSP90B1,ATM,UBE2V1,EP300,UBE2D3,UBE2B,ATF4,UBE2L6,BIRC6,UBE2K,HSP90AB1,UBE2Q2
A11: Role of BRCA1 in DNA Damage Response | B11: 6.62E+00 | C11: 2.40E-07 | D11: 2.87E-01 | E11: 23/80 (29%) | F11: 57/80 (71%) | G11: BRCA1,RAD50,RBL2,ATM,BABAM1,HLTF,UIMC1,BARD1,SMARCC2,MRE11,SMARCC1,BRIP1,RBBP8,RFC1,E2F4,ACTB,ARID2,E2F2,ATR,RBL1,BRCA2,RB1,ARID1A
A12: NRF2-mediated Oxidative Stress Response | B12: 6.19E+00 | C12: 6.46E-07 | D12: 2.01E-01 | E12: 40/199 (20%) | F12: 159/199 (80%) | G12: DNAJA1,ABCC4,FTL,DNAJB12,GAB1,PIK3R1,RAP1A,PRDX1,DNAJB2,GSTO1,DNAJC21,PTPN11,ACTB,CDC34,CAT,CREBBP,MAP2K3,DNAJB6,PIK3C3,RAP2A,DNAJA4,DNAJC6,GCLC,USP14,BACH1,TXN,ATM,EP300,SOD1,GSTK1,SOD2,ATF4,DNAJA2,UBB,MAPK1,DNAJB4,UBE2K,FTH1,RBX1,NFE2L2
A13: Sirtuin Signaling Pathway | B13: 6.09E+00 | C13: 8.13E-07 | D13: 1.78E-01 | E13: 52/292 (18%) | F13: 240/292 (82%) | G13: ATP5PB,NDUFA1,FOXO4,NDUFA5,ATG12,SDHB,TIMM23,TIMM17B,ATG3,ATP5F1B,ATG9A,ATP5F1E,GABARAPL2,SOD1,H3F3A/H3F3B,NDUFA2,BECN1,NDUFS4,RBBP8,SOD2,GABARAPL1,UQCRC2,NDUFA4,TUBA4A,SIRT5,TOMM7,FOXO3,NDUFB2,MT-CYB,NDUFV3,ATP5PF,SMARCA5,POLR1D,ATG13,HIST1H1C,NR1H3,NDUFA6,PRKDC,SIRT1,UCP2,SIRT2,SLC2A1,WRN,MAP1LC3B,SLC25A6,NDUFS2,BPGM,NDUFA3,MAPK1,NDUFB1,NDUFB4,NFE2L2
A14: Heme Biosynthesis II | B14: 5.90E+00 | C14: 1.26E-06 | D14: 7.78E-01 | E14: 7/9 (78%) | F14: 2/9 (22%) | G14: PPOX,CPOX,FECH,UROD,HMBS,ALAD,ALAS2
A15: Hereditary Breast Cancer Signaling | B15: 5.66E+00 | C15: 2.19E-06 | D15: 2.13E-01 | E15: 32/150 (21%) | F15: 118/150 (79%) | G15: UBA52,PTEN,BARD1,GAB1,PIK3R1,MRE11,RAP1A,SMARCC1,PTPN11,ACTB,POLR2J,ATR,CREBBP,POLR2I,NPM1,UBC,PIK3C3,RAP2A,BRCA1,RAD50,ATM,EP300,HLTF,SMARCC2,RFC1,HDAC6,ARID2,UBB,RPS27A,BRCA2,RB1,ARID1A
A16: Huntington's Disease Signaling | B16: 5.12E+00 | C16: 7.59E-06 | D16: 1.76E-01 | E16: 44/250 (18%) | F16: 206/250 (82%) | G16: UBA52,ATF2,SOS2,CREB1,ATP5PB,NAPA,GOSR1,GNB1,ATP5PF,GAB1,PSMF1,PIK3R1,PSME4,SDHB,SNCA,VTI1A,PTPN11,POLR2J,CREBBP,NCOR1,POLR2I,ATP5F1B,GOSR2,CAPNS1,UBC,PIK3C3,ATP5F1E,DYNC1I2,RACK1,ATM,EP300,PSME1,ZDHHC17,RCOR3,HDAC6,ATF4,CAPN5,UBB,NAPG,MAPK1,VTI1B,RPS27A,BCL2L1,TGM2
A17: ATM Signaling | B17: 4.96E+00 | C17: 1.10E-05 | D17: 2.35E-01 | E17: 23/98 (23%) | F17: 75/98 (77%) | G17: PPP2R5B,HP1BP3,BRCA1,ATF2,TLK2,CREB1,RNF168,RAD50,ATM,SMC1A,EP300,TLK1,MRE11,USP7,SMC1B,SMC2,SMC3,RBBP8,ATF4,ATR,CREBBP,RAD17,CBX3
A18: Renal Cell Carcinoma Signaling | B18: 4.70E+00 | C18: 2.00E-05 | D18: 2.39E-01 | E18: 21/88 (24%) | F18: 67/88 (76%) | G18: ELOB,UBA52,PAK2,SOS2,CDC42,ATM,EP300,GAB1,PIK3R1,SLC2A1,RAP1A,PTPN11,UBB,MAPK1,CREBBP,ARNT,RPS27A,RBX1,UBC,PIK3C3,RAP2A
A19: Polyamine Regulation in Colon Cancer | B19: 4.26E+00 | C19: 5.50E-05 | D19: 4.09E-01 | E19: 9/22 (41%) | F19: 13/22 (59%) | G19: OAZ1,SAT1,ODC1,OAZ2,PSMF1,PSME1,MAX,AZIN1,PSME4
A20: Heme Biosynthesis from Uroporphyrinogen-III I | B20: 4.22E+00 | C20: 6.03E-05 | D20: 1.00E+00 | E20: 4/4 (100%) | F20: 0/4 (0%) | G20: PPOX,CPOX,FECH,UROD
A21: DNA Double-Strand Break Repair by Homologous Recombination | B21: 4.09E+00 | C21: 8.13E-05 | D21: 5.00E-01 | E21: 7/14 (50%) | F21: 7/14 (50%) | G21: BRCA1,POLA1,RAD50,ATM,BRCA2,ATRX,MRE11
A22: Iron homeostasis signaling pathway | B22: 3.82E+00 | C22: 1.51E-04 | D22: 1.90E-01 | E22: 26/137 (19%) | F22: 111/137 (81%) | G22: ATP6V1D,FTL,CYBRD1,ATP6V0D1,ATP6V1F,ISCU,SKP1,ARNT,SLC48A1,ATP6V0E1,ATP6V1E1,TFRC,SLC40A1,ABCB10,JAK2,SLC25A37,HBD,HBG2,HBB,HBE1,ATP6V1G1,ALAS2,HBA1/HBA2,FECH,MAPK1,FTH1
A23: Prostate Cancer Signaling | B23: 3.65E+00 | C23: 2.24E-04 | D23: 2.04E-01 | E23: 21/103 (20%) | F23: 82/103 (80%) | G23: ATF2,SOS2,PTEN,CREB1,HSP90B1,ATM,EP300,GAB1,PIK3R1,RAP1A,ATF4,PTPN11,MAPK1,CREBBP,PA2G4,HSP90AB1,RB1,HSP90AA1,TFDP1,PIK3C3,RAP2A
A24: Aryl Hydrocarbon Receptor Signaling | B24: 3.61E+00 | C24: 2.45E-04 | D24: 1.84E-01 | E24: 26/141 (18%) | F24: 115/141 (82%) | G24: POLA1,RBL2,GSTO1,ATR,RXRA,ARNT,RBL1,TRIP11,HSP90AA1,NCOA7,HSP90B1,ATM,EP300,GSTK1,NFIA,HSPB1,PTGES3,NFIX,MAPK1,HSP90AB1,RB1,TFDP1,NEDD8,NCOA2,TGM2,NFE2L2
A25: Estrogen Receptor Signaling | B25: 3.58E+00 | C25: 2.63E-04 | D25: 1.87E-01 | E25: 25/134 (19%) | F25: 109/134 (81%) | G25: KAT2B,SOS2,PELP1,TAF3,HNRNPD,RAP1A,MED4,POLR2J,CREBBP,NCOR1,POLR2I,PRKDC,RAP2A,ERCC2,TAF9,TAF2,MED21,EP300,H3F3A/H3F3B,CDK8,MED13,THRAP3,MAPK1,TAF10,NCOA2
A26: Clathrin-mediated Endocytosis Signaling | B26: 3.51E+00 | C26: 3.09E-04 | D26: 1.64E-01 | E26: 34/207 (16%) | F26: 173/207 (84%) | G26: UBA52,CDC42,CD2AP,CHP1,GAB1,PIK3R1,ARRB2,APOM,RAB5C,PTPN11,ACTB,ARPC4,TFRC,UBC,PIK3C3,TSG101,ARPC3,ATM,RAB5A,AP2B1,ACTR3,USP9X,RAB5B,PICALM,PPP3R1,SH3GLB1,UBB,AP2A1,AP2S1,RPS27A,AP2M1,STAM,CSNK2A1,EPS15
A27: Telomerase Signaling | B27: 3.27E+00 | C27: 5.37E-04 | D27: 1.88E-01 | E27: 22/117 (19%) | F27: 95/117 (81%) | G27: PPP2R5B,SOS2,TERF2,HSP90B1,ATM,ELF2,GAB1,PIK3R1,RAP1A,ELF1,HDAC6,TERF1,PTPN11,PTGES3,MAPK1,HSP90AB1,RB1,HSP90AA1,TPP1,PIK3C3,RAP2A,TERF2IP
A28: Cell Cycle: G1/S Checkpoint Regulation | B28: 3.21E+00 | C28: 6.17E-04 | D28: 2.24E-01 | E28: 15/67 (22%) | F28: 52/67 (78%) | G28: RBL2,RPL11,ATM,MAX,E2F4,RPL5,HDAC6,E2F2,SKP1,ATR,RBL1,PA2G4,RB1,PAK1IP1,TFDP1
A29: AMPK Signaling | B29: 3.17E+00 | C29: 6.76E-04 | D29: 1.57E-01 | E29: 34/216 (16%) | F29: 182/216 (84%) | G29: KAT2B,ATF2,PPM1A,CREB1,AK9,PRKAR2B,FOXO4,GAB1,PIK3R1,SMARCC1,EEF2,PTPN11,ACTB,CREBBP,MAP2K3,MLST8,TSC1,PIK3C3,SIRT1,RPS6KB1,PPP2R5B,AKT1S1,ATM,EP300,INSR,HLTF,SMARCC2,SLC2A1,ATF4,GNAS,ARID2,MAPK1,ARID1A,FOXO3
A30: Ephrin Receptor Signaling | B30: 2.99E+00 | C30: 1.02E-03 | D30: 1.62E-01 | E30: 29/179 (16%) | F30: 150/179 (84%) | G30: ATF2,SOS2,CDC42,CREB1,GNA12,GNB1,RAP1A,ROCK2,PTPN11,ARPC4,CREBBP,ROCK1,SDCBP,RAP2A,PAK2,MAP4K4,ITSN1,ARPC3,JAK2,RACK1,CRKL,GRINA,EP300,ACTR3,ATF4,GNAS,ACP1,MAPK1,ITGA4
A31: Insulin Receptor Signaling | B31: 2.96E+00 | C31: 1.10E-03 | D31: 1.70E-01 | E31: 25/147 (17%) | F31: 122/147 (83%) | G31: SOS2,PTEN,PRKAR2B,PPP1R7,FOXO4,GAB1,PIK3R1,RAP1A,INPP5D,PTPN11,INPP5K,TSC1,PIK3C3,RPS6KB1,RAP2A,PPP1R11,JAK2,PPP1R12A,CRKL,ATM,INSR,PPP1CB,MAPK1,STX4,FOXO3
A32: Role of CHK Proteins in Cell Cycle Checkpoint Control | B32: 2.94E+00 | C32: 1.15E-03 | D32: 2.28E-01 | E32: 13/57 (23%) | F32: 44/57 (77%) | G32: PPP2R5B,BRCA1,TLK2,RAD50,ATM,TLK1,CLSPN,MRE11,RFC1,E2F4,E2F2,ATR,RAD17
A33: VEGF Signaling | B33: 2.89E+00 | C33: 1.29E-03 | D33: 1.83E-01 | E33: 20/109 (18%) | F33: 89/109 (82%) | G33: EIF1AX,SOS2,ATM,GAB1,PIK3R1,EIF1,RAP1A,ROCK2,YWHAE,EIF2S2,PTPN11,ACTB,PTK2B,MAPK1,ARNT,ROCK1,BCL2L1,FOXO3,PIK3C3,RAP2A
A34: Actin Cytoskeleton Signaling | B34: 2.88E+00 | C34: 1.32E-03 | D34: 1.50E-01 | E34: 35/233 (15%) | F34: 198/233 (85%) | G34: SOS2,CDC42,ARHGEF12,GNA12,GAB1,PIK3R1,RAP1A,ROCK2,PTPN11,ACTB,ARPC4,ROCK1,IQGAP2,WASF2,PIK3C3,RAP2A,PAK2,MYL4,ARPC3,PPP1R12A,CRKL,MYL12B,ATM,MYL12A,MYH10,ACTR3,PIP4K2A,RDX,BRK1,MYL6,PPP1CB,MAPK1,ITGA4,DIAPH3,SSH2
A35: Lipid Antigen Presentation by CD1 | B35: 2.87E+00 | C35: 1.35E-03 | D35: 3.08E-01 | E35: 8/26 (31%) | F35: 18/26 (69%) | G35: CALR,AP2B1,AP2A1,CANX,PSAP,AP2S1,B2M,AP2M1
A36: Amyotrophic Lateral Sclerosis Signaling | B36: 2.79E+00 | C36: 1.62E-03 | D36: 1.80E-01 | E36: 20/111 (18%) | F36: 91/111 (82%) | G36: BIRC2,RNF19A,GLUL,ATM,GRINA,SOD1,RAB5A,GPX1,GAB1,SSR4,PIK3R1,CCS,RAB5C,RAB5B,CAPN5,PTPN11,CAT,BCL2L1,CAPNS1,PIK3C3
A37: RhoGDI Signaling | B37: 2.75E+00 | C37: 1.78E-03 | D37: 1.58E-01 | E37: 28/177 (16%) | F37: 149/177 (84%) | G37: CDC42,ARHGEF12,GNA12,GNB1,GDI2,ROCK2,ACTB,ARPC4,CREBBP,RHOT1,ROCK1,WASF2,PAK2,MYL4,ARPC3,PPP1R12A,ARHGAP5,RACK1,MYL12B,MYL12A,EP300,ACTR3,CD44,PIP4K2A,RDX,MYL6,GNAS,ITGA4
A38: Breast Cancer Regulation by Stathmin1 | B38: 2.75E+00 | C38: 1.78E-03 | D38: 1.52E-01 | E38: 32/211 (15%) | F38: 179/211 (85%) | G38: SOS2,CDC42,CALM1 (includes others),UHMK1,PRKAR2B,ARHGEF12,TUBB1,PPP1R7,GNB1,PIK3R1,GAB1,RAP1A,ROCK2,E2F4,PTPN11,E2F2,ROCK1,PIK3C3,RAP2A,PPP1R11,PPP2R5B,TSG101,TUBB,PPP1R12A,RB1CC1,RACK1,ATM,TUBB4B,GNAS,PPP1CB,MAPK1,TUBA4A
A39: ERK/MAPK Signaling | B39: 2.69E+00 | C39: 2.04E-03 | D39: 1.52E-01 | E39: 31/204 (15%) | F39: 173/204 (85%) | G39: VRK2,ATF2,SOS2,CREB1,PRKAR2B,PPP1R7,ELF2,GAB1,PIK3R1,RAP1A,ELF1,PTPN11,CREBBP,PIK3C3,RAP2A,PPP1R11,PPP2R5B,PAK2,PPP1R12A,CRKL,ATM,EP300,H3F3A/H3F3B,HSPB1,ATF4,PTK2B,PPP1CB,MKNK1,MAPK1,ITGA4,ARAF
A40: Neurotrophin/TRK Signaling | B40: 2.65E+00 | C40: 2.24E-03 | D40: 1.93E-01 | E40: 16/83 (19%) | F40: 67/83 (81%) | G40: ATF2,SOS2,CDC42,CREB1,ATM,EP300,GAB1,PIK3R1,RAP1A,ATF4,PTPN11,MAPK1,CREBBP,MAP2K3,PIK3C3,RAP2A
A41: RAN Signaling | B41: 2.61E+00 | C41: 2.45E-03 | D41: 3.53E-01 | E41: 6/17 (35%) | F41: 11/17 (65%) | G41: XPO1,KPNA3,KPNA6,KPNA4,KPNA5,TNPO1
A42: Rac Signaling | B42: 2.60E+00 | C42: 2.51E-03 | D42: 1.71E-01 | E42: 21/123 (17%) | F42: 102/123 (83%) | G42: PAK2,CDC42,ARPC3,ANK1,ATM,GAB1,PIK3R1,RAP1A,ACTR3,CD44,PIP4K2A,BRK1,PTPN11,PTK2B,ARPC4,MAPK1,ITGA4,IQGAP2,PIK3C3,RPS6KB1,RAP2A
A43: Actin Nucleation by ARP-WASP Complex | B43: 2.58E+00 | C43: 2.63E-03 | D43: 2.10E-01 | E43: 13/62 (21%) | F43: 49/62 (79%) | G43: SOS2,CDC42,ARPC3,PPP1R12A,GNA12,RAP1A,ROCK2,ACTR3,ARPC4,RHOT1,ROCK1,ITGA4,RAP2A
A44: RhoA Signaling | B44: 2.56E+00 | C44: 2.75E-03 | D44: 1.69E-01 | E44: 21/124 (17%) | F44: 103/124 (83%) | G44: MYL4,ARPC3,PPP1R12A,ARHGAP5,MYL12B,ARHGEF12,MYL12A,GNA12,ROCK2,ACTR3,PIP4K2A,RDX,MYL6,SEPT7,KTN1,ACTB,PTK2B,ARPC4,PPP1CB,ROCK1,RAPGEF2
A45: FLT3 Signaling in Hematopoietic Progenitor Cells | B45: 2.52E+00 | C45: 3.02E-03 | D45: 1.83E-01 | E45: 17/93 (18%) | F45: 76/93 (82%) | G45: ATF2,SOS2,CREB1,ATM,EP300,GAB1,PIK3R1,RAP1A,INPP5D,ATF4,PTPN11,STAT6,MAPK1,CREBBP,PIK3C3,RPS6KB1,RAP2A
A46: Integrin Signaling | B46: 2.49E+00 | C46: 3.24E-03 | D46: 1.46E-01 | E46: 32/219 (15%) | F46: 187/219 (85%) | G46: ASAP1,SOS2,CDC42,PTEN,TSPAN7,GAB1,PIK3R1,RAP1A,PTPN11,ACTB,ARPC4,TSPAN5,RHOT1,ROCK1,CAPNS1,PIK3C3,RAP2A,PAK2,ARPC3,PPP1R12A,ARHGAP5,CRKL,MYL12B,ATM,MYL12A,ACTR3,ARF1,CAPN5,ARF4,PPP1CB,MAPK1,ITGA4
A47: Cell Cycle: G2/M DNA Damage Checkpoint Regulation | B47: 2.44E+00 | C47: 3.63E-03 | D47: 2.20E-01 | E47: 11/50 (22%) | F47: 39/50 (78%) | G47: KAT2B,TOP2A,BRCA1,AURKA,ATM,SKP1,EP300,ATR,TRIP12,YWHAE,PRKDC
A48: ERK5 Signaling | B48: 2.42E+00 | C48: 3.80E-03 | D48: 1.94E-01 | E48: 14/72 (19%) | F48: 58/72 (81%) | G48: ATF2,CREB1,EP300,GNA12,WNK1,GAB1,RAP1A,YWHAE,ATF4,PTPN11,CREBBP,FOXO3,RPS6KB1,RAP2A
A49: Chronic Myeloid Leukemia Signaling | B49: 2.38E+00 | C49: 4.17E-03 | D49: 1.70E-01 | E49: 19/112 (17%) | F49: 93/112 (83%) | G49: SOS2,RBL2,CRKL,ATM,GAB1,PIK3R1,RAP1A,E2F4,HDAC6,PTPN11,E2F2,MAPK1,RBL1,BCL2L1,PA2G4,RB1,TFDP1,PIK3C3,RAP2A
A50: Mitotic Roles of Polo-Like Kinase | B50: 2.34E+00 | C50: 4.57E-03 | D50: 1.97E-01 | E50: 13/66 (20%) | F50: 53/66 (80%) | G50: PPP2R5B,HSP90B1,SMC1A,KIF11,SMC3,SLK,RAD21,CDC26,STAG2,HSP90AB1,PTTG1,HSP90AA1,CDC27
A51: FAK Signaling | B51: 2.33E+00 | C51: 4.68E-03 | D51: 1.71E-01 | E51: 18/105 (17%) | F51: 87/105 (83%) | G51: ASAP1,HMMR,PAK2,SOS2,PTEN,TNS1,ATM,GAB1,PIK3R1,RAP1A,CAPN5,PTPN11,ACTB,MAPK1,ITGA4,CAPNS1,PIK3C3,RAP2A
A52: Regulation of Actin-based Motility by Rho | B52: 2.29E+00 | C52: 5.13E-03 | D52: 1.78E-01 | E52: 16/90 (18%) | F52: 74/90 (82%) | G52: PAK2,CDC42,MYL4,ARPC3,PPP1R12A,MYL12B,MYL12A,ACTR3,PIP4K2A,MYL6,ACTB,ARPC4,PPP1CB,RHOT1,ROCK1,ITGA4
A53: DNA Double-Strand Break Repair by Non-Homologous End Joining | B53: 2.27E+00 | C53: 5.37E-03 | D53: 3.57E-01 | E53: 5/14 (36%) | F53: 9/14 (64%) | G53: RAD50,ATM,MRE11,PRKDC,WRN
A54: PAK Signaling | B54: 2.24E+00 | C54: 5.75E-03 | D54: 1.68E-01 | E54: 18/107 (17%) | F54: 89/107 (83%) | G54: PAK2,SOS2,CDC42,MYL4,MYL12B,ATM,MYL12A,GAB1,PIK3R1,RAP1A,MYL6,PTPN11,PTK2B,MAPK1,ITGA4,PAK1IP1,PIK3C3,RAP2A
A55: Tetrapyrrole Biosynthesis II | B55: 2.22E+00 | C55: 6.03E-03 | D55: 6.00E-01 | E55: 3/5 (60%) | F55: 2/5 (40%) | G55: HMBS,ALAD,ALAS2
A56: Remodeling of Epithelial Adherens Junctions | B56: 2.17E+00 | C56: 6.76E-03 | D56: 1.88E-01 | E56: 13/69 (19%) | F56: 56/69 (81%) | G56: CTNNA1,ARPC3,TUBB,TUBB1,RAB5A,ACTR3,TUBB4B,RAB5C,RAB5B,CLIP1,ACTB,ARPC4,TUBA4A
A57: autophagy | B57: 2.13E+00 | C57: 7.41E-03 | D57: 1.94E-01 | E57: 12/62 (19%) | F57: 50/62 (81%) | G57: ATG3,WIPI1,STX17,RB1CC1,CTSB,CTSE,ATG12,ATG9A,PIK3C3,ATG13,BECN1,MAP1LC3B
A58: Telomere Extension by Telomerase | B58: 2.12E+00 | C58: 7.59E-03 | D58: 3.33E-01 | E58: 5/15 (33%) | F58: 10/15 (67%) | G58: TERF2,TERF1,RAD50,MRE11,TERF2IP
A59: Neuregulin Signaling | B59: 2.10E+00 | C59: 7.94E-03 | D59: 1.70E-01 | E59: 16/94 (17%) | F59: 78/94 (83%) | G59: SOS2,RPS6,PTEN,ERBIN,CRKL,HSP90B1,RNF41,PIK3R1,RAP1A,PTPN11,MAPK1,ITGA4,HSP90AB1,HSP90AA1,RPS6KB1,RAP2A
A60: DNA Methylation and Transcriptional Repression Signaling | B60: 2.08E+00 | C60: 8.32E-03 | D60: 2.35E-01 | E60: 8/34 (24%) | F60: 26/34 (76%) | G60: DNMT1,MECP2,HIST1H4C,ARID4B,H3F3A/H3F3B,RBBP7,SAP18,SUDS3
A61: Protein Kinase A Signaling | B61: 2.08E+00 | C61: 8.32E-03 | D61: 1.25E-01 | E61: 50/401 (12%) | F61: 351/401 (88%) | G61: AKAP13,ADD1,PTEN,PRKAR2B,CHP1,GNB1,RAP1A,ROCK2,YWHAE,ADD2,PTPRA,CDC27,MYL4,H3F3A/H3F3B,EYA3,AKAP7,CDC26,ACP1,PPP3R1,PTK2B,PPP1CB,AKAP9,ATF2,CREB1,CALM1 (includes others),PPP1R7,PTPN4,HIST1H1C,CREM,KDELR1,PTPN11,CREBBP,ROCK1,NFAT5,PPP1R11,PPP1R12A,RACK1,MYL12B,MYL12A,EP300,PTPN2,MYH10,PDE2A,MYL6,ATF4,GNAS,MAPK1,GDE1,PLCL2,CDKN3
A62: p53 Signaling | B62: 2.08E+00 | C62: 8.32E-03 | D62: 1.62E-01 | E62: 18/111 (16%) | F62: 93/111 (84%) | G62: KAT2B,BRCA1,PTEN,ATM,CCNG1,EP300,ST13,GAB1,PIK3R1,PIAS1,STAG1,PTPN11,ATR,BCL2L1,RB1,PRKDC,PIK3C3,SIRT1
A63: Caveolar-mediated Endocytosis Signaling | B63: 2.06E+00 | C63: 8.71E-03 | D63: 1.83E-01 | E63: 13/71 (18%) | F63: 58/71 (82%) | G63: ITSN1,RAB5A,INSR,B2M,FLOT2,RAB5C,HLA-A,RAB5B,COPA,ACTB,COPE,ITGA4,COPZ1
A64: GM-CSF Signaling | B64: 2.05E+00 | C64: 8.91E-03 | D64: 1.77E-01 | E64: 14/79 (18%) | F64: 65/79 (82%) | G64: SOS2,JAK2,RACK1,ATM,GAB1,PIK3R1,RAP1A,PPP3R1,PTPN11,PIM1,MAPK1,BCL2L1,PIK3C3,RAP2A
A65: Glioma Signaling | B65: 2.05E+00 | C65: 8.91E-03 | D65: 1.58E-01 | E65: 19/120 (16%) | F65: 101/120 (84%) | G65: SOS2,PTEN,CALM1 (includes others),RBL2,ATM,IDH3G,GAB1,PIK3R1,RAP1A,E2F4,PTPN11,E2F2,MAPK1,RBL1,PA2G4,RB1,TFDP1,PIK3C3,RAP2A
A66: Melanocyte Development and Pigmentation Signaling | B66: 2.02E+00 | C66: 9.55E-03 | D66: 1.63E-01 | E66: 17/104 (16%) | F66: 87/104 (84%) | G66: ATF2,SOS2,CREB1,PRKAR2B,ATM,EP300,GAB1,PIK3R1,RAP1A,ATF4,GNAS,PTPN11,MAPK1,CREBBP,PIK3C3,RPS6KB1,RAP2A
A67: Glutaryl-CoA Degradation | B67: 1.99E+00 | C67: 1.02E-02 | D67: 3.12E-01 | E67: 5/16 (31%) | F67: 11/16 (69%) | G67: PARK7,CDYL,CA1,HADHA,HADHB
A68: PI3K/AKT Signaling | B68: 1.96E+00 | C68: 1.10E-02 | D68: 1.53E-01 | E68: 20/131 (15%) | F68: 111/131 (85%) | G68: PPP2R5B,SOS2,PTEN,JAK2,HSP90B1,GAB1,PIK3R1,RAP1A,YWHAE,INPP5D,INPP5K,MAPK1,ITGA4,BCL2L1,HSP90AB1,HSP90AA1,TSC1,FOXO3,RPS6KB1,RAP2A
A69: Cdc42 Signaling | B69: 1.92E+00 | C69: 1.20E-02 | D69: 1.44E-01 | E69: 24/167 (14%) | F69: 143/167 (86%) | G69: CDC42BPA,PAK2,ATF2,CDC42,MYL4,ARPC3,PPP1R12A,MYL12B,CDC42SE1,MYL12A,B2M,EXOC3,ACTR3,EXOC6,MYL6,HLA-A,CLIP1,ARPC4,PPP1CB,MAPK1,ITGA4,IQGAP2,DIAPH3,EXOC7
A70: Virus Entry via Endocytic Pathways | B70: 1.88E+00 | C70: 1.32E-02 | D70: 1.55E-01 | E70: 18/116 (16%) | F70: 98/116 (84%) | G70: CDC42,ITSN1,ATM,AP2B1,B2M,GAB1,PIK3R1,RAP1A,HLA-A,PTPN11,ACTB,AP2A1,ITGA4,AP2S1,AP2M1,TFRC,PIK3C3,RAP2A
A71: Cardiac Hypertrophy Signaling | B71: 1.88E+00 | C71: 1.32E-02 | D71: 1.33E-01 | E71: 32/241 (13%) | F71: 209/241 (87%) | G71: ATF2,CREB1,CALM1 (includes others),PRKAR2B,CHP1,GNA12,GNB1,GAB1,PIK3R1,RAP1A,ROCK2,MAP3K13,PTPN11,CREBBP,MAP2K3,RHOT1,ROCK1,PIK3C3,RPS6KB1,RAP2A,MYL4,RACK1,MYL12B,ATM,MYL12A,EP300,HSPB1,MYL6,GNAS,PPP3R1,MAPK1,PLCL2
A72: Non-Small Cell Lung Cancer Signaling | B72: 1.87E+00 | C72: =POWER(10,-B72) -> 1.35E-02 | D72: 1.69E-01 | E72: 14/83 (17%) | F72: 69/83 (83%) | G72: SOS2,ATM,GAB1,PIK3R1,RAP1A,PTPN11,RXRA,MAPK1,PA2G4,RB1,TFDP1,FOXO3,PIK3C3,RAP2A
A73: NGF Signaling | B73: 1.87E+00 | C73: 1.35E-02 | D73: 1.52E-01 | E73: 19/125 (15%) | F73: 106/125 (85%) | G73: ATF2,SOS2,CDC42,CREB1,ATM,EP300,GAB1,PIK3R1,RAP1A,ROCK2,MAP3K13,ATF4,PTPN11,MAPK1,CREBBP,ROCK1,PIK3C3,RPS6KB1,RAP2A
A74: Glucocorticoid Receptor Signaling | B74: 1.87E+00 | C74: 1.35E-02 | D74: 1.25E-01 | E74: 43/345 (12%) | F74: 302/345 (88%) | G74: KAT2B,SOS2,CREB1,CHP1,TAF3,GAB1,PIK3R1,RAP1A,SMARCC1,HMGB1,PTPN11,ACTB,POLR2J,CREBBP,NCOR1,NFAT5,POLR2I,HSP90AA1,PIK3C3,RAP2A,TSG101,ERCC2,KRT1,TAF9,JAK2,TAF2,HSP90B1,ATM,EP300,BAG1,HLTF,SMARCC2,PPP3R1,PBX1,PTGES3,ARID2,MAPK1,TAF10,BCL2L1,HSP90AB1,ARID1A,NCOA2,FOXO3
A75: SAPK/JNK Signaling | B75: 1.79E+00 | C75: 1.62E-02 | D75: 1.55E-01 | E75: 17/110 (15%) | F75: 93/110 (85%) | G75: ATF2,SOS2,CDC42,MAP4K4,CRKL,MAP4K5,HNRNPK,ATM,GNA12,GNB1,GAB1,PIK3R1,RAP1A,MAP3K13,PTPN11,PIK3C3,RAP2A
A76: Role of Oct4 in Mammalian Embryonic Stem Cell Pluripotency | B76: 1.75E+00 | C76: 1.78E-02 | D76: 1.96E-01 | E76: 9/46 (20%) | F76: 37/46 (80%) | G76: BRCA1,FAM208A,PHC3,SH3GLB1,ASH2L,PHB,RB1,WWP2,PCGF6
A77: Pentose Phosphate Pathway (Non-oxidative Branch) | B77: 1.74E+00 | C77: 1.82E-02 | D77: 4.29E-01 | E77: 3/7 (43%) | F77: 4/7 (57%) | G77: TKT,RPIA,TALDO1
A78: fMLP Signaling in Neutrophils | B78: 1.73E+00 | C78: 1.86E-02 | D78: 1.47E-01 | E78: 19/129 (15%) | F78: 110/129 (85%) | G78: CDC42,ARPC3,CALM1 (includes others),RACK1,ATM,CHP1,GNB1,GAB1,PIK3R1,RAP1A,ACTR3,GNAS,PPP3R1,PTPN11,ARPC4,MAPK1,NFAT5,PIK3C3,RAP2A
A79: Endometrial Cancer Signaling | B79: 1.73E+00 | C79: 1.86E-02 | D79: 1.71E-01 | E79: 12/70 (17%) | F79: 58/70 (83%) | G79: CTNNA1,SOS2,PTEN,PTPN11,ATM,MAPK1,GAB1,PIK3R1,RAP1A,FOXO3,PIK3C3,RAP2A
A80: IL-4 Signaling | B80: 1.72E+00 | C80: 1.91E-02 | D80: 1.58E-01 | E80: 15/95 (16%) | F80: 80/95 (84%) | G80: SOS2,JAK2,ATM,GAB1,PIK3R1,RAP1A,INPP5D,HLA-A,PTPN11,INPP5K,STAT6,NFAT5,PIK3C3,RPS6KB1,RAP2A
A81: PDGF Signaling | B81: 1.68E+00 | C81: 2.09E-02 | D81: 1.56E-01 | E81: 15/96 (16%) | F81: 81/96 (84%) | G81: SOS2,JAK2,CRKL,ATM,GAB1,PIK3R1,RAP1A,INPP5D,ACP1,PTPN11,INPP5K,MAPK1,CSNK2A1,PIK3C3,RAP2A
A82: Sumoylation Pathway | B82: 1.68E+00 | C82: 2.09E-02 | D82: 1.56E-01 | E82: 15/96 (16%) | F82: 81/96 (84%) | G82: SP100,EP300,SENP6,GDI2,SERBP1,PIAS1,RFC1,SNCA,SENP7,KDM1A,CREBBP,RHOT1,TDG,SIRT1,ISG20
A83: B Cell Receptor Signaling | B83: 1.67E+00 | C83: 2.14E-02 | D83: 1.34E-01 | E83: 26/194 (13%) | F83: 168/194 (87%) | G83: ATF2,SOS2,CDC42,PTEN,CREB1,CALM1 (includes others),GAB1,PIK3R1,RAP1A,MAP3K13,INPP5D,PTPN11,INPP5K,CREBBP,MAP2K3,NFAT5,PIK3C3,RPS6KB1,RAP2A,ATM,EP300,ATF4,PPP3R1,PTK2B,MAPK1,BCL2L1
A84: Tight Junction Signaling | B84: 1.66E+00 | C84: 2.19E-02 | D84: 1.38E-01 | E84: 23/167 (14%) | F84: 144/167 (86%) | G84: CTNNA1,PPP2R5B,CDC42,PTEN,MYL4,PRKAR2B,YBX3,NAPA,GOSR1,MYH10,CPSF6,RAB13,MYL6,EPB41,VTI1A,ACTB,NAPG,VTI1B,VAPA,SAFB,STX4,GOSR2,CPSF2
A85: Hypusine Biosynthesis | B85: 1.66E+00 | C85: 2.19E-02 | D85: 6.67E-01 | E85: 2/3 (67%) | F85: 1/3 (33%) | G85: DHPS,EIF5A
A86: Oxidized GTP and dGTP Detoxification | B86: 1.66E+00 | C86: 2.19E-02 | D86: 6.67E-01 | E86: 2/3 (67%) | F86: 1/3 (33%) | G86: NUDT1,DDX6
A87: Cell Cycle Control of Chromosomal Replication | B87: 1.63E+00 | C87: 2.34E-02 | D87: 1.79E-01 | E87: 10/56 (18%) | F87: 46/56 (82%) | G87: DNA2,TOP2A,POLA1,CDK11B,CDK12,CDK8,DBF4,PRIM1,CDK13,ORC3
A88: Unfolded protein response | B88: 1.63E+00 | C88: 2.34E-02 | D88: 1.79E-01 | E88: 10/56 (18%) | F88: 46/56 (82%) | G88: CALR,ATF4,DNAJA2,UBXN4,HSP90B1,EIF2A,AMFR,CANX,CD82,NFE2L2
A89: Signaling by Rho Family GTPases | B89: 1.63E+00 | C89: 2.34E-02 | D89: 1.27E-01 | E89: 32/252 (13%) | F89: 220/252 (87%) | G89: CDC42,ARHGEF12,GNA12,GNB1,GAB1,PIK3R1,ROCK2,CLIP1,PTPN11,ACTB,ARPC4,RHOT1,ROCK1,PIK3C3,PAK2,MYL4,ARPC3,PPP1R12A,RACK1,MYL12B,ATM,MYL12A,ACTR3,PIP4K2A,RDX,MYL6,SEPT7,GNAS,PTK2B,MAPK1,ITGA4,DIAPH3
A90: IL-3 Signaling | B90: 1.62E+00 | C90: 2.40E-02 | D90: 1.57E-01 | E90: 14/89 (16%) | F90: 75/89 (84%) | G90: JAK2,CRKL,ATM,CHP1,GAB1,PIK3R1,RAP1A,INPP5D,PPP3R1,PTPN11,STAT6,MAPK1,PIK3C3,RAP2A
A91: Ephrin B Signaling | B91: 1.59E+00 | C91: 2.57E-02 | D91: 1.64E-01 | E91: 12/73 (16%) | F91: 61/73 (84%) | G91: CDC42,GNAS,ACP1,ITSN1,RACK1,HNRNPK,ITSN2,GNA12,GNB1,MAPK1,ROCK1,ROCK2
A92: PTEN Signaling | B92: 1.58E+00 | C92: 2.63E-02 | D92: 1.44E-01 | E92: 18/125 (14%) | F92: 107/125 (86%) | G92: SOS2,CDC42,PTEN,INSR,FOXO4,MCRS1,PIK3R1,RAP1A,INPP5D,SHARPIN,INPP5K,MAPK1,ITGA4,BCL2L1,FOXO3,CSNK2A1,RPS6KB1,RAP2A
A93: Granzyme A Signaling | B93: 1.57E+00 | C93: 2.69E-02 | D93: 2.50E-01 | E93: 5/20 (25%) | F93: 15/20 (75%) | G93: HIST1H1C,HMGB2,EP300,CREBBP,SET
A94: Superoxide Radicals Degradation | B94: 1.56E+00 | C94: 2.75E-02 | D94: 3.75E-01 | E94: 3/8 (38%) | F94: 5/8 (63%) | G94: SOD2,CAT,SOD1
A95: FGF Signaling | B95: 1.55E+00 | C95: 2.82E-02 | D95: 1.54E-01 | E95: 14/91 (15%) | F95: 77/91 (85%) | G95: ATF2,SOS2,CREB1,CRKL,ATM,EP300,GAB1,PIK3R1,ATF4,PTPN11,MAPK1,CREBBP,MAP2K3,PIK3C3
A96: Synaptic Long Term Potentiation | B96: 1.55E+00 | C96: 2.82E-02 | D96: 1.43E-01 | E96: 18/126 (14%) | F96: 108/126 (86%) | G96: ATF2,CREB1,CALM1 (includes others),PPP1R12A,PRKAR2B,CHP1,GRINA,EP300,PPP1R7,RAP1A,ATF4,PPP3R1,PPP1CB,MAPK1,CREBBP,PLCL2,RAP2A,PPP1R11
A97: RAR Activation | B97: 1.54E+00 | C97: 2.88E-02 | D97: 1.32E-01 | E97: 25/190 (13%) | F97: 165/190 (87%) | G97: KAT2B,RPL7A,PTEN,PRKAR2B,PIK3R1,TRIM24,SMARCC1,PNRC1,SNW1,ACTB,RXRA,CREBBP,NCOR1,REL,ERCC2,JAK2,EP300,HLTF,SMARCC2,PRMT2,ARID2,MAPK1,TNIP1,ARID1A,CSNK2A1
A98: PPAR Signaling | B98: 1.50E+00 | C98: 3.16E-02 | D98: 1.49E-01 | E98: 15/101 (15%) | F98: 86/101 (85%) | G98: SOS2,MAP4K4,HSP90B1,EP300,INSR,RAP1A,SNW1,NR1H3,RXRA,MAPK1,CREBBP,NCOR1,HSP90AB1,HSP90AA1,RAP2A
A99: Androgen Signaling | B99: 1.49E+00 | C99: 3.24E-02 | D99: 1.39E-01 | E99: 19/137 (14%) | F99: 118/137 (86%) | G99: KAT2B,NCOA4,ERCC2,CALM1 (includes others),PRKAR2B,RACK1,TAF2,EP300,GNA12,GNB1,CALR,GNAS,POLR2J,MAPK1,CREBBP,KAT7,POLR2I,HSP90AA1,NCOA2
A100: Role of p14/p19ARF in Tumor Suppression | B100: 1.49E+00 | C100: 3.24E-02 | D100: 1.86E-01 | E100: 8/43 (19%) | F100: 35/43 (81%) | G100: PTPN11,ATM,GAB1,PIK3R1,RB1,NPM1,TTF1,PIK3C3
A101: Sertoli Cell-Sertoli Cell Junction Signaling | B101: 1.46E+00 | C101: 3.47E-02 | D101: 1.30E-01 | E101: 24/184 (13%) | F101: 160/184 (87%) | G101: CTNNA1,ATF2,CDC42,PTEN,EPN2,DLG1,TUBB,PRKAR2B,YBX3,TUBB1,SPTA1,RAP1A,MAP3K13,TUBB4B,EPB41,ACTB,MPP6,AGGF1,MAPK1,MAP2K3,TUBA4A,ITGA4,SPTB,RAP2A
A102: Small Cell Lung Cancer Signaling | B102: 1.45E+00 | C102: 3.55E-02 | D102: 1.53E-01 | E102: 13/85 (15%) | F102: 72/85 (85%) | G102: BIRC2,PTEN,ATM,GAB1,PIK3R1,MAX,PTPN11,RXRA,BCL2L1,PA2G4,RB1,TFDP1,PIK3C3
A103: Role of JAK1 and JAK3 in Î³c Cytokine Signaling | B103: 1.43E+00 | C103: 3.72E-02 | D103: 1.56E-01 | E103: 12/77 (16%) | F103: 65/77 (84%) | G103: JAK2,PTPN11,PTK2B,ATM,STAT6,MAPK1,GAB1,PIK3R1,IL15RA,RAP1A,PIK3C3,RAP2A
A104: Estrogen-Dependent Breast Cancer Signaling | B104: 1.42E+00 | C104: 3.80E-02 | D104: 1.51E-01 | E104: 13/86 (15%) | F104: 73/86 (85%) | G104: ATF2,CREB1,ATM,EP300,GAB1,PIK3R1,RAP1A,ATF4,PTPN11,MAPK1,CREBBP,PIK3C3,RAP2A
A105: Sucrose Degradation V (Mammalian) | B105: 1.41E+00 | C105: 3.89E-02 | D105: 3.33E-01 | E105: 3/9 (33%) | F105: 6/9 (67%) | G105: TKFC,TPI1,ALDOA
A106: Melanoma Signaling | B106: 1.40E+00 | C106: 3.98E-02 | D106: 1.64E-01 | E106: 10/61 (16%) | F106: 51/61 (84%) | G106: PTEN,PTPN11,ATM,MAPK1,GAB1,PIK3R1,RB1,RAP1A,PIK3C3,RAP2A
A107: Aldosterone Signaling in Epithelial Cells | B107: 1.40E+00 | C107: 3.98E-02 | D107: 1.31E-01 | E107: 22/168 (13%) | F107: 146/168 (87%) | G107: DNAJC6,SOS2,DNAJA1,HSP90B1,ATM,HSPA13,DNAJB12,DNAJC2,GAB1,PIK3R1,PIP4K2A,HSPB1,DNAJB2,DNAJC21,PTPN11,MAPK1,DNAJB4,PLCL2,DNAJB6,HSP90AB1,HSP90AA1,PIK3C3
A108: Epithelial Adherens Junction Signaling | B108: 1.38E+00 | C108: 4.17E-02 | D108: 1.33E-01 | E108: 20/150 (13%) | F108: 130/150 (87%) | G108: CTNNA1,CDC42,PTEN,MYL4,EPN2,ARPC3,TUBB,TUBB1,FER,MYH10,RAP1A,ACTR3,TUBB4B,MYL6,CLIP1,ACTB,ARPC4,AGGF1,TUBA4A,RAP2A
A109: Arsenate Detoxification I (Glutaredoxin) | B109: 1.38E+00 | C109: 4.17E-02 | D109: 5.00E-01 | E109: 2/4 (50%) | F109: 2/4 (50%) | G109: GSTO1,PNP
A110: Spermine and Spermidine Degradation I | B110: 1.38E+00 | C110: 4.17E-02 | D110: 5.00E-01 | E110: 2/4 (50%) | F110: 2/4 (50%) | G110: SMOX,SAT1
A111: IL-2 Signaling | B111: 1.37E+00 | C111: 4.27E-02 | D111: 1.57E-01 | E111: 11/70 (16%) | F111: 59/70 (84%) | G111: SOS2,PTPN11,PTK2B,ATM,MAPK1,GAB1,PIK3R1,RAP1A,CSNK2A1,PIK3C3,RAP2A
A112: Salvage Pathways of Pyrimidine Ribonucleotides | B112: 1.34E+00 | C112: 4.57E-02 | D112: 1.44E-01 | E112: 14/97 (14%) | F112: 83/97 (86%) | G112: PAK2,AK9,APOBEC2,HIPK1,CDK8,CMPK1,NME4,PIM1,PRPF4B,MAPK1,MAP2K3,ARAF,GRK6,CMPK2
A113: Vitamin-C Transport | B113: 1.33E+00 | C113: 4.68E-02 | D113: 2.50E-01 | E113: 4/16 (25%) | F113: 12/16 (75%) | G113: GSTO1,TXN,SLC2A1,TXNRD2
A114: JAK/Stat Signaling | B114: 1.31E+00 | C114: 4.90E-02 | D114: 1.46E-01 | E114: 13/89 (15%) | F114: 76/89 (85%) | G114: SOS2,JAK2,ATM,GAB1,PIK3R1,PIAS1,RAP1A,PTPN11,STAT6,MAPK1,BCL2L1,PIK3C3,RAP2A
A115: Thrombin Signaling | B115: 1.30E+00 | C115: 5.01E-02 | D115: 1.24E-01 | E115: 26/210 (12%) | F115: 184/210 (88%) | G115: CREB1,ARHGEF12,GNA12,GNB1,GAB1,PIK3R1,RAP1A,ROCK2,PTPN11,RHOT1,ROCK1,PIK3C3,RPS6KB1,RAP2A,MYL4,PPP1R12A,RACK1,MYL12B,ATM,MYL12A,GATA1,MYL6,GNAS,PPP1CB,MAPK1,PLCL2
A116: © 2000-2018 QIAGEN. All rights reserved.

Sheet Supplementary Table 7
A1: Supplementary Table 7. Pathway enrichment of expressed genes in EVs using QIAGEN’s Ingenuity® Pathway Analysis (IPA®, QIAGEN Redwood City, www.qiagen.com/ingenuity) (release summer, 2018). The significance values are calculated by Fisher's exact test right-tailed. Cut off -log(p-value) 1.3 corresponds to p value < 0.05. The ratio is calculated as follows: # of genes in a given pathway that meet the cutoff criteria, divided by the total # of genes that make up that pathway.
A2: Ingenuity Canonical Pathways | B2: -log(p-value) | C2: p-value | D2: Ratio | E2: Overlaps with dataset | F2: No overlap with dataset | G2: Molecules
A3: EIF2 Signaling | B3: 6.39E+01 | C3: =POWER(10,-B3) -> 1.26E-64 | D3: 3.48E-01 | E3: 79/227 (35%) | F3: 148/227 (65%) | G3: EIF5B,RPL13A,RPL32,RPS24,RPL37A,RPL23,RPLP1,RPS5,RPL26,RPS13,RPS19,RPL8,ACTB,FAU,RPS11,RPL29,RPL14,RPL27A,RPL19,RPL30,RPS29,RPL39,RPS6,RPS18,RPL11,RPLP2,RPL35,PABPC1,RPS7,RPL22,EIF1,EIF4G2,RPS12,RPS16,RPLP0,RPL7,RPS9,RPL36,PPP1CB,RPS27A,RPL15,RPL27,UBA52,RPS26,RPS27,RPL35A,RPS20,RPL6,RPL12,RPL5,RPL9,EIF2AK1,RPL28,RPL38,RPS15A,RPL37,RPL3,RPL31,RPS8,RPS3A,RPL41,RPL4,EIF3J,RPL18A,RPS25,RPL21,RPL13,RPS14,RPSA,RPL23A,RPS3,RPL24,RPL18,RPS17,RPL36AL,RPL34,RPS23,RPS4X,RPL10
A4: Oxidative Phosphorylation | B4: 2.45E+01 | C4: 3.16E-25 | D4: 3.03E-01 | E4: 33/109 (30%) | F4: 76/109 (70%) | G4: ATP5S,MT-CYB,COX7B,MT-ND5,MT-ND3,NDUFA1,MT-CO3,MT-ND2,MT-ND1,COX7A2,COX6B1,UQCRH,UQCR11,MT-ND4L,NDUFS5,ATP5F1A,MT-ND4,ATP5F1E,MT-ATP6,MT-CO1,COX4I1,NDUFA2,NDUFA4,UQCRQ,ATP5MG,NDUFA3,COX6A1,ATP5MF,MT-CO2,NDUFB1,NDUFB4,UQCRB,COX7C
A5: Mitochondrial Dysfunction | B5: 2.38E+01 | C5: =POWER(10,-B5) -> 1.58E-24 | D5: 2.28E-01 | E5: 39/171 (23%) | F5: 132/171 (77%) | G5: ATP5S,MT-CYB,COX7B,MT-ND5,MT-ND3,NDUFA1,MT-CO3,MT-ND2,MT-ND1,FIS1,COX7A2,SNCA,COX6B1,UQCRH,UQCR11,MT-ND4L,NDUFS5,ATP5F1A,MT-ND6,MT-ND4,ATP5F1E,MT-ATP6,UCP2,MT-CO1,COX4I1,NDUFA2,SOD2,NDUFA4,UQCRQ,PRDX5,ATP5MG,NDUFA3,COX6A1,ATP5MF,MT-CO2,NDUFB1,NDUFB4,UQCRB,COX7C
A6: Regulation of eIF4 and p70S6K Signaling | B6: 1.75E+01 | C6: =POWER(10,-B6) -> 3.16E-18 | D6: 1.96E-01 | E6: 32/163 (20%) | F6: 131/163 (80%) | G6: RPS26,RPS27,RPS24,RPS5,RPS20,RPS13,RPS19,RPS15A,FAU,RPS11,RPS8,RPS3A,EIF3J,PAIP2,RPS25,RPS29,RPS6,RPS18,PABPC1,RPS7,EIF1,EIF4G2,RPS14,RPSA,RPS12,RPS3,RPS16,RPS9,RPS17,RPS23,RPS27A,RPS4X
A7: mTOR Signaling | B7: 1.28E+01 | C7: 1.58E-13 | D7: 1.45E-01 | E7: 30/207 (14%) | F7: 177/207 (86%) | G7: RPS26,RPS27,RPS24,RPS5,RPS20,RPS13,RPS19,RPS15A,FAU,RPS11,RPS8,RPS3A,EIF3J,RPS25,RPS29,RPS6,RPS18,RPS7,EIF4G2,RPS14,RPSA,RPS12,RPS3,RHOG,RPS16,RPS9,RPS17,RPS23,RPS27A,RPS4X
A8: Sirtuin Signaling Pathway | B8: 1.09E+01 | C8: 1.26E-11 | D8: 1.13E-01 | E8: 33/292 (11%) | F8: 259/292 (89%) | G8: MT-CYB,MT-ND5,MT-ND3,NDUFA1,POLR1D,MT-ND2,MT-ND1,TUBA1A,MT-ND4L,PGK1,NDUFS5,ATP5F1A,MT-ND6,MT-ND4,ATP5F1E,GABARAPL2,MT-ATP6,UCP2,H3F3A/H3F3B,SLC2A1,NDUFA2,BECN1,SOD2,NDUFA4,BPGM,NDUFA3,TUBA1B,TUBA4A,NDUFB1,TOMM7,NDUFB4,FOXO3,LDHB
A9: Protein Ubiquitination Pathway | B9: 1.00E+01 | C9: 1.00E-10 | D9: 1.13E-01 | E9: 30/265 (11%) | F9: 235/265 (89%) | G9: BIRC2,DNAJA1,UBA52,UBR2,PSMB1,PSMA7,SKP1,USP20,HSP90AA1,UBC,USP32,ELOB,UBE2H,PSMC3,BAG1,B2M,PSME1,USP10,UBE2D3,HSPB1,USP15,UBE2B,HLA-A,USP34,USP12,UBB,RPS27A,HLA-B,DNAJB4,RBX1
A10: Regulation of Actin-based Motility by Rho | B10: 5.87E+00 | C10: 1.35E-06 | D10: 1.44E-01 | E10: 13/90 (14%) | F10: 77/90 (86%) | G10: CDC42,MYL4,ARPC3,MYL12B,MYL12A,RAC2,PIP4K2A,RHOG,ARPC5,MYL6,CFL1,ACTB,PPP1CB
A11: Polyamine Regulation in Colon Cancer | B11: 5.80E+00 | C11: 1.58E-06 | D11: 3.18E-01 | E11: 7/22 (32%) | F11: 15/22 (68%) | G11: OAZ1,TCF4,SAT1,OAZ2,PSME1,PSMF1,MAX
A12: Glycolysis I | B12: 5.26E+00 | C12: 5.50E-06 | D12: 2.69E-01 | E12: 7/26 (27%) | F12: 19/26 (73%) | G12: TPI1,BPGM,PGK1,ALDOA,PKM,GAPDH,ENO1
A13: Phagosome Maturation | B13: 4.72E+00 | C13: 1.91E-05 | D13: 1.01E-01 | E13: 15/148 (10%) | F13: 133/148 (90%) | G13: DYNLRB1,NAPA,B2M,PRDX6,TUBA1A,HLA-A,PRDX5,CTSB,TUBA1B,TUBA4A,VPS28,HLA-B,PRDX2,CTSE,DYNLL1
A14: RhoGDI Signaling | B14: 4.38E+00 | C14: 4.17E-05 | D14: 9.04E-02 | E14: 16/177 (9%) | F14: 161/177 (91%) | G14: CDC42,MYL4,ARPC3,RACK1,MYL12B,ARHGEF12,MYL12A,CD44,PIP4K2A,ARHGDIB,RHOG,ARPC5,MYL6,CFL1,GNAS,ACTB
A15: Lipid Antigen Presentation by CD1 | B15: 4.17E+00 | C15: 6.76E-05 | D15: 2.31E-01 | E15: 6/26 (23%) | F15: 20/26 (77%) | G15: AP2B1,PSAP,FCER1G,AP2S1,B2M,AP2M1
A16: Cdc42 Signaling | B16: 4.11E+00 | C16: 7.76E-05 | D16: 8.98E-02 | E16: 15/167 (9%) | F16: 152/167 (91%) | G16: CDC42BPA,CDC42,HLA-E,MYL4,ARPC3,MYL12B,MYL12A,FCER1G,B2M,ARPC5,MYL6,CFL1,HLA-A,PPP1CB,HLA-B
A17: Iron homeostasis signaling pathway | B17: 3.31E+00 | C17: 4.90E-04 | D17: 8.76E-02 | E17: 12/137 (9%) | F17: 125/137 (91%) | G17: FTL,CYBRD1,SLC25A37,HBD,FECH,HBA1/HBA2,SKP1,SLC48A1,HBG2,HBB,HBE1,ALAS2
A18: Gluconeogenesis I | B18: 3.16E+00 | C18: 6.92E-04 | D18: 1.92E-01 | E18: 5/26 (19%) | F18: 21/26 (81%) | G18: BPGM,PGK1,ALDOA,GAPDH,ENO1
A19: RhoA Signaling | B19: 3.12E+00 | C19: 7.59E-04 | D19: 8.87E-02 | E19: 11/124 (9%) | F19: 113/124 (91%) | G19: ARPC5,MYL6,MYL4,CFL1,ARPC3,ACTB,MYL12B,ARHGEF12,MYL12A,PPP1CB,PIP4K2A
A20: Clathrin-mediated Endocytosis Signaling | B20: 3.10E+00 | C20: 7.94E-04 | D20: 7.25E-02 | E20: 15/207 (7%) | F20: 192/207 (93%) | G20: UBA52,S100A8,CDC42,ARPC3,CSNK2B,AP2B1,ARRB2,ARPC5,ACTB,UBB,RPS27A,AP2S1,AP2M1,CSNK2A1,UBC
A21: Virus Entry via Endocytic Pathways | B21: 2.79E+00 | C21: 1.62E-03 | D21: 8.62E-02 | E21: 10/116 (9%) | F21: 106/116 (91%) | G21: CDC42,HLA-A,ITSN1,ACTB,AP2B1,HLA-B,AP2S1,B2M,AP2M1,RAC2
A22: DNA Methylation and Transcriptional Repression Signaling | B22: 2.61E+00 | C22: 2.45E-03 | D22: 1.47E-01 | E22: 5/34 (15%) | F22: 29/34 (85%) | G22: ARID4B,HIST1H4C,H3F3A/H3F3B,SAP18,SUDS3
A23: Cell Cycle: G1/S Checkpoint Regulation | B23: 2.57E+00 | C23: 2.69E-03 | D23: 1.04E-01 | E23: 7/67 (10%) | F23: 60/67 (90%) | G23: CCND3,RPL5,RPL11,E2F2,SKP1,PA2G4,MAX
A24: Renal Cell Carcinoma Signaling | B24: 2.48E+00 | C24: 3.31E-03 | D24: 9.09E-02 | E24: 8/88 (9%) | F24: 80/88 (91%) | G24: ELOB,UBA52,CDC42,UBB,RPS27A,SLC2A1,RBX1,UBC
A25: Antigen Presentation Pathway | B25: 2.40E+00 | C25: 3.98E-03 | D25: 1.32E-01 | E25: 5/38 (13%) | F25: 33/38 (87%) | G25: HLA-E,HLA-A,CD74,HLA-B,B2M
A26: Ephrin B Signaling | B26: 2.36E+00 | C26: 4.37E-03 | D26: 9.59E-02 | E26: 7/73 (10%) | F26: 66/73 (90%) | G26: CDC42,CFL1,GNAS,ITSN1,HNRNPK,RACK1,RAC2
A27: GABA Receptor Signaling | B27: 2.28E+00 | C27: 5.25E-03 | D27: 8.42E-02 | E27: 8/95 (8%) | F27: 87/95 (92%) | G27: UBA52,GNAS,UBB,AP2B1,RPS27A,AP2S1,AP2M1,UBC
A28: Actin Cytoskeleton Signaling | B28: 2.20E+00 | C28: 6.31E-03 | D28: 6.01E-02 | E28: 14/233 (6%) | F28: 219/233 (94%) | G28: CDC42,MYL4,ARPC3,MYL12B,ARHGEF12,MYL12A,RAC2,PIP4K2A,ARPC5,MYL6,CFL1,ACTB,PPP1CB,TMSB10/TMSB4X
A29: Epithelial Adherens Junction Signaling | B29: 2.00E+00 | C29: 1.00E-02 | D29: 6.67E-02 | E29: 10/150 (7%) | F29: 140/150 (93%) | G29: ARPC5,MYL6,TUBA1A,CDC42,MYL4,ARPC3,ACTB,TCF4,TUBA1B,TUBA4A
A30: Cytotoxic T Lymphocyte-mediated Apoptosis of Target Cells | B30: 1.93E+00 | C30: 1.17E-02 | D30: 1.25E-01 | E30: 4/32 (13%) | F30: 28/32 (88%) | G30: HLA-A,HLA-B,FCER1G,B2M
A31: Signaling by Rho Family GTPases | B31: 1.91E+00 | C31: 1.23E-02 | D31: 5.56E-02 | E31: 14/252 (6%) | F31: 238/252 (94%) | G31: CDC42,MYL4,ARPC3,RACK1,MYL12B,ARHGEF12,MYL12A,PIP4K2A,RHOG,ARPC5,MYL6,CFL1,GNAS,ACTB
A32: Remodeling of Epithelial Adherens Junctions | B32: 1.89E+00 | C32: 1.29E-02 | D32: 8.70E-02 | E32: 6/69 (9%) | F32: 63/69 (91%) | G32: ARPC5,TUBA1A,ARPC3,ACTB,TUBA1B,TUBA4A
A33: Pentose Phosphate Pathway (Non-oxidative Branch) | B33: 1.82E+00 | C33: 1.51E-02 | D33: 2.86E-01 | E33: 2/7 (29%) | F33: 5/7 (71%) | G33: RPIA,TALDO1
A34: Interferon Signaling | B34: 1.75E+00 | C34: 1.78E-02 | D34: 1.11E-01 | E34: 4/36 (11%) | F34: 32/36 (89%) | G34: IFITM1,IFITM2,PIAS1,IFITM3
A35: Integrin Signaling | B35: 1.67E+00 | C35: 2.14E-02 | D35: 5.48E-02 | E35: 12/219 (5%) | F35: 207/219 (95%) | G35: RHOG,ARF1,ARPC5,CDC42,ARPC3,ACTB,MYL12B,MYL12A,ARF4,TSPAN5,PPP1CB,RAC2
A36: CTLA4 Signaling in Cytotoxic T Lymphocytes | B36: 1.67E+00 | C36: 2.14E-02 | D36: 7.07E-02 | E36: 7/99 (7%) | F36: 92/99 (93%) | G36: HLA-A,AP2B1,HLA-B,FCER1G,AP2S1,B2M,AP2M1
A37: Sucrose Degradation V (Mammalian) | B37: 1.60E+00 | C37: 2.51E-02 | D37: 2.22E-01 | E37: 2/9 (22%) | F37: 7/9 (78%) | G37: TPI1,ALDOA
A38: Heme Biosynthesis II | B38: 1.60E+00 | C38: 2.51E-02 | D38: 2.22E-01 | E38: 2/9 (22%) | F38: 7/9 (78%) | G38: FECH,ALAS2
A39: Huntington's Disease Signaling | B39: 1.60E+00 | C39: 2.51E-02 | D39: 5.20E-02 | E39: 13/250 (5%) | F39: 237/250 (95%) | G39: ATP5F1E,UBA52,RACK1,NAPA,PSME1,PSMF1,SNCA,POLR2J,UBB,ATP5F1A,BCL2L1,RPS27A,UBC
A40: Mechanisms of Viral Exit from Host Cells | B40: 1.56E+00 | C40: 2.75E-02 | D40: 9.76E-02 | E40: 4/41 (10%) | F40: 37/41 (90%) | G40: ACTB,CHMP2A,VPS28,CHMP3
A41: Glutamine Biosynthesis I | B41: 1.55E+00 | C41: 2.82E-02 | D41: 1.00E+00 | E41: 1/1 (100%) | F41: 0/1 (0%) | G41: GLUL
A42: Glutathione Redox Reactions I | B42: 1.54E+00 | C42: 2.88E-02 | D42: 1.25E-01 | E42: 3/24 (13%) | F42: 21/24 (88%) | G42: PRDX6,GPX1,GSTK1
A43: Germ Cell-Sertoli Cell Junction Signaling | B43: 1.52E+00 | C43: 3.02E-02 | D43: 5.59E-02 | E43: 10/179 (6%) | F43: 169/179 (94%) | G43: RHOG,TUBA1A,CDC42,CFL1,ACTB,TUBA1B,TUBA4A,MAP2K3,RAC2,MAP3K13
A44: Cellular Effects of Sildenafil (Viagra) | B44: 1.50E+00 | C44: 3.16E-02 | D44: 6.11E-02 | E44: 8/131 (6%) | F44: 123/131 (94%) | G44: MYL6,MYL4,GNAS,CALM1 (includes others),ACTB,MYL12B,MYL12A,PPP1CB
A45: Pentose Phosphate Pathway | B45: 1.44E+00 | C45: 3.63E-02 | D45: 1.82E-01 | E45: 2/11 (18%) | F45: 9/11 (82%) | G45: RPIA,TALDO1
A46: OX40 Signaling Pathway | B46: 1.37E+00 | C46: 4.27E-02 | D46: 6.59E-02 | E46: 6/91 (7%) | F46: 85/91 (93%) | G46: HLA-E,HLA-A,BCL2L1,HLA-B,FCER1G,B2M
A47: Autoimmune Thyroid Disease Signaling | B47: 1.34E+00 | C47: 4.57E-02 | D47: 8.33E-02 | E47: 4/48 (8%) | F47: 44/48 (92%) | G47: HLA-E,HLA-A,HLA-B,FCER1G
A48: Graft-versus-Host Disease Signaling | B48: 1.34E+00 | C48: 4.57E-02 | D48: 8.33E-02 | E48: 4/48 (8%) | F48: 44/48 (92%) | G48: HLA-E,HLA-A,HLA-B,FCER1G
A49: Aryl Hydrocarbon Receptor Signaling | B49: 1.34E+00 | C49: 4.57E-02 | D49: 5.67E-02 | E49: 8/141 (6%) | F49: 133/141 (94%) | G49: HSPB1,CCND3,PTGES3,NFIX,GSTK1,NFIA,HSP90AA1,NEDD8
A50: FcÎ³ Receptor-mediated Phagocytosis in Macrophages and Monocytes | B50: 1.33E+00 | C50: 4.68E-02 | D50: 6.45E-02 | E50: 6/93 (6%) | F50: 87/93 (94%) | G50: ARPC5,CDC42,ARPC3,ACTB,RAC2,FCGR3A/FCGR3B
A51: Death Receptor Signaling | B51: 1.33E+00 | C51: 4.68E-02 | D51: 6.45E-02 | E51: 6/93 (6%) | F51: 87/93 (94%) | G51: BIRC2,HSPB1,TANK,ZC3HAV1,ACTB,ARHGDIB
A52: Caveolar-mediated Endocytosis Signaling | B52: 1.31E+00 | C52: 4.90E-02 | D52: 7.04E-02 | E52: 5/71 (7%) | F52: 66/71 (93%) | G52: HLA-A,ITSN1,ACTB,HLA-B,B2M
A53: Role of IL-17A in Psoriasis | B53: 1.30E+00 | C53: 5.01E-02 | D53: 1.54E-01 | E53: 2/13 (15%) | F53: 11/13 (85%) | G53: S100A8,S100A9
A54: © 2000-2018 QIAGEN. All rights reserved.

Sheet Supplementary Table 8
A1: Supplementary Table 8. Top overrepresented molecular and cellular functions and physiological system development and function categories in RBC transcriptome using QIAGEN’s Ingenuity® Pathway Analysis (IPA®, QIAGEN Redwood City, www.qiagen.com/ingenuity (release Summer, 2018). Default settings were used and disease categories were omitted.
A2: Category | B2: Function Annotation | C2: p-value | D2: Molecules | E2: # Molecules
A3: Gene Expression | B3: Expression of RNA | C3: 5.17E-31 | D3: ABCF1, ACTR3, AFF1, AGER, AGO2, ANXA7, APOL3, ARF4, ARID1A, ARID2, ARID4A, ARID4B, ARNT, ARRB2, ASCC2, ASH1L, ASH2L, ASPM, ASXL2, ATAD2, ATF2, ATF4, ATF7IP, ATM, ATRX, ATXN3, BACH1, BAG1, BCL2L1, BCLAF1, BDP1, BIRC2, BLOC1S2, BPTF, BRCA1, BRCA2, BRD4, BRIP1, BRWD1, BTF3, BUD31, C1D, CALCOCO1, CALR, CAPRIN2, CBX3, CCNDBP1, CD36, CD44, CD82, CDC42, CDC5L, CDC73, CDK5RAP2, CDK8, CENPF, CENPK, CEP290, CGGBP1, CHAF1A, CHCHD2, CHCHD3, CHD2, CIR1, CKAP2, CNBP, COPS2, COPZ1, CPNE1, CREB1, CREBBP, CREBL2, CREBRF, CREG1, CREM, CTCF, CTDSP2, CUL4A, DAP, DCAF6, DDB1, DDX21, DDX3X, DEK, DHPS, DLG1, DNAJB6, DNAJC2, DNMT1, DRG1, E2F2, E2F4, EAPP, ECSIT, ECT2, EDF1, EED, EEF1D, EID1, EIF1, EIF2A, EIF2AK1, EIF3B, EIF3D, EIF3E, EIF3H, EIF3K, EIF3L, EIF4E2, EIF4EBP2, EIF4G1, EIF4G2, EIF4G3, EIF5, EIF5B, ELF1, ELF2, ELL2, EP300, EPC1, EPN2, ERCC2, EZH1, EZH2, FAF1, FANK1, FBXW11, FBXW7, FECH, FKBP8, FLCN, FLOT2, FMR1, FOXJ2, FOXJ3, FOXN3, FOXO3, FOXO4, FOXP1, FXR1, GAPDH, GATA1, GCLC, GFI1B, GGNBP2, GIGYF2, GNA12, GNAS, GNB1, GPBP1, GPX1, GTF3A, HAX1, HBB, HBE1, HBG2, HBP1, HDAC6, HDGF, HEXIM1, HIPK1, HIPK3, HIST1H1C, HLTF, HMGB1, HMGB2, HMGN2, HMGN5, HNRNPC, HNRNPD, HNRNPK, HP1BP3, HSPB1, IBTK, IFI27, IFNAR1, IFT74, IGBP1, IGF2BP2, INO80, INPP5D, INPP5K, INSR, IRF2, IRF3, ISG20, ITGB3BP, JAK2, JAZF1, JMJD1C, KANK2, KARS, KAT2B, KAT7, KDM1A, KDM3A, KDM5A, KDM6A, KDM7A, KLF1, KLF3, KMT2A, KMT2C, KMT2E, KMT5A, KPNA6, LARP1, LARP7, LBH, LCOR, LEO1, LEPR, LGALS9, LPIN2, LY9, LYL1, MAP2K3, MAP4K4, MAP4K5, MAPK1, MARF1, MAVS, MAX, MBP, MECP2, MED13, MED21, MED28, MED4, MFN2, MGEA5, MKNK1, MLLT10, MLLT3, MLXIP, MOSPD1, MPHOSPH8, MRE11, MRPL2, MRPS7, MT-RNR1, MT-RNR2, MTDH, MTPN, MXI1, N4BP2L2, NAA15, NAE1, NCL, NCOA2, NCOA4, NCOA7, NCOR1, NEDD8, NELFE, NFAT5, NFE2, NFE2L2, NFIA, NFIX, NIPBL, NPAT, NPM1, NR1H3, NSD2, NSD3, NUCKS1, NUP98, ODC1, OGT, OPTN, PA2G4, PAIP1, PAIP2, PAK2, PARK7, PBX1, PCGF5, PCGF6, PDCD10, PDE2A, PELP1, PFDN5, PHB, PHF14, PHIP, PIAS1, PICALM, PIK3R1, PIM1, PINK1, PKIG, PKN2, PKNOX1, POLA1, POLR2I, POLR2J, POLR3C, POLR3G, PPM1A, PPP1R12A, PPP2R5B, PPP3R1, PRDM2, PRKAR2B, PRKDC, PRMT2, PSMC3, PSMD9, PTEN, PTGES3, PTK2B, PTMA, PTMS, PTPN11, PTPN2, PTTG1, QKI, RAB3GAP1, RACK1, RAD21, RALBP1, RAP1A, RAP2A, RB1, RB1CC1, RBBP7, RBBP8, RBL1, RBL2, RBM3, RBM39, RBX1, RC3H2, RDX, REL, RFC1, RFX3, RFXANK, RGCC, RICTOR, RIF1, RNASEH2B, RNF10, RNF11, RNF111, RNF14, RNF187, RNF20, RNF41, ROCK1, ROCK2, RPL10, RPL11, RPL13A, RPL19, RPL23, RPL24, RPL27A, RPL30, RPL37, RPL38, RPL39, RPL41, RPL5, RPL6, RPS14, RPS17, RPS23, RPS24, RPS28, RPS29, RPS3, RPS3A, RPS4X, RPS5, RPS6KB1, RPS7, RPS9, RSF1, RTF1, RXRA, RYBP, SAFB, SAP18, SARS, SATB1, SCAF8, SET, SETD2, SETD3, SFRP2, SGMS1, SIRT1, SIRT2, SLC30A9, SLC40A1, SLC44A2, SMARCA5, SMARCC1, SMARCC2, SNCA, SNW1, SNX6, SOD2, SOX6, SP100, SP2, SPOP, SRPK2, SSB, SSBP3, STAT6, STK16, STRAP, STRN3, SUDS3, SUPT4H1, SUPT5H, SUZ12, SYNCRIP, TAB2, TADA2A, TADA3, TAF10, TAF2, TAF3, TAF8, TAF9, TAL1, TANK, TBL1XR1, TBPL1, TCEA1, TDG, TERF2, TERF2IP, TESC, TET2, TET3, TFDP1, TFDP2, TGM2, THOC2, THRAP3, TLE4, TMED2, TMF1, TNIP1, TOP1, TOP2A, TPR, TRAK2, TRIM24, TRIP11, TROVE2, TSC1, TSG101, TTC21B, TXN, UBE2V1, UBR5, UBXN2A, UIMC1, UNC45A, UXT, VAPA, VPS35, VRK1, VRK2, WAC, WBP2, WRN, WWC3, WWP2, XPO1, XRN1, YBX1, YBX3, YY1AP1, ZC3HAV1, ZNF131, ZNF326, ZNHIT1, ZNHIT3 | E3: 485
B4: Transcription of RNA | C4: 3.26e-23 | D4: ACTR3, AFF1, AGER, AGO2, APOL3, ARF4, ARID1A, ARID2, ARID4A, ARID4B, ARNT, ARRB2, ASCC2, ASH1L, ASH2L, ASPM, ASXL2, ATAD2, ATF2, ATF4, ATF7IP, ATM, ATRX, ATXN3, BACH1, BAG1, BCL2L1, BCLAF1, BDP1, BIRC2, BLOC1S2, BPTF, BRCA1, BRCA2, BRD4, BRIP1, BRWD1, BTF3, BUD31, C1D, CALCOCO1, CALR, CAPRIN2, CBX3, CCNDBP1, CD36, CD44, CD82, CDC42, CDC5L, CDC73, CDK5RAP2, CDK8, CENPF, CENPK, CEP290, CGGBP1, CHAF1A, CHCHD2, CHCHD3, CHD2, CIR1, CKAP2, CNBP, COPS2, CREB1, CREBBP, CREBL2, CREBRF, CREG1, CREM, CTCF, CTDSP2, CUL4A, DAP, DCAF6, DDB1, DDX21, DDX3X, DEK, DLG1, DNAJB6, DNAJC2, DNMT1, DRG1, E2F2, E2F4, EAPP, ECSIT, ECT2, EDF1, EED, EEF1D, EID1, EIF4G2, ELF1, ELF2, ELL2, EP300, EPC1, EPN2, ERCC2, EZH1, EZH2, FAF1, FANK1, FBXW11, FBXW7, FLCN, FOXJ2, FOXJ3, FOXN3, FOXO3, FOXO4, FOXP1, GATA1, GCLC, GFI1B, GNA12, GNAS, GNB1, GPBP1, GTF3A, HAX1, HBB, HBE1, HBG2, HBP1, HDAC6, HDGF, HEXIM1, HIPK1, HIPK3, HIST1H1C, HLTF, HMGB1, HMGB2, HMGN2, HNRNPC, HNRNPK, HP1BP3, IBTK, IFI27, IFNAR1, IFT74, IGBP1, INO80, INPP5D, INPP5K, INSR, IRF2, IRF3, ITGB3BP, JAK2, JAZF1, JMJD1C, KANK2, KARS, KAT2B, KAT7, KDM1A, KDM3A, KDM5A, KDM7A, KLF1, KLF3, KMT2A, KMT2E, KMT5A, KPNA6, LARP7, LBH, LCOR, LEO1, LEPR, LGALS9, LPIN2, LY9, LYL1, MAP2K3, MAPK1, MAVS, MAX, MECP2, MED13, MED21, MED28, MED4, MGEA5, MLLT10, MLLT3, MLXIP, MOSPD1, MPHOSPH8, MRE11, MTDH, MTPN, MXI1, N4BP2L2, NAA15, NAE1, NCL, NCOA2, NCOA4, NCOA7, NCOR1, NEDD8, NELFE, NFAT5, NFE2, NFE2L2, NFIA, NFIX, NIPBL, NPAT, NPM1, NR1H3, NSD2, NSD3, NUCKS1, OGT, PA2G4, PAK2, PARK7, PBX1, PCGF5, PCGF6, PDE2A, PELP1, PFDN5, PHB, PHF14, PHIP, PIAS1, PICALM, PIK3R1, PIM1, PKIG, PKN2, PKNOX1, POLA1, POLR2I, POLR2J, POLR3C, POLR3G, PPM1A, PPP1R12A, PPP2R5B, PPP3R1, PRDM2, PRKAR2B, PRKDC, PRMT2, PSMC3, PSMD9, PTEN, PTGES3, PTK2B, PTMA, PTMS, PTPN11, PTPN2, PTTG1, RAD21, RALBP1, RAP1A, RAP2A, RB1, RB1CC1, RBBP7, RBBP8, RBL1, RBL2, RBM39, RBX1, REL, RFC1, RFX3, RFXANK, RGCC, RIF1, RNF10, RNF11, RNF111, RNF14, RNF187, RNF20, RPL10, RPL23, RPL6, RPS14, RPS6KB1, RSF1, RTF1, RXRA, RYBP, SAFB, SAP18, SARS, SATB1, SCAF8, SET, SETD3, SFRP2, SIRT1, SIRT2, SLC30A9, SLC40A1, SLC44A2, SMARCA5, SMARCC1, SMARCC2, SNCA, SNW1, SNX6, SOD2, SOX6, SP100, SP2, SPOP, SSB, SSBP3, STAT6, STK16, STRAP, STRN3, SUDS3, SUPT4H1, SUPT5H, SUZ12, TAB2, TADA2A, TADA3, TAF10, TAF2, TAF3, TAF8, TAF9, TAL1, TANK, TBL1XR1, TBPL1, TCEA1, TDG, TERF2IP, TESC, TET2, TET3, TFDP1, TFDP2, THRAP3, TLE4, TMF1, TNIP1, TOP1, TOP2A, TPR, TRAK2, TRIM24, TRIP11, TROVE2, TSG101, TTC21B, TXN, UBE2V1, UIMC1, UNC45A, UXT, VAPA, VRK1, VRK2, WAC, WBP2, WRN, WWC3, WWP2, XPO1, YBX1, YBX3, YY1AP1, ZNF131, ZNF326, ZNHIT1, ZNHIT3 | E4: 384
B5: Transcription | C5: 1.19E-22 | D5: ACTR3, AFF1, AGER, AGO2, AKAP13, ANXA7, APOL3, ARF4, ARID1A, ARID2, ARID4A, ARID4B, ARNT, ARRB2, ASCC2, ASH1L, ASH2L, ASPM, ASXL2, ATAD2, ATF2, ATF4, ATF7IP, ATM, ATRX, ATXN3, BACH1, BAG1, BCL2L1, BCLAF1, BDP1, BIRC2, BLOC1S2, BPTF, BRCA1, BRCA2, BRD4, BRIP1, BRWD1, BTF3, BUD31, C1D, CALCOCO1, CALR, CAPRIN2, CBX3, CCNDBP1, CD36, CD44, CD82, CDC42, CDC5L, CDC73, CDK5RAP2, CDK8, CENPF, CENPK, CEP290, CGGBP1, CHAF1A, CHCHD2, CHCHD3, CHD2, CIR1, CKAP2, CNBP, COPS2, CPNE1, CREB1, CREBBP, CREBL2, CREBRF, CREG1, CREM, CTCF, CTDSP2, CUL4A, DAP, DCAF6, DDB1, DDX21, DDX3X, DEK, DLG1, DNAJB6, DNAJC2, DNMT1, DRG1, E2F2, E2F4, EAPP, ECSIT, ECT2, EDF1, EED, EEF1D, EID1, EIF4G2, ELF1, ELF2, ELL2, EP300, EPC1, EPN2, ERCC2, EZH1, EZH2, FAF1, FANK1, FBXW11, FBXW7, FECH, FKBP8, FLCN, FLOT2, FMR1, FOXJ2, FOXJ3, FOXN3, FOXO3, FOXO4, FOXP1, GATA1, GCLC, GFI1B, GGNBP2, GNA12, GNAS, GNB1, GPBP1, GPX1, GTF3A, HAX1, HBB, HBE1, HBG2, HBP1, HDAC6, HDGF, HEXIM1, HIPK1, HIPK3, HIST1H1C, HLTF, HMGB1, HMGB2, HMGN2, HMGN5, HNRNPC, HNRNPD, HNRNPK, HP1BP3, IBTK, IFI27, IFNAR1, IFT74, IGBP1, INO80, INPP5D, INPP5K, INSR, IRF2, IRF3, ITGB3BP, JAK2, JAZF1, JMJD1C, KANK2, KARS, KAT2B, KAT7, KDM1A, KDM3A, KDM5A, KDM6A, KDM7A, KLF1, KLF3, KMT2A, KMT2C, KMT2E, KMT5A, KPNA6, LARP7, LBH, LCOR, LEO1, LEPR, LGALS9, LPIN2, LY9, LYL1, MAP2K3, MAPK1, MARF1, MAVS, MAX, MECP2, MED13, MED21, MED28, MED4, MFN2, MGEA5, MIER1, MLLT10, MLLT3, MLXIP, MOSPD1, MPHOSPH8, MRE11, MTDH, MTPN, MXI1, N4BP2L2, NAA15, NAE1, NCL, NCOA2, NCOA4, NCOA7, NCOR1, NEDD8, NELFE, NFAT5, NFE2, NFE2L2, NFIA, NFIX, NIPBL, NPAT, NPM1, NR1H3, NSD2, NSD3, NUCKS1, OGT, OPTN, PA2G4, PAK2, PARK7, PBX1, PCGF5, PCGF6, PDCD10, PDE2A, PELP1, PFDN5, PHB, PHF14, PHIP, PIAS1, PICALM, PIK3R1, PIM1, PINK1, PKIG, PKN2, PKNOX1, POLA1, POLR2I, POLR2J, POLR3C, POLR3G, PPM1A, PPP1R12A, PPP2R5B, PPP3R1, PRDM2, PRKAR2B, PRKDC, PRMT2, PSMC3, PSMD9, PTEN, PTGES3, PTK2B, PTMA, PTMS, PTPN11, PTPN2, PTTG1, QKI, RAB3GAP1, RACK1, RAD21, RALBP1, RAP1A, RAP2A, RB1, RB1CC1, RBBP7, RBBP8, RBL1, RBL2, RBM25, RBM39, RBX1, RC3H2, RDX, REL, RFC1, RFX3, RFXANK, RGCC, RICTOR, RIF1, RNASEH2B, RNF10, RNF11, RNF111, RNF14, RNF187, RNF20, RNF41, ROCK1, ROCK2, RPL10, RPL11, RPL12, RPL23, RPL5, RPL6, RPS14, RPS3, RPS6KB1, RPS7, RSF1, RTF1, RXRA, RYBP, SAFB, SAP18, SARS, SATB1, SCAF8, SET, SETD2, SETD3, SFRP2, SGMS1, SIRT1, SIRT2, SIRT5, SLC30A9, SLC40A1, SLC44A2, SLU7, SMARCA5, SMARCC1, SMARCC2, SNCA, SNW1, SNX6, SOD2, SOX6, SP100, SP2, SPOP, SRPK2, SSB, SSBP3, STAT6, STK16, STRAP, STRN3, SUDS3, SUPT4H1, SUPT5H, SUZ12, TAB2, TADA2A, TADA3, TAF10, TAF2, TAF3, TAF8, TAF9, TAL1, TANK, TBL1XR1, TBPL1, TCEA1, TDG, TERF2, TERF2IP, TESC, TET2, TET3, TFDP1, TFDP2, THOC2, THRAP3, TLE4, TMED2, TMF1, TNIP1, TOP1, TOP2A, TPR, TRAK2, TRIM24, TRIP11, TROVE2, TSG101, TTC21B, TXN, UBE2B, UBE2V1, UBR2, UBR5, UBXN2A, UIMC1, UNC45A, UXT, VAPA, VPS35, VRK1, VRK2, WAC, WBP2, WRN, WWC3, WWP2, XPO1, XRN2, YBX1, YBX3, YY1AP1, ZNF131, ZNF326, ZNHIT1, ZNHIT3 | E5: 433
B6: Translation of mRNA | C6: 1.39E-20 | D6: ABCF1, AGO2, CALR, DDX3X, DHPS, EIF1, EIF2A, EIF2AK1, EIF3B, EIF3D, EIF3E, EIF3H, EIF3K, EIF3L, EIF4E2, EIF4EBP2, EIF4G1, EIF4G2, EIF4G3, EIF5, EIF5B, FMR1, FOXO3, FXR1, GAPDH, GIGYF2, HSPB1, IGF2BP2, LARP1, MKNK1, MRPL2, MRPS7, MT-RNR1, MT-RNR2, PAIP1, PAIP2, RACK1, RBM3, RPL10, RPL13A, RPL19, RPL23, RPL24, RPL27A, RPL30, RPL37, RPL38, RPL39, RPL41, RPS14, RPS17, RPS23, RPS24, RPS28, RPS29, RPS3, RPS3A, RPS4X, RPS5, RPS9, SARS, SYNCRIP, TNIP1, TPR, TSC1, XRN1 | E6: 66
B7: Expression of mRNA | C7: 2.29E-18 | D7: ABCF1, AGO2, ATF2, ATM, CALR, COPZ1, DDX3X, DHPS, EIF1, EIF2A, EIF2AK1, EIF3B, EIF3D, EIF3E, EIF3H, EIF3K, EIF3L, EIF4E2, EIF4EBP2, EIF4G1, EIF4G2, EIF4G3, EIF5, EIF5B, FMR1, FOXO3, FOXO4, FXR1, GAPDH, GIGYF2, HIPK3, HMGB1, HSPB1, IGF2BP2, IRF3, LARP1, MAP2K3, MAX, MKNK1, MRPL2, MRPS7, MT-RNR1, MT-RNR2, PAIP1, PAIP2, RACK1, RBM3, RPL10, RPL13A, RPL19, RPL23, RPL24, RPL27A, RPL30, RPL37, RPL38, RPL39, RPL41, RPS14, RPS17, RPS23, RPS24, RPS28, RPS29, RPS3, RPS3A, RPS4X, RPS5, RPS9, RSF1, RXRA, SARS, SYNCRIP, TNIP1, TPR, TSC1, XRN1 | E7: 77
B8: Transcription of DNA | C8: 1.08e-17 | D8: AFF1, AGO2, ARF4, ARID1A, ARID2, ARID4A, ARID4B, ARNT, ARRB2, ASCC2, ASH1L, ASH2L, ASXL2, ATAD2, ATF2, ATF4, ATF7IP, ATRX, BACH1, BAG1, BCLAF1, BDP1, BLOC1S2, BPTF, BRCA1, BRCA2, BRD4, BRIP1, BRWD1, BTF3, BUD31, C1D, CALCOCO1, CALR, CAPRIN2, CBX3, CD36, CDC5L, CDC73, CDK5RAP2, CENPF, CENPK, CEP290, CGGBP1, CHCHD2, CHCHD3, CHD2, CIR1, CKAP2, CNBP, COPS2, CREB1, CREBBP, CREBL2, CREBRF, CREG1, CREM, CTCF, DAP, DCAF6, DDX21, DDX3X, DEK, DLG1, DNAJB6, DNAJC2, DNMT1, DRG1, E2F2, E2F4, ECSIT, EDF1, EED, EID1, ELF1, ELF2, EP300, EPC1, ERCC2, EZH1, EZH2, FANK1, FBXW11, FLCN, FOXJ2, FOXJ3, FOXN3, FOXO3, FOXO4, FOXP1, GATA1, GCLC, GFI1B, GNAS, GPBP1, GTF3A, HAX1, HBE1, HBG2, HBP1, HDAC6, HDGF, HEXIM1, HIPK1, HIPK3, HIST1H1C, HLTF, HMGB1, HMGB2, HNRNPK, HP1BP3, IFI27, IFNAR1, IFT74, IGBP1, INO80, INPP5K, INSR, IRF2, IRF3, JAK2, JAZF1, JMJD1C, KANK2, KARS, KAT2B, KAT7, KDM1A, KDM3A, KDM5A, KDM7A, KLF1, KLF3, KMT2A, KMT2E, KMT5A, KPNA6, LARP7, LBH, LCOR, LEO1, LPIN2, LYL1, MAP2K3, MAPK1, MAVS, MAX, MECP2, MED13, MED21, MED4, MLLT10, MLLT3, MLXIP, MOSPD1, MPHOSPH8, MTDH, MXI1, N4BP2L2, NAA15, NCL, NCOA2, NCOA7, NCOR1, NEDD8, NFAT5, NFE2, NFE2L2, NFIA, NFIX, NIPBL, NPAT, NPM1, NR1H3, NSD2, NSD3, NUCKS1, OGT, PA2G4, PARK7, PBX1, PCGF5, PCGF6, PDE2A, PELP1, PFDN5, PHB, PHF14, PHIP, PIAS1, PICALM, PIK3R1, PIM1, PKIG, PKNOX1, POLR2I, POLR2J, POLR3C, POLR3G, PPM1A, PPP1R12A, PPP2R5B, PPP3R1, PRDM2, PRKDC, PRMT2, PSMC3, PSMD9, PTMA, PTPN2, PTTG1, RAD21, RB1, RBBP7, RBBP8, RBL1, RBM39, REL, RFC1, RFX3, RFXANK, RGCC, RIF1, RNF10, RNF111, RNF14, RNF187, RNF20, RPL10, RPL23, RPL6, RPS14, RSF1, RTF1, RXRA, RYBP, SAFB, SAP18, SARS, SATB1, SCAF8, SET, SETD3, SFRP2, SIRT1, SIRT2, SLC30A9, SLC40A1, SMARCA5, SMARCC1, SMARCC2, SNCA, SNW1, SNX6, SOD2, SOX6, SP100, SP2, SPOP, SSBP3, STAT6, STK16, STRAP, STRN3, SUDS3, SUPT4H1, SUPT5H, SUZ12, TADA2A, TADA3, TAF10, TAF2, TAF3, TAF8, TAF9, TAL1, TBL1XR1, TBPL1, TCEA1, TDG, TERF2IP, TESC, TET2, TET3, TFDP1, TFDP2, THRAP3, TLE4, TMF1, TNIP1, TOP1, TOP2A, TPR, TRAK2, TRIM24, TRIP11, TROVE2, TSG101, TTC21B, TXN, UBE2V1, UIMC1, UXT, WAC, WBP2, WWC3, WWP2, XPO1, YBX1, YBX3, ZNF131, ZNF326, ZNHIT1, ZNHIT3 | E8: 314
B9: Activation of DNA endogenous promoter | C9: 5.89E-13 | D9: AGO2, ARF4, ARID1A, ARID2, ARID4A, ARID4B, ARNT, ARRB2, ASH1L, ASH2L, ASXL2, ATF2, ATF4, ATF7IP, ATRX, BACH1, BAG1, BLOC1S2, BPTF, BRCA1, BRD4, BRIP1, BRWD1, BTF3, BUD31, CALCOCO1, CALR, CAPRIN2, CD36, CDC5L, CDC73, CENPK, CGGBP1, CHCHD2, CHCHD3, CHD2, CKAP2, CNBP, COPS2, CREB1, CREBBP, CREBRF, CREG1, CREM, CTCF, DCAF6, DDX21, DDX3X, DEK, DLG1, DNMT1, E2F2, E2F4, ECSIT, EED, EID1, ELF1, ELF2, EP300, EPC1, ERCC2, EZH1, EZH2, FLCN, FOXJ2, FOXJ3, FOXO3, FOXO4, GATA1, GFI1B, GNAS, GTF3A, HAX1, HBE1, HBG2, HBP1, HDGF, HEXIM1, HIPK1, HIPK3, HIST1H1C, HLTF, HMGB1, HMGB2, HNRNPK, IFI27, IFT74, IGBP1, INO80, IRF2, IRF3, JAK2, JAZF1, KANK2, KAT2B, KAT7, KDM1A, KDM3A, KDM5A, KLF1, KLF3, KMT2A, KMT5A, KPNA6, LARP7, LCOR, LEO1, LPIN2, MAVS, MAX, MECP2, MED13, MED21, MED4, MLLT10, MLXIP, MOSPD1, MTDH, MXI1, N4BP2L2, NCL, NCOA2, NCOA7, NCOR1, NEDD8, NFAT5, NFE2L2, NFIA, NFIX, NIPBL, NPM1, NR1H3, NSD2, NUCKS1, OGT, PARK7, PBX1, PCGF5, PCGF6, PDE2A, PELP1, PHB, PHF14, PHIP, PIAS1, PIK3R1, PKIG, PKNOX1, POLR2I, POLR2J, POLR3C, POLR3G, PPP1R12A, PPP2R5B, PPP3R1, PRDM2, PRKDC, PSMC3, PSMD9, PTPN2, PTTG1, RAD21, RB1, RBBP7, RBBP8, RBL1, REL, RFC1, RFX3, RFXANK, RGCC, RIF1, RNF10, RNF14, RPL10, RPL23, RPS14, RTF1, RXRA, RYBP, SAFB, SAP18, SARS, SATB1, SCAF8, SETD3, SFRP2, SIRT1, SIRT2, SLC30A9, SLC40A1, SMARCA5, SMARCC1, SMARCC2, SNCA, SNW1, SOD2, SOX6, SP100, SP2, SPOP, SSBP3, STAT6, STK16, STRAP, SUDS3, SUPT4H1, SUPT5H, SUZ12, TADA2A, TADA3, TAF2, TAF3, TAF9, TAL1, TBL1XR1, TBPL1, TCEA1, TDG, TET2, TET3, TFDP1, TFDP2, THRAP3, TLE4, TMF1, TNIP1, TOP2A, TPR, TRAK2, TRIM24, TRIP11, TROVE2, TTC21B, TXN, UXT, WBP2, WWC3, WWP2, XPO1, YBX1, YBX3, ZNF131, ZNHIT1 | E9: 244
B10: Initiation of translation of mRNA | C10: 8.68E-12 | D10: AGO2, DDX3X, EIF1, EIF3B, EIF3D, EIF3E, EIF3H, EIF3K, EIF3L, EIF4EBP2, EIF4G1, EIF4G2, EIF4G3, EIF5, EIF5B, FMR1, HSPB1, LARP1, MKNK1, PAIP1, PAIP2, RPS3A, TPR | E10: 23
B11: Initiation of expression of RNA | C11: 2.90E-10 | D11: AGO2, BRCA1, DDX3X, E2F2, EIF1, EIF3B, EIF3D, EIF3E, EIF3H, EIF3K, EIF3L, EIF4EBP2, EIF4G1, EIF4G2, EIF4G3, EIF5, EIF5B, EP300, FMR1, HSPB1, LARP1, MED13, MED4, MKNK1, NCOA4, PAIP1, PAIP2, RPS3A, TAF10, TAF2, THRAP3, TPR | E11: 32
B12: Transactivation | C12: 7.19E-08 | D12: ABTB1, ADAR, AKAP13, ARHGEF12, ARID1A, ARNT, ATF2, BAG1, BRCA1, BRCA2, CALCOCO1, CCT2, CD44, CDC42, CDK11B, CEP350, CHP1, CREB1, CREBBP, CREM, CYB5A, DAP3, DMTN, E2F2, E2F4, EDF1, EP300, EPN2, ERCC2, FOXO3, FOXO4, GAB1, GAPDH, GATA1, GLRX3, HBP1, HMGB1, HNRNPC, HNRNPK, INPP5D, IRF2, IRF3, ITSN1, JAZF1, KAT2B, KAT7, KDM1A, KDM5A, KLF1, KMT2A, LEPR, LIPA, MAP2K3, MAPK1, MAX, MED28, MED4, MTDH, NCOA2, NCOA4, NCOR1, NFE2, NFE2L2, NFIA, NFIX, NKIRAS2, NPM1, NR1H3, NSD3, PA2G4, PBX1, PELP1, PFDN5, PIAS1, PIK3R1, PIM1, PKN2, PRDX1, PRKAR2B, PRKDC, PRMT2, PSMC3, PSMD4, PTEN, PTTG1, RAB5A, RB1, RBM39, RBX1, REL, RNF14, RPL7A, RXRA, SIAH2, SIRT1, SMARCC1, SND1, SNW1, STAMBP, STAT6, TADA3, TAL1, TBL1XR1, TFDP1, TFDP2, TMEM131L, TTF1, TXN, UBR5, UCHL5, UCP2, UPF3B, VRK2, WRN | E12: 114
B13: Transactivation of RNA | C13: 2.57E-07 | D13: ABTB1, ADAR, AKAP13, ARHGEF12, ARID1A, ARNT, ATF2, BAG1, BRCA1, BRCA2, CALCOCO1, CCT2, CD44, CDC42, CDK11B, CEP350, CREB1, CREBBP, CREM, CYB5A, DAP3, E2F2, E2F4, EDF1, EP300, EPN2, ERCC2, FOXO3, FOXO4, GAPDH, GATA1, GLRX3, HBP1, HMGB1, HNRNPC, HNRNPK, INPP5D, IRF2, IRF3, ITSN1, JAZF1, KAT2B, KAT7, KDM1A, KLF1, KMT2A, LEPR, LIPA, MAPK1, MAX, MED28, MED4, MTDH, NCOA2, NCOA4, NCOR1, NFE2, NFE2L2, NFIA, NFIX, NKIRAS2, NPM1, NR1H3, NSD3, PA2G4, PBX1, PELP1, PFDN5, PIAS1, PIK3R1, PIM1, PKN2, PRDX1, PRKAR2B, PRKDC, PRMT2, PSMC3, PSMD4, PTTG1, RAB5A, RBM39, RBX1, REL, RNF14, RPL7A, RXRA, SIRT1, SMARCC1, SND1, SNW1, STAMBP, STAT6, TADA3, TAL1, TBL1XR1, TFDP1, TFDP2, TMEM131L, TTF1, TXN, UBR5, UCHL5, UCP2, UPF3B, VRK2, WRN | E13: 106
A14: Protein Synthesis | B14: Metabolism of protein | C14: 4.81e-30 | D14: ABCF1, AGO2, AMFR, APOM, ARRB2, ASPH, ATF4, ATXN3, AURKA, AZIN1, BAG1, BAG6, BCL2L1, CALR, CANX, CAPNS1, CASC3, CAST, CAT, CCT2, CCT3, CCT8, CHP1, CIRBP, CKAP5, CNBP, CPEB4, CPNE1, CRBN, CREB1, CREBL2, CSNK2A1, CTSB, CUL4A, DCTN2, DDB1, DDX3X, DDX6, DHPS, DIAPH3, DNAJB12, DNMT1, DPM2, EEF1A1, EEF2, EIF1, EIF1AX, EIF2A, EIF2AK1, EIF3A, EIF3B, EIF3D, EIF3E, EIF3H, EIF3K, EIF3L, EIF4E2, EIF4EBP2, EIF4G1, EIF4G2, EIF4G3, EIF5, EIF5A, EIF5B, EP300, ERP44, FAF1, FBXL4, FBXO7, FBXW11, FBXW7, FLOT2, FMR1, FOXN3, FOXO3, FTH1, FURIN, FXR1, GAPDH, GATA1, GIGYF2, GNL3L, GOLGA7, HDAC6, HELZ, HNRNPD, HNRNPK, HSP90AA1, HSP90B1, HSPB1, HTRA2, IFIT1, IFNAR1, IGF2BP2, INSR, JAK2, LARP1, LARP4, MALAT1, MAN1A2, MAP2K3, MAP4K4, MAPK1, MARCH6, METAP2, MGEA5, MKNK1, MKRN1, MORC3, MRPL2, MRPS7, MT-RNR1, MT-RNR2, MTPN, NAA15, NAA16, NACA, NCL, NCOA2, NEDD4L, NEDD8, NPM1, NR1H3, NRDC, NTAN1, NUB1, OAZ1, OAZ2, ODC1, OGT, PABPC1, PAIP1, PAIP2, PARK7, PDCD10, PHB, PHLPP2, PIK3R1, PIM1, PINK1, POLDIP3, PPP1R11, PSMD11, PSMD2, PSMF1, PTEN, PTGES3, PTK2B, PTPN11, PTPN2, RACK1, RAD23A, RBL1, RBM3, RHBDD1, RILP, RNF11, RNF168, RNF20, RNF41, RNF5, RPL10, RPL11, RPL13A, RPL19, RPL22, RPL23, RPL24, RPL27A, RPL30, RPL37, RPL38, RPL39, RPL41, RPL5, RPLP1, RPS14, RPS15A, RPS17, RPS20, RPS23, RPS24, RPS28, RPS29, RPS3, RPS3A, RPS4X, RPS5, RPS6, RPS6KB1, RPS7, RPS9, SARS, SAT1, SENP6, SERINC1, SF3B3, SIAH2, SIRT1, SIRT2, SNCA, SNX3, SOD1, SOD2, SPOP, SSB, STAT6, STAU1, STX5, SUGT1, SYNCRIP, TADA2A, TADA3, TAF9, TESC, TGM2, TMPRSS5, TNIP1, TNRC6B, TOMM7, TPP1, TPR, TRIM24, TRIM58, TRIP12, TSC1, TSG101, TTC3, TYSND1, UBC, UBE2B, UBE2D2, UBE2D3, UBE2G2, UBE2H, UBE2K, UBE4B, UBR1, UBR2, UBR4, UBR5, UBXN1, UBXN2A, UBXN4, UBXN6, UFD1, UPF3A, UPF3B, USP14, USP33, USP4, USP7, USP9X, VPS28, VPS35, XPO1, XRN1, YBX1 | E14: 258
B15: Translation | C15: 1.22e-24 | D15: ABCF1, AGO2, CALR, CASC3, CKAP5, CNBP, CPEB4, CRBN, DDX3X, DDX6, DHPS, EEF1A1, EEF2, EIF1, EIF2A, EIF2AK1, EIF3B, EIF3D, EIF3E, EIF3H, EIF3K, EIF3L, EIF4E2, EIF4EBP2, EIF4G1, EIF4G2, EIF4G3, EIF5, EIF5A, EIF5B, FMR1, FOXO3, FTH1, FXR1, GAPDH, GIGYF2, HDAC6, HELZ, HNRNPK, HSPB1, IFIT1, IGF2BP2, LARP1, MALAT1, MKNK1, MRPL2, MRPS7, MT-RNR1, MT-RNR2, NCL, PABPC1, PAIP1, PAIP2, PIM1, RACK1, RBL1, RBM3, RPL10, RPL13A, RPL19, RPL23, RPL24, RPL27A, RPL30, RPL37, RPL38, RPL39, RPL41, RPS14, RPS15A, RPS17, RPS20, RPS23, RPS24, RPS28, RPS29, RPS3, RPS3A, RPS4X, RPS5, RPS6, RPS6KB1, RPS7, RPS9, SARS, SSB, STAU1, SYNCRIP, TNIP1, TNRC6B, TPR, TSC1, XRN1, YBX1 | E15: 94
B16: Synthesis of protein | C16: 1.39E-23 | D16: ABCF1, AGO2, ARRB2, ATF4, CALR, CASC3, CIRBP, CKAP5, CNBP, CPEB4, CRBN, CREB1, DCTN2, DDX3X, DDX6, DHPS, DNMT1, EEF1A1, EEF2, EIF1, EIF1AX, EIF2A, EIF2AK1, EIF3A, EIF3B, EIF3D, EIF3E, EIF3H, EIF3K, EIF3L, EIF4E2, EIF4EBP2, EIF4G1, EIF4G2, EIF4G3, EIF5, EIF5A, EIF5B, EP300, FMR1, FOXN3, FOXO3, FTH1, FXR1, GAPDH, GATA1, GIGYF2, HDAC6, HELZ, HNRNPD, HNRNPK, HSPB1, IFIT1, IFNAR1, IGF2BP2, INSR, LARP1, LARP4, MALAT1, MAP2K3, MAP4K4, MAPK1, METAP2, MKNK1, MKRN1, MRPL2, MRPS7, MT-RNR1, MT-RNR2, MTPN, NCL, NCOA2, NPM1, PABPC1, PAIP1, PAIP2, PARK7, PHLPP2, PIK3R1, PIM1, PINK1, POLDIP3, PTEN, PTK2B, PTPN11, RACK1, RBL1, RBM3, RPL10, RPL13A, RPL19, RPL22, RPL23, RPL24, RPL27A, RPL30, RPL37, RPL38, RPL39, RPL41, RPL5, RPLP1, RPS14, RPS15A, RPS17, RPS20, RPS23, RPS24, RPS28, RPS29, RPS3, RPS3A, RPS4X, RPS5, RPS6, RPS6KB1, RPS7, RPS9, SARS, SAT1, SERINC1, SOD1, SOD2, SSB, STAT6, STAU1, SYNCRIP, TNIP1, TNRC6B, TPR, TSC1, UPF3A, UPF3B, XRN1, YBX1 | E16: 135
B17: Translation of protein | C17: 1.68E-23 | D17: ABCF1, AGO2, CALR, CASC3, CKAP5, CNBP, CPEB4, CRBN, DDX3X, DDX6, DHPS, EEF1A1, EIF1, EIF2A, EIF2AK1, EIF3B, EIF3D, EIF3E, EIF3H, EIF3K, EIF3L, EIF4E2, EIF4EBP2, EIF4G1, EIF4G2, EIF4G3, EIF5, EIF5A, EIF5B, FMR1, FOXO3, FXR1, GAPDH, GIGYF2, HDAC6, HELZ, HNRNPK, HSPB1, IFIT1, IGF2BP2, LARP1, MALAT1, MKNK1, MRPL2, MRPS7, MT-RNR1, MT-RNR2, NCL, PABPC1, PAIP1, PAIP2, PIM1, RACK1, RBL1, RBM3, RPL10, RPL13A, RPL19, RPL23, RPL24, RPL27A, RPL30, RPL37, RPL38, RPL39, RPL41, RPS14, RPS17, RPS23, RPS24, RPS28, RPS29, RPS3, RPS3A, RPS4X, RPS5, RPS6, RPS6KB1, RPS7, RPS9, SARS, SSB, STAU1, SYNCRIP, TNIP1, TNRC6B, TPR, TSC1, XRN1, YBX1 | E17: 90
B18: Translation of mRNA | C18: 1.39E-20 | D18: ABCF1, AGO2, CALR, DDX3X, DHPS, EIF1, EIF2A, EIF2AK1, EIF3B, EIF3D, EIF3E, EIF3H, EIF3K, EIF3L, EIF4E2, EIF4EBP2, EIF4G1, EIF4G2, EIF4G3, EIF5, EIF5B, FMR1, FOXO3, FXR1, GAPDH, GIGYF2, HSPB1, IGF2BP2, LARP1, MKNK1, MRPL2, MRPS7, MT-RNR1, MT-RNR2, PAIP1, PAIP2, RACK1, RBM3, RPL10, RPL13A, RPL19, RPL23, RPL24, RPL27A, RPL30, RPL37, RPL38, RPL39, RPL41, RPS14, RPS17, RPS23, RPS24, RPS28, RPS29, RPS3, RPS3A, RPS4X, RPS5, RPS9, SARS, SYNCRIP, TNIP1, TPR, TSC1, XRN1 | E18: 66
B19: Expression of protein | C19: 1.35E-18 | D19: ABCF1, AGO2, CALR, CASC3, CKAP5, CNBP, CPEB4, CRBN, CREB1, DDX3X, DDX6, DHPS, EEF1A1, EIF1, EIF2A, EIF2AK1, EIF3B, EIF3D, EIF3E, EIF3H, EIF3K, EIF3L, EIF4E2, EIF4EBP2, EIF4G1, EIF4G2, EIF4G3, EIF5, EIF5A, EIF5B, FMR1, FOXO3, FXR1, GAPDH, GIGYF2, HDAC6, HELZ, HNRNPK, HSPB1, IFIT1, IFNAR1, IGF2BP2, LARP1, MALAT1, MAP2K3, MKNK1, MRPL2, MRPS7, MT-RNR1, MT-RNR2, NCL, NCOA2, PABPC1, PAIP1, PAIP2, PHLPP2, PIM1, RACK1, RBL1, RBM3, RPL10, RPL13A, RPL19, RPL23, RPL24, RPL27A, RPL30, RPL37, RPL38, RPL39, RPL41, RPS14, RPS17, RPS23, RPS24, RPS28, RPS29, RPS3, RPS3A, RPS4X, RPS5, RPS6, RPS6KB1, RPS7, RPS9, SARS, SOD1, SOD2, SSB, STAT6, STAU1, SYNCRIP, TNIP1, TNRC6B, TPR, TSC1, XRN1, YBX1 | E19: 98
B20: Initiation of translation of protein | C20: 1.20E-12 | D20: ABCF1, AGO2, DDX3X, EIF1, EIF2A, EIF3B, EIF3D, EIF3E, EIF3H, EIF3K, EIF3L, EIF4EBP2, EIF4G1, EIF4G2, EIF4G3, EIF5, EIF5B, FMR1, HSPB1, IFIT1, LARP1, MKNK1, PAIP1, PAIP2, RPS3A, TPR | E20: 26
B21: Stabilization of protein | C21: 2.88E-12 | D21: ASPH, AURKA, BAG6, CALR, CANX, CCT2, CCT3, CCT8, CHP1, CREB1, CREBL2, DPM2, EP300, FBXO7, FBXW7, FLOT2, GAPDH, GNL3L, GOLGA7, HDAC6, HSP90AA1, JAK2, MORC3, NAA15, NAA16, NACA, NEDD4L, NPM1, PARK7, PDCD10, PHB, PIK3R1, PIM1, PINK1, PTEN, PTGES3, RPL11, RPL23, RPL5, RPS7, SUGT1, TADA2A, TADA3, TAF9, TESC, TOMM7, TRIM24, TSC1, UBE2B, UBR5, USP33, USP4, USP7, VPS35 | E21: 54
B22: Catabolism of protein | C22: 3.45e-12 | D22: AMFR, ASPH, ATXN3, AURKA, AZIN1, BAG1, BAG6, BCL2L1, CALR, CANX, CAPNS1, CAST, CAT, CCT2, CCT3, CCT8, CHP1, CPNE1, CREB1, CREBL2, CSNK2A1, CTSB, CUL4A, DDB1, DIAPH3, DNAJB12, DPM2, EP300, FAF1, FBXL4, FBXO7, FBXW11, FBXW7, FLOT2, FOXO3, FURIN, GAPDH, GNL3L, GOLGA7, HDAC6, HSP90AA1, HSP90B1, HTRA2, JAK2, MARCH6, MGEA5, MORC3, NAA15, NAA16, NACA, NEDD4L, NEDD8, NPM1, NR1H3, NRDC, NTAN1, NUB1, OAZ1, OAZ2, ODC1, OGT, PARK7, PDCD10, PHB, PIK3R1, PIM1, PINK1, PPP1R11, PSMD11, PSMD2, PSMF1, PTEN, PTGES3, PTPN2, RAD23A, RHBDD1, RILP, RNF11, RNF168, RNF20, RNF41, RNF5, RPL11, RPL23, RPL5, RPS7, SENP6, SF3B3, SIAH2, SIRT1, SIRT2, SNCA, SNX3, SOD1, SOD2, SPOP, STX5, SUGT1, TADA2A, TADA3, TAF9, TESC, TGM2, TMPRSS5, TOMM7, TPP1, TRIM24, TRIM58, TRIP12, TSC1, TSG101, TTC3, TYSND1, UBC, UBE2B, UBE2D2, UBE2D3, UBE2G2, UBE2H, UBE2K, UBE4B, UBR1, UBR2, UBR4, UBR5, UBXN1, UBXN2A, UBXN4, UBXN6, UFD1, USP14, USP33, USP4, USP7, USP9X, VPS28, VPS35, XPO1 | E22: 138
B23: Initiation of translation of mRNA | C23: 8.68E-12 | D23: AGO2, DDX3X, EIF1, EIF3B, EIF3D, EIF3E, EIF3H, EIF3K, EIF3L, EIF4EBP2, EIF4G1, EIF4G2, EIF4G3, EIF5, EIF5B, FMR1, HSPB1, LARP1, MKNK1, PAIP1, PAIP2, RPS3A, TPR | E23: 23
B24: Assembly of protein-protein complex | C24: 7.75E-05 | D24: ACTR3, ADD1, ADD2, AP2M1, ARPC3, CD2AP, CDC42, CREBBP, DDX3X, DMTN, ELOB, EPB41, FAF1, KMT2A, KPNA3, MAX, MT-CO3, NDUFA1, NDUFA2, NDUFA3, NDUFA5, NDUFB1, NDUFB2, NDUFB4, NDUFS4, PICALM, PIH1D1, PINK1, PPP2R5B, PTK2B, PTPN11, RANBP9, RDX, RPS3, SLC2A1, SLF1, SLF2, SPIDR, SSBP3, STX4, SURF1, TAL1, WHAMM | E24: 43
A25: Cell Death and Survival | B25: Cell death | C25: 4.30E-24 | D25: AAAS, ABCC4, ACP1, ACTB, ADAR, ADD1, ADD2, ADIPOR1, AFF1, AGER, AGGF1, AGO2, AGTPBP1, AKT1S1, ALDOA, ALKBH5, ALMS1, AMFR, ANK1, ANXA7, AP2B1, AP2M1, APOPT1, ARAF, ARF4, ARG1, ARID1A, ARL6IP1, ARL6IP5, ARNT, ARRB2, ASNA1, ATAD2, ATF2, ATF4, ATG12, ATG13, ATG3, ATM, ATP2B1, ATP5S, ATR, ATRX, ATXN2, ATXN3, AURKA, B2M, BACH1, BAG1, BAG6, BARD1, BAZ1A, BCAP29, BCL2L1, BCL2L13, BCLAF1, BECN1, BIRC2, BIRC6, BLOC1S2, BNIP3L, BRCA1, BRCA2, BRD4, BSG, BTF3, BUD31, C1GALT1, CALCOCO2, CALM1 (includes others), CALR, CANX, CAPNS1, CAPRIN2, CARD8, CASP8AP2, CAST, CAT, CBX3, CCAR1, CCDC88A, CCNG1, CCNI, CCT2, CCT3, CCT8, CD2AP, CD36, CD44, CD59, CD82, CDC34, CDC42, CDC73, CDK12, CDK8, CDKN3, CELF1, CENPE, CENPF, CHMP2A, CHMP3, CHMP5, CIRBP, CISD2, CKAP2, CKAP5, CLCN3, CLK3, CLSPN, COPA, COPZ1, COX6B1, COX7A2L, CPEB4, CPOX, CR1, CR1L, CRBN, CREB1, CREBBP, CREBL2, CREM, CSNK2A1, CTCF, CTNNA1, CTNNBL1, CTSB, CTSE, CUL4A, CYB5A, CYTOR, DAD1, DAP, DAP3, DCAF7, DCK, DCTN2, DCTN3, DDB1, DDX3X, DEK, DENND4A, DHPS, DMTN, DNAJA1, DNAJB2, DNAJB6, DNASE2, DNMT1, DYNLL1, E2F2, E2F4, ECT2, EEF1A1, EEF1D, EEF2, EIF1AX, EIF2A, EIF2AK1, EIF2S2, EIF3B, EIF3E, EIF3H, EIF3L, EIF4G1, EIF4G2, EIF5A, EIF5B, ELF1, ENTPD5, EP300, EPB41, EPB42, ERCC1, ERCC2, EYA3, EZH2, FAF1, FAH, FANK1, FAU, FBXW7, FDFT1, FER, FIS1, FKBP8, FLCN, FLOT2, FMR1, FOXO3, FOXO4, FOXP1, FTH1, FURIN, FXR1, G2E3, GAB1, GALNT5, GAPDH, GATA1, GCLC, GFI1B, GNA12, GNAS, GNB1, GPN1, GPX1, GPX4, GRINA, GRK6, H3F3A/H3F3B, HADHA, HAX1, HBA1/HBA2, HBB, HDAC6, HDGF, HEXIM1, HIF1AN, HIPK1, HIPK3, HIST1H1C, HK1, HLA-A, HMGB1, HMGB2, HMGN5, HMMR, HNRNPC, HNRNPK, HSP90AA1, HSP90AB1, HSP90B1, HSPB1, HTRA2, HUWE1, IFI27, IFNAR1, IFT122, IFT20, IFT74, IFT88, IGF2BP2, IL15RA, INPP5D, INSR, IP6K2, IQGAP2, IRF2, IRF3, ISCU, ISG20, ITGA4, ITGB3BP, ITSN1, JAK2, JMJD1C, KANK2, KAT2B, KAT7, KDELR1, KDM1A, KDM3A, KIDINS220, KIF11, KIF14, KIF15, KIF18A, KLF1, KMT2A, KMT2E, KMT5A, KNL1, LAMTOR2, LAMTOR5, LARP1B, LEPR, LGALS3, LGALS9, LIPA, LTBP1, LY9, LYL1, MACO1, MALAT1, MAN2A1, MAP1LC3B, MAP2K3, MAP4K4, MAPK1, MARCH8, MAVS, MAX, MBP, MCRS1, MECP2, MED21, MED28, METAP2, MFF, MFN2, MGEA5, MIEN1, MKI67, MKNK1, MLLT3, MPHOSPH9, MRE11, MSI2, MT2A, MTCH1, MTDH, MTPN, MXI1, MYH10, NAA15, NAA16, NAA38, NAE1, NAPA, NASP, NCL, NCOA2, NCOA4, NCOA7, NDC80, NDE1, NDEL1, NDUFS4, NEDD8, NEK1, NFAT5, NFE2L2, NFIX, NME4, NPM1, NR1H3, NSD2, NT5C3A, NUB1, NUDT1, NUDT2, NUP107, NUP88, NUSAP1, OAZ1, ODC1, OGT, OPA1, OPTN, OSBP2, PA2G4, PABPC1, PAK2, PARG, PARK7, PBX1, PCBP2, PCMT1, PDCD10, PDE2A, PELP1, PFDN5, PHB, PHIP, PI4KB, PIAS1, PIK3C3, PIK3R1, PIM1, PINK1, PKN2, PNP, PNPLA8, POLK, PPM1A, PPP1R11, PPP3R1, PQBP1, PRDM2, PRDX1, PRDX2, PRDX5, PRDX6, PRKAR2B, PRKDC, PRMT2, PSAP, PSIP1, PSMD11, PSMD2, PSME4, PTEN, PTGES3, PTK2B, PTMA, PTP4A2, PTPN11, PTPN2, PTPRA, PTTG1, QKI, RAB5A, RACK1, RAD17, RAD18, RAD21, RAD50, RALBP1, RANBP9, RAP1A, RAP1GAP, RAPGEF2, RB1, RB1CC1, RBL1, RBL2, RBM25, RBM3, RBM39, RBM8A, RBX1, RDX, REL, REV3L, RFC1, RFXANK, RGS10, RGS6, RHAG, RHBDD1, RHCE/RHD, RHOT1, RICTOR, RMC1, RNF19A, RNF5, ROCK1, ROCK2, RPL10, RPL11, RPL13, RPL13A, RPL19, RPL27, RPL27A, RPL3, RPL31, RPL34, RPL35, RPL35A, RPL37, RPL37A, RPL38, RPL5, RPL6, RPL7, RPL7A, RPL9, RPLP0, RPS11, RPS12, RPS13, RPS14, RPS15A, RPS16, RPS17, RPS18, RPS19, RPS24, RPS27A, RPS28, RPS29, RPS3, RPS3A, RPS5, RPS6, RPS6KB1, RPS7, RPSA, RXRA, RYBP, SAFB, SAP18, SAP30BP, SAT1, SATB1, SBDS, SDHB, SELENBP1, SERINC3, SET, SF3B3, SF3B6, SFRP2, SGMS1, SH3BGRL3, SH3GLB1, SHARPIN, SHISA5, SIAH2, SIRT1, SIRT2, SKA3, SLC25A38, SLC25A6, SLC2A1, SLC33A1, SLC40A1, SLC4A1, SLC6A8, SLK, SLU7, SMARCA5, SMARCC1, SMC1A, SMOX, SNCA, SND1, SNRPD3, SNW1, SOD1, SOD2, SON, SOX6, SPAG16, SPC25, SPECC1, SPTA1, SPTB, SRPK1, SRPK2, SRSF8, SSB, ST3GAL1, ST8SIA1, STAG1, STAM, STAMBP, STAT6, STIL, STK17A, STK17B, STOML2, STRADB, STRAP, STX4, STX7, SUDS3, SURF1, SUZ12, SYF2, TAB2, TADA3, TAF10, TAF9, TAL1, TANK, TAOK1, TAX1BP1, TBC1D15, TBL1XR1, TBPL1, TERF1, TERF2, TERF2IP, TFDP1, TFDP2, TFRC, TGM2, THOC2, TLE4, TMBIM6, TMED10, TMF1, TMOD3, TNIP1, TNRC6A, TOLLIP, TOP1, TOP2A, TPM1, TPM3, TPP1, TPR, TPT1, TRIM10, TRIM24, TRPM7, TSC1, TSG101, TSTA3, TTF1, TUBB, TXN, TXN2, TXNL4B, TXNRD2, UBB, UBC, UBE2B, UBE2K, UBE2V1, UBE4B, UBQLN1, UBR2, UBR4, UCHL5, UCP2, UIMC1, UPF2, USP12, USP7, USP9X, UXT, VAPA, VAPB, VPS13A, VPS28, VPS35, VRK1, VTI1A, VTI1B, WAPL, WDR26, WDR48, WRN, WWC3, WWP2, XPO1, XPO7, YBX1, YBX3, YEATS4, YME1L1, YWHAE, YY1AP1, ZDHHC17, ZFAND5, ZFAND6, ZFR, ZNF346 | E25: 643
B26: Necrosis | C26: 1.80E-16 | D26: AAAS, ABCC4, ACP1, ACTB, ADAR, ADIPOR1, AGER, AGGF1, AGTPBP1, AKT1S1, ALDOA, AP2B1, AP2M1, APOPT1, ARAF, ARG1, ARID1A, ARL6IP1, ARNT, ARRB2, ATAD2, ATF2, ATF4, ATG12, ATG13, ATG3, ATM, ATP2B1, ATR, ATRX, ATXN2, ATXN3, AURKA, B2M, BACH1, BAG1, BAG6, BARD1, BAZ1A, BCL2L1, BCL2L13, BCLAF1, BECN1, BIRC2, BIRC6, BNIP3L, BRCA1, BRCA2, BRD4, BSG, BUD31, CALR, CAPNS1, CARD8, CASP8AP2, CAST, CAT, CBX3, CCAR1, CCNG1, CCNI, CCT2, CCT3, CCT8, CD2AP, CD36, CD44, CD59, CD82, CDC34, CDC42, CDC73, CDK8, CELF1, CENPE, CHMP5, CKAP2, CKAP5, CLK3, CLSPN, COPA, COPZ1, COX6B1, COX7A2L, CPEB4, CR1, CR1L, CRBN, CREB1, CREBBP, CREBL2, CREM, CSNK2A1, CTCF, CTNNA1, CTSB, CYB5A, CYTOR, DAP3, DCK, DCTN2, DCTN3, DDX3X, DEK, DENND4A, DHPS, DNAJB2, DNASE2, DNMT1, DYNLL1, E2F2, E2F4, EEF1A1, EEF1D, EEF2, EIF1AX, EIF2A, EIF2AK1, EIF2S2, EIF3B, EIF3E, EIF3H, EIF3L, EIF4G2, EIF5A, EIF5B, ELF1, ENTPD5, EP300, ERCC1, ERCC2, EYA3, EZH2, FAF1, FAH, FAU, FBXW7, FDFT1, FER, FIS1, FKBP8, FMR1, FOXO3, FOXO4, FOXP1, FTH1, FURIN, GAB1, GALNT5, GAPDH, GATA1, GCLC, GFI1B, GNA12, GNAS, GNB1, GPN1, GPX1, GPX4, GRINA, GRK6, HADHA, HAX1, HDAC6, HDGF, HIF1AN, HIPK1, HIST1H1C, HK1, HLA-A, HMGB1, HMGB2, HMMR, HNRNPC, HNRNPK, HSP90AA1, HSP90AB1, HSP90B1, HSPB1, HTRA2, HUWE1, IFNAR1, IFT74, IGF2BP2, IL15RA, INPP5D, INSR, IP6K2, IQGAP2, IRF2, IRF3, ISCU, ITGA4, ITGB3BP, ITSN1, JAK2, KANK2, KDELR1, KIDINS220, KIF11, KIF14, KIF15, KMT2A, KNL1, LAMTOR2, LARP1B, LEPR, LGALS3, LGALS9, LIPA, LTBP1, LY9, LYL1, MACO1, MALAT1, MAN2A1, MAP1LC3B, MAP2K3, MAPK1, MARCH8, MAVS, MAX, MBP, MCRS1, MECP2, MED21, MED28, METAP2, MFF, MFN2, MGEA5, MKI67, MKNK1, MLLT3, MPHOSPH9, MSI2, MT2A, MTCH1, MTDH, MTPN, MXI1, MYH10, NAA38, NAE1, NAPA, NASP, NCL, NCOA2, NCOA4, NCOA7, NDC80, NDEL1, NEK1, NFAT5, NFE2L2, NFIX, NME4, NPM1, NR1H3, NSD2, NUB1, NUDT1, NUP107, NUP88, OAZ1, ODC1, OGT, OPA1, OPTN, PA2G4, PABPC1, PAK2, PARG, PARK7, PBX1, PCBP2, PELP1, PHB, PHIP, PI4KB, PIAS1, PIK3C3, PIK3R1, PIM1, PINK1, PKN2, PNP, PNPLA8, POLK, PPM1A, PPP1R11, PPP3R1, PRDM2, PRDX1, PRDX2, PRDX6, PRKAR2B, PRKDC, PRMT2, PSAP, PSIP1, PSMD11, PSMD2, PTEN, PTK2B, PTMA, PTPN11, PTPN2, PTPRA, PTTG1, QKI, RACK1, RAD21, RAD50, RALBP1, RANBP9, RAP1GAP, RAPGEF2, RB1, RB1CC1, RBL1, RBL2, RBM3, RBM39, RBM8A, RBX1, RDX, REL, REV3L, RFXANK, RGS10, RHOT1, RICTOR, RMC1, RNF19A, RNF5, ROCK1, ROCK2, RPL10, RPL11, RPL13, RPL13A, RPL19, RPL27, RPL27A, RPL3, RPL31, RPL34, RPL35, RPL35A, RPL37, RPL37A, RPL38, RPL5, RPL6, RPL7, RPL7A, RPL9, RPLP0, RPS11, RPS12, RPS13, RPS14, RPS15A, RPS16, RPS17, RPS18, RPS19, RPS24, RPS27A, RPS28, RPS29, RPS3, RPS3A, RPS5, RPS6, RPS6KB1, RPS7, RPSA, RXRA, SAT1, SATB1, SBDS, SDHB, SET, SF3B3, SF3B6, SFRP2, SGMS1, SH3GLB1, SHARPIN, SIAH2, SIRT1, SIRT2, SKA3, SLC25A38, SLC25A6, SLC2A1, SLC6A8, SLK, SLU7, SMARCC1, SMC1A, SMOX, SNCA, SND1, SNRPD3, SNW1, SOD1, SOD2, SON, SOX6, SPC25, SPECC1, SRPK1, SRPK2, SRSF8, SSB, ST3GAL1, ST8SIA1, STAM, STAMBP, STAT6, STK17A, STK17B, STOML2, STRADB, STRAP, STX4, SUDS3, SURF1, TAL1, TANK, TAX1BP1, TBC1D15, TBL1XR1, TBPL1, TERF1, TERF2, TERF2IP, TFDP1, TFRC, TGM2, THOC2, TLE4, TMBIM6, TMED10, TMOD3, TNIP1, TOLLIP, TOP1, TOP2A, TPM1, TPP1, TPR, TPT1, TRIM10, TRPM7, TSC1, TSG101, TTF1, TUBB, TXN, TXN2, TXNL4B, UBB, UBE2K, UBE2V1, UBE4B, UBQLN1, UCHL5, UCP2, UIMC1, UPF2, USP12, USP9X, UXT, VAPA, VAPB, VPS13A, VPS28, VRK1, VTI1A, VTI1B, WAPL, WDR48, WRN, WWC3, WWP2, XPO1, YBX1, YEATS4, YME1L1, YWHAE, YY1AP1, ZDHHC17, ZNF346 | E26: 497
B27: Apoptosis | C27: 4.36E-13 | D27: AAAS, ADAR, AGER, AGGF1, AGO2, AKT1S1, ALDOA, ALKBH5, ALMS1, AMFR, ANXA7, AP2M1, APOPT1, ARAF, ARF4, ARG1, ARL6IP1, ARL6IP5, ARNT, ARRB2, ATAD2, ATF2, ATF4, ATG12, ATG3, ATM, ATR, ATRX, ATXN2, ATXN3, AURKA, B2M, BACH1, BAG1, BAG6, BARD1, BAZ1A, BCL2L1, BCL2L13, BCLAF1, BECN1, BIRC2, BIRC6, BLOC1S2, BNIP3L, BRCA1, BRCA2, BSG, BTF3, BUD31, C1GALT1, CALR, CANX, CAPNS1, CAPRIN2, CARD8, CASP8AP2, CAST, CAT, CBX3, CCAR1, CCDC88A, CCNG1, CCNI, CCT2, CD2AP, CD36, CD44, CD59, CD82, CDC34, CDC42, CDC73, CDK12, CDK8, CDKN3, CELF1, CENPE, CENPF, CHMP5, CIRBP, CKAP2, CKAP5, CLK3, COPZ1, COX6B1, COX7A2L, CPEB4, CR1L, CREB1, CREBBP, CREBL2, CREM, CSNK2A1, CTCF, CTNNA1, CTNNBL1, CTSB, CTSE, CUL4A, CYB5A, CYTOR, DAD1, DAP, DAP3, DCAF7, DCK, DDB1, DDX3X, DEK, DHPS, DNAJA1, DNASE2, DNMT1, DYNLL1, E2F2, E2F4, ECT2, EEF1A1, EEF1D, EIF2A, EIF2AK1, EIF3B, EIF3H, EIF4G1, EIF4G2, EIF5A, ENTPD5, EP300, ERCC1, ERCC2, EZH2, FAF1, FAH, FANK1, FAU, FBXW7, FER, FIS1, FKBP8, FLCN, FLOT2, FMR1, FOXO3, FOXO4, FOXP1, FTH1, FURIN, FXR1, G2E3, GAB1, GAPDH, GATA1, GCLC, GFI1B, GNA12, GNAS, GNB1, GPX1, GPX4, HAX1, HBA1/HBA2, HDAC6, HDGF, HEXIM1, HIF1AN, HIPK1, HIPK3, HIST1H1C, HK1, HMGB1, HMGN5, HMMR, HNRNPC, HNRNPK, HSP90AA1, HSP90AB1, HSP90B1, HSPB1, HTRA2, HUWE1, IFI27, IFNAR1, IFT88, IGF2BP2, IL15RA, INPP5D, INSR, IP6K2, IQGAP2, IRF2, IRF3, ITGA4, ITGB3BP, ITSN1, JAK2, JMJD1C, KANK2, KAT2B, KAT7, KDELR1, KDM1A, KDM3A, KIDINS220, KIF11, KIF14, KIF18A, KMT2A, KMT5A, KNL1, LAMTOR2, LAMTOR5, LARP1B, LEPR, LGALS3, LGALS9, LIPA, LTBP1, LYL1, MALAT1, MAN2A1, MAP2K3, MAP4K4, MAPK1, MARCH8, MAVS, MAX, MCRS1, MECP2, MFF, MFN2, MGEA5, MIEN1, MKI67, MKNK1, MLLT3, MRE11, MT2A, MTCH1, MTDH, MTPN, MXI1, MYH10, NAA15, NAA16, NAA38, NAE1, NAPA, NASP, NCL, NCOA2, NCOA4, NDC80, NDEL1, NEK1, NFAT5, NFE2L2, NME4, NPM1, NR1H3, NSD2, NUB1, NUDT1, NUDT2, NUSAP1, ODC1, OGT, OPA1, OPTN, OSBP2, PA2G4, PAK2, PARG, PARK7, PBX1, PCBP2, PCMT1, PDCD10, PELP1, PHB, PHIP, PIAS1, PIK3C3, PIK3R1, PIM1, PINK1, PKN2, PNP, PPM1A, PPP1R11, PPP3R1, PQBP1, PRDM2, PRDX1, PRDX2, PRDX5, PRDX6, PRKAR2B, PRKDC, PRMT2, PSAP, PSIP1, PSME4, PTEN, PTK2B, PTMA, PTP4A2, PTPN11, PTPN2, PTTG1, QKI, RACK1, RAD21, RAD50, RALBP1, RANBP9, RAP1A, RAPGEF2, RB1, RB1CC1, RBL1, RBL2, RBM25, RBM3, RBX1, RDX, REL, REV3L, RFC1, RFXANK, RGS6, RHBDD1, RHOT1, RICTOR, RNF5, ROCK1, ROCK2, RPL10, RPL37, RPLP0, RPS19, RPS24, RPS29, RPS3, RPS3A, RPS6, RPS6KB1, RXRA, RYBP, SAFB, SAP18, SAT1, SATB1, SBDS, SELENBP1, SERINC3, SET, SF3B6, SFRP2, SGMS1, SH3BGRL3, SH3GLB1, SHISA5, SIAH2, SIRT1, SIRT2, SLC25A38, SLC25A6, SLC2A1, SLC40A1, SLK, SLU7, SMARCA5, SMARCC1, SMOX, SNCA, SND1, SNW1, SOD1, SOD2, SON, SOX6, SPAG16, SPC25, SPECC1, SRPK1, SRPK2, ST3GAL1, ST8SIA1, STAG1, STAMBP, STAT6, STIL, STK17A, STK17B, STOML2, STRADB, STRAP, STX4, SUDS3, SURF1, SUZ12, SYF2, TAB2, TADA3, TAF10, TAF9, TAL1, TAOK1, TAX1BP1, TBL1XR1, TBPL1, TERF1, TERF2, TERF2IP, TFDP1, TFDP2, TFRC, TGM2, TLE4, TMBIM6, TMED10, TMF1, TMOD3, TNIP1, TNRC6A, TOP1, TOP2A, TPM1, TPR, TPT1, TRIM10, TRIM24, TRPM7, TSC1, TSG101, TTF1, TXN, TXN2, UBB, UBE2B, UBE2V1, UBE4B, UBQLN1, UBR2, UBR4, UCHL5, UCP2, UIMC1, USP12, USP7, UXT, VPS13A, VPS28, VTI1A, VTI1B, WAPL, WDR26, WDR48, WRN, WWP2, XPO1, XPO7, YBX1, YBX3, YME1L1, YWHAE, YY1AP1, ZFAND5, ZFAND6, ZFR, ZNF346 | E27: 472
B28: Cell death of connective tissue cells | C28: 2.92E-10 | D28: ABCC4, ACTB, ADIPOR1, AGER, ARID1A, ARNT, ARRB2, ATF2, ATF4, ATG3, ATM, ATR, ATRX, BCL2L1, BECN1, BIRC2, BIRC6, BNIP3L, BRCA1, BRCA2, CAPNS1, CASP8AP2, CAT, CCNG1, CD36, CD44, CDC42, CDC73, CENPE, CREB1, CREBL2, CTSB, DDX3X, DENND4A, DNMT1, E2F2, EEF1A1, EIF2A, EIF2AK1, EIF3B, EIF3H, EIF5B, ENTPD5, EP300, FAF1, FKBP8, FOXO3, FTH1, GAB1, GALNT5, GPX1, GPX4, HIPK1, HTRA2, IFNAR1, INSR, IRF3, ITSN1, MACO1, MAP1LC3B, MAP2K3, MAPK1, MAVS, MFN2, NEK1, NFAT5, NFE2L2, NR1H3, NUDT1, OAZ1, OPA1, PAK2, PARK7, PI4KB, PIAS1, PIK3R1, PIM1, PINK1, POLK, PRDX6, PRKAR2B, PRKDC, PRMT2, PTEN, PTK2B, PTPN11, QKI, RALBP1, RB1, RB1CC1, RBL1, RBL2, REL, REV3L, RHOT1, RPL10, RPL37, RPS6KB1, SF3B6, SFRP2, SH3GLB1, SHARPIN, SIRT1, SLK, SMARCC1, SOD1, SOD2, STK17A, STK17B, STRADB, TANK, TAX1BP1, TERF2, TFDP1, TGM2, TNIP1, TOP2A, TPP1, TSC1, TSG101, TXN, TXNL4B, UBE2K, UXT, VPS28, WRN, YME1L1, ZNF346 | E28: 128
B29: Cell death of fibroblast cell lines | C29: 9.11E-10 | D29: ABCC4, ACTB, ADIPOR1, ARID1A, ARNT, ARRB2, ATF2, ATF4, ATG3, ATM, ATR, BCL2L1, BECN1, BIRC2, BIRC6, BNIP3L, BRCA1, BRCA2, CAPNS1, CASP8AP2, CCNG1, CDC73, CREBL2, CTSB, DDX3X, DENND4A, DNMT1, E2F2, EEF1A1, EIF2A, EIF2AK1, EIF3B, EIF3H, EIF5B, ENTPD5, FAF1, FKBP8, FOXO3, FTH1, GALNT5, HIPK1, HTRA2, IFNAR1, INSR, ITSN1, MACO1, MAP1LC3B, MAPK1, MFN2, NFE2L2, NR1H3, OAZ1, OPA1, PAK2, PARK7, PI4KB, PIK3R1, PIM1, PINK1, PRDX6, PRKDC, PTEN, PTK2B, PTPN11, QKI, RALBP1, RB1, RBL1, RBL2, REL, RHOT1, RPL10, RPL37, SF3B6, SHARPIN, SIRT1, SMARCC1, SOD2, STK17A, STK17B, STRADB, TANK, TAX1BP1, TERF2, TFDP1, TGM2, TNIP1, TOP2A, TSC1, TXN, TXNL4B, UXT, VPS28, WRN, YME1L1, ZNF346 | E29: 96
B30: Cell death of embryonic cell lines | C30: 2.77E-08 | D30: ADIPOR1, ARNT, ARRB2, ATF2, ATF4, ATG3, ATXN3, BAG1, BCL2L1, BECN1, BIRC2, BIRC6, BNIP3L, BRCA1, CAPNS1, CD44, CDC42, CDC73, CHMP5, CTSB, DAP3, DCTN2, DNMT1, E2F2, EEF1A1, EIF2A, FKBP8, FOXO3, GAPDH, HAX1, HDAC6, HIPK1, HK1, HSPB1, HTRA2, IFNAR1, IP6K2, ITSN1, MAVS, MFN2, NDEL1, NFE2L2, NR1H3, OPA1, PAK2, PARK7, PIAS1, PIK3R1, PINK1, PKN2, PPM1A, PPP3R1, PRDX6, PRKDC, PRMT2, PSIP1, PTEN, PTPN11, RAD21, RALBP1, RB1, RBL1, RBL2, REL, RFXANK, SHARPIN, SIRT1, SIRT2, SLC25A38, SNCA, SOD1, SOD2, STRAP, TANK, TFRC, TOP2A, TRPM7, TSC1, UXT, YME1L1, ZNF346 | E30: 81
B31: Hemolysis | C31: 1.14E-07 | D31: ADD1, ALDOA, ANK1, BCL2L1, CAT, CD59, CPOX, CR1, EPB41, EPB42, FOXO3, GATA1, GCLC, HBA1/HBA2, HBB, HK1, IFNAR1, KLF1, NFE2L2, NT5C3A, PPP3R1, PRDX1, PRDX2, RHAG, RHCE/RHD, SLC4A1, SPTA1, SPTB | E31: 28
B32: Cell death of fibroblasts | C32: 2.04E-06 | D32: AGER, ARRB2, ATF2, ATM, BCL2L1, BECN1, BIRC2, BIRC6, BRCA1, CAPNS1, CAT, CDC42, CENPE, E2F2, EP300, FOXO3, GAB1, GPX1, GPX4, HTRA2, INSR, IRF3, MAP2K3, MAVS, NEK1, NFE2L2, NUDT1, OPA1, POLK, PRKAR2B, PRKDC, PRMT2, PTEN, PTPN11, QKI, RALBP1, RB1, RB1CC1, REL, REV3L, RPS6KB1, SH3GLB1, SHARPIN, SIRT1, SLK, SMARCC1, SOD1, SOD2, TFDP1, TGM2, TNIP1, TPP1, TSG101, UBE2K, WRN, ZNF346 | E32: 56
B33: Apoptosis of fibroblast cell lines | C33: 8.79E-06 | D33: ARRB2, ATF2, ATG3, ATM, ATR, BCL2L1, BECN1, BIRC2, BIRC6, BNIP3L, BRCA1, CAPNS1, CASP8AP2, CCNG1, CDC73, CREBL2, DDX3X, DNMT1, E2F2, EEF1A1, EIF2A, EIF3B, EIF3H, ENTPD5, FAF1, FOXO3, FTH1, HIPK1, HTRA2, IFNAR1, INSR, ITSN1, MFN2, NFE2L2, NR1H3, PIK3R1, PIM1, PINK1, PTEN, PTK2B, PTPN11, QKI, RALBP1, RB1, RBL1, RBL2, REL, RHOT1, RPL10, RPL37, SF3B6, SIRT1, SMARCC1, STK17A, STK17B, STRADB, TAX1BP1, TGM2, TNIP1, TOP2A, TSC1, UXT, VPS28, YME1L1, ZNF346 | E33: 65
B34: Cell survival | C34: 2.50E-05 | D34: ADAR, ADIPOR1, AGER, AGO2, AGTPBP1, AKAP13, AKAP7, AP2B1, APLF, ARID1A, ARNT, ATF2, ATF4, ATG12, ATG3, ATM, ATP5MD, ATP5PD, ATR, ATRX, AURKA, B2M, BAG1, BARD1, BCL2L1, BCLAF1, BECN1, BIRC2, BIRC6, BRCA1, BRCA2, BRD4, BRIP1, BUD31, C1GALT1, CA2, CALR, CAT, CCAR1, CCNG1, CCNI, CD2AP, CD44, CD59, CD82, CDC42, CDC42BPA, CDK11B, CDK8, CKAP5, CLK3, CR1, CR1L, CRBN, CREB1, CREBBP, CRKL, CSNK2A1, CTSB, DCK, DDX3X, DENND4A, DNAJB6, DNMT1, E2F4, EEF2, EIF2A, EIF3A, EIF3E, EIF4G1, ELF1, ELOVL1, EP300, ERCC1, ERCC2, ESCO1, EYA3, EZH2, FAM120A, FBXO9, FER, FKBP1B, FOXO3, FTH1, GAB1, GATA1, GCLC, GMFG, GPX1, GRK6, HBA1/HBA2, HBB, HDGF, HIPK1, HK1, HLA-A, HMGB1, HMGB2, HNRNPK, HSP90AB1, HSP90B1, HSPB1, IK, INPP5D, INPP5K, INSR, JAK2, JMJD1C, KDM1A, KDM6A, KIF11, KIF15, KIF18A, LEO1, LEPR, LEPROT, LGALS3, LY9, MAP1LC3B, MAP2K3, MAPK1, MBP, MCUR1, MED21, METAP2, MICAL2, MINPP1, MKNK1, MRE11, MTDH, NDC80, NEAT1, NFAT5, NFE2, NFE2L2, NOP58, NRBP1, NSA2, NSD2, NT5C3A, ODC1, OGT, PAK2, PARG, PARK7, PBX1, PFDN4, PFDN5, PHB, PHLPP2, PIAS1, PIK3C3, PIK3R1, PIM1, PINK1, POLK, POLL, POLR1D, PPM1A, PPP1CB, PPP1R11, PRDX2, PRDX6, PRKDC, PSAP, PSIP1, PSMC3, PTEN, PTK2B, PTP4A2, PTPN11, PTPN2, PTPRA, RAB5A, RACK1, RAD17, RAD18, RAD21, RAD50, RB1, RB1CC1, RBM39, RBM8A, REL, REV1, REV3L, RFC1, RICTOR, RPL24, RPL27, RPL35A, RPL38, RPS6KB1, RPSA, RSF1, RXRA, SAT1, SET, SF3B3, SFRP2, SIRT1, SKA3, SLC1A5, SLC2A1, SLC40A1, SLC48A1, SLC6A8, SMARCC1, SMARCC2, SMC1A, SMC3, SNCA, SND1, SNW1, SOD1, SOD2, SPIDR, STAM, STAMBP, STAT6, STRAP, SUPT5H, TAL1, TANK, TDG, TERF1, TERF2, TGM2, TOP1, TOP2A, TPT1, TSC1, TSG101, TUBB, TXN, TXNDC16, UBE2V1, UBQLN1, UCP2, UPF2, USP14, USP8, USP9X, VBP1, VPS13A, VRK1, WRN, XPO1, YBX1, YPEL3, YY1AP1 | E34: 251
B35: Cell death of central nervous system cells | C35: 3.24E-05 | D35: AGTPBP1, ATF2, ATF4, ATXN2, ATXN3, BAG1, BCL2L1, BECN1, CAPNS1, CAST, CAT, CDC42, CR1L, CREBBP, E2F4, EIF2A, EP300, FER, FOXO3, GAPDH, GCLC, HMGB1, HMGB2, HSP90AA1, HSPB1, HTRA2, ITSN1, MAP2K3, MAPK1, MECP2, MFN2, NAE1, NFE2L2, NPM1, PARG, PARK7, PTEN, RANBP9, RB1, ROCK1, ROCK2, RPS3, RPS6KB1, SH3GLB1, SIRT1, SLC25A38, SLC2A1, SNCA, SOD1, SRPK2, ST8SIA1, TFDP1, TGM2, TSC1, UBQLN1, UCP2, VAPA, VAPB | E35: 58
B36: Cell viability | C36: 4.14E-05 | D36: ADAR, ADIPOR1, AGER, AGO2, AGTPBP1, AKAP13, AKAP7, AP2B1, APLF, ARID1A, ARNT, ATF2, ATG12, ATG3, ATM, ATP5MD, ATP5PD, ATR, ATRX, AURKA, B2M, BAG1, BARD1, BCL2L1, BCLAF1, BECN1, BIRC2, BIRC6, BRCA1, BRCA2, BRD4, BRIP1, BUD31, C1GALT1, CA2, CALR, CAT, CCAR1, CCNG1, CCNI, CD2AP, CD44, CD59, CD82, CDC42, CDC42BPA, CDK11B, CDK8, CKAP5, CLK3, CR1, CR1L, CRBN, CREB1, CREBBP, CRKL, CSNK2A1, CTSB, DCK, DENND4A, DNAJB6, DNMT1, E2F4, EEF2, EIF2A, EIF3A, EIF3E, EIF4G1, ELF1, ELOVL1, EP300, ERCC1, ERCC2, ESCO1, EYA3, EZH2, FAM120A, FBXO9, FER, FKBP1B, FOXO3, FTH1, GAB1, GATA1, GCLC, GMFG, GPX1, GRK6, HBA1/HBA2, HBB, HDGF, HIPK1, HK1, HLA-A, HMGB1, HMGB2, HNRNPK, HSP90AB1, HSP90B1, HSPB1, IK, INPP5D, INPP5K, INSR, JAK2, JMJD1C, KDM1A, KDM6A, KIF11, KIF15, KIF18A, LEPR, LEPROT, LGALS3, LY9, MAP1LC3B, MAP2K3, MAPK1, MBP, MCUR1, MED21, METAP2, MICAL2, MINPP1, MKNK1, MRE11, MTDH, NDC80, NEAT1, NFAT5, NFE2, NFE2L2, NOP58, NRBP1, NSA2, NSD2, NT5C3A, OGT, PAK2, PARG, PARK7, PBX1, PFDN4, PFDN5, PHB, PHLPP2, PIAS1, PIK3C3, PIK3R1, PIM1, PINK1, POLK, POLL, POLR1D, PPM1A, PPP1CB, PPP1R11, PRDX2, PRDX6, PRKDC, PSAP, PSIP1, PSMC3, PTEN, PTK2B, PTP4A2, PTPN11, PTPN2, PTPRA, RAB5A, RACK1, RAD18, RAD21, RAD50, RB1, RB1CC1, RBM39, RBM8A, REL, REV1, REV3L, RICTOR, RPL24, RPL27, RPL35A, RPL38, RPS6KB1, RPSA, RSF1, RXRA, SAT1, SF3B3, SFRP2, SIRT1, SKA3, SLC1A5, SLC2A1, SLC40A1, SLC48A1, SLC6A8, SMARCC1, SMARCC2, SMC3, SNCA, SND1, SNW1, SOD1, SOD2, SPIDR, STAM, STAMBP, STRAP, SUPT5H, TAL1, TANK, TDG, TERF1, TERF2, TGM2, TOP1, TSC1, TXN, TXNDC16, UBE2V1, UBQLN1, UPF2, USP14, USP8, USP9X, VBP1, VPS13A, VRK1, WRN, XPO1, YBX1, YPEL3, YY1AP1 | E36: 237
B37: Cell death of brain cells | C37: 5.68E-05 | D37: AGTPBP1, ATF2, ATF4, ATXN2, ATXN3, BAG1, BCL2L1, BECN1, CAPNS1, CAST, CAT, CDC42, CR1L, CREBBP, E2F4, EIF2A, EP300, FER, FOXO3, GAPDH, GCLC, HMGB1, HMGB2, HSPB1, HTRA2, ITSN1, MAP2K3, MECP2, MFN2, NAE1, NFE2L2, NPM1, PARK7, PTEN, RANBP9, RB1, ROCK1, ROCK2, RPS3, SH3GLB1, SIRT1, SLC25A38, SLC2A1, SNCA, SOD1, SRPK2, ST8SIA1, TFDP1, TGM2, TSC1, UBQLN1, UCP2, VAPA, VAPB | E37: 54
B38: Cytolysis | C38: 5.71E-05 | D38: ADD1, ADD2, ALDOA, ANK1, ARRB2, ATP5S, B2M, BCL2L1, BECN1, CALR, CAT, CD44, CD59, CPOX, CR1, CSNK2A1, DMTN, EIF2AK1, EPB41, EPB42, FOXO3, FURIN, GATA1, GCLC, HBA1/HBA2, HBB, HK1, HLA-A, IFNAR1, IL15RA, KLF1, KMT2E, LGALS3, LY9, MAN2A1, MAVS, NDE1, NFE2L2, NT5C3A, PNP, PPP3R1, PRDX1, PRDX2, PTMA, REL, RHAG, RHCE/RHD, SH3BGRL3, SLC4A1, SPTA1, SPTB, TSTA3 | E38: 52
B39: Cell death of brain | C39: 5.75E-05 | D39: AGTPBP1, ATF2, ATF4, ATXN2, ATXN3, BAG1, BCL2L1, BECN1, CAPNS1, CAST, CAT, CDC34, CDC42, CR1L, CREBBP, DNAJB2, E2F4, EIF2A, EP300, FER, FOXO3, GAPDH, GCLC, HMGB1, HMGB2, HSPB1, HTRA2, ITSN1, MAP2K3, MECP2, MFN2, NAE1, NFE2L2, NPM1, PARK7, PTEN, RANBP9, RB1, ROCK1, ROCK2, RPS3, SDHB, SH3GLB1, SIRT1, SLC25A38, SLC2A1, SNCA, SOD1, SRPK2, ST8SIA1, TFDP1, TGM2, TSC1, UBQLN1, UCP2, VAPA, VAPB | E39: 57
B40: Cell death of cortical neurons | C40: 8.55E-05 | D40: ATF4, ATXN3, BCL2L1, BECN1, CAPNS1, CAST, CAT, CDC42, CREBBP, E2F4, EIF2A, EP300, FER, GAPDH, GCLC, HMGB1, HMGB2, HSPB1, HTRA2, ITSN1, MAP2K3, MECP2, NAE1, NFE2L2, NPM1, PARK7, RB1, SH3GLB1, SIRT1, SLC25A38, SNCA, SOD1, SRPK2, ST8SIA1, TFDP1, TGM2, UBQLN1 | E40: 37
B41: Apoptosis of embryonic cell lines | C41: 1.09E-04 | D41: ARRB2, ATF2, ATG3, BCL2L1, BECN1, BIRC2, BIRC6, BNIP3L, BRCA1, CAPNS1, CD44, CDC73, CHMP5, DAP3, DNMT1, E2F2, EEF1A1, EIF2A, FOXO3, HAX1, HIPK1, ITSN1, MFN2, NFE2L2, NR1H3, PAK2, PIAS1, PIK3R1, PINK1, PKN2, PPM1A, PPP3R1, PRMT2, PSIP1, PTEN, PTPN11, RAD21, RALBP1, RB1, RBL1, RBL2, REL, RFXANK, SIRT1, SLC25A38, SNCA, STRAP, TFRC, TOP2A, TSC1, UXT, YME1L1, ZNF346 | E41: 53
B42: Apoptosis of central nervous system cells | C42: 1.29E-04 | D42: ATF2, ATF4, BCL2L1, BECN1, CAST, CAT, CDC42, CR1L, CREBBP, EIF2A, EP300, FOXO3, GAPDH, GCLC, HSP90AA1, ITSN1, MAP2K3, MECP2, NAE1, NFE2L2, NPM1, PARG, PTEN, RANBP9, RB1, ROCK1, ROCK2, RPS3, RPS6KB1, SH3GLB1, SIRT1, SOD1, SRPK2, ST8SIA1 | E42: 34
B43: Necrosis of epithelial tissue | C43: 1.40E-04 | D43: ADAR, AGER, AGGF1, ARRB2, ATF2, ATM, ATRX, ATXN3, AURKA, BAG1, BCL2L1, BECN1, BIRC2, BNIP3L, CALR, CAT, CD36, CD44, CDC42, CHMP5, CR1, CTNNA1, CTSB, CYTOR, DAP3, DCTN2, DYNLL1, EEF1A1, EIF3H, ENTPD5, ERCC1, FAH, FKBP8, FOXO3, FOXO4, GAPDH, GATA1, GPX1, HAX1, HDAC6, HIF1AN, HIPK1, HK1, HMGB1, HSPB1, HTRA2, INSR, IP6K2, IQGAP2, IRF3, ITSN1, JAK2, LIPA, MAP2K3, MAPK1, MAVS, MAX, NCL, NCOA2, NDEL1, NFE2L2, NPM1, PAK2, PARK7, PIAS1, PIK3R1, PIM1, PINK1, PKN2, PPM1A, PPP3R1, PRDX2, PRDX6, PRKDC, PRMT2, PSIP1, PTEN, PTK2B, PTPN11, RAD21, RB1, RB1CC1, RBL1, RBL2, RDX, REL, RFXANK, SHARPIN, SIRT2, SLC25A38, SNCA, SOD1, SOD2, STAT6, STRAP, TFRC, TGM2, TMBIM6, TNIP1, TRPM7, TXN, UCP2, UXT, XPO1, YEATS4 | E43: 105
B44: Cell death of cerebral cortex cells | C44: 1.68E-04 | D44: ATF4, ATXN3, BCL2L1, BECN1, CAPNS1, CAST, CAT, CDC42, CREBBP, E2F4, EIF2A, EP300, FER, FOXO3, GAPDH, GCLC, HMGB1, HMGB2, HSPB1, HTRA2, ITSN1, MAP2K3, MECP2, NAE1, NFE2L2, NPM1, PARK7, RANBP9, RB1, RPS3, SH3GLB1, SIRT1, SLC25A38, SLC2A1, SNCA, SOD1, SRPK2, ST8SIA1, TFDP1, TGM2, TSC1, UBQLN1, UCP2, VAPA, VAPB | E44: 45
A45: RNA Post-Transcriptional Modification | B45: Processing of RNA | C45: 7.82E-25 | D45: AGO2, ALKBH5, ATXN3, BARD1, BUD31, CDC42, CDC5L, CDC73, CDK11B, CDK12, CDK13, CELF1, CLK1, CLK3, CPSF6, EPB41, FMR1, GPKOW, HBB, HNRNPC, HNRNPD, HNRNPK, HNRNPM, IK, KIN, LEO1, LSM1, LUC7L3, MALAT1, MBNL1, MBNL3, MECP2, MTPAP, NOP58, NPM1, NSRP1, PABPC1, PAPOLA, PNN, PPIG, PQBP1, PRPF4B, PTBP3, QKI, RBM25, RBM3, RBM38, RBM39, RBM8A, RPL11, RPL14, RPL26, RPL27, RPL35A, RPL5, RPL7, RPS15, RPS16, RPS17, RPS19, RPS24, RPS27, RPS28, RPS6, RPS7, RSRC1, SAFB, SAP18, SARS, SBDS, SCAF11, SCAF8, SCNM1, SF3B3, SF3B5, SF3B6, SLU7, SNRPD2, SNRPD3, SNU13, SNW1, SON, SOX6, SREK1, SRPK1, SRPK2, SRRM1, SRSF11, SSB, SUPT5H, SYF2, SYNCRIP, THRAP3, TRA2A, TRA2B, TRMT112, TXNL4B, WBP4, XRN1, XRN2, YTHDC1, ZNF326, ZRSR2 | E45: 103
B46: Splicing of RNA | C46: 5.21E-16 | D46: ATXN3, BUD31, CDC42, CDC5L, CDK12, CDK13, CELF1, CLK1, CLK3, EPB41, FMR1, GPKOW, HNRNPC, HNRNPK, HNRNPM, IK, LSM1, LUC7L3, MALAT1, MBNL1, MBNL3, MECP2, NPM1, NSRP1, PNN, PPIG, PQBP1, PRPF4B, PTBP3, RBM25, RBM38, RBM8A, RSRC1, SAP18, SCAF11, SCNM1, SF3B3, SF3B5, SF3B6, SLU7, SNRPD2, SNRPD3, SNU13, SNW1, SON, SOX6, SREK1, SRPK1, SRPK2, SRRM1, SRSF11, SYF2, SYNCRIP, THRAP3, TRA2A, TRA2B, TXNL4B, WBP4, YTHDC1, ZNF326, ZRSR2 | E46: 61
B47: Processing of mRNA | C47: 1.80E-13 | D47: AGO2, ALKBH5, BARD1, BUD31, CDC5L, CDC73, CDK11B, CDK13, CELF1, CPSF6, FMR1, GPKOW, HBB, HNRNPC, HNRNPK, HNRNPM, IK, KIN, LEO1, MALAT1, MBNL1, MECP2, MTPAP, NPM1, NSRP1, PABPC1, PAPOLA, PNN, PQBP1, PTBP3, QKI, RBM25, RBM8A, RSRC1, SAFB, SAP18, SCAF11, SCAF8, SF3B3, SF3B5, SF3B6, SLU7, SNRPD2, SNU13, SNW1, SON, SOX6, SRPK1, SRPK2, SRSF11, SUPT5H, SYF2, THRAP3, TRA2A, TRA2B, TXNL4B, WBP4, YTHDC1, ZRSR2 | E47: 59
B48: Splicing of mRNA | C48: 9.18E-10 | D48: BUD31, CDC5L, CDK13, FMR1, GPKOW, HNRNPC, HNRNPK, HNRNPM, IK, MALAT1, MBNL1, MECP2, NPM1, NSRP1, PNN, PQBP1, PTBP3, RBM25, RBM8A, RSRC1, SAP18, SCAF11, SF3B3, SF3B5, SF3B6, SLU7, SNRPD2, SNU13, SNW1, SOX6, SRPK2, SYF2, THRAP3, TRA2A, TRA2B, TXNL4B, WBP4, YTHDC1, ZRSR2 | E48: 39
B49: Processing of rRNA | C49: 1.28E-08 | D49: NOP58, NPM1, RPL11, RPL14, RPL26, RPL27, RPL35A, RPL5, RPL7, RPS15, RPS16, RPS17, RPS19, RPS24, RPS27, RPS28, RPS6, RPS7, SBDS, TRMT112 | E49: 20
B50: Splicing of primary transcript RNA | C50: 2.78E-05 | D50: CDK12, CELF1, CLK1, CLK3, MBNL1, MBNL3, PQBP1, RBM38, SON, TRA2B, ZNF326 | E50: 11
A51: Cell Cycle | B51: Cell cycle progression | C51: 1.86E-16 | D51: ABTB1, AKAP9, ANKRD17, ARAF, ARG1, ARID1A, ARRB2, ATM, ATR, AURKA, BAZ1A, BCL2L1, BIRC2, BIRC6, BRAP, BRCA1, BRCA2, BRD4, C6orf89, CALR, CAST, CCNG1, CCNI, CD44, CD59, CDC27, CDC42, CDC5L, CDK13, CDKN3, CENPC, CENPE, CENPF, CENPH, CHAF1A, CHMP2A, CIRBP, CKAP2, CKAP5, CLIP1, CLK3, CLSPN, COPZ1, CREB1, CREBBP, CREG1, CSNK2A1, CUL4A, DBF4, DCK, DCTN2, DIAPH3, DLG1, DLGAP5, DNA2, DNAJB4, DNMT1, DYNC1LI1, E2F2, E2F4, EIF3E, EIF4G2, EP300, EZH2, FBXW7, FER, FOXO3, FOXO4, GAB1, GATA1, GNA12, GPX1, GYPA, H3F3A/H3F3B, HAUS2, HAUS6, HBP1, HEXIM1, HMGB1, HSPB1, HTRA2, IK, INO80, INPP5D, INSR, JAK2, JTB, KAT2B, KDM5A, KIF11, KIF15, KIF18A, KIF22, KIF2A, KIF4A, KMT2A, KMT2E, KMT5A, KNL1, KNTC1, LAMTOR5, LGALS3, LIN9, LSM1, LTBP1, MAPK1, MAX, MCRS1, MECP2, METAP2, MFN2, MKI67, MKNK1, MLLT3, MRE11, MXI1, MYH10, NAE1, NASP, NCOA4, NCOR1, NDC80, NDE1, NPAT, NPM1, NUCKS1, NUP153, NUP88, NUSAP1, OGT, OSBPL9, PA2G4, PAK2, PCM1, PDS5A, PDS5B, PELP1, PFDN4, PHB, PHIP, PIK3R1, PIM1, PKN2, PNN, POLA1, PPP1R12A, PPP2R5B, PRDX1, PRKAR2B, PRKDC, PRMT2, PRR11, PTEN, PTK2B, PTMA, PTPN11, PTPN2, PTTG1, QKI, RACK1, RAD17, RAD21, RAD23A, RAD50, RAP1GAP, RB1, RBBP8, RBL1, RBL2, RBM3, RBX1, REL, RGCC, ROCK2, RPL11, RPL24, RPS15A, RPS24, RPS3, RPS6, RPS6KB1, RSU1, SAFB, SASS6, SDCBP, SENP6, SETDB2, SGO1, SIRT1, SIRT2, SKA3, SMARCC1, SMC3, SND1, SNX6, SON, SPAST, SPC25, SRPK2, STAT6, STIL, SUGT1, TADA2A, TADA3, TAF1D, TAL1, TBL1XR1, TERF1, TFDP1, TFDP2, TMOD3, TOP1, TOP2A, TPR, TSG101, TUBB, TUBB1, TXN, UBC, UBE2D3, UCHL5, UHMK1, USP1, WAPL, WRN, XPO1, YWHAE, YY1AP1, ZFR, ZNF346 | E51: 230
B52: Segregation of chromosomes | C52: 8.72E-16 | D52: ATRX, AURKA, BRCA1, BRCA2, CDC42, CDK5RAP2, CENPC, CENPE, CENPF, CENPH, CHMP2A, DDX3X, ECT2, EIF3E, ERCC2, ESCO1, HMMR, INO80, KIF11, KIF5B, MKI67, NCAPH, NDC80, NDEL1, NUSAP1, PPP1R12A, PPP1R7, PTTG1, RAD18, RAD21, RIOK3, RPS3, SETDB2, SGO1, SKA3, SMC1A, SMC2, SMC4, SMC5, SMC6, SPC25, SRPK1, STAG1, STAG2, SUDS3, TLK2, TOP2A, WAPL | E52: 48
B53: Mitosis | C53: 7.22E-12 | D53: ARRB2, ATM, ATR, AURKA, BAZ1A, BRAP, BRCA1, BRCA2, CDC5L, CDK13, CDKN3, CENPC, CENPE, CENPF, CENPH, CHMP2A, CKAP2, CKAP5, CLIP1, CLK3, DBF4, DCTN2, DLG1, DLGAP5, DNA2, DYNC1LI1, E2F2, EIF3E, FER, FOXO3, GATA1, GNA12, GYPA, HAUS2, HAUS6, IK, INO80, INPP5D, INSR, JAK2, JTB, KIF11, KIF15, KIF18A, KIF22, KIF2A, KIF4A, KMT2E, KNL1, KNTC1, LAMTOR5, MAPK1, MAX, MCRS1, MECP2, MKI67, MRE11, MYH10, NAE1, NCOA4, NCOR1, NDC80, NDE1, NUP153, NUP88, NUSAP1, PAK2, PDS5A, PDS5B, PHIP, PIK3R1, PPP1R12A, PTEN, PTK2B, PTMA, PTPN11, PTPN2, PTTG1, RAD21, RAD50, RB1, RBBP8, RBL2, RGCC, RPL24, RPS24, RPS3, RPS6, RPS6KB1, SASS6, SDCBP, SENP6, SETDB2, SGO1, SIRT1, SIRT2, SKA3, SMC3, SPAST, SPC25, STAT6, STIL, SUGT1, TADA2A, TADA3, TBL1XR1, TERF1, TOP2A, TSG101, TUBB, TUBB1, TXN, WAPL, YWHAE, ZFR | E53: 115
B54: Cycling of centrosome | C54: 5.39e-10 | D54: AKAP9, AURKA, BRCA1, BRCA2, CDK5RAP2, CEP135, CEP192, CEP57, CEP63, CETN2, CHMP2A, CHMP3, CHMP5, CKAP5, DYNC1LI1, HAUS2, HAUS6, HEPACAM2, KIF11, LGALS3, NDE1, NDEL1, NEK1, NPM1, PCM1, PCNT, PPP1R12A, ROCK2, SASS6, STIL, TOP1, USP33, UXT, XPO1 | E54: 34
B55: M phase | C55: 2.49E-09 | D55: AKAP9, ATM, ATR, AURKA, BCL2L1, BECN1, BIRC6, BRCA2, BRD4, CALM1 (includes others), CCNG1, CD2AP, CDC27, CDC34, CDC42, CENPE, CETN2, CHMP3, CKAP2, CSPP1, DCTN3, DIAPH3, ECT2, EIF3E, EPS15, FLCN, HMMR, KIF14, KIF20B, KIF4A, KMT5A, MYH10, NDC80, NEDD4L, NPM1, NUSAP1, PI4KB, PIK3C3, PIM1, PKN2, PRPF40A, PTPN11, PTPN2, PTTG1, RAD21, SEPT7, SETD2, SH3GLB1, SIRT1, SPAST, SPDL1, STAG1, SUDS3, TERF1, TOP2A, TPM1, UBAP2L, UBE2D3, YBX1 | E55: 59
B56: Interphase | C56: 3.11E-09 | D56: ARAF, ARG1, ARNT, ATF2, ATM, ATR, ATRX, AURKA, BARD1, BCL2L1, BRCA1, CAPNS1, CASP8AP2, CAT, CCNG1, CD44, CDC42, CDC5L, CDK11B, CDKN3, CHAF1A, CLSPN, COPS2, CREBBP, CREG1, CREM, CSNK2A1, CUL4A, DBF4, DDB1, DDX3X, DNMT1, E2F2, E2F4, EIF3E, EP300, ERCC1, ESCO1, EZH2, FOXN3, FOXO3, FOXO4, GAB1, GATA1, GFI1B, GNA12, GNL3L, GSPT1, HIF1AN, INSR, JAK2, KIF11, KLF1, KMT2A, KMT2E, LGALS3, MAP2K3, MAPK1, MAX, MGEA5, MRE11, MTDH, MXI1, NAE1, NASP, NFE2L2, NPAT, NPM1, OLA1, ORC3, PARG, PBX1, PIAS1, PIK3R1, PIM1, POLA1, POLK, PPM1A, PRDM2, PRKDC, PSAP, PTEN, PTGES3, PTK2B, PTPN11, PTPN2, PTPRA, PTTG1, RACK1, RAD17, RAD18, RB1, RB1CC1, RBBP8, RBL1, RBL2, RBM38, RBX1, REL, REV1, REV3L, RGCC, RNASEH2B, RPL11, RPL23, RPL23A, RPL5, RPL7A, RPS6, RPS6KB1, RXRA, SIAH2, SIRT1, SMC1A, SOD2, SOX6, SRPK2, SSH2, ST8SIA1, STX4, SYF2, TAF10, TAF2, TAL1, TAOK1, TBPL1, TERF1, TFDP1, TFDP2, TFRC, TOP2A, TSG101, TXNL4B, UBL5, UBR5, UIMC1, USP37, USP8, WRN, ZNF346 | E56: 140
B57: Ploidy | C57: 1.32E-08 | D57: AKAP9, ATM, AURKA, BCL2L1, BECN1, BRCA1, CCNG1, CDK8, CENPE, CENPH, CKAP2, CLK1, DNA2, E2F2, EEF2, EP300, ERCC1, FBXW7, GATA1, H3F3A/H3F3B, IRF2, JAK2, KIF11, MCRS1, MYH10, PAK2, PDS5B, PIM1, PIP4K2A, PRKDC, PTEN, PTPN11, PTTG1, RB1, SIRT1, SIRT2, STAG1, SUDS3, TAL1, TOP2A, TRIM24, TSG101, UBE2B, WAPL, WNK1 | E57: 45
B58: Cytokinesis | C58: 3.69E-08 | D58: AKAP9, AURKA, BCL2L1, BECN1, BIRC6, BRCA2, BRD4, CALM1 (includes others), CCNG1, CD2AP, CDC42, CETN2, CHMP3, CKAP2, CSPP1, DIAPH3, ECT2, EIF3E, EPS15, FLCN, HMMR, KIF14, KIF20B, KIF4A, KMT5A, MYH10, NEDD4L, NPM1, NUSAP1, PI4KB, PIK3C3, PIM1, PKN2, PRPF40A, PTPN11, PTPN2, SEPT7, SETD2, SH3GLB1, SPAST, SUDS3, TERF1, TOP2A, TPM1, UBE2D3, YBX1 | E58: 46
B59: Remodeling of chromatin | C59: 7.45E-08 | D59: ARID1A, ATRX, BAZ1A, BAZ1B, BPTF, CCAR1, EP300, KAT2B, KDM6A, KLF1, MECP2, MORF4L1, PIH1D1, RB1, RBBP7, REL, RERE, RSF1, SATB1, SMARCA5, SMARCC1, SMARCC2, STAT6, SUPT4H1, TOP1 | E59: 25
B60: Checkpoint control | C60: 1.74E-07 | D60: ATM, ATR, BCL2L1, BRCA1, CUL4A, DBF4, E2F2, ERCC2, ESCO1, FOXO3, IFT122, KNTC1, NDC80, PIM1, PTEN, PTTG1, RAD17, RAD18, RB1, RBBP8, RPL24, RPS6, SIRT1, SMC1A, SMC3, TERF1, UIMC1, ZWILCH | E60: 28
B61: Modification of chromatin | C61: 1.74E-07 | D61: ARID1A, ATM, ATRX, BAZ1A, BAZ1B, BPTF, CCAR1, EP300, FLCN, HMGN2, KAT2B, KDM6A, KLF1, MECP2, MORF4L1, PIH1D1, RB1, RBBP7, REL, RERE, RSF1, SATB1, SMARCA5, SMARCC1, SMARCC2, STAT6, SUPT4H1, TOP1 | E61: 28
B62: Arrest in interphase | C62: 2.45E-07 | D62: ARG1, ARNT, ATF2, ATM, ATR, AURKA, BARD1, BCL2L1, BRCA1, CASP8AP2, CAT, CCNG1, CD44, CDC42, CHAF1A, CREM, CSNK2A1, DDB1, DNMT1, E2F2, E2F4, EP300, ERCC1, EZH2, FOXO3, FOXO4, GATA1, GFI1B, GNL3L, GSPT1, HIF1AN, JAK2, KIF11, KMT2A, KMT2E, LGALS3, MAP2K3, MAPK1, MGEA5, MRE11, MTDH, MXI1, NFE2L2, OLA1, ORC3, PARG, PIAS1, PIK3R1, PIM1, POLK, PPM1A, PRDM2, PRKDC, PTEN, PTGES3, PTK2B, PTPN11, PTPN2, RAD17, RAD18, RB1, RB1CC1, RBL1, RBL2, RBM38, RBX1, REL, REV1, REV3L, RPL11, RPL23, RPL23A, RPL5, RPL7A, RPS6, RPS6KB1, RXRA, SIAH2, SIRT1, SMC1A, SOX6, SRPK2, TAF10, TFDP1, TFDP2, TFRC, TOP2A, TSG101, UBL5, UBR5, WRN, ZNF346 | E62: 92
B63: Homologous recombination | C63: 2.70E-07 | D63: ATM, ATRX, BRCA1, BRCA2, BRIP1, CHCHD3, DDB1, HNRNPC, IK, KANK2, MRE11, NDE1, NSMCE2, PABPC1, PARPBP, PKN2, PRKDC, PTEN, RAD21, RAD50, RFC1, RPS9, SF3B3, SF3B5, SMC1B, SNRNP27, SNRPD2, SNU13, SPIDR, SUPT5H, WAPL, WRN, ZMYND8 | E63: 33
B64: Senescence of cells | C64: 3.05E-07 | D64: ARF1, ARHGAP5, ATM, ATR, BCL2L1, BRCA1, CALR, CAT, CIRBP, COX4I1, CREG1, CSNK2A1, DEK, E2F2, EP300, ERBIN, ERCC1, FOXO3, GABARAPL2, HNRNPD, KDM5A, LIN9, MAP1LC3B, MAP2K3, MAPK1, MCRS1, MORC3, NCAPH, NCOA4, NFE2L2, NPM1, NSMCE2, NUDT1, OGT, OPA1, PCM1, PDZK1IP1, PRKDC, PTEN, PTK2B, PTTG1, RB1, RBL1, RBL2, RBM38, RBX1, REV1, RFC1, SIRT1, SIRT2, SMC5, SMC6, SOD1, SOD2, SPDL1, STAT6, TERF2, TOP1, UBC, UIMC1, WRN, YBX1, YEATS4, YPEL3 | E64: 64
B65: Formation of spindle apparatus | C65: 3.08E-07 | D65: AURKA, BRCA1, CKAP2, CKAP5, DYNC1LI1, EIF3E, HAUS2, HAUS6, INO80, KIF11, KIF2A, KIF4A, KMT2E, LAMTOR5, MCRS1, NCOR1, NDE1, PRKDC, RPS3, SASS6, SENP6, TERF1, TUBB, TUBB1, UBE2D3 | E65: 25
B66: Ploidy of cells | C66: 3.37E-07 | D66: AKAP9, ATM, AURKA, BECN1, BRCA1, CDK8, CENPE, CENPH, CKAP2, CLK1, DNA2, E2F2, EEF2, EP300, ERCC1, FBXW7, IRF2, JAK2, MCRS1, MYH10, PDS5B, PIM1, PIP4K2A, PRKDC, PTEN, PTPN11, PTTG1, RB1, SIRT1, SIRT2, STAG1, SUDS3, TSG101, UBE2B, WNK1 | E66: 35
B67: Formation of mitotic spindle | C67: 5.02E-07 | D67: AURKA, BRCA1, CKAP2, CKAP5, DYNC1LI1, EIF3E, HAUS2, HAUS6, INO80, KIF11, KIF2A, KIF4A, KMT2E, LAMTOR5, MCRS1, NCOR1, NDE1, RPS3, SASS6, SENP6, TERF1, TUBB, TUBB1 | E67: 23
B68: DNA recombination | C68: 6.16E-07 | D68: ATM, ATRX, BRCA1, BRCA2, BRIP1, CHCHD3, DDB1, DNMT1, ERCC1, ERCC2, HLTF, HMGB1, HMGB2, HMGN2, HNRNPC, IK, KANK2, MRE11, NDE1, PABPC1, PARG, PARPBP, PKN2, PRKDC, PTEN, RAD18, RAD21, RAD50, RFC1, RPS9, SF3B3, SF3B5, SMC1B, SNRNP27, SNRPD2, SNU13, SPIDR, SUPT5H, TERF2, WRN, ZMYND8 | E68: 41
B69: Aneuploidy of cells | C69: 7.53E-07 | D69: ATM, AURKA, BECN1, BRCA1, CENPE, CENPH, DNA2, EEF2, ERCC1, FBXW7, PDS5B, PTEN, PTTG1, RB1, SIRT1, SIRT2, STAG1, SUDS3, TSG101, UBE2B | E69: 20
B70: Aneuploidy | C70: 1.55E-06 | D70: ATM, AURKA, BECN1, BRCA1, CENPE, CENPH, DNA2, EEF2, ERCC1, FBXW7, MCRS1, PDS5B, PIM1, PTEN, PTTG1, RB1, SIRT1, SIRT2, STAG1, SUDS3, TSG101, UBE2B, WAPL | E70: 23
B71: Abnormal cell cycle | C71: 3.33E-06 | D71: ATM, BIRC6, CIRBP, DIAPH3, E2F4, GPX1, H3F3A/H3F3B, HSPB1, KDM5A, LIN9, PRDX1, PRMT2, RB1, RBBP8, RBM3, REL, SIRT2, UBC, UHMK1, YWHAE | E71: 20
B72: Organization of chromosomes | C72: 4.04E-06 | D72: ARID1A, ATR, BRCA1, BRCA2, CENPH, CTCF, ERCC1, EZH2, GPX4, KIF4A, KLF1, MRE11, NDC80, NUCKS1, RAD50, SAFB, SATB1, SIRT1, SMC2, SMC4, TSG101 | E72: 21
B73: Recombination of cells | C73: 4.46E-06 | D73: ATM, BRCA1, BRCA2, BRIP1, CHCHD3, DDB1, ERCC1, HNRNPC, IK, KANK2, MRE11, NDE1, PABPC1, PARPBP, PKN2, RAD50, RFC1, RPS9, SF3B3, SF3B5, SNRNP27, SNRPD2, SNU13, SPIDR, SUPT5H, ZMYND8 | E73: 26
B74: S phase | C74: 5.26E-06 | D74: ARAF, ARNT, ATM, ATR, BCL2L1, BRCA1, CASP8AP2, CCNG1, CHAF1A, CREBBP, CREM, CSNK2A1, DBF4, DDX3X, E2F2, E2F4, EP300, ERCC1, ESCO1, FOXO3, GAB1, MAX, MXI1, NAE1, NPAT, NPM1, PARG, PBX1, PIAS1, POLA1, POLK, PSAP, PTPN11, PTPN2, RAD17, RAD18, RB1, RBBP8, RBL1, RBL2, REL, REV1, REV3L, RGCC, SMC1A, SOD2, SSH2, ST8SIA1, TAL1, TBPL1, TFDP1, TFDP2, TSG101, TXNL4B, USP8 | E74: 55
B75: Homologous recombination of cells | C75: 5.69E-06 | D75: ATM, BRCA1, BRCA2, BRIP1, CHCHD3, DDB1, HNRNPC, IK, KANK2, MRE11, NDE1, PABPC1, PARPBP, PKN2, RFC1, RPS9, SF3B3, SF3B5, SNRNP27, SNRPD2, SNU13, SPIDR, SUPT5H, ZMYND8 | E75: 24
B76: Length of telomeres | C76: 9.66E-06 | D76: ATM, BRCA1, DNA2, GAPDH, MRE11, NEIL2, POLA1, PTTG1, RAD50, RB1, RBL1, RBL2, TERF1, TERF2, TERF2IP | E76: 15
B77: G2 phase | C77: 1.58E-05 | D77: ATF2, ATM, ATR, ATRX, AURKA, BCL2L1, BRCA1, CAT, CCNG1, CDC5L, CLSPN, CREM, CSNK2A1, DDB1, DNMT1, E2F4, EIF3E, EP300, ERCC1, FOXN3, FOXO4, GNL3L, KIF11, KMT2E, MGEA5, MRE11, MTDH, MXI1, NPM1, PIAS1, PPM1A, PRDM2, PTEN, PTPN11, PTPN2, PTTG1, RAD17, RB1, RBBP8, RBX1, REV1, RNASEH2B, RPL7A, RPS6, SIAH2, SRPK2, SSH2, SYF2, TAF10, TAF2, TAOK1, TERF1, TOP2A, TXNL4B, UIMC1, WRN | E77: 56
B78: Formation of centrosome | C78: 1.76E-05 | D78: BRCA1, BRCA2, CEP63, CHMP2A, CHMP3, CHMP5, DYNC1LI1, LGALS3, NDE1, NEK1, NPM1, ROCK2, SASS6, STIL, USP33, XPO1 | E78: 16
B79: Morphology of chromosome components | C79: 1.83E-05 | D79: ATM, BRCA1, CHAF1A, DEK, DNA2, EP300, GAPDH, MRE11, NEIL2, POLA1, PTTG1, RAD50, RB1, RBL1, RBL2, SMC2, TERF1, TERF2, TERF2IP, WRN | E79: 20
B80: Morphology of chromosomes | C80: 2.40E-05 | D80: ATM, AURKA, BRCA1, BRCA2, CENPE, CHAF1A, DEK, DNA2, DNMT1, EP300, H3F3A/H3F3B, KIF22, KIF4A, PDS5B, PTPN11, SIRT1, SIRT2, SMC2, SPC25, TERF1, TRIM24 | E80: 21
B81: Duplication of centrosome | C81: 2.82E-05 | D81: BRCA1, BRCA2, CEP63, CHMP2A, CHMP3, CHMP5, DYNC1LI1, NDE1, NEK1, NPM1, ROCK2, SASS6, STIL, USP33, XPO1 | E81: 15
B82: Arrest in G1 phase | C82: 3.02E-05 | D82: ARNT, BARD1, BRCA1, CCNG1, CDC42, CREM, E2F2, E2F4, EP300, EZH2, FOXO4, GATA1, GFI1B, GSPT1, HIF1AN, JAK2, KMT2A, KMT2E, LGALS3, MAP2K3, MAPK1, NFE2L2, OLA1, ORC3, PIAS1, PIM1, PRKDC, PTEN, PTGES3, PTK2B, RAD17, RB1, RB1CC1, RBL1, RBL2, RBM38, REL, RPL11, RPL23, RPL23A, RPL5, RPL7A, RPS6, RPS6KB1, SIRT1, SOX6, SRPK2, TFDP1, TFDP2, TFRC, TSG101, UBL5, UBR5, ZNF346 | E82: 54
B83: Arrest in mitosis | C83: 3.55E-05 | D83: BAZ1A, BRCA1, CENPC, CENPE, CKAP2, CKAP5, CLIP1, CLK3, DCTN2, EIF3E, FOXO3, KIF11, KIF22, KIF4A, KNL1, KNTC1, NDC80, PTEN, RPS24, SGO1, SPC25, TBL1XR1 | E83: 22
B84: G2/M phase | C84: 3.95E-05 | D84: ATF2, ATM, ATR, ATRX, AURKA, BCL2L1, BRCA1, CAT, CCNG1, CDC5L, CLSPN, CREM, DDB1, EIF3E, EP300, ERCC1, FOXN3, FOXO4, GNL3L, MGEA5, MRE11, MTDH, MXI1, NPM1, PPM1A, PRDM2, PTEN, PTPN11, PTTG1, RAD17, RB1, RBBP8, RBX1, RNASEH2B, RPL7A, RPS6, SIAH2, SRPK2, SSH2, SYF2, TAF2, TAOK1, TXNL4B, UIMC1, WRN | E84: 45
B85: G1 phase | C85: 4.16E-05 | D85: ARNT, ATM, BARD1, BCL2L1, BRCA1, CAPNS1, CCNG1, CDC42, CDK11B, CDKN3, COPS2, CREG1, CREM, CSNK2A1, CUL4A, E2F2, E2F4, EP300, EZH2, FOXO4, GATA1, GFI1B, GNA12, GSPT1, HIF1AN, INSR, JAK2, KMT2A, KMT2E, LGALS3, MAP2K3, MAPK1, NASP, NFE2L2, NPAT, OLA1, ORC3, PIAS1, PIK3R1, PIM1, PRKDC, PTEN, PTGES3, PTK2B, RACK1, RAD17, RB1, RB1CC1, RBBP8, RBL1, RBL2, RBM38, REL, RGCC, RPL11, RPL23, RPL23A, RPL5, RPL7A, RPS6, RPS6KB1, SIRT1, SOD2, SOX6, SRPK2, SSH2, TAF10, TAL1, TFDP1, TFDP2, TFRC, TSG101, UBL5, UBR5, USP37, ZNF346 | E85: 76
B86: Mitosis of embryonic cell lines | C86: 5.50E-05 | D86: ARRB2, AURKA, CKAP2, CLIP1, E2F2, KMT2E, MECP2, PTPN11, PTTG1 | E86: 9
B87: Replication of centriole | C87: 5.55E-05 | D87: AKAP9, CDK5RAP2, CEP135, CEP192, CEP57, CEP63, CETN2, NPM1, PCNT, SASS6, STIL | E87: 11
B88: Arrest in G1 phase of embryonic cell lines | C88: 5.83E-05 | D88: KMT2E, OLA1, PIM1, PRKDC, PTK2B, RB1, RBL1, RBL2, SIRT1, ZNF346 | E88: 10
B89: Cell cycle progression of erythroblasts | C89: 6.06E-05 | D89: DCK, E2F2, RB1, TMOD3 | E89: 4
B90: Abnormal morphology of chromosomes | C90: 1.38E-04 | D90: ATM, AURKA, BRCA1, BRCA2, CENPE, DNA2, DNMT1, H3F3A/H3F3B, KIF22, KIF4A, PDS5B, PTPN11, SIRT1, SIRT2, SPC25, TERF1, TRIM24 | E90: 17
A91: Cellular Assembly and Organization | B91: Segregation of chromosomes | C91: 8.72E-16 | D91: ATRX, AURKA, BRCA1, BRCA2, CDC42, CDK5RAP2, CENPC, CENPE, CENPF, CENPH, CHMP2A, DDX3X, ECT2, EIF3E, ERCC2, ESCO1, HMMR, INO80, KIF11, KIF5B, MKI67, NCAPH, NDC80, NDEL1, NUSAP1, PPP1R12A, PPP1R7, PTTG1, RAD18, RAD21, RIOK3, RPS3, SETDB2, SGO1, SKA3, SMC1A, SMC2, SMC4, SMC5, SMC6, SPC25, SRPK1, STAG1, STAG2, SUDS3, TLK2, TOP2A, WAPL | E91: 48
B92: Organization of organelle | C92: 2.32e-10 | D92: AGTPBP1, AKAP9, ALDOA, ALMS1, AP2M1, ARF1, ARID1A, ATR, BECN1, BRCA1, BRCA2, CAMKMT, CD2AP, CD44, CDC42, CENPF, CENPH, CEP70, CHAF1A, CHCHD3, CHMP2A, CHMP5, CHP1, COG2, COG4, CRIPT, CTCF, CTDNEP1, CTNNA1, DLG1, DLGAP5, DNAJB6, EIF4G1, EPB41, EPS15, ERCC1, EZH2, FIS1, GAPDH, GOLGB1, GPX4, H3F3A/H3F3B, HDAC6, HOOK3, HPS1, HSP90AB1, HTRA2, IFT20, IFT88, KDM3A, KIF4A, KLF1, LAMTOR1, LTBP2, MALAT1, MAN2A1, MFF, MFN2, MRE11, NDC80, NDE1, NDEL1, NPM1, NUCKS1, OPA1, OPTN, PARK7, PARP11, PCM1, PDE2A, PEX1, PHB, PICALM, PIK3C3, PINK1, PITPNB, PTK2B, RAB5A, RAB5B, RAB5C, RAD50, RDX, REEP3, RPS19, SAFB, SATB1, SDCCAG8, SFRP2, SH3GLB1, SHARPIN, SIRT1, SLAIN2, SLK, SMC2, SMC4, SNCA, SOD1, SOD2, SPG11, SPTA1, SPTB, STOML2, STX17, TMED10, TMED2, TMEM11, TMOD1, TOP1, TPM1, TPP1, TPR, TRIP11, TSC1, TSG101, TUBB, USP6NL, USP8, VAPB, VPS13C, VPS35, WHAMM, YME1L1 | E92: 122
B93: Cohesion of sister chromatids | C93: 1.31E-09 | D93: BRCA1, CBX3, DNA2, ERCC1, ESCO1, FBXW7, KIF22, MRE11, NIPBL, PDS5A, PDS5B, PTTG1, RAD21, RAD50, RB1, RNF168, SGO1, SMC1A, SMC1B, SMC3, STAG2 | E93: 21
B94: Organization of cytoplasm | C94: 4.81E-09 | D94: ABCC4, ACAP2, ACKR1, ACP1, ACTB, ACTR3, ADD1, AGER, AGTPBP1, AKAP9, ALDOA, ALMS1, ARF1, ARHGAP5, ARPC3, ARRB2, ASAP1, ASPM, ATP2B1, ATP6V1D, ATRX, ATXN2, ATXN3, AURKA, BECN1, BLOC1S6, BMP2K, BRCA1, BRK1, BRWD1, BRWD3, BSG, CALR, CAMKMT, CANX, CAPNS1, CAPRIN2, CAST, CCDC88A, CD2AP, CD44, CD82, CDC42, CDC42BPA, CDK11B, CDK5RAP2, CENPE, CENPF, CEP162, CEP192, CEP290, CEP350, CEP70, CEP83, CETN2, CHCHD3, CHMP5, CHP1, CKAP2, CKAP5, CLIP1, COG2, COG4, CORO1C, CPEB4, CREB1, CRIPT, CRKL, DAAM1, DCTN2, DIAPH3, DLG1, DLGAP5, DMTN, DNAJB6, DYNC1LI1, DYNLL1, E2F4, ECT2, EEF1A1, EIF4EBP2, EIF4G1, EIF4G2, EIF4G3, EP300, EPB41, EPS15, ERBIN, FER, FIS1, FMR1, FOPNL, GAB1, GAPDH, GCC2, GMFG, GNA12, GNAS, GOLGA4, GOLGB1, GPX4, HBP1, HDAC6, HDGF, HDGFL3, HERC1, HMGB1, HMGB2, HMMR, HNRNPK, HOOK3, HPS1, HSP90AA1, HSP90AB1, HSPB1, HTRA2, IFT122, IFT20, IFT52, IFT74, IFT88, INPP5D, INSR, ITGA4, ITSN1, JAK2, KIAA0586, KIDINS220, KIF11, KIF18A, KIF20B, KIF2A, KIF4A, KIF5B, KTN1, LAMTOR1, LARP4, MAN2A1, MAPK1, MBP, MECP2, MFF, MFN2, MICAL2, MIEN1, MKLN1, MLST8, MNS1, MT2A, MYH10, NDC80, NDE1, NDEL1, NEK1, NFIA, NFIX, NUSAP1, OFD1, OPA1, OPTN, PAK2, PARK7, PCM1, PCNT, PDE2A, PEX1, PFDN5, PHB, PHIP, PI4KB, PIBF1, PICALM, PIK3C3, PIK3R1, PINK1, PLEK2, POC1B, PQBP1, PRKDC, PRPF40A, PTEN, PTK2B, PTPN11, RAB10, RAB13, RAB3IL1, RAB5A, RAB5B, RAB5C, RAD21, RALBP1, RANBP10, RANBP9, RAP1A, RAP1GAP, RAP2A, RAPGEF2, RB1, RDX, RERE, RFX3, RGS6, RICTOR, RNF19A, RNF5, ROCK1, ROCK2, RPL4, RPS14, RPS3, RPS6, RPS6KB1, RSU1, SBDS, SCLT1, SDCCAG8, SEPT7, SH3GLB1, SHARPIN, SIRT2, SLAIN2, SLK, SMARCA5, SNCA, SNX2, SOD1, SOD2, SON, SPAG16, SPAST, SPC25, SPG11, SPTA1, SSH2, ST8SIA1, STIL, STOML2, STRADB, STX17, STX2, TAOK1, TBC1D23, TERF1, TGM2, TMED10, TMED2, TMEM11, TMEM138, TMOD3, TOGARAM1, TPM1, TPM3, TPP1, TRAK1, TRAK2, TRIP11, TROVE2, TSC1, TSGA10, TUBA4A, TUBB, UBAP2L, UBB, UBE4B, UBQLN1, UHMK1, USP6NL, USP8, USP9X, UXT, VAPA, VAPB, VPS13C, VPS35, WASF2, WDR60, WHAMM, XPO1, YBX1, YME1L1, ZMYM4, ZMYND8, ZRANB1 | E94: 283
B95: Formation of chromosome components | C95: 9.08E-09 | D95: ARID1A, ASH2L, ATM, ATRX, BAG6, BAZ1A, BAZ1B, BRCA1, BRCA2, CENPC, CHAF1A, CTCF, EZH2, GPX4, H3F3A/H3F3B, KLF1, NUCKS1, PCGF6, PHC3, RB1, RBL2, SAFB, SATB1, SENP6, SIRT1, SMARCA5, TERF2, TLK1, TLK2, TSG101, UBE2B | E95: 31
B96: Organization of nucleus | C96: 1.13E-08 | D96: ARID1A, ATR, BRCA1, BRCA2, CENPH, CHAF1A, CHMP2A, CHMP5, CTCF, CTDNEP1, ERCC1, EZH2, GPX4, H3F3A/H3F3B, IFT88, KDM3A, KIF4A, KLF1, MRE11, NDC80, NPM1, NUCKS1, PARP11, PITPNB, RAD50, REEP3, RPS19, SAFB, SATB1, SIRT1, SMC2, SMC4, TOP1, TPR, TSG101 | E96: 35
B97: Remodeling of chromatin | C97: 7.45E-08 | D97: ARID1A, ATRX, BAZ1A, BAZ1B, BPTF, CCAR1, EP300, KAT2B, KDM6A, KLF1, MECP2, MORF4L1, PIH1D1, RB1, RBBP7, REL, RERE, RSF1, SATB1, SMARCA5, SMARCC1, SMARCC2, STAT6, SUPT4H1, TOP1 | E97: 25
B98: Formation of chromatin | C98: 1.84E-07 | D98: ARID1A, BAZ1A, BAZ1B, BRCA1, CHAF1A, CTCF, EZH2, GPX4, H3F3A/H3F3B, KLF1, NUCKS1, RB1, RBL2, SAFB, SATB1, SIRT1, SMARCA5, TLK1, TLK2, TSG101 | E98: 20
B99: Morphology of nucleus | C99: 5.96E-07 | D99: ATM, AURKA, BRCA1, BRCA2, CENPE, CHAF1A, CHMP2A, DEK, DNA2, DNMT1, EEF2, EP300, ERCC1, GAPDH, H3F3A/H3F3B, KIF22, KIF4A, MAPK1, MRE11, NEIL2, PAIP2, PDS5B, POLA1, PTPN11, PTTG1, RAD50, RB1, RBL1, RBL2, SEPT7, SIRT1, SIRT2, SMC2, SOD1, SPC25, TERF1, TERF2, TERF2IP, TMOD3, TOP1, TRIM24, TSG101, WRN, XPO7 | E99: 44
B100: Organization of mitochondria | C100: 6.20E-07 | D100: AGTPBP1, CAMKMT, CHCHD3, EIF4G1, FIS1, HDAC6, HTRA2, MAN2A1, MFF, MFN2, OPA1, PARK7, PDE2A, PHB, PINK1, SH3GLB1, SHARPIN, SNCA, SOD2, STOML2, TMEM11, VPS13C, VPS35, YME1L1 | E100: 24
B101: Maintenance of telomeres | C101: 9.78E-07 | D101: ATM, BRCA1, DNA2, GAPDH, MRE11, NEIL2, POLA1, PRKDC, PTGES3, PTTG1, RAD50, RB1, RBL1, RBL2, RIF1, SP100, TERF1, TERF2, TERF2IP, WRN | E101: 20
B102: Organization of cytoskeleton | C102: 2.04E-06 | D102: ABCC4, ACAP2, ACKR1, ACP1, ACTB, ACTR3, ADD1, AGER, AGTPBP1, AKAP9, ALDOA, ALMS1, ARF1, ARHGAP5, ARPC3, ARRB2, ASAP1, ASPM, ATP2B1, ATP6V1D, ATRX, ATXN2, ATXN3, AURKA, BECN1, BLOC1S6, BMP2K, BRCA1, BRK1, BRWD1, BRWD3, BSG, CALR, CANX, CAPNS1, CAPRIN2, CAST, CCDC88A, CD2AP, CD44, CD82, CDC42, CDC42BPA, CDK11B, CDK5RAP2, CENPE, CENPF, CEP162, CEP192, CEP290, CEP350, CEP70, CEP83, CETN2, CHP1, CKAP2, CKAP5, CLIP1, CORO1C, CPEB4, CREB1, CRIPT, CRKL, DAAM1, DCTN2, DIAPH3, DLG1, DLGAP5, DMTN, DNAJB6, DYNC1LI1, DYNLL1, E2F4, ECT2, EEF1A1, EIF4EBP2, EIF4G2, EIF4G3, EP300, EPB41, EPS15, ERBIN, FER, FMR1, FOPNL, GAB1, GAPDH, GCC2, GMFG, GNA12, GNAS, GOLGA4, GPX4, HBP1, HDAC6, HDGF, HDGFL3, HERC1, HMGB1, HMGB2, HMMR, HNRNPK, HOOK3, HSP90AA1, HSP90AB1, HSPB1, IFT122, IFT20, IFT52, IFT74, IFT88, INPP5D, INSR, ITGA4, ITSN1, JAK2, KIAA0586, KIDINS220, KIF11, KIF18A, KIF20B, KIF2A, KIF4A, KIF5B, KTN1, LARP4, MAPK1, MBP, MECP2, MFN2, MICAL2, MIEN1, MKLN1, MLST8, MNS1, MT2A, MYH10, NDC80, NDE1, NDEL1, NEK1, NFIA, NFIX, NUSAP1, OFD1, OPA1, OPTN, PAK2, PCM1, PCNT, PFDN5, PHIP, PI4KB, PIBF1, PICALM, PIK3R1, PLEK2, POC1B, PQBP1, PRKDC, PRPF40A, PTEN, PTK2B, PTPN11, RAB10, RAB13, RAB3IL1, RAB5A, RAD21, RALBP1, RANBP10, RANBP9, RAP1A, RAP1GAP, RAP2A, RAPGEF2, RB1, RDX, RERE, RFX3, RGS6, RICTOR, RNF19A, RNF5, ROCK1, ROCK2, RPL4, RPS14, RPS3, RPS6, RPS6KB1, RSU1, SBDS, SCLT1, SDCCAG8, SEPT7, SH3GLB1, SIRT2, SLAIN2, SLK, SMARCA5, SNCA, SNX2, SOD1, SON, SPAG16, SPAST, SPC25, SPG11, SPTA1, SSH2, ST8SIA1, STIL, STRADB, STX2, TAOK1, TBC1D23, TERF1, TGM2, TMEM138, TMOD3, TOGARAM1, TPM1, TPM3, TRAK1, TRAK2, TROVE2, TSC1, TSGA10, TUBA4A, TUBB, UBAP2L, UBB, UBE4B, UBQLN1, UHMK1, USP9X, UXT, VAPA, WASF2, WDR60, WHAMM, XPO1, YBX1, ZMYM4, ZMYND8, ZRANB1 | E102: 247
B103: Morphology of mitochondria | C103: 2.49E-06 | D103: ATG3, BCL2L1, CISD2, DAP3, EP300, FIS1, GAPDH, GCLC, GNA12, GPX4, HTRA2, JTB, KIF5B, MFN2, MGEA5, MYH10, NDUFS4, OGT, OPA1, PIK3C3, PIM1, PINK1, PNP, PNPLA8, PTEN, RB1, RHOT1, RPS6KB1, SH3GLB1, SNCA, SOD1, SOD2, YME1L1 | E103: 33
B104: Organization of chromosomes | C104: 4.04E-06 | D104: ARID1A, ATR, BRCA1, BRCA2, CENPH, CTCF, ERCC1, EZH2, GPX4, KIF4A, KLF1, MRE11, NDC80, NUCKS1, RAD50, SAFB, SATB1, SIRT1, SMC2, SMC4, TSG101 | E104: 21
B105: Formation of cilia | C105: 4.67E-06 | D105: ABCC4, ACTR3, AKAP9, ALMS1, ASAP1, ATP6V1D, AURKA, CCDC88A, CDC42, CDK11B, CENPF, CEP162, CEP290, CEP83, CETN2, E2F4, FOPNL, HDAC6, IFT122, IFT20, IFT52, IFT74, IFT88, INSR, KIAA0586, MNS1, NDEL1, NEK1, OFD1, PAK2, PCM1, PCNT, PIBF1, POC1B, RFX3, SCLT1, SIRT2, SPAG16, STIL, TMEM138, TROVE2, WDR60 | E105: 42
B106: Axonal transport | C106: 5.36E-06 | D106: ATXN3, BLOC1S1, BLOC1S2, BLOC1S6, FMR1, HDAC6, HSPB1, KIF4A, MFN2, NDEL1, OPA1, PINK1, RANBP9, RHOT1, SOD1, SPAST, SPG11, TERF2, TRAK1 | E106: 19
B107: Length of telomeres | C107: 9.66E-06 | D107: ATM, BRCA1, DNA2, GAPDH, MRE11, NEIL2, POLA1, PTTG1, RAD50, RB1, RBL1, RBL2, TERF1, TERF2, TERF2IP | E107: 15
B108: Microtubule dynamics | C108: 1.11E-05 | D108: ABCC4, ACAP2, ACKR1, ACP1, ACTB, ACTR3, AGER, AGTPBP1, AKAP9, ALMS1, ARHGAP5, ARPC3, ARRB2, ASAP1, ATP2B1, ATP6V1D, ATRX, ATXN2, ATXN3, AURKA, BECN1, BLOC1S6, BMP2K, BRCA1, BRK1, BSG, CANX, CAPNS1, CAPRIN2, CAST, CCDC88A, CD2AP, CD44, CD82, CDC42, CDC42BPA, CDK11B, CDK5RAP2, CENPE, CENPF, CEP162, CEP192, CEP290, CEP350, CEP70, CEP83, CETN2, CHP1, CKAP2, CKAP5, CLIP1, CPEB4, CREB1, CRIPT, CRKL, DAAM1, DIAPH3, DLG1, DLGAP5, DYNLL1, E2F4, ECT2, EEF1A1, EIF4EBP2, EIF4G2, EIF4G3, EP300, EPB41, EPS15, ERBIN, FER, FMR1, FOPNL, GAB1, GAPDH, GCC2, GNA12, GNAS, GOLGA4, GPX4, HDAC6, HDGF, HDGFL3, HERC1, HMGB1, HMGB2, HMMR, HNRNPK, HOOK3, HSP90AA1, HSP90AB1, HSPB1, IFT122, IFT20, IFT52, IFT74, IFT88, INPP5D, INSR, ITGA4, ITSN1, JAK2, KIAA0586, KIDINS220, KIF18A, KIF20B, KIF2A, KIF4A, KIF5B, KTN1, MAPK1, MBP, MECP2, MFN2, MIEN1, MNS1, MT2A, MYH10, NDC80, NDE1, NDEL1, NEK1, NFIA, NFIX, NUSAP1, OFD1, OPA1, OPTN, PAK2, PCM1, PCNT, PFDN5, PI4KB, PIBF1, PICALM, PIK3R1, POC1B, PQBP1, PTEN, PTK2B, PTPN11, RAB10, RAB13, RAB3IL1, RAB5A, RAD21, RANBP10, RANBP9, RAP1A, RAP1GAP, RAP2A, RAPGEF2, RB1, RDX, RERE, RFX3, RGS6, RNF19A, ROCK1, ROCK2, RPL4, RPS14, RPS3, RPS6, RPS6KB1, RSU1, SCLT1, SDCCAG8, SEPT7, SH3GLB1, SIRT2, SLAIN2, SLK, SMARCA5, SNCA, SNX2, SOD1, SON, SPAG16, SPAST, SPG11, ST8SIA1, STIL, STX2, TAOK1, TBC1D23, TERF1, TMEM138, TOGARAM1, TPM3, TRAK1, TRAK2, TROVE2, TSC1, TSGA10, TUBA4A, TUBB, UBAP2L, UBB, UBE4B, UHMK1, USP9X, UXT, VAPA, WASF2, WDR60, WHAMM, XPO1, YBX1, ZMYND8 | E108: 210
B109: Formation of vesicles | C109: 1.46E-05 | D109: ARF1, ATG12, ATG13, ATG3, ATG9A, BECN1, BIRC6, BRCA1, CAST, CDC27, CHMP2A, CHMP3, EIF2A, EPS15, GABARAPL1, GNAS, MAPK1, PI4KB, PICALM, PIK3C3, ROCK1, ROCK2, SH3GLB1, SNX3, STAM, TAOK1, TGM2, TMBIM6, TMED10, TSG101, UCP2, VPS28, WASF2 | E109: 33
B110: Formation of centrosome | C110: 1.76E-05 | D110: BRCA1, BRCA2, CEP63, CHMP2A, CHMP3, CHMP5, DYNC1LI1, LGALS3, NDE1, NEK1, NPM1, ROCK2, SASS6, STIL, USP33, XPO1 | E110: 16
B111: Morphology of chromosome components | C111: 1.83E-05 | D111: ATM, BRCA1, CHAF1A, DEK, DNA2, EP300, GAPDH, MRE11, NEIL2, POLA1, PTTG1, RAD50, RB1, RBL1, RBL2, SMC2, TERF1, TERF2, TERF2IP, WRN | E111: 20
B112: Shortening of telomeres | C112: 1.91E-05 | D112: BRCA1, BRCA2, GNL3L, HNRNPC, PRKDC, RAD50, RB1, TERF1, TERF2, TERF2IP, WRN | E112: 11
B113: Morphology of chromosomes | C113: 2.40E-05 | D113: ATM, AURKA, BRCA1, BRCA2, CENPE, CHAF1A, DEK, DNA2, DNMT1, EP300, H3F3A/H3F3B, KIF22, KIF4A, PDS5B, PTPN11, SIRT1, SIRT2, SMC2, SPC25, TERF1, TRIM24 | E113: 21
B114: Organization of microtubules | C114: 2.77E-05 | D114: AKAP9, CENPF, CEP70, CHP1, CRIPT, DLGAP5, EPB41, GAPDH, HOOK3, IFT88, NDE1, NDEL1, PCM1, SDCCAG8, SLAIN2, SLK, TUBB | E114: 17
B115: Duplication of centrosome | C115: 2.82E-05 | D115: BRCA1, BRCA2, CEP63, CHMP2A, CHMP3, CHMP5, DYNC1LI1, NDE1, NEK1, NPM1, ROCK2, SASS6, STIL, USP33, XPO1 | E115: 15
B116: Axonal transport of mitochondria | C116: 3.53E-05 | D116: HDAC6, HSPB1, MFN2, OPA1, PINK1, RANBP9, RHOT1, SPAST, TRAK1 | E116: 9
B117: Formation of nuclear foci | C117: 3.61E-05 | D117: ATM, BARD1, BRCA1, BRCA2, BRD4, CLSPN, DDB1, EP300, FOXO3, MAPK1, MECP2, POLE3, PRKDC, PTEN, RAD17, RAD21, RAD50, RBBP8, REV3L, RNF168, TERF2, TOP1, WRN | E117: 23
B118: Cohesion of mitotic sister chromatids | C118: 3.99E-05 | D118: BRCA1, DNA2, ERCC1, NIPBL, PDS5A, PDS5B, PTTG1, RAD50, RNF168, SMC1A | E118: 10
B119: Chromosomal congression of chromosomes | C119: 4.41E-05 | D119: CENPE, KIF14, KIF18A, KIF22, NDC80, RB1, SGO2 | E119: 7
B120: Amplification of centrosome | C120: 4.60E-05 | D120: ARRB2, AURKA, BRCA1, BRCA2, DCTN2, KIF5B, NPM1, OLA1, PIM1, PRKDC, PTPN11, SIRT2, TERF1, USP33, YBX1 | E120: 15
B121: Development of cytoplasm | C121: 5.03E-05 | D121: ACTB, ACTR3, ADD1, AKAP13, AKAP9, ALMS1, ANKRD13A, ARF1, ARHGEF12, ARRB2, ATG12, ATG13, ATG3, ATG9A, ATXN2, BCL2L1, BECN1, BRK1, CD44, CDC42, CDK5RAP2, CENPF, CHCHD2, CKAP5, CLIP1, CORO1C, CREB1, DIAPH3, DLG1, DLGAP5, DYNLL1, EIF2A, FBXW7, FER, FIS1, GATA1, GNA12, GNAS, GNB1, HAX1, HDAC6, HDGFL3, IFT88, INPP5K, KANK2, MAPK1, MFF, MFN2, MLST8, NPM1, NUSAP1, NVL, OPA1, PARK7, PEX1, PFDN5, PIK3C3, PIK3R1, PKN2, PTEN, PTK2B, PTPN11, PTPRA, RAB5A, RAB5B, RANBP9, RB1CC1, RGCC, RICTOR, ROCK1, ROCK2, RPS14, RPS28, RPS3, RPS6, SIRT1, SLAIN2, SNCA, STOML2, TERF1, TOGARAM1, TPM1, TPM3, TSC1, TTC17, TUBA4A, TUBB, UBAP2L, UBQLN1, WASF2, XPO1 | E121: 91
B122: Orientation of chromosomes | C122: 5.55E-05 | D122: AURKA, CENPE, DCTN3, DLGAP5, KIF14, KIF18A, KIF22, NDE1, SGO1, SMC4, UBAP2L | E122: 11
B123: Replication of centriole | C123: 5.55E-05 | D123: AKAP9, CDK5RAP2, CEP135, CEP192, CEP57, CEP63, CETN2, NPM1, PCNT, SASS6, STIL | E123: 11
B124: Erosion of telomeres | C124: 9.64E-05 | D124: ATM, BRCA2, HNRNPD, RB1, TERF2 | E124: 5
B125: Formation of stress granule | C125: 1.13E-04 | D125: ADAR, ATXN2, EIF2A, MTDH, RPL4, RPS14, RPS6, STAU1 | E125: 8
B126: Abnormal morphology of chromosomes | C126: 1.38E-04 | D126: ATM, AURKA, BRCA1, BRCA2, CENPE, DNA2, DNMT1, H3F3A/H3F3B, KIF22, KIF4A, PDS5B, PTPN11, SIRT1, SIRT2, SPC25, TERF1, TRIM24 | E126: 17
B127: Transport of mitochondria | C127: 1.62E-04 | D127: HDAC6, HSPB1, MFN2, OPA1, PINK1, RANBP9, RHOT1, SOD1, SPAST, TRAK1 | E127: 10
A128: DNA Replication, Recombination, and Repair | B128: Segregation of chromosomes | C128: 8.72E-16 | D128: ATRX, AURKA, BRCA1, BRCA2, CDC42, CDK5RAP2, CENPC, CENPE, CENPF, CENPH, CHMP2A, DDX3X, ECT2, EIF3E, ERCC2, ESCO1, HMMR, INO80, KIF11, KIF5B, MKI67, NCAPH, NDC80, NDEL1, NUSAP1, PPP1R12A, PPP1R7, PTTG1, RAD18, RAD21, RIOK3, RPS3, SETDB2, SGO1, SKA3, SMC1A, SMC2, SMC4, SMC5, SMC6, SPC25, SRPK1, STAG1, STAG2, SUDS3, TLK2, TOP2A, WAPL | E128: 48
B129: Repair of DNA | C129: 1.43e-13 | D129: APLF, ARID1A, ATF2, ATM, ATR, ATXN3, BABAM1, BACH1, BCL2L1, BCLAF1, BRCA1, BRCA2, BRIP1, CETN2, CUL4A, DDB1, DEK, DNA2, EIF3A, EIF4G1, ERCC1, ERCC2, EYA3, EZH2, FOXO3, HERC1, HMGB1, HUWE1, INO80, JAK2, MARF1, MRE11, NAE1, NEIL3, NPM1, PARG, PARK7, PIAS1, PNP, POLA1, POLE2, POLK, POLL, PRKDC, PSME4, RAD18, RAD21, RAD23A, RAD50, RB1, RBBP8, REV1, REV3L, RIF1, RNASEH2B, RNF111, RNF168, RPS3, SETD2, SIRT1, SLC30A9, SMARCA5, SMARCC1, SMARCC2, SMC1A, SMC2, SMC4, SOD2, SPIDR, ST13, TCEA1, TDG, TERF2, TOP1, TOP2A, UBE2B, UBE2V1, UIMC1, USP1, USP7, WDR48, WRN, YBX1 | E129: 83
B130: Metabolism of DNA | C130: 3.54E-11 | D130: AAGAB, ANKRD17, ATM, ATR, BARD1, BCL2L1, BECN1, BRCA1, BRCA2, BRIP1, BSG, CAST, CCDC88A, CLSPN, CUL4A, DBF4, DDB1, DNA2, DNAJC2, DNASE2, E2F2, EP300, ERCC1, ESCO1, FOXO4, GPX1, HELQ, HMGB1, HMGB2, HMGN2, HSPB1, HUWE1, IRF2, ISG20, KAT7, KIN, MAPK1, MGEA5, MRE11, MTCH1, NAE1, NASP, NCL, NCOA4, NPM1, NUCKS1, NUP98, ORC3, PCM1, PDS5A, PIK3R1, POLA1, POLE2, POLE3, PRDX6, PTEN, PTK2B, PTMS, PTPN11, RAD17, RB1, RBL2, REL, REV1, REV3L, REXO2, RFC1, SERINC3, SET, SIRT1, SMC3, SNCA, SOD1, SOD2, TERF1, TERF2, TFDP1, TMEM9, TOP1, TOP2A, TSG101, UBQLN1, UCHL5, USP37, USP9X, VPS13A, VPS28, WAPL, WRN, WRNIP1, XRN2 | E130: 91
